Workbook

Sheet revision History
A1: Date | B1: Release | E1: =MATCH(TRUE,E$2:E$100,0)+1 -> 5
A2: 2024-05-17 | B2: Beta | C2: AM62P release of J722S Power Estimation Tool | E2: =ISBLANK(B2) -> FALSE
A3: 2024-06-09 | B3: 1 | C3: AM62P Power Estimation Tool | E3: =ISBLANK(B3) -> FALSE
A4: 2024-08-27 | B4: 1.1 | C4: Dynamic result bugfix. Remove PDN information as not applicable for AM62P. Update data | E4: FALSE
E5: TRUE
E6: TRUE
E7: TRUE
E8: TRUE
E9: TRUE
E10: TRUE
E11: TRUE
E12: TRUE

Sheet Use Case
A1: J722S, AM62P Power Estimation Tool | L1: Status:
D2: Starting Use Case | L2: Start Reset | M2: Done Reset
B3: Modifiable Field | D3: UC1 0.75V Automotive Cluster | L3: Load Use Case | M3: Done Load Use Case
B4: Descriptor | L4: Start Calculate | M4: Done Calculate
A7: Tj | B7: 150 | C7: C
A8: SRAM_Voltage | B8: 0.85 | C8: V
A9: CORE_Voltage | B9: 0.75 | C9: V | E9: Processor Core Utilization (%) | I9: =IF(C17>D17, B17&" exceeds "&D17&" MHz","") -> 
A10: Process_Corner | B10: Strong | E10: MAIN SMS 0 | F10: 1
A11: OPP | B11: high | E11: MAIN (WKUP) R5FSS 0 | F11: 1
E12: MAIN A53SS 0: 0 | F12: 1
A13: UC_Description | B13: Add Test Description | E13: MAIN A53SS 0: 1 | F13: 1
A14: UC_Name | B14: Add Test Name | E14: MAIN A53SS 0: 2 | F14: 1
E15: MAIN A53SS 0: 3 | F15: 1
A16: Key IP Frequency selection | C16: Frequency [MHz] | E16: MAIN GPU 0 | F16: 1
A17: MAIN PLL 15 HSDIV 0 | B17: MAIN SMS 0 Frequency [MHz] | C17: 400 | D17: =IF(B$11="high",400,133) -> 400 | E17: MAIN Video Encoder/Decoder 0 | F17: 1
A18: MAIN PLL 15 HSDIV 2 MCU PLL 0 HSDIV 0 | B18: Domain Manager (WKUP) R5FSS 0 Frequency [MHz] | C18: 800 | D18: =IF(B$11="high",800,400) -> 800 | E18: MCU R5FSS | F18: 1
A19: MCU PLL 0 HSDIV 3 | B19: MCU R5FSS 0 Frequency [MHz] | C19: 800 | D19: =IF(B$11="high",800,400) -> 800 | I19: =IF(F10>1, E10&" exceeds 100%","") -> 
A20: MAIN PLL 8 HSDIV0 | B20: MAIN A53SS Frequency [MHz] | C20: 1250 | D20: =IF(B$9=0.85,1400,1250) -> 1250 | I20: =IF(F11>1, E11&" exceeds 100%","") -> 
A21: MAIN PLL 6 HSDIV 0 | B21: MAIN GPU 0 Frequency [MHz] | C21: 720 | D21: =IF(B$9=0.85,800,720) -> 720 | E21: Memory Interfaces | F21: Mode | G21: Utilization
A22: MAIN PLL 2 HSDIV 4 | B22: MAIN Video Encoder/Decoder 0 Frequency [MHz] | C22: 100 | D22: 500 | E22: DDRSS 0 | F22: lpddr4_2400_32 | G22: 1
A23: MAIN PLL 12 HSDIV0 | B23: LPDDR4 EMIF 0 [MT/s] | C23: 2133 | D23: =IF(B$9=0.85,4000,3733) -> 3733 | E23: GPMC / ELM | F23: unused | G23: 0
A24: MCU PLL 0 HSDIV 0 | B24: MCU SS / WKUP Modules CLK [MHz] (MCU SYSCLK) | C24: 400 | D24: =IF(B$11="high",400,200) -> 400
A25: MAIN PLL 0 HSDIV 0 | B25: MAIN Modules CLK [MHz] (SYSCLK) | C25: 500 | D25: =IF(B$11="high",500,250) -> 500 | E25: PHYs | F25: Mode | G25: Utilization | H25: Instances
A26: MAIN PLL 15 HSDIV 0 MCU PLL 0 HSDIV 0 | B26: Device Manager Domain CLK [MHz] | C26: 400 | D26: =IF(B$11="high",400,133) -> 400 | E26: CSI2.0 D_PHY 4L Rx | F26: 1p5g4l | G26: 0.1 | H26: 1
A27: MAIN PLL 15 HSDIV 0 | B27: HSM Domain CLK | C27: 400 | E27: DSI D_PHY 4L Tx | F27: off | G27: 0 | H27: 0
E28: MAIN MMCSD0 | F28: hs400 | G28: 1 | H28: 1
A29: IP for Complex IOs | B29: Mode | C29: Utilization | D29: Instances | E29: OLDI (2 Link) | F29: oldi_dual_24b_modes | G29: 1 | H29: 1
A30: DSI Tx ports | B30: ulps | C30: 0 | D30: 0
A31: USB 2.0 | B31: host_hs | C31: 1 | D31: 2
A33: LVCMOS IO | B33: Mode | C33: Utilization | D33: Instances
A34: WKUP I2C | B34: i2c_400k_3p3v | C34: 1 | D34: 1
A35: WKUP UART | B35: 1m_3p3v | C35: 1 | D35: 1
A36: MCU I2C | B36: i2c_400k_3p3v | C36: 1 | D36: 1
A37: MCU UART | B37: 112k_3p3v | C37: 1 | D37: 1
A38: MCU McSPI | B38: Controller_2.083_Mbaud_3p3v | C38: 1 | D38: 1
A39: MCU MCAN | B39: 5mbs_3p3v | C39: 1 | D39: 1
A40: MCU GPIO | B40: 1mbs_3p3v_20pf | C40: 1 | D40: 5
A42: LVCMOS IO | B42: Mode | C42: Utilization | D42: Instances
A43: MAIN GPIO | B43: 1mbs_1p8v_20pf | C43: 1 | D43: 30
A44: MAIN I2C | B44: i2c_400k_3p3v | C44: 1 | D44: 3
A45: MAIN UART | B45: 3p6m_1p8v | C45: 1 | D45: 5
A46: MAIN McSPI | B46: Controller_3.125_Mbaud_3p3v | C46: 1 | D46: 3
A47: MAIN McASP | B47: 16Ch_TX_48_ksps_24b_3p3v | C47: 1 | D47: 3
A48: MAIN ECAP | B48: unused | C48: 1 | D48: 0
A49: MAIN EPWM | B49: on_1p8v | C49: 1 | D49: 3
A50: MAIN EQEP | B50: off | C50: 1 | D50: 0
A51: MAIN MCAN | B51: 1mbs_3p3v | C51: 1 | D51: 1
A52: MAIN MMCSD1 | B52: hs200_200mbs | C52: 1 | D52: 3
A53: MAIN DSS 0: DPI | B53: HD_|_1280x720x60_fps_24b_|_3p3V | C53: 1 | D53: 1
A54: MAIN FSS OSPI1 (QSPI) | B54: ospi_ddr_controller_133_3p3v | C54: 1 | D54: 1
A55: MAIN Ethernet | B55: rgmii_1000_1p8v | C55: 1 | D55: 2

Sheet Results
A1: UC_Name: | B1: Add Test Name | D1: Caution: | E1: This power estimation spreadsheet is subject to change. SoC power estimates provide approximate power and current consumption based on measured and simulated data; they are provided “as is” and are not guaranteed within a specified precision. Power consumption depends on electrical parameters, silicon process variations, environmental conditions, and uses cases running on the processor during operation. Actual power consumption should be verified in the real system. An end product’s SoC power, PDN integrity & thermal performance can vary depending on final use cases, features supported, software characteristics and system thermal design. | AA1: J722S, AM62P Power Estimation Tool
A2: UC_Description: | B2: Add Test Description | AD2: Starting Use Case
A3: Based on Loaded Use Case: | B3: UC1 0.75V Automotive Cluster | AB3: Modifiable Field | AD3: UC1 0.75V Automotive Cluster
A4: Internal Reference Date: | B4: 2023-09-12 | AB4: Descriptor
A5: Internal Reference Revision: | B5: 2.1
A6: Date: | B6: 2025-05-26T10:41:42.220 | D6: Conditions: Strong Process
A7: Tool Revision / Date | B7: 1.1 | AA7: Tj | AB7: 150 | AC7: C
B8: Power Estimation Tool Sitara 2.0.xlsm | AA8: SRAM_Voltage | AB8: 0.85 | AC8: V
A9: Thermal Power | AA9: CORE_Voltage | AB9: 0.75 | AC9: V | AE9: Processor Core Utilization (%)
A10: Tj [C] | B10: Leakage Power [mW] | C10: Dynamic Power [mW] | D10: Total Power [mW] | H10: 150C | AA10: Process_Corner | AB10: Strong | AE10: MAIN SMS 0 | AF10: 1
A11: 125 | B11: 2 | C11: 2286 | D11: 2288 | H11: IP | I11: Total Power [mW] | AA11: OPP | AB11: high | AE11: MAIN (WKUP) R5FSS 0 | AF11: 1
A12: 120 | B12: 2 | C12: 2286 | D12: 2288 | H12: A53 | I12: 170 | AE12: MAIN A53SS 0: 0 | AF12: 1
A13: 115 | B13: 2 | C13: 2286 | D13: 2288 | H13: Pulsar | I13: 90 | AA13: UC_Description | AB13: Add Test Description | AE13: MAIN A53SS 0: 1 | AF13: 1
A14: 110 | B14: 2 | C14: 2286 | D14: 2288 | H14: GPU | I14: 270 | AA14: UC_Name | AB14: Add Test Name | AE14: MAIN A53SS 0: 2 | AF14: 1
A15: 105 | B15: 2 | C15: 2286 | D15: 2288 | H15: WAVE512CL | I15: 60 | AE15: MAIN A53SS 0: 3 | AF15: 1
A16: 100 | B16: 2 | C16: 2286 | D16: 2288 | H16: DDR | I16: 390 | AA16: Key IP Frequency selection | AC16: Frequency [MHz] | AE16: MAIN GPU 0 | AF16: 1
A17: 95 | B17: 2 | C17: 2286 | D17: 2288 | AA17: MAIN PLL 15 HSDIV 0 | AB17: MAIN SMS 0 Frequency [MHz] | AC17: 400 | AE17: MAIN Video Encoder/Decoder 0 | AF17: 1
A18: 90 | B18: 2 | C18: 2286 | D18: 2288 | H18: PD | I18: PSC | J18: State | AA18: MAIN PLL 15 HSDIV 2 MCU PLL 0 HSDIV 0 | AB18: Domain Manager (WKUP) R5FSS 0 Frequency [MHz] | AC18: 800 | AE18: MCU R5FSS | AF18: 1
A19: 85 | B19: 2 | C19: 2286 | D19: 2288 | H19: PD_Pulsar_MCU | J19: ON | AA19: MCU PLL 0 HSDIV 3 | AB19: MCU R5FSS 0 Frequency [MHz] | AC19: 800
A20: 80 | B20: 2 | C20: 2286 | D20: 2288 | H20: GP_Core_CTL | J20: ON | AA20: MAIN PLL 8 HSDIV0 | AB20: MAIN A53SS Frequency [MHz] | AC20: 1250
A21: 75 | B21: 2 | C21: 2286 | D21: 2288 | H21: PD_A53_0 | J21: ON | AA21: MAIN PLL 6 HSDIV 0 | AB21: MAIN GPU 0 Frequency [MHz] | AC21: 720 | AE21: Memory Interfaces | AF21: Mode | AG21: Utilization
A22: 50 | B22: 2 | C22: 2286 | D22: 2288 | H22: PD_A53_1 | J22: ON | AA22: MAIN PLL 2 HSDIV 4 | AB22: MAIN Video Encoder/Decoder 0 Frequency [MHz] | AC22: 100 | AE22: DDRSS 0 | AF22: lpddr4_2400_32 | AG22: 1
A23: 25 | B23: 2 | C23: 2286 | D23: 2288 | H23: PD_A53_2 | J23: ON | AA23: MAIN PLL 12 HSDIV0 | AB23: LPDDR4 EMIF 0 [MT/s] | AC23: 2133 | AE23: GPMC / ELM | AF23: unused | AG23: 0
A24: 0 | B24: 2 | C24: 2286 | D24: 2288 | H24: PD_A53_3 | J24: ON | AA24: MCU PLL 0 HSDIV 0 | AB24: MCU SS / WKUP Modules CLK [MHz] (MCU SYSCLK) | AC24: 400
A25: -20 | B25: 2 | C25: 2286 | D25: 2288 | H25: PD_A53_Cluster_0 | J25: ON | AA25: MAIN PLL 0 HSDIV 0 | AB25: MAIN Modules CLK [MHz] (SYSCLK) | AC25: 500 | AE25: PHYs | AF25: Mode | AG25: Utilization | AH25: Instances
A26: -40 | B26: 2 | C26: 2286 | D26: 2288 | H26: PD_DSS | J26: ON | AA26: MAIN PLL 15 HSDIV 0 MCU PLL 0 HSDIV 0 | AB26: Device Manager Domain CLK [MHz] | AC26: 400 | AE26: CSI2.0 D_PHY 4L Rx | AF26: 1p5g4l | AG26: 0.1 | AH26: 1
H27: PD_GPU | J27: ON | AA27: MAIN PLL 15 HSDIV 0 | AB27: HSM Domain CLK | AC27: 400 | AE27: DSI D_PHY 4L Tx | AF27: off | AG27: 0 | AH27: 0
A28: Tj = 150C | H28: PD_CPSW | J28: ON | AE28: MAIN MMCSD0 | AF28: hs400 | AG28: 1 | AH28: 1
A29: Thermal Power | C29: not suitable for designing a PDN | H29: PD_ENCODE | J29: ON | AA29: IP for Complex IOs | AB29: Mode | AC29: Utilization | AD29: Instances | AE29: OLDI (2 Link) | AF29: oldi_dual_24b_modes | AG29: 1 | AH29: 1
B30: Leakage Power [mW] | C30: Dynamic Power [mW] | D30: Total Power [mW] | E30: Voltage [V] | F30: Total Current [mA] | H30: PD_DDR | J30: ON | AA30: DSI Tx ports | AB30: ulps | AC30: 0 | AD30: 0
A31: VDD_CORE | B31: 0 | C31: 1024 | D31: 1024 | E31: 0.75 | F31: 1366 | H31: PD_Debug | J31: OFF | AA31: USB 2.0 | AB31: host_hs | AC31: 1 | AD31: 2
A32: VDDR_CORE | B32: 0 | C32: 0 | D32: 0 | E32: 0.85 | F32: 0 | H32: PD_HSM | J32: ON
A33: VDD_CANUART | B33: 0 | C33: 0 | D33: 0 | E33: 0.75 | F33: 0 | H33: GP_Core_CTL_MCU | J33: ON | AA33: LVCMOS IO | AB33: Mode | AC33: Utilization | AD33: Instances
AA34: WKUP I2C | AB34: i2c_400k_3p3v | AC34: 1 | AD34: 1
A35: VDDS_DDR/VDDS_DDR_C | B35: 0 | C35: 216 | D35: 216 | E35: 1.1 | F35: 197 | AA35: WKUP UART | AB35: 1m_3p3v | AC35: 1 | AD35: 1
H36: Core | I36: Frequency | J36: Utilization | AA36: MCU I2C | AB36: i2c_400k_3p3v | AC36: 1 | AD36: 1
A37: VDDA_1P8_CSI_DSI | B37: 0 | C37: 19 | D37: 19 | E37: 1.8 | F37: 11 | H37: A53 CPU | I37: 1250 | J37: 1 | AA37: MCU UART | AB37: 112k_3p3v | AC37: 1 | AD37: 1
A38: VDDA_CORE_CSI_DSI | B38: 0 | C38: 3 | D38: 3 | E38: 0.75 | F38: 4 | H38: A53 CPU | I38: 1250 | J38: 1 | AA38: MCU McSPI | AB38: Controller_2.083_Mbaud_3p3v | AC38: 1 | AD38: 1
A39: VDDA_CORE_DSI_CLK | B39: 0 | C39: 0 | D39: 0 | E39: 0.75 | F39: 0 | H39: A53 CPU | I39: 1250 | J39: 1 | AA39: MCU MCAN | AB39: 5mbs_3p3v | AC39: 1 | AD39: 1
H40: R5F | I40: 800 | J40: 1 | AA40: MCU GPIO | AB40: 1mbs_3p3v_20pf | AC40: 1 | AD40: 5
A41: VDDA_3P3_USB | B41: 0 | C41: 4 | D41: 4 | E41: 3.3 | F41: 2 | H41: R5F | I41: 800 | J41: 1
A42: VDDA_1P8_USB | B42: 0 | C42: 26 | D42: 26 | E42: 1.8 | F42: 15 | H42: Double DSS7UL + DSI + OLDI wrap | I42: 320 | J42: 0.76 | AA42: LVCMOS IO | AB42: Mode | AC42: Utilization | AD42: Instances
A43: VDDA_CORE_USB | B43: 0 | C43: 0 | D43: 0 | E43: 0.75 | F43: 0 | H43: GPU BXS4-64-256KB DUST AM67 | I43: 720 | J43: 1 | AA43: MAIN GPIO | AB43: 1mbs_1p8v_20pf | AC43: 1 | AD43: 30
H44: GPU BXS4-64-256KB Rascal AM67 | I44: 720 | J44: 1 | AA44: MAIN I2C | AB44: i2c_400k_3p3v | AC44: 1 | AD44: 3
A45: VDDA_1P8_OLDI0 | B45: 0 | C45: 149 | D45: 149 | E45: 1.8 | F45: 83 | H45: GPU BXS4-64-256KB Wrap AM67 | I45: 720 | J45: 1 | AA45: MAIN UART | AB45: 3p6m_1p8v | AC45: 1 | AD45: 5
H46: WAVE521CL Video Codec | I46: 100 | J46: 1 | AA46: MAIN McSPI | AB46: Controller_3.125_Mbaud_3p3v | AC46: 1 | AD46: 3
A47: VDDA_PLL0 | B47: 0 | C47: 19 | D47: 19 | E47: 1.8 | F47: 11 | H47: CSI_RX | I47: 720 | J47: 0.1 | AA47: MAIN McASP | AB47: 16Ch_TX_48_ksps_24b_3p3v | AC47: 1 | AD47: 3
A48: VDDA_PLL1 | B48: 0 | C48: 29 | D48: 29 | E48: 1.8 | F48: 17 | H48: CPSW3x | I48: 250 | J48: 1 | AA48: MAIN ECAP | AB48: unused | AC48: 1 | AD48: 0
A49: VDDA_PLL2 | B49: 0 | C49: 8 | D49: 8 | E49: 1.8 | F49: 5 | H49: USB2 Controller | I49: 125 | J49: 1 | AA49: MAIN EPWM | AB49: on_1p8v | AC49: 1 | AD49: 3
A50: VDDA_PLL3 | B50: 0 | C50: 7 | D50: 7 | E50: 1.8 | F50: 4 | H50: LP/DDR4-32 PHY 3733 | I50: 533.25 | J50: 1.1 | AA50: MAIN EQEP | AB50: off | AC50: 1 | AD50: 0
A51: VDDA_PLL4 | B51: 0 | C51: 20 | D51: 20 | E51: 1.8 | F51: 12 | H51: EMMC 4 | I51: 250 | J51: 1 | AA51: MAIN MCAN | AB51: 1mbs_3p3v | AC51: 1 | AD51: 1
H52: EMMC 4 | I52: 250 | J52: 1 | AA52: MAIN MMCSD1 | AB52: hs200_200mbs | AC52: 1 | AD52: 3
A53: VDDA_TEMP0 | B53: 0 | C53: 3 | D53: 3 | E53: 1.8 | F53: 2 | H53: EMMC 8 | I53: 250 | J53: 1 | AA53: MAIN DSS 0: DPI | AB53: HD_|_1280x720x60_fps_24b_|_3p3V | AC53: 1 | AD53: 1
A54: VDDA_TEMP1 | B54: 0 | C54: 1 | D54: 1 | E54: 1.8 | F54: 1 | H54: GPMC_ELM | I54: 166.6666667 | J54: 0 | AA54: MAIN FSS OSPI1 (QSPI) | AB54: ospi_ddr_controller_133_3p3v | AC54: 1 | AD54: 1
A55: VDDA_TEMP2 | B55: 0 | C55: 1 | D55: 1 | E55: 1.8 | F55: 1 | AA55: MAIN Ethernet | AB55: rgmii_1000_1p8v | AC55: 1 | AD55: 2
A56: VDDS_OSC0 | B56: 0 | C56: 6 | D56: 6 | E56: 1.8 | F56: 4
A58: VDDA_MCU | B58: 0 | C58: 10 | D58: 10 | E58: 1.8 | F58: 6
A60: VDDA_DDR_PLL0 | B60: 1 | C60: 4 | D60: 5 | E60: 0.75 | F60: 7
A62: VDDS_MMC0 | B62: 0 | C62: 99 | D62: 99 | E62: 1.8 | F62: 55
A63: VDD_MMC0 | B63: 0 | C63: 0 | D63: 0 | E63: 0.85 | F63: 0
A64: VDDA_0P85_DLL_MMC0 | B64: 1 | C64: 4 | D64: 5 | E64: 0.85 | F64: 6
A66: VDDSHV3P3 | B66: 0 | C66: 534 | D66: 534 | E66: 3.3 | F66: 162
A67: VDDSHV1P8 | B67: 0 | C67: 96 | D67: 96 | E67: 1.8 | F67: 54
A68: VDDSHV3P3_MCU | B68: 0 | C68: 4 | D68: 4 | E68: 3.3 | F68: 2
A69: VDDSHV1P8_MCU | B69: 0 | C69: 0 | D69: 0 | E69: 1.8 | F69: 0
A70: VDDSHV_CANUART | B70: 0 | C70: 0 | D70: 0

Sheet PWRCALC (hidden)
A3: Physical Name | B3: Insance Name | C3: qty | D3: scan_partition | E3: vdd | F3: vdda | G3: vddh1 | H3: vddh2 | I3: Dyn_calc_method | J3: pd | K3: description | L3: tag | M3: type | N3: function | O3: Total mW | P3: Power Domain Status | Q3: freq_trk | R3: Use Case Mode | S3: Util | T3: pinmux | U3: vdd_lkg | V3: vdd_dyn_int_trk | W3: vdd_dyn_sw_trk | X3: vddr_lkg | Y3: vdda_lkg | Z3: vdda_dyn | AA3: vddh1_lkg | AB3: vddh1_dyn | AC3: vddh2_lkg | AD3: vddh2_dyn | AE3: vdd_dyn_idle | AF3: vdd_dyn_max | AG3: vdd_dyn_peak | AH3: vdd_dyn_int_trk | AI3: vdd_dyn_sw_trk | AJ3: ulvt20_pct | AK3: ulvt16_pct | AL3: lvt20_pct | AM3: lvt16_pct | AN3: svt20_pct | AO3: svt16_pct | AP3: unit_leakage | AQ3: unit_dyn_int | AR3: Notes | AS3: Long name to check for match with SoCDB | AT3: Utilization pointers | AU3: Utilization pointers | AV3: Utilization pointers | AW3: Utilization pointers | AX3: Utilization pointers | AY3: Utilization pointers | AZ3: Utilization pointers | BA3: Utilization pointers | BB3: Utilization pointers | BC3: Utilization pointers | BD3: Frequency pointer | BE3: Frequency pointer | BF3: Frequency iteration | CA3: Tj | CB3: 150 | CC3: C | CE3: Thermal
A4: sam62a_mcu_pulsar_ul_wrap | B4: _0 | C4: 1 | D4: 5 | E4: VDD_CORE | F4: N/A | G4: N/A | H4: N/A | I4: SI | J4: PD_Pulsar_MCU | K4: Pulsar ULS | L4: sam62p_nov_power | M4: 1 Processor | N4: ARM_MCU | O4: =SUM(U4:AD4) -> 30.9723657 | P4: =INDEX(PD_State_Table,MATCH(J4,PD_Table_Row_Header,0),2) -> ON | Q4: 800 | R4: =IF(ISBLANK(BD4),0,INDIRECT(BD4)) -> 800 | S4: =IF(IF(ISBLANK(AT4),0,INDIRECT(AT4))=0,0,IF($CE$3="PDN",1,IF(ISBLANK(AT4),0,INDIRECT(AT4)))) -> 1 | T4: 0 | U4: =IFERROR(IF($I4="SI",AP4*$C4*(VLOOKUP("vdd_lkg (ulvt20)",pwr_scale_table,2,0)*$AJ4*'Power Scaling'!F$7+VLOOKUP("vdd_lkg (ulvt16)",pwr_scale_table,2,0)*$AK4*'Power Scaling'!F$8+VLOOKUP("vdd_lkg (lvt20)",pwr_scale_table,2,0)*$AL4*'Power Scaling'!F$5+VLOOKUP("vdd_lkg (lvt16)",pwr_scale_table,2,0)*AM4*'Power Scaling'!F$6+VLOOKUP("vdd_lkg (svt20)",pwr_scale_table,2,0)*$AN4*'Power Scaling'!F$3+VLOOKUP("vdd_lkg (svt16)",pwr_scale_table,2,0)*$AO4*'Power Scaling'!F$4)*IF(P4="OFF",0.06,1),VLOOKUP($A4&"_"&U$3,MDB,5,0)*$C4*VLOOKUP("vdd_lkg (svt16)",pwr_scale_table,2,0)*IF(P4="OFF",0.06,1)),0) -> 0 | V4: =C4*IFERROR(IF($I4="SI",(AE4*IF(S4=0,0,1)+(AF4-AE4)*S4)*IF(R4>0,R4,Q4)/Q4*(VLOOKUP("vdd_int (ulvt20)",pwr_scale_table,2,0)*$AJ4*'Power Scaling'!I$7+VLOOKUP("vdd_int (ulvt16)",pwr_scale_table,2,0)*$AK4*'Power Scaling'!I$8+VLOOKUP("vdd_int (lvt20)",pwr_scale_table,2,0)*$AL4*'Power Scaling'!I$5+VLOOKUP("vdd_int (lvt16)",pwr_scale_table,2,0)*AM4*'Power Scaling'!I$6+VLOOKUP("vdd_int (svt20)",pwr_scale_table,2,0)*$AN4*'Power Scaling'!I$3+VLOOKUP("vdd_int (svt16)",pwr_scale_table,2,0)*$AO4*'Power Scaling'!I$4)*AQ4,IF(OR($I4="AO",$I4="LU"),VLOOKUP($A4&"_"&"vdd_dyn"&"_"&$R4&"",MDB,5,0)*VLOOKUP("vdd_int (svt20)",pwr_scale_table,2,0),IF(OR($I4="LUUA",$I4="LUUB"),VLOOKUP($A4&"_"&"vdd_dyn"&"_"&$R4&"",MDB,5,0)*$C4*$S4*VLOOKUP("vdd_int (svt20)",pwr_scale_table,2,0),VLOOKUP($A4&"_"&"vdd_dyn"&"_"&$R4&"_idle",MDB,5,0)*(1-$S4)+VLOOKUP($A4&"_"&"vdd_dyn"&"_"&$R4&"_read",MDB,5,0)*($S4/2)+VLOOKUP($A4&"_"&"vdd_dyn"&"_"&$R4&"_write",MDB,5,0)*($S4/2)*VLOOKUP("vdd_int (svt20)",pwr_scale_table,2,0)))),0) -> 0 | W4: =C4*IFERROR(IF($I4="SI",(AE4*IF(S4=0,0,1)+(AF4-AE4)*S4)*(IF(R4>0,R4,Q4)/Q4)*VLOOKUP("vdd_sw",pwr_scale_table,2,0)*AI4,0),0) -> 30.9723657 | X4: =IFERROR(VLOOKUP($A4&"_"&X$3,MDB,5,0)*$C4*VLOOKUP("vddr_lkg",pwr_scale_table,2,0)*IF(P4="OFF",0.06,1),0) -> 0 | Y4: =IFERROR(VLOOKUP($A4&"_"&Y$3,MDB,5,0)*$C4*(VLOOKUP("vdd_lkg (lvt16)",pwr_scale_table,2,0)*0.5+VLOOKUP("vdd_lkg (svt16)",pwr_scale_table,2,0)*0.5),0) -> 0 | Z4: =IFERROR(IF(I4="LUUB",VLOOKUP($A4&"_"&Z$3&"_"&$R4&"",MDB,5,0)*$C4*$S4*((VLOOKUP("vdd_int (lvt16)",pwr_scale_table,2,0)/4+VLOOKUP("vdd_int (svt16)",pwr_scale_table,2,0)/4+VLOOKUP("vdd_sw",pwr_scale_table,2,0)/2)),VLOOKUP($A4&"_"&Z$3&"_"&$R4&"",MDB,5,0)*$C4*((VLOOKUP("vdd_int (lvt16)",pwr_scale_table,2,0)/4+VLOOKUP("vdd_int (svt16)",pwr_scale_table,2,0)/4+VLOOKUP("vdd_sw",pwr_scale_table,2,0)/2))),0) -> 0 | AA4: =IFERROR(VLOOKUP($A4&"_"&AA$3,MDB,5,0)*$C4*VLOOKUP("vdd_lkg (svt16)",pwr_scale_table,2,0),0) -> 0 | AB4: =IFERROR(IF(OR($I4="LUUA",$I4="LUUB"),VLOOKUP($A4&"_"&AB$3&"_"&$R4&"",MDB,5,0)*$C4*$S4,IF(I4="LUUD",VLOOKUP($A4&"_"&AB$3&"_"&$R4&"_idle",MDB,5,0)*(1-$S4)+VLOOKUP($A4&"_"&AB$3&"_"&$R4&"_read",MDB,5,0)*($S4/2)+VLOOKUP($A4&"_"&AB$3&"_"&$R4&"_write",MDB,5,0)*($S4/2),VLOOKUP($A4&"_"&AB$3&"_"&$R4&"",MDB,5,0)*$C4)),0) -> 0 | AC4: =IFERROR(VLOOKUP($A4&"_"&AC$3,MDB,5,0)*$C4*VLOOKUP("vdd_lkg (svt16)",pwr_scale_table,2,0),0) -> 0 | AD4: =IFERROR(IF(OR($I4="LUUA",$I4="LUUB"),VLOOKUP($A4&"_"&AD$3&"_"&$R4&"",MDB,5,0)*$C4*$S4,IF(I4="LUUD",VLOOKUP($A4&"_"&AD$3&"_"&$R4&"_idle",MDB,5,0)*(1-$S4)+VLOOKUP($A4&"_"&AD$3&"_"&$R4&"_read",MDB,5,0)*($S4/2)+VLOOKUP($A4&"_"&AD$3&"_"&$R4&"_write",MDB,5,0)*($S4/2),VLOOKUP($A4&"_"&AD$3&"_"&$R4&"",MDB,5,0)*$C4)),0) -> 0 | AE4: 0.111 | AF4: 0.4 | AG4: 0.36 | AH4: 122.6 | AI4: 106.6 | AJ4: 0.01 | AK4: 0 | AL4: 0.27 | AM4: 0.11 | AN4: 0.31 | AO4: 0.3 | AP4: 3.524946199 | AQ4: 112.2733468 | AR4: The Vx1 macro is a display data standard used on the DLPC8430. It is a receiver only and it's under development. Power is estimated at this time. | AS4: =A4&B4 -> sam62a_mcu_pulsar_ul_wrap_0 | AT4: CF$21 | BD4: CC$16 | BG4: Pulsar | CA4: SRAM_Voltage | CB4: 0.85 | CC4: V | CJ4: =Tj&"C" -> 150C
A5: sam67_dm_wrap | B5: _0 | C5: 1 | D5: 2 | E5: VDD_CORE | F5: N/A | G5: N/A | H5: N/A | I5: SI | J5: GP_Core_CTL | K5: Pulsar UL (DM) AM67 | L5: sam67_feb_power | M5: 1 Processor | N5: ARM_MCU | O5: 54.25974948 | P5: ON | Q5: 800 | R5: 800 | S5: =IF(IF(ISBLANK(AT5),0,INDIRECT(AT5))=0,0,IF($CE$3="PDN",1,IF(ISBLANK(AT5),0,INDIRECT(AT5)))) -> 1 | T5: 0 | U5: =IFERROR(IF($I5="SI",AP5*$C5*(VLOOKUP("vdd_lkg (ulvt20)",pwr_scale_table,2,0)*$AJ5*'Power Scaling'!F$7+VLOOKUP("vdd_lkg (ulvt16)",pwr_scale_table,2,0)*$AK5*'Power Scaling'!F$8+VLOOKUP("vdd_lkg (lvt20)",pwr_scale_table,2,0)*$AL5*'Power Scaling'!F$5+VLOOKUP("vdd_lkg (lvt16)",pwr_scale_table,2,0)*AM5*'Power Scaling'!F$6+VLOOKUP("vdd_lkg (svt20)",pwr_scale_table,2,0)*$AN5*'Power Scaling'!F$3+VLOOKUP("vdd_lkg (svt16)",pwr_scale_table,2,0)*$AO5*'Power Scaling'!F$4)*IF(P5="OFF",0.06,1),VLOOKUP($A5&"_"&U$3,MDB,5,0)*$C5*VLOOKUP("vdd_lkg (svt16)",pwr_scale_table,2,0)*IF(P5="OFF",0.06,1)),0) -> 0 | V5: =C5*IFERROR(IF($I5="SI",(AE5*IF(S5=0,0,1)+(AF5-AE5)*S5)*IF(R5>0,R5,Q5)/Q5*(VLOOKUP("vdd_int (ulvt20)",pwr_scale_table,2,0)*$AJ5*'Power Scaling'!I$7+VLOOKUP("vdd_int (ulvt16)",pwr_scale_table,2,0)*$AK5*'Power Scaling'!I$8+VLOOKUP("vdd_int (lvt20)",pwr_scale_table,2,0)*$AL5*'Power Scaling'!I$5+VLOOKUP("vdd_int (lvt16)",pwr_scale_table,2,0)*AM5*'Power Scaling'!I$6+VLOOKUP("vdd_int (svt20)",pwr_scale_table,2,0)*$AN5*'Power Scaling'!I$3+VLOOKUP("vdd_int (svt16)",pwr_scale_table,2,0)*$AO5*'Power Scaling'!I$4)*AQ5,IF(OR($I5="AO",$I5="LU"),VLOOKUP($A5&"_"&"vdd_dyn"&"_"&$R5&"",MDB,5,0)*VLOOKUP("vdd_int (svt20)",pwr_scale_table,2,0),IF(OR($I5="LUUA",$I5="LUUB"),VLOOKUP($A5&"_"&"vdd_dyn"&"_"&$R5&"",MDB,5,0)*$C5*$S5*VLOOKUP("vdd_int (svt20)",pwr_scale_table,2,0),VLOOKUP($A5&"_"&"vdd_dyn"&"_"&$R5&"_idle",MDB,5,0)*(1-$S5)+VLOOKUP($A5&"_"&"vdd_dyn"&"_"&$R5&"_read",MDB,5,0)*($S5/2)+VLOOKUP($A5&"_"&"vdd_dyn"&"_"&$R5&"_write",MDB,5,0)*($S5/2)*VLOOKUP("vdd_int (svt20)",pwr_scale_table,2,0)))),0) -> 0 | W5: 54.25974948 | X5: 0 | Y5: 0 | Z5: 0 | AA5: 0 | AB5: 0 | AC5: 0 | AD5: 0 | AE5: 0.173 | AF5: 0.3 | AG5: 0.36 | AH5: 244.9 | AI5: 249 | AJ5: 0 | AK5: 0 | AL5: 0.12 | AM5: 0.13 | AN5: 0.63 | AO5: 0.1 | AP5: 9.393637237 | AQ5: 235.6727065 | AR5: The Vx1 macro is a display data standard used on the DLPC8430. It is a receiver only and it's under development. Power is estimated at this time. | AS5: sam67_dm_wrap_0 | AT5: CF$7 | BD5: CC$14 | BG5: Pulsar | CA5: CORE_Voltage | CB5: 0.75 | CC5: V | CE5: Processor Core Utilization (%) | CJ5: IP | CK5: Total Power [mW]
C6: 0 | O6: 0 | Q6: 800 | R6: 0 | S6: =IF(IF(ISBLANK(AT6),0,INDIRECT(AT6))=0,0,IF($CE$3="PDN",1,IF(ISBLANK(AT6),0,INDIRECT(AT6)))) -> 0 | T6: 0 | U6: =IFERROR(IF($I6="SI",AP6*$C6*(VLOOKUP("vdd_lkg (ulvt20)",pwr_scale_table,2,0)*$AJ6*'Power Scaling'!F$7+VLOOKUP("vdd_lkg (ulvt16)",pwr_scale_table,2,0)*$AK6*'Power Scaling'!F$8+VLOOKUP("vdd_lkg (lvt20)",pwr_scale_table,2,0)*$AL6*'Power Scaling'!F$5+VLOOKUP("vdd_lkg (lvt16)",pwr_scale_table,2,0)*AM6*'Power Scaling'!F$6+VLOOKUP("vdd_lkg (svt20)",pwr_scale_table,2,0)*$AN6*'Power Scaling'!F$3+VLOOKUP("vdd_lkg (svt16)",pwr_scale_table,2,0)*$AO6*'Power Scaling'!F$4)*IF(P6="OFF",0.06,1),VLOOKUP($A6&"_"&U$3,MDB,5,0)*$C6*VLOOKUP("vdd_lkg (svt16)",pwr_scale_table,2,0)*IF(P6="OFF",0.06,1)),0) -> 0 | V6: =C6*IFERROR(IF($I6="SI",(AE6*IF(S6=0,0,1)+(AF6-AE6)*S6)*IF(R6>0,R6,Q6)/Q6*(VLOOKUP("vdd_int (ulvt20)",pwr_scale_table,2,0)*$AJ6*'Power Scaling'!I$7+VLOOKUP("vdd_int (ulvt16)",pwr_scale_table,2,0)*$AK6*'Power Scaling'!I$8+VLOOKUP("vdd_int (lvt20)",pwr_scale_table,2,0)*$AL6*'Power Scaling'!I$5+VLOOKUP("vdd_int (lvt16)",pwr_scale_table,2,0)*AM6*'Power Scaling'!I$6+VLOOKUP("vdd_int (svt20)",pwr_scale_table,2,0)*$AN6*'Power Scaling'!I$3+VLOOKUP("vdd_int (svt16)",pwr_scale_table,2,0)*$AO6*'Power Scaling'!I$4)*AQ6,IF(OR($I6="AO",$I6="LU"),VLOOKUP($A6&"_"&"vdd_dyn"&"_"&$R6&"",MDB,5,0)*VLOOKUP("vdd_int (svt20)",pwr_scale_table,2,0),IF(OR($I6="LUUA",$I6="LUUB"),VLOOKUP($A6&"_"&"vdd_dyn"&"_"&$R6&"",MDB,5,0)*$C6*$S6*VLOOKUP("vdd_int (svt20)",pwr_scale_table,2,0),VLOOKUP($A6&"_"&"vdd_dyn"&"_"&$R6&"_idle",MDB,5,0)*(1-$S6)+VLOOKUP($A6&"_"&"vdd_dyn"&"_"&$R6&"_read",MDB,5,0)*($S6/2)+VLOOKUP($A6&"_"&"vdd_dyn"&"_"&$R6&"_write",MDB,5,0)*($S6/2)*VLOOKUP("vdd_int (svt20)",pwr_scale_table,2,0)))),0) -> 0 | W6: 0 | X6: 0 | Y6: 0 | Z6: 0 | AA6: 0 | AB6: 0 | AC6: 0 | AD6: 0 | AE6: 0 | AF6: 0 | AG6: 0 | AH6: 0 | AI6: 0 | AJ6: 0 | AK6: 0 | AL6: 0 | AM6: 0 | AN6: 0 | AO6: 0 | AR6: The Vx1 macro is a display data standard used on the DLPC8430. It is a receiver only and it's under development. Power is estimated at this time. | AT6: CF$8 | BD6: CC$15 | BG6: Pulsar | CA6: Process_Corner | CB6: Strong | CE6: MAIN SMS 0 | CF6: 1 | CJ6: A53 | CK6: =ROUNDUP(SUMIF(BG$1:BG$84,CJ6,O$1:O$84)/10,0)*10 -> 170
A7: sam62a_a53_512kb_wrap | B7: _0 | C7: 1 | D7: 4 | E7: VDD_CORE | F7: N/A | G7: N/A | H7: N/A | I7: SI | J7: PD_A53_Cluster_0 | K7: A53 Quad Cluster 1.4 GHz 512KB AM62A | L7: sam62a_april_power | M7: 1 Processor | N7: ARM_MPU | O7: 60.0706999 | P7: ON | Q7: 1250 | R7: 1250 | S7: =AVERAGE(S8:S11) -> 1 | T7: 0 | U7: =IFERROR(IF($I7="SI",AP7*$C7*(VLOOKUP("vdd_lkg (ulvt20)",pwr_scale_table,2,0)*$AJ7*'Power Scaling'!F$7+VLOOKUP("vdd_lkg (ulvt16)",pwr_scale_table,2,0)*$AK7*'Power Scaling'!F$8+VLOOKUP("vdd_lkg (lvt20)",pwr_scale_table,2,0)*$AL7*'Power Scaling'!F$5+VLOOKUP("vdd_lkg (lvt16)",pwr_scale_table,2,0)*AM7*'Power Scaling'!F$6+VLOOKUP("vdd_lkg (svt20)",pwr_scale_table,2,0)*$AN7*'Power Scaling'!F$3+VLOOKUP("vdd_lkg (svt16)",pwr_scale_table,2,0)*$AO7*'Power Scaling'!F$4)*IF(P7="OFF",0.06,1),VLOOKUP($A7&"_"&U$3,MDB,5,0)*$C7*VLOOKUP("vdd_lkg (svt16)",pwr_scale_table,2,0)*IF(P7="OFF",0.06,1)),0) -> 0 | V7: =C7*IFERROR(IF($I7="SI",(AE7*IF(S7=0,0,1)+(AF7-AE7)*S7)*IF(R7>0,R7,Q7)/Q7*(VLOOKUP("vdd_int (ulvt20)",pwr_scale_table,2,0)*$AJ7*'Power Scaling'!I$7+VLOOKUP("vdd_int (ulvt16)",pwr_scale_table,2,0)*$AK7*'Power Scaling'!I$8+VLOOKUP("vdd_int (lvt20)",pwr_scale_table,2,0)*$AL7*'Power Scaling'!I$5+VLOOKUP("vdd_int (lvt16)",pwr_scale_table,2,0)*AM7*'Power Scaling'!I$6+VLOOKUP("vdd_int (svt20)",pwr_scale_table,2,0)*$AN7*'Power Scaling'!I$3+VLOOKUP("vdd_int (svt16)",pwr_scale_table,2,0)*$AO7*'Power Scaling'!I$4)*AQ7,IF(OR($I7="AO",$I7="LU"),VLOOKUP($A7&"_"&"vdd_dyn"&"_"&$R7&"",MDB,5,0)*VLOOKUP("vdd_int (svt20)",pwr_scale_table,2,0),IF(OR($I7="LUUA",$I7="LUUB"),VLOOKUP($A7&"_"&"vdd_dyn"&"_"&$R7&"",MDB,5,0)*$C7*$S7*VLOOKUP("vdd_int (svt20)",pwr_scale_table,2,0),VLOOKUP($A7&"_"&"vdd_dyn"&"_"&$R7&"_idle",MDB,5,0)*(1-$S7)+VLOOKUP($A7&"_"&"vdd_dyn"&"_"&$R7&"_read",MDB,5,0)*($S7/2)+VLOOKUP($A7&"_"&"vdd_dyn"&"_"&$R7&"_write",MDB,5,0)*($S7/2)*VLOOKUP("vdd_int (svt20)",pwr_scale_table,2,0)))),0) -> 0 | W7: 60.0706999 | X7: 0 | Y7: 0 | Z7: 0 | AA7: 0 | AB7: 0 | AC7: 0 | AD7: 0 | AE7: 0.146 | AF7: 0.25 | AG7: 0.15 | AH7: 302.6 | AI7: 330.8 | AJ7: 0.17 | AK7: 0.02 | AL7: 0.18 | AM7: 0.12 | AN7: 0.11 | AO7: 0.41 | AP7: 6.07448641 | AQ7: 257.9884491 | AR7: The Vx1 macro is a display data standard used on the DLPC8430. It is a receiver only and it's under development. Power is estimated at this time. | AS7: sam62a_a53_512kb_wrap_0 | BD7: CC$17 | BG7: A53 | CA7: OPP | CB7: high | CE7: MAIN (WKUP) R5FSS 0 | CF7: 1 | CJ7: C7 | CK7: 0
A8: sam62_a53_dual_wrap_cba_cpu_phys | B8: _0 | C8: 1 | D8: 4 | E8: VDD_CORE | F8: N/A | G8: N/A | H8: N/A | I8: SI | J8: PD_A53_0 | K8: A53 CPU 1.4 GHz AM62 | L8: SAM62A_c3signoff_20220411 | M8: 1 Processor | N8: ARM_MPU | O8: 26.24733665 | P8: ON | Q8: 1250 | R8: 1250 | S8: =IF(IF(ISBLANK(AT8),0,INDIRECT(AT8))=0,0,IF($CE$3="PDN",1,IF(ISBLANK(AT8),0,INDIRECT(AT8)))) -> 1 | T8: 0 | U8: =IFERROR(IF($I8="SI",AP8*$C8*(VLOOKUP("vdd_lkg (ulvt20)",pwr_scale_table,2,0)*$AJ8*'Power Scaling'!F$7+VLOOKUP("vdd_lkg (ulvt16)",pwr_scale_table,2,0)*$AK8*'Power Scaling'!F$8+VLOOKUP("vdd_lkg (lvt20)",pwr_scale_table,2,0)*$AL8*'Power Scaling'!F$5+VLOOKUP("vdd_lkg (lvt16)",pwr_scale_table,2,0)*AM8*'Power Scaling'!F$6+VLOOKUP("vdd_lkg (svt20)",pwr_scale_table,2,0)*$AN8*'Power Scaling'!F$3+VLOOKUP("vdd_lkg (svt16)",pwr_scale_table,2,0)*$AO8*'Power Scaling'!F$4)*IF(P8="OFF",0.06,1),VLOOKUP($A8&"_"&U$3,MDB,5,0)*$C8*VLOOKUP("vdd_lkg (svt16)",pwr_scale_table,2,0)*IF(P8="OFF",0.06,1)),0) -> 0 | V8: =C8*IFERROR(IF($I8="SI",(AE8*IF(S8=0,0,1)+(AF8-AE8)*S8)*IF(R8>0,R8,Q8)/Q8*(VLOOKUP("vdd_int (ulvt20)",pwr_scale_table,2,0)*$AJ8*'Power Scaling'!I$7+VLOOKUP("vdd_int (ulvt16)",pwr_scale_table,2,0)*$AK8*'Power Scaling'!I$8+VLOOKUP("vdd_int (lvt20)",pwr_scale_table,2,0)*$AL8*'Power Scaling'!I$5+VLOOKUP("vdd_int (lvt16)",pwr_scale_table,2,0)*AM8*'Power Scaling'!I$6+VLOOKUP("vdd_int (svt20)",pwr_scale_table,2,0)*$AN8*'Power Scaling'!I$3+VLOOKUP("vdd_int (svt16)",pwr_scale_table,2,0)*$AO8*'Power Scaling'!I$4)*AQ8,IF(OR($I8="AO",$I8="LU"),VLOOKUP($A8&"_"&"vdd_dyn"&"_"&$R8&"",MDB,5,0)*VLOOKUP("vdd_int (svt20)",pwr_scale_table,2,0),IF(OR($I8="LUUA",$I8="LUUB"),VLOOKUP($A8&"_"&"vdd_dyn"&"_"&$R8&"",MDB,5,0)*$C8*$S8*VLOOKUP("vdd_int (svt20)",pwr_scale_table,2,0),VLOOKUP($A8&"_"&"vdd_dyn"&"_"&$R8&"_idle",MDB,5,0)*(1-$S8)+VLOOKUP($A8&"_"&"vdd_dyn"&"_"&$R8&"_read",MDB,5,0)*($S8/2)+VLOOKUP($A8&"_"&"vdd_dyn"&"_"&$R8&"_write",MDB,5,0)*($S8/2)*VLOOKUP("vdd_int (svt20)",pwr_scale_table,2,0)))),0) -> 0 | W8: 26.24733665 | X8: 0 | Y8: 0 | Z8: 0 | AA8: 0 | AB8: 0 | AC8: 0 | AD8: 0 | AE8: 0.012 | AF8: 0.15 | AG8: 0.18 | AH8: 301.2 | AI8: 240.9 | AJ8: 0.24 | AK8: 0.03 | AL8: 0.34 | AM8: 0.12 | AN8: 0.05 | AO8: 0.22 | AP8: 2.878276637 | AQ8: 241.3804539 | AR8: The Vx1 macro is a display data standard used on the DLPC8430. It is a receiver only and it's under development. Power is estimated at this time. | AS8: sam62_a53_dual_wrap_cba_cpu_phys_0 | AT8: CF$9 | BD8: CC$17 | BG8: A53 | CE8: MAIN R5FSS 2 | CF8: 0 | CJ8: Pulsar | CK8: 90
A9: sam62_a53_dual_wrap_cba_cpu_phys | B9: _1 | C9: 1 | D9: 4 | E9: VDD_CORE | F9: N/A | G9: N/A | H9: N/A | I9: SI | J9: PD_A53_1 | K9: A53 CPU 1.4 GHz AM62 | L9: SAM62A_c3signoff_20220411 | M9: 1 Processor | N9: ARM_MPU | O9: 26.24733665 | P9: ON | Q9: 1250 | R9: 1250 | S9: =IF(IF(ISBLANK(AT9),0,INDIRECT(AT9))=0,0,IF($CE$3="PDN",1,IF(ISBLANK(AT9),0,INDIRECT(AT9)))) -> 1 | T9: 0 | U9: =IFERROR(IF($I9="SI",AP9*$C9*(VLOOKUP("vdd_lkg (ulvt20)",pwr_scale_table,2,0)*$AJ9*'Power Scaling'!F$7+VLOOKUP("vdd_lkg (ulvt16)",pwr_scale_table,2,0)*$AK9*'Power Scaling'!F$8+VLOOKUP("vdd_lkg (lvt20)",pwr_scale_table,2,0)*$AL9*'Power Scaling'!F$5+VLOOKUP("vdd_lkg (lvt16)",pwr_scale_table,2,0)*AM9*'Power Scaling'!F$6+VLOOKUP("vdd_lkg (svt20)",pwr_scale_table,2,0)*$AN9*'Power Scaling'!F$3+VLOOKUP("vdd_lkg (svt16)",pwr_scale_table,2,0)*$AO9*'Power Scaling'!F$4)*IF(P9="OFF",0.06,1),VLOOKUP($A9&"_"&U$3,MDB,5,0)*$C9*VLOOKUP("vdd_lkg (svt16)",pwr_scale_table,2,0)*IF(P9="OFF",0.06,1)),0) -> 0 | V9: =C9*IFERROR(IF($I9="SI",(AE9*IF(S9=0,0,1)+(AF9-AE9)*S9)*IF(R9>0,R9,Q9)/Q9*(VLOOKUP("vdd_int (ulvt20)",pwr_scale_table,2,0)*$AJ9*'Power Scaling'!I$7+VLOOKUP("vdd_int (ulvt16)",pwr_scale_table,2,0)*$AK9*'Power Scaling'!I$8+VLOOKUP("vdd_int (lvt20)",pwr_scale_table,2,0)*$AL9*'Power Scaling'!I$5+VLOOKUP("vdd_int (lvt16)",pwr_scale_table,2,0)*AM9*'Power Scaling'!I$6+VLOOKUP("vdd_int (svt20)",pwr_scale_table,2,0)*$AN9*'Power Scaling'!I$3+VLOOKUP("vdd_int (svt16)",pwr_scale_table,2,0)*$AO9*'Power Scaling'!I$4)*AQ9,IF(OR($I9="AO",$I9="LU"),VLOOKUP($A9&"_"&"vdd_dyn"&"_"&$R9&"",MDB,5,0)*VLOOKUP("vdd_int (svt20)",pwr_scale_table,2,0),IF(OR($I9="LUUA",$I9="LUUB"),VLOOKUP($A9&"_"&"vdd_dyn"&"_"&$R9&"",MDB,5,0)*$C9*$S9*VLOOKUP("vdd_int (svt20)",pwr_scale_table,2,0),VLOOKUP($A9&"_"&"vdd_dyn"&"_"&$R9&"_idle",MDB,5,0)*(1-$S9)+VLOOKUP($A9&"_"&"vdd_dyn"&"_"&$R9&"_read",MDB,5,0)*($S9/2)+VLOOKUP($A9&"_"&"vdd_dyn"&"_"&$R9&"_write",MDB,5,0)*($S9/2)*VLOOKUP("vdd_int (svt20)",pwr_scale_table,2,0)))),0) -> 0 | W9: 26.24733665 | X9: 0 | Y9: 0 | Z9: 0 | AA9: 0 | AB9: 0 | AC9: 0 | AD9: 0 | AE9: 0.012 | AF9: 0.15 | AG9: 0.18 | AH9: 301.2 | AI9: 240.9 | AJ9: 0.24 | AK9: 0.03 | AL9: 0.34 | AM9: 0.12 | AN9: 0.05 | AO9: 0.22 | AP9: 2.878276637 | AQ9: 241.3804539 | AR9: The Vx1 macro is a display data standard used on the DLPC8430. It is a receiver only and it's under development. Power is estimated at this time. | AS9: sam62_a53_dual_wrap_cba_cpu_phys_1 | AT9: CF$10 | BD9: CC$17 | BG9: A53 | CA9: UC_Description | CB9: Add Test Description | CE9: MAIN A53SS 0: 0 | CF9: 1 | CJ9: GPU | CK9: 270
A10: sam62_a53_dual_wrap_cba_cpu_phys | B10: _2 | C10: 1 | D10: 4 | E10: VDD_CORE | F10: N/A | G10: N/A | H10: N/A | I10: SI | J10: PD_A53_2 | K10: A53 CPU 1.4 GHz AM62 | L10: SAM62A_c3signoff_20220411 | M10: 1 Processor | N10: ARM_MPU | O10: 26.24733665 | P10: ON | Q10: 1250 | R10: 1250 | S10: =IF(IF(ISBLANK(AT10),0,INDIRECT(AT10))=0,0,IF($CE$3="PDN",1,IF(ISBLANK(AT10),0,INDIRECT(AT10)))) -> 1 | T10: 0 | U10: =IFERROR(IF($I10="SI",AP10*$C10*(VLOOKUP("vdd_lkg (ulvt20)",pwr_scale_table,2,0)*$AJ10*'Power Scaling'!F$7+VLOOKUP("vdd_lkg (ulvt16)",pwr_scale_table,2,0)*$AK10*'Power Scaling'!F$8+VLOOKUP("vdd_lkg (lvt20)",pwr_scale_table,2,0)*$AL10*'Power Scaling'!F$5+VLOOKUP("vdd_lkg (lvt16)",pwr_scale_table,2,0)*AM10*'Power Scaling'!F$6+VLOOKUP("vdd_lkg (svt20)",pwr_scale_table,2,0)*$AN10*'Power Scaling'!F$3+VLOOKUP("vdd_lkg (svt16)",pwr_scale_table,2,0)*$AO10*'Power Scaling'!F$4)*IF(P10="OFF",0.06,1),VLOOKUP($A10&"_"&U$3,MDB,5,0)*$C10*VLOOKUP("vdd_lkg (svt16)",pwr_scale_table,2,0)*IF(P10="OFF",0.06,1)),0) -> 0 | V10: =C10*IFERROR(IF($I10="SI",(AE10*IF(S10=0,0,1)+(AF10-AE10)*S10)*IF(R10>0,R10,Q10)/Q10*(VLOOKUP("vdd_int (ulvt20)",pwr_scale_table,2,0)*$AJ10*'Power Scaling'!I$7+VLOOKUP("vdd_int (ulvt16)",pwr_scale_table,2,0)*$AK10*'Power Scaling'!I$8+VLOOKUP("vdd_int (lvt20)",pwr_scale_table,2,0)*$AL10*'Power Scaling'!I$5+VLOOKUP("vdd_int (lvt16)",pwr_scale_table,2,0)*AM10*'Power Scaling'!I$6+VLOOKUP("vdd_int (svt20)",pwr_scale_table,2,0)*$AN10*'Power Scaling'!I$3+VLOOKUP("vdd_int (svt16)",pwr_scale_table,2,0)*$AO10*'Power Scaling'!I$4)*AQ10,IF(OR($I10="AO",$I10="LU"),VLOOKUP($A10&"_"&"vdd_dyn"&"_"&$R10&"",MDB,5,0)*VLOOKUP("vdd_int (svt20)",pwr_scale_table,2,0),IF(OR($I10="LUUA",$I10="LUUB"),VLOOKUP($A10&"_"&"vdd_dyn"&"_"&$R10&"",MDB,5,0)*$C10*$S10*VLOOKUP("vdd_int (svt20)",pwr_scale_table,2,0),VLOOKUP($A10&"_"&"vdd_dyn"&"_"&$R10&"_idle",MDB,5,0)*(1-$S10)+VLOOKUP($A10&"_"&"vdd_dyn"&"_"&$R10&"_read",MDB,5,0)*($S10/2)+VLOOKUP($A10&"_"&"vdd_dyn"&"_"&$R10&"_write",MDB,5,0)*($S10/2)*VLOOKUP("vdd_int (svt20)",pwr_scale_table,2,0)))),0) -> 0 | W10: 26.24733665 | X10: 0 | Y10: 0 | Z10: 0 | AA10: 0 | AB10: 0 | AC10: 0 | AD10: 0 | AE10: 0.012 | AF10: 0.15 | AG10: 0.18 | AH10: 301.2 | AI10: 240.9 | AJ10: 0.24 | AK10: 0.03 | AL10: 0.34 | AM10: 0.12 | AN10: 0.05 | AO10: 0.22 | AP10: 2.878276637 | AQ10: 241.3804539 | AR10: The Vx1 macro is a display data standard used on the DLPC8430. It is a receiver only and it's under development. Power is estimated at this time. | AS10: sam62_a53_dual_wrap_cba_cpu_phys_2 | AT10: CF$11 | BD10: CC$17 | BG10: A53 | CA10: UC_Name | CB10: Add Test Name | CE10: MAIN A53SS 0: 1 | CF10: 1 | CJ10: VPAC | CK10: 0
A11: sam62_a53_dual_wrap_cba_cpu_phys | B11: _3 | C11: 1 | D11: 4 | E11: VDD_CORE | F11: N/A | G11: N/A | H11: N/A | I11: SI | J11: PD_A53_3 | K11: A53 CPU 1.4 GHz AM62 | L11: SAM62A_c3signoff_20220411 | M11: 1 Processor | N11: ARM_MPU | O11: 26.24733665 | P11: ON | Q11: 1250 | R11: 1250 | S11: =IF(IF(ISBLANK(AT11),0,INDIRECT(AT11))=0,0,IF($CE$3="PDN",1,IF(ISBLANK(AT11),0,INDIRECT(AT11)))) -> 1 | T11: 0 | U11: =IFERROR(IF($I11="SI",AP11*$C11*(VLOOKUP("vdd_lkg (ulvt20)",pwr_scale_table,2,0)*$AJ11*'Power Scaling'!F$7+VLOOKUP("vdd_lkg (ulvt16)",pwr_scale_table,2,0)*$AK11*'Power Scaling'!F$8+VLOOKUP("vdd_lkg (lvt20)",pwr_scale_table,2,0)*$AL11*'Power Scaling'!F$5+VLOOKUP("vdd_lkg (lvt16)",pwr_scale_table,2,0)*AM11*'Power Scaling'!F$6+VLOOKUP("vdd_lkg (svt20)",pwr_scale_table,2,0)*$AN11*'Power Scaling'!F$3+VLOOKUP("vdd_lkg (svt16)",pwr_scale_table,2,0)*$AO11*'Power Scaling'!F$4)*IF(P11="OFF",0.06,1),VLOOKUP($A11&"_"&U$3,MDB,5,0)*$C11*VLOOKUP("vdd_lkg (svt16)",pwr_scale_table,2,0)*IF(P11="OFF",0.06,1)),0) -> 0 | V11: =C11*IFERROR(IF($I11="SI",(AE11*IF(S11=0,0,1)+(AF11-AE11)*S11)*IF(R11>0,R11,Q11)/Q11*(VLOOKUP("vdd_int (ulvt20)",pwr_scale_table,2,0)*$AJ11*'Power Scaling'!I$7+VLOOKUP("vdd_int (ulvt16)",pwr_scale_table,2,0)*$AK11*'Power Scaling'!I$8+VLOOKUP("vdd_int (lvt20)",pwr_scale_table,2,0)*$AL11*'Power Scaling'!I$5+VLOOKUP("vdd_int (lvt16)",pwr_scale_table,2,0)*AM11*'Power Scaling'!I$6+VLOOKUP("vdd_int (svt20)",pwr_scale_table,2,0)*$AN11*'Power Scaling'!I$3+VLOOKUP("vdd_int (svt16)",pwr_scale_table,2,0)*$AO11*'Power Scaling'!I$4)*AQ11,IF(OR($I11="AO",$I11="LU"),VLOOKUP($A11&"_"&"vdd_dyn"&"_"&$R11&"",MDB,5,0)*VLOOKUP("vdd_int (svt20)",pwr_scale_table,2,0),IF(OR($I11="LUUA",$I11="LUUB"),VLOOKUP($A11&"_"&"vdd_dyn"&"_"&$R11&"",MDB,5,0)*$C11*$S11*VLOOKUP("vdd_int (svt20)",pwr_scale_table,2,0),VLOOKUP($A11&"_"&"vdd_dyn"&"_"&$R11&"_idle",MDB,5,0)*(1-$S11)+VLOOKUP($A11&"_"&"vdd_dyn"&"_"&$R11&"_read",MDB,5,0)*($S11/2)+VLOOKUP($A11&"_"&"vdd_dyn"&"_"&$R11&"_write",MDB,5,0)*($S11/2)*VLOOKUP("vdd_int (svt20)",pwr_scale_table,2,0)))),0) -> 0 | W11: 26.24733665 | X11: 0 | Y11: 0 | Z11: 0 | AA11: 0 | AB11: 0 | AC11: 0 | AD11: 0 | AE11: 0.012 | AF11: 0.15 | AG11: 0.18 | AH11: 301.2 | AI11: 240.9 | AJ11: 0.24 | AK11: 0.03 | AL11: 0.34 | AM11: 0.12 | AN11: 0.05 | AO11: 0.22 | AP11: 2.878276637 | AQ11: 241.3804539 | AR11: The Vx1 macro is a display data standard used on the DLPC8430. It is a receiver only and it's under development. Power is estimated at this time. | AS11: sam62_a53_dual_wrap_cba_cpu_phys_3 | AT11: CF$12 | BD11: CC$17 | BG11: A53 | CE11: MAIN A53SS 0: 2 | CF11: 1 | CJ11: DMPAC | CK11: 0
A12: sam67_dss_dsi_oldi_wrap | B12: _0 | C12: 1 | D12: 3 | E12: VDD_CORE | F12: N/A | G12: N/A | H12: N/A | I12: SI | J12: PD_DSS | K12: Double DSS7UL + DSI + OLDI wrap | L12: sam62p_march_c2end_power | M12: 2 ASPE | N12: Display | O12: 46.07662965 | P12: ON | Q12: 320 | R12: 0 | S12: =IF(OR(INDIRECT(AT12)="unused",INDIRECT(AV12)=0),0,INDIRECT(AU12))*0.38+IF(OR(INDIRECT(AW12)="ulps",INDIRECT(AY12)=0),0,INDIRECT(AX12))*(0.38+0.23)+IF(OR(INDIRECT(AZ12)="unused",INDIRECT(BB12)=0),0,INDIRECT(BA12))*0.38 -> 0.76 | T12: 0 | U12: =IFERROR(IF($I12="SI",AP12*$C12*(VLOOKUP("vdd_lkg (ulvt20)",pwr_scale_table,2,0)*$AJ12*'Power Scaling'!F$7+VLOOKUP("vdd_lkg (ulvt16)",pwr_scale_table,2,0)*$AK12*'Power Scaling'!F$8+VLOOKUP("vdd_lkg (lvt20)",pwr_scale_table,2,0)*$AL12*'Power Scaling'!F$5+VLOOKUP("vdd_lkg (lvt16)",pwr_scale_table,2,0)*AM12*'Power Scaling'!F$6+VLOOKUP("vdd_lkg (svt20)",pwr_scale_table,2,0)*$AN12*'Power Scaling'!F$3+VLOOKUP("vdd_lkg (svt16)",pwr_scale_table,2,0)*$AO12*'Power Scaling'!F$4)*IF(P12="OFF",0.06,1),VLOOKUP($A12&"_"&U$3,MDB,5,0)*$C12*VLOOKUP("vdd_lkg (svt16)",pwr_scale_table,2,0)*IF(P12="OFF",0.06,1)),0) -> 0 | V12: =C12*IFERROR(IF($I12="SI",(AE12*IF(S12=0,0,1)+(AF12-AE12)*S12)*IF(R12>0,R12,Q12)/Q12*(VLOOKUP("vdd_int (ulvt20)",pwr_scale_table,2,0)*$AJ12*'Power Scaling'!I$7+VLOOKUP("vdd_int (ulvt16)",pwr_scale_table,2,0)*$AK12*'Power Scaling'!I$8+VLOOKUP("vdd_int (lvt20)",pwr_scale_table,2,0)*$AL12*'Power Scaling'!I$5+VLOOKUP("vdd_int (lvt16)",pwr_scale_table,2,0)*AM12*'Power Scaling'!I$6+VLOOKUP("vdd_int (svt20)",pwr_scale_table,2,0)*$AN12*'Power Scaling'!I$3+VLOOKUP("vdd_int (svt16)",pwr_scale_table,2,0)*$AO12*'Power Scaling'!I$4)*AQ12,IF(OR($I12="AO",$I12="LU"),VLOOKUP($A12&"_"&"vdd_dyn"&"_"&$R12&"",MDB,5,0)*VLOOKUP("vdd_int (svt20)",pwr_scale_table,2,0),IF(OR($I12="LUUA",$I12="LUUB"),VLOOKUP($A12&"_"&"vdd_dyn"&"_"&$R12&"",MDB,5,0)*$C12*$S12*VLOOKUP("vdd_int (svt20)",pwr_scale_table,2,0),VLOOKUP($A12&"_"&"vdd_dyn"&"_"&$R12&"_idle",MDB,5,0)*(1-$S12)+VLOOKUP($A12&"_"&"vdd_dyn"&"_"&$R12&"_read",MDB,5,0)*($S12/2)+VLOOKUP($A12&"_"&"vdd_dyn"&"_"&$R12&"_write",MDB,5,0)*($S12/2)*VLOOKUP("vdd_int (svt20)",pwr_scale_table,2,0)))),0) -> 0 | W12: 46.07662965 | X12: 0 | Y12: 0 | Z12: 0 | AA12: 0 | AB12: 0 | AC12: 0 | AD12: 0 | AE12: 0.078 | AF12: 0.48 | AG12: 0.58 | AH12: 193 | AI12: 165.4 | AJ12: 0 | AK12: 0 | AL12: 0.08 | AM12: 0.06 | AN12: 0.42 | AO12: 0.43 | AP12: 6.682896815 | AQ12: 190.1218761 | AR12: The Vx1 macro is a display data standard used on the DLPC8430. It is a receiver only and it's under development. Power is estimated at this time. | AS12: sam67_dss_dsi_oldi_wrap_0 | AT12: CF$32 | AU12: CG$32 | AV12: CH$32 | AW12: CB$36 | AX12: CC$36 | AY12: CD$36 | AZ12: CB$63 | BA12: CC$63 | BB12: CD$63 | CA12: Key IP Frequency selection | CC12: Frequency [MHz] | CE12: MAIN A53SS 0: 3 | CF12: 1 | CJ12: WAVE512CL | CK12: 60
C13: 0 | O13: 0 | Q13: 912.5 | R13: 0 | S13: =IF(IF(ISBLANK(AT13),0,INDIRECT(AT13))*0.66+IF(ISBLANK(AU13),0,INDIRECT(AU13))*0.8=0,0,IF($CE$3="PDN",1,IF(ISBLANK(AT13),0,INDIRECT(AT13))*0.66+IF(ISBLANK(AU13),0,INDIRECT(AU13))*0.8)) -> 0 | T13: 0 | U13: =IFERROR(IF($I13="SI",AP13*$C13*(VLOOKUP("vdd_lkg (ulvt20)",pwr_scale_table,2,0)*$AJ13*'Power Scaling'!F$7+VLOOKUP("vdd_lkg (ulvt16)",pwr_scale_table,2,0)*$AK13*'Power Scaling'!F$8+VLOOKUP("vdd_lkg (lvt20)",pwr_scale_table,2,0)*$AL13*'Power Scaling'!F$5+VLOOKUP("vdd_lkg (lvt16)",pwr_scale_table,2,0)*AM13*'Power Scaling'!F$6+VLOOKUP("vdd_lkg (svt20)",pwr_scale_table,2,0)*$AN13*'Power Scaling'!F$3+VLOOKUP("vdd_lkg (svt16)",pwr_scale_table,2,0)*$AO13*'Power Scaling'!F$4)*IF(P13="OFF",0.06,1),VLOOKUP($A13&"_"&U$3,MDB,5,0)*$C13*VLOOKUP("vdd_lkg (svt16)",pwr_scale_table,2,0)*IF(P13="OFF",0.06,1)),0) -> 0 | V13: =C13*IFERROR(IF($I13="SI",(AE13*IF(S13=0,0,1)+(AF13-AE13)*S13)*IF(R13>0,R13,Q13)/Q13*(VLOOKUP("vdd_int (ulvt20)",pwr_scale_table,2,0)*$AJ13*'Power Scaling'!I$7+VLOOKUP("vdd_int (ulvt16)",pwr_scale_table,2,0)*$AK13*'Power Scaling'!I$8+VLOOKUP("vdd_int (lvt20)",pwr_scale_table,2,0)*$AL13*'Power Scaling'!I$5+VLOOKUP("vdd_int (lvt16)",pwr_scale_table,2,0)*AM13*'Power Scaling'!I$6+VLOOKUP("vdd_int (svt20)",pwr_scale_table,2,0)*$AN13*'Power Scaling'!I$3+VLOOKUP("vdd_int (svt16)",pwr_scale_table,2,0)*$AO13*'Power Scaling'!I$4)*AQ13,IF(OR($I13="AO",$I13="LU"),VLOOKUP($A13&"_"&"vdd_dyn"&"_"&$R13&"",MDB,5,0)*VLOOKUP("vdd_int (svt20)",pwr_scale_table,2,0),IF(OR($I13="LUUA",$I13="LUUB"),VLOOKUP($A13&"_"&"vdd_dyn"&"_"&$R13&"",MDB,5,0)*$C13*$S13*VLOOKUP("vdd_int (svt20)",pwr_scale_table,2,0),VLOOKUP($A13&"_"&"vdd_dyn"&"_"&$R13&"_idle",MDB,5,0)*(1-$S13)+VLOOKUP($A13&"_"&"vdd_dyn"&"_"&$R13&"_read",MDB,5,0)*($S13/2)+VLOOKUP($A13&"_"&"vdd_dyn"&"_"&$R13&"_write",MDB,5,0)*($S13/2)*VLOOKUP("vdd_int (svt20)",pwr_scale_table,2,0)))),0) -> 0 | W13: 0 | X13: 0 | Y13: 0 | Z13: 0 | AA13: 0 | AB13: 0 | AC13: 0 | AD13: 0 | AE13: 0 | AF13: 0 | AG13: 0 | AH13: 0 | AI13: 0 | AJ13: 0 | AK13: 0 | AL13: 0 | AM13: 0 | AN13: 0 | AO13: 0 | AR13: The Vx1 macro is a display data standard used on the DLPC8430. It is a receiver only and it's under development. Power is estimated at this time. | AT13: CF$15 | AU13: CF$16 | BD13: CC$18 | BG13: C7 | CA13: MAIN PLL 15 HSDIV 0 | CB13: MAIN SMS 0 Frequency [MHz] | CC13: 400 | CD13: 400 | CE13: MAIN C71SS 0: C71x | CF13: 0 | CJ13: DDR | CK13: 390
C14: 0 | O14: 0 | Q14: 912.5 | R14: 0 | S14: =IF(IF(ISBLANK(AT14),0,INDIRECT(AT14))=0,0,IF($CE$3="PDN",1,IF(ISBLANK(AT14),0,INDIRECT(AT14)))) -> 0 | T14: 0 | U14: =IFERROR(IF($I14="SI",AP14*$C14*(VLOOKUP("vdd_lkg (ulvt20)",pwr_scale_table,2,0)*$AJ14*'Power Scaling'!F$7+VLOOKUP("vdd_lkg (ulvt16)",pwr_scale_table,2,0)*$AK14*'Power Scaling'!F$8+VLOOKUP("vdd_lkg (lvt20)",pwr_scale_table,2,0)*$AL14*'Power Scaling'!F$5+VLOOKUP("vdd_lkg (lvt16)",pwr_scale_table,2,0)*AM14*'Power Scaling'!F$6+VLOOKUP("vdd_lkg (svt20)",pwr_scale_table,2,0)*$AN14*'Power Scaling'!F$3+VLOOKUP("vdd_lkg (svt16)",pwr_scale_table,2,0)*$AO14*'Power Scaling'!F$4)*IF(P14="OFF",0.06,1),VLOOKUP($A14&"_"&U$3,MDB,5,0)*$C14*VLOOKUP("vdd_lkg (svt16)",pwr_scale_table,2,0)*IF(P14="OFF",0.06,1)),0) -> 0 | V14: =C14*IFERROR(IF($I14="SI",(AE14*IF(S14=0,0,1)+(AF14-AE14)*S14)*IF(R14>0,R14,Q14)/Q14*(VLOOKUP("vdd_int (ulvt20)",pwr_scale_table,2,0)*$AJ14*'Power Scaling'!I$7+VLOOKUP("vdd_int (ulvt16)",pwr_scale_table,2,0)*$AK14*'Power Scaling'!I$8+VLOOKUP("vdd_int (lvt20)",pwr_scale_table,2,0)*$AL14*'Power Scaling'!I$5+VLOOKUP("vdd_int (lvt16)",pwr_scale_table,2,0)*AM14*'Power Scaling'!I$6+VLOOKUP("vdd_int (svt20)",pwr_scale_table,2,0)*$AN14*'Power Scaling'!I$3+VLOOKUP("vdd_int (svt16)",pwr_scale_table,2,0)*$AO14*'Power Scaling'!I$4)*AQ14,IF(OR($I14="AO",$I14="LU"),VLOOKUP($A14&"_"&"vdd_dyn"&"_"&$R14&"",MDB,5,0)*VLOOKUP("vdd_int (svt20)",pwr_scale_table,2,0),IF(OR($I14="LUUA",$I14="LUUB"),VLOOKUP($A14&"_"&"vdd_dyn"&"_"&$R14&"",MDB,5,0)*$C14*$S14*VLOOKUP("vdd_int (svt20)",pwr_scale_table,2,0),VLOOKUP($A14&"_"&"vdd_dyn"&"_"&$R14&"_idle",MDB,5,0)*(1-$S14)+VLOOKUP($A14&"_"&"vdd_dyn"&"_"&$R14&"_read",MDB,5,0)*($S14/2)+VLOOKUP($A14&"_"&"vdd_dyn"&"_"&$R14&"_write",MDB,5,0)*($S14/2)*VLOOKUP("vdd_int (svt20)",pwr_scale_table,2,0)))),0) -> 0 | W14: 0 | X14: 0 | Y14: 0 | Z14: 0 | AA14: 0 | AB14: 0 | AC14: 0 | AD14: 0 | AE14: 0 | AF14: 0 | AG14: 0 | AH14: 0 | AI14: 0 | AJ14: 0 | AK14: 0 | AL14: 0 | AM14: 0 | AN14: 0 | AO14: 0 | AR14: The Vx1 macro is a display data standard used on the DLPC8430. It is a receiver only and it's under development. Power is estimated at this time. | AT14: CF$16 | BD14: CC$18 | BG14: C7 | CA14: MAIN PLL 15 HSDIV 2 MCU PLL 0 HSDIV 0 | CB14: Domain Manager (WKUP) R5FSS 0 Frequency [MHz] | CC14: 800 | CD14: 800 | CE14: MAIN C71SS 0: MMA | CF14: 0
C15: 0 | O15: 0 | Q15: 912.5 | R15: 0 | S15: =IF(IF(ISBLANK(AT15),0,INDIRECT(AT15))*0.66+IF(ISBLANK(AU15),0,INDIRECT(AU15))*0.8=0,0,IF($CE$3="PDN",1,IF(ISBLANK(AT15),0,INDIRECT(AT15))*0.66+IF(ISBLANK(AU15),0,INDIRECT(AU15))*0.8)) -> 0 | T15: 0 | U15: =IFERROR(IF($I15="SI",AP15*$C15*(VLOOKUP("vdd_lkg (ulvt20)",pwr_scale_table,2,0)*$AJ15*'Power Scaling'!F$7+VLOOKUP("vdd_lkg (ulvt16)",pwr_scale_table,2,0)*$AK15*'Power Scaling'!F$8+VLOOKUP("vdd_lkg (lvt20)",pwr_scale_table,2,0)*$AL15*'Power Scaling'!F$5+VLOOKUP("vdd_lkg (lvt16)",pwr_scale_table,2,0)*AM15*'Power Scaling'!F$6+VLOOKUP("vdd_lkg (svt20)",pwr_scale_table,2,0)*$AN15*'Power Scaling'!F$3+VLOOKUP("vdd_lkg (svt16)",pwr_scale_table,2,0)*$AO15*'Power Scaling'!F$4)*IF(P15="OFF",0.06,1),VLOOKUP($A15&"_"&U$3,MDB,5,0)*$C15*VLOOKUP("vdd_lkg (svt16)",pwr_scale_table,2,0)*IF(P15="OFF",0.06,1)),0) -> 0 | V15: =C15*IFERROR(IF($I15="SI",(AE15*IF(S15=0,0,1)+(AF15-AE15)*S15)*IF(R15>0,R15,Q15)/Q15*(VLOOKUP("vdd_int (ulvt20)",pwr_scale_table,2,0)*$AJ15*'Power Scaling'!I$7+VLOOKUP("vdd_int (ulvt16)",pwr_scale_table,2,0)*$AK15*'Power Scaling'!I$8+VLOOKUP("vdd_int (lvt20)",pwr_scale_table,2,0)*$AL15*'Power Scaling'!I$5+VLOOKUP("vdd_int (lvt16)",pwr_scale_table,2,0)*AM15*'Power Scaling'!I$6+VLOOKUP("vdd_int (svt20)",pwr_scale_table,2,0)*$AN15*'Power Scaling'!I$3+VLOOKUP("vdd_int (svt16)",pwr_scale_table,2,0)*$AO15*'Power Scaling'!I$4)*AQ15,IF(OR($I15="AO",$I15="LU"),VLOOKUP($A15&"_"&"vdd_dyn"&"_"&$R15&"",MDB,5,0)*VLOOKUP("vdd_int (svt20)",pwr_scale_table,2,0),IF(OR($I15="LUUA",$I15="LUUB"),VLOOKUP($A15&"_"&"vdd_dyn"&"_"&$R15&"",MDB,5,0)*$C15*$S15*VLOOKUP("vdd_int (svt20)",pwr_scale_table,2,0),VLOOKUP($A15&"_"&"vdd_dyn"&"_"&$R15&"_idle",MDB,5,0)*(1-$S15)+VLOOKUP($A15&"_"&"vdd_dyn"&"_"&$R15&"_read",MDB,5,0)*($S15/2)+VLOOKUP($A15&"_"&"vdd_dyn"&"_"&$R15&"_write",MDB,5,0)*($S15/2)*VLOOKUP("vdd_int (svt20)",pwr_scale_table,2,0)))),0) -> 0 | W15: 0 | X15: 0 | Y15: 0 | Z15: 0 | AA15: 0 | AB15: 0 | AC15: 0 | AD15: 0 | AE15: 0 | AF15: 0 | AG15: 0 | AH15: 0 | AI15: 0 | AJ15: 0 | AK15: 0 | AL15: 0 | AM15: 0 | AN15: 0 | AO15: 0 | AR15: The Vx1 macro is a display data standard used on the DLPC8430. It is a receiver only and it's under development. Power is estimated at this time. | AT15: CF$13 | AU15: CF$14 | BD15: CC$18 | BG15: C7 | CA15: MAIN PLL 15 HSDIV 3 | CB15: MAIN R5FSS 1 Frequency [MHz] | CC15: 0 | CD15: 800 | CE15: MAIN C71SS 1: C71x | CF15: 0 | CJ15: PD | CK15: PSC | CL15: State
C16: 0 | O16: 0 | Q16: 912.5 | R16: 0 | S16: =IF(IF(ISBLANK(AT16),0,INDIRECT(AT16))=0,0,IF($CE$3="PDN",1,IF(ISBLANK(AT16),0,INDIRECT(AT16)))) -> 0 | T16: 0 | U16: =IFERROR(IF($I16="SI",AP16*$C16*(VLOOKUP("vdd_lkg (ulvt20)",pwr_scale_table,2,0)*$AJ16*'Power Scaling'!F$7+VLOOKUP("vdd_lkg (ulvt16)",pwr_scale_table,2,0)*$AK16*'Power Scaling'!F$8+VLOOKUP("vdd_lkg (lvt20)",pwr_scale_table,2,0)*$AL16*'Power Scaling'!F$5+VLOOKUP("vdd_lkg (lvt16)",pwr_scale_table,2,0)*AM16*'Power Scaling'!F$6+VLOOKUP("vdd_lkg (svt20)",pwr_scale_table,2,0)*$AN16*'Power Scaling'!F$3+VLOOKUP("vdd_lkg (svt16)",pwr_scale_table,2,0)*$AO16*'Power Scaling'!F$4)*IF(P16="OFF",0.06,1),VLOOKUP($A16&"_"&U$3,MDB,5,0)*$C16*VLOOKUP("vdd_lkg (svt16)",pwr_scale_table,2,0)*IF(P16="OFF",0.06,1)),0) -> 0 | V16: =C16*IFERROR(IF($I16="SI",(AE16*IF(S16=0,0,1)+(AF16-AE16)*S16)*IF(R16>0,R16,Q16)/Q16*(VLOOKUP("vdd_int (ulvt20)",pwr_scale_table,2,0)*$AJ16*'Power Scaling'!I$7+VLOOKUP("vdd_int (ulvt16)",pwr_scale_table,2,0)*$AK16*'Power Scaling'!I$8+VLOOKUP("vdd_int (lvt20)",pwr_scale_table,2,0)*$AL16*'Power Scaling'!I$5+VLOOKUP("vdd_int (lvt16)",pwr_scale_table,2,0)*AM16*'Power Scaling'!I$6+VLOOKUP("vdd_int (svt20)",pwr_scale_table,2,0)*$AN16*'Power Scaling'!I$3+VLOOKUP("vdd_int (svt16)",pwr_scale_table,2,0)*$AO16*'Power Scaling'!I$4)*AQ16,IF(OR($I16="AO",$I16="LU"),VLOOKUP($A16&"_"&"vdd_dyn"&"_"&$R16&"",MDB,5,0)*VLOOKUP("vdd_int (svt20)",pwr_scale_table,2,0),IF(OR($I16="LUUA",$I16="LUUB"),VLOOKUP($A16&"_"&"vdd_dyn"&"_"&$R16&"",MDB,5,0)*$C16*$S16*VLOOKUP("vdd_int (svt20)",pwr_scale_table,2,0),VLOOKUP($A16&"_"&"vdd_dyn"&"_"&$R16&"_idle",MDB,5,0)*(1-$S16)+VLOOKUP($A16&"_"&"vdd_dyn"&"_"&$R16&"_read",MDB,5,0)*($S16/2)+VLOOKUP($A16&"_"&"vdd_dyn"&"_"&$R16&"_write",MDB,5,0)*($S16/2)*VLOOKUP("vdd_int (svt20)",pwr_scale_table,2,0)))),0) -> 0 | W16: 0 | X16: 0 | Y16: 0 | Z16: 0 | AA16: 0 | AB16: 0 | AC16: 0 | AD16: 0 | AE16: 0 | AF16: 0 | AG16: 0 | AH16: 0 | AI16: 0 | AJ16: 0 | AK16: 0 | AL16: 0 | AM16: 0 | AN16: 0 | AO16: 0 | AR16: The Vx1 macro is a display data standard used on the DLPC8430. It is a receiver only and it's under development. Power is estimated at this time. | AT16: CF$14 | BD16: CC$18 | BG16: C7 | CA16: MCU PLL 0 HSDIV 3 | CB16: MCU R5FSS 0 Frequency [MHz] | CC16: 800 | CD16: 800 | CE16: MAIN C71SS 1: MMA | CF16: 0 | CJ16: PD_Pulsar_MCU | CL16: =INDEX(PD_State_Table,MATCH(CJ16,PD_Table_Row_Header,0),2) -> ON
A17: sam67_gpu_bxs464_dust | B17: _0 | C17: 1 | D17: 7 | E17: VDD_CORE | F17: N/A | G17: N/A | H17: N/A | I17: SI | J17: PD_GPU | K17: GPU BXS4-64-256KB DUST AM67 | L17: sam62p_dec_power | M17: 2 ASPE | N17: GPU | O17: 152.5365767 | P17: ON | Q17: 800 | R17: 720 | S17: 1 | T17: 0 | U17: =IFERROR(IF($I17="SI",AP17*$C17*(VLOOKUP("vdd_lkg (ulvt20)",pwr_scale_table,2,0)*$AJ17*'Power Scaling'!F$7+VLOOKUP("vdd_lkg (ulvt16)",pwr_scale_table,2,0)*$AK17*'Power Scaling'!F$8+VLOOKUP("vdd_lkg (lvt20)",pwr_scale_table,2,0)*$AL17*'Power Scaling'!F$5+VLOOKUP("vdd_lkg (lvt16)",pwr_scale_table,2,0)*AM17*'Power Scaling'!F$6+VLOOKUP("vdd_lkg (svt20)",pwr_scale_table,2,0)*$AN17*'Power Scaling'!F$3+VLOOKUP("vdd_lkg (svt16)",pwr_scale_table,2,0)*$AO17*'Power Scaling'!F$4)*IF(P17="OFF",0.06,1),VLOOKUP($A17&"_"&U$3,MDB,5,0)*$C17*VLOOKUP("vdd_lkg (svt16)",pwr_scale_table,2,0)*IF(P17="OFF",0.06,1)),0) -> 0 | V17: =C17*IFERROR(IF($I17="SI",(AE17*IF(S17=0,0,1)+(AF17-AE17)*S17)*IF(R17>0,R17,Q17)/Q17*(VLOOKUP("vdd_int (ulvt20)",pwr_scale_table,2,0)*$AJ17*'Power Scaling'!I$7+VLOOKUP("vdd_int (ulvt16)",pwr_scale_table,2,0)*$AK17*'Power Scaling'!I$8+VLOOKUP("vdd_int (lvt20)",pwr_scale_table,2,0)*$AL17*'Power Scaling'!I$5+VLOOKUP("vdd_int (lvt16)",pwr_scale_table,2,0)*AM17*'Power Scaling'!I$6+VLOOKUP("vdd_int (svt20)",pwr_scale_table,2,0)*$AN17*'Power Scaling'!I$3+VLOOKUP("vdd_int (svt16)",pwr_scale_table,2,0)*$AO17*'Power Scaling'!I$4)*AQ17,IF(OR($I17="AO",$I17="LU"),VLOOKUP($A17&"_"&"vdd_dyn"&"_"&$R17&"",MDB,5,0)*VLOOKUP("vdd_int (svt20)",pwr_scale_table,2,0),IF(OR($I17="LUUA",$I17="LUUB"),VLOOKUP($A17&"_"&"vdd_dyn"&"_"&$R17&"",MDB,5,0)*$C17*$S17*VLOOKUP("vdd_int (svt20)",pwr_scale_table,2,0),VLOOKUP($A17&"_"&"vdd_dyn"&"_"&$R17&"_idle",MDB,5,0)*(1-$S17)+VLOOKUP($A17&"_"&"vdd_dyn"&"_"&$R17&"_read",MDB,5,0)*($S17/2)+VLOOKUP($A17&"_"&"vdd_dyn"&"_"&$R17&"_write",MDB,5,0)*($S17/2)*VLOOKUP("vdd_int (svt20)",pwr_scale_table,2,0)))),0) -> 0 | W17: 152.5365767 | X17: 0 | Y17: 0 | Z17: 0 | AA17: 0 | AB17: 0 | AC17: 0 | AD17: 0 | AE17: 0.003 | AF17: 0.22 | AG17: 0.36 | AH17: 1090.1 | AI17: 1060.6 | AJ17: 0.02 | AK17: 0 | AL17: 0.23 | AM17: 0.06 | AN17: 0.38 | AO17: 0.31 | AP17: 27.01402796 | AQ17: 1014.264149 | AR17: The Vx1 macro is a display data standard used on the DLPC8430. It is a receiver only and it's under development. Power is estimated at this time. | AS17: sam67_gpu_bxs464_dust_0 | AT17: CF$19 | BD17: CC$21 | BG17: GPU | CA17: MAIN PLL 8 HSDIV0 | CB17: MAIN A53SS Frequency [MHz] | CC17: 1250 | CD17: 1400 | CE17: MAIN VPAC 0 | CF17: 0 | CJ17: GP_Core_CTL | CL17: ON
A18: sam67_gpu_bxs464_rslc256 | B18: _0 | C18: 1 | D18: 8 | E18: VDD_CORE | F18: N/A | G18: N/A | H18: N/A | I18: SI | J18: PD_GPU | K18: GPU BXS4-64-256KB Rascal AM67 | L18: sam62p_may_c3end_base_pg_power | M18: 2 ASPE | N18: GPU | O18: 90.89488636 | P18: ON | Q18: 800 | R18: 720 | S18: 1 | T18: 0 | U18: =IFERROR(IF($I18="SI",AP18*$C18*(VLOOKUP("vdd_lkg (ulvt20)",pwr_scale_table,2,0)*$AJ18*'Power Scaling'!F$7+VLOOKUP("vdd_lkg (ulvt16)",pwr_scale_table,2,0)*$AK18*'Power Scaling'!F$8+VLOOKUP("vdd_lkg (lvt20)",pwr_scale_table,2,0)*$AL18*'Power Scaling'!F$5+VLOOKUP("vdd_lkg (lvt16)",pwr_scale_table,2,0)*AM18*'Power Scaling'!F$6+VLOOKUP("vdd_lkg (svt20)",pwr_scale_table,2,0)*$AN18*'Power Scaling'!F$3+VLOOKUP("vdd_lkg (svt16)",pwr_scale_table,2,0)*$AO18*'Power Scaling'!F$4)*IF(P18="OFF",0.06,1),VLOOKUP($A18&"_"&U$3,MDB,5,0)*$C18*VLOOKUP("vdd_lkg (svt16)",pwr_scale_table,2,0)*IF(P18="OFF",0.06,1)),0) -> 0 | V18: =C18*IFERROR(IF($I18="SI",(AE18*IF(S18=0,0,1)+(AF18-AE18)*S18)*IF(R18>0,R18,Q18)/Q18*(VLOOKUP("vdd_int (ulvt20)",pwr_scale_table,2,0)*$AJ18*'Power Scaling'!I$7+VLOOKUP("vdd_int (ulvt16)",pwr_scale_table,2,0)*$AK18*'Power Scaling'!I$8+VLOOKUP("vdd_int (lvt20)",pwr_scale_table,2,0)*$AL18*'Power Scaling'!I$5+VLOOKUP("vdd_int (lvt16)",pwr_scale_table,2,0)*AM18*'Power Scaling'!I$6+VLOOKUP("vdd_int (svt20)",pwr_scale_table,2,0)*$AN18*'Power Scaling'!I$3+VLOOKUP("vdd_int (svt16)",pwr_scale_table,2,0)*$AO18*'Power Scaling'!I$4)*AQ18,IF(OR($I18="AO",$I18="LU"),VLOOKUP($A18&"_"&"vdd_dyn"&"_"&$R18&"",MDB,5,0)*VLOOKUP("vdd_int (svt20)",pwr_scale_table,2,0),IF(OR($I18="LUUA",$I18="LUUB"),VLOOKUP($A18&"_"&"vdd_dyn"&"_"&$R18&"",MDB,5,0)*$C18*$S18*VLOOKUP("vdd_int (svt20)",pwr_scale_table,2,0),VLOOKUP($A18&"_"&"vdd_dyn"&"_"&$R18&"_idle",MDB,5,0)*(1-$S18)+VLOOKUP($A18&"_"&"vdd_dyn"&"_"&$R18&"_read",MDB,5,0)*($S18/2)+VLOOKUP($A18&"_"&"vdd_dyn"&"_"&$R18&"_write",MDB,5,0)*($S18/2)*VLOOKUP("vdd_int (svt20)",pwr_scale_table,2,0)))),0) -> 0 | W18: 90.89488636 | X18: 0 | Y18: 0 | Z18: 0 | AA18: 0 | AB18: 0 | AC18: 0 | AD18: 0 | AE18: 0.011 | AF18: 0.22 | AG18: 0.36 | AH18: 977.8 | AI18: 632 | AJ18: 0 | AK18: 0 | AL18: 0.14 | AM18: 0.08 | AN18: 0.18 | AO18: 0.6 | AP18: 21.9580307 | AQ18: 939.1512946 | AR18: The Vx1 macro is a display data standard used on the DLPC8430. It is a receiver only and it's under development. Power is estimated at this time. | AS18: sam67_gpu_bxs464_rslc256_0 | AT18: CF$19 | BD18: CC$21 | BG18: GPU | CA18: MAIN PLL 7 HSDIV 0 | CB18: MAIN C71SS 0 and 1 Frequency [MHz] | CC18: 0 | CD18: 1000 | CE18: MAIN DMPAC 0 | CF18: 0 | CJ18: PD_A53_0 | CL18: ON
A19: sam67_gpu_bxs464_wrap | B19: _0 | C19: 1 | D19: 7 | E19: VDD_CORE | F19: N/A | G19: N/A | H19: N/A | I19: SI | J19: PD_GPU | K19: GPU BXS4-64-256KB Wrap AM67 | L19: sam62p_may_c3end_base_pg_power | M19: 2 ASPE | N19: GPU | O19: 23.25193698 | P19: ON | Q19: 800 | R19: 720 | S19: 1 | T19: 0 | U19: =IFERROR(IF($I19="SI",AP19*$C19*(VLOOKUP("vdd_lkg (ulvt20)",pwr_scale_table,2,0)*$AJ19*'Power Scaling'!F$7+VLOOKUP("vdd_lkg (ulvt16)",pwr_scale_table,2,0)*$AK19*'Power Scaling'!F$8+VLOOKUP("vdd_lkg (lvt20)",pwr_scale_table,2,0)*$AL19*'Power Scaling'!F$5+VLOOKUP("vdd_lkg (lvt16)",pwr_scale_table,2,0)*AM19*'Power Scaling'!F$6+VLOOKUP("vdd_lkg (svt20)",pwr_scale_table,2,0)*$AN19*'Power Scaling'!F$3+VLOOKUP("vdd_lkg (svt16)",pwr_scale_table,2,0)*$AO19*'Power Scaling'!F$4)*IF(P19="OFF",0.06,1),VLOOKUP($A19&"_"&U$3,MDB,5,0)*$C19*VLOOKUP("vdd_lkg (svt16)",pwr_scale_table,2,0)*IF(P19="OFF",0.06,1)),0) -> 0 | V19: =C19*IFERROR(IF($I19="SI",(AE19*IF(S19=0,0,1)+(AF19-AE19)*S19)*IF(R19>0,R19,Q19)/Q19*(VLOOKUP("vdd_int (ulvt20)",pwr_scale_table,2,0)*$AJ19*'Power Scaling'!I$7+VLOOKUP("vdd_int (ulvt16)",pwr_scale_table,2,0)*$AK19*'Power Scaling'!I$8+VLOOKUP("vdd_int (lvt20)",pwr_scale_table,2,0)*$AL19*'Power Scaling'!I$5+VLOOKUP("vdd_int (lvt16)",pwr_scale_table,2,0)*AM19*'Power Scaling'!I$6+VLOOKUP("vdd_int (svt20)",pwr_scale_table,2,0)*$AN19*'Power Scaling'!I$3+VLOOKUP("vdd_int (svt16)",pwr_scale_table,2,0)*$AO19*'Power Scaling'!I$4)*AQ19,IF(OR($I19="AO",$I19="LU"),VLOOKUP($A19&"_"&"vdd_dyn"&"_"&$R19&"",MDB,5,0)*VLOOKUP("vdd_int (svt20)",pwr_scale_table,2,0),IF(OR($I19="LUUA",$I19="LUUB"),VLOOKUP($A19&"_"&"vdd_dyn"&"_"&$R19&"",MDB,5,0)*$C19*$S19*VLOOKUP("vdd_int (svt20)",pwr_scale_table,2,0),VLOOKUP($A19&"_"&"vdd_dyn"&"_"&$R19&"_idle",MDB,5,0)*(1-$S19)+VLOOKUP($A19&"_"&"vdd_dyn"&"_"&$R19&"_read",MDB,5,0)*($S19/2)+VLOOKUP($A19&"_"&"vdd_dyn"&"_"&$R19&"_write",MDB,5,0)*($S19/2)*VLOOKUP("vdd_int (svt20)",pwr_scale_table,2,0)))),0) -> 0 | W19: 23.25193698 | X19: 0 | Y19: 0 | Z19: 0 | AA19: 0 | AB19: 0 | AC19: 0 | AD19: 0 | AE19: 0.263 | AF19: 0.36 | AG19: 0.47 | AH19: 100.5 | AI19: 98.8 | AJ19: 0.02 | AK19: 0 | AL19: 0.2 | AM19: 0.17 | AN19: 0.2 | AO19: 0.41 | AP19: 3.146012252 | AQ19: 92.02379583 | AR19: The Vx1 macro is a display data standard used on the DLPC8430. It is a receiver only and it's under development. Power is estimated at this time. | AS19: sam67_gpu_bxs464_wrap_0 | AT19: CF$19 | BD19: CC$21 | BG19: GPU | CA19: MAIN PLL 5 HSDIV 0 | CB19: MAIN VPAC 0 Frequency [MHz] | CC19: 0 | CD19: 600 | CE19: MAIN GPU 0 | CF19: 1 | CJ19: PD_A53_1 | CL19: ON
C20: 0 | O20: 0 | Q20: 600 | R20: 0 | S20: 0 | T20: 0 | U20: =IFERROR(IF($I20="SI",AP20*$C20*(VLOOKUP("vdd_lkg (ulvt20)",pwr_scale_table,2,0)*$AJ20*'Power Scaling'!F$7+VLOOKUP("vdd_lkg (ulvt16)",pwr_scale_table,2,0)*$AK20*'Power Scaling'!F$8+VLOOKUP("vdd_lkg (lvt20)",pwr_scale_table,2,0)*$AL20*'Power Scaling'!F$5+VLOOKUP("vdd_lkg (lvt16)",pwr_scale_table,2,0)*AM20*'Power Scaling'!F$6+VLOOKUP("vdd_lkg (svt20)",pwr_scale_table,2,0)*$AN20*'Power Scaling'!F$3+VLOOKUP("vdd_lkg (svt16)",pwr_scale_table,2,0)*$AO20*'Power Scaling'!F$4)*IF(P20="OFF",0.06,1),VLOOKUP($A20&"_"&U$3,MDB,5,0)*$C20*VLOOKUP("vdd_lkg (svt16)",pwr_scale_table,2,0)*IF(P20="OFF",0.06,1)),0) -> 0 | V20: =C20*IFERROR(IF($I20="SI",(AE20*IF(S20=0,0,1)+(AF20-AE20)*S20)*IF(R20>0,R20,Q20)/Q20*(VLOOKUP("vdd_int (ulvt20)",pwr_scale_table,2,0)*$AJ20*'Power Scaling'!I$7+VLOOKUP("vdd_int (ulvt16)",pwr_scale_table,2,0)*$AK20*'Power Scaling'!I$8+VLOOKUP("vdd_int (lvt20)",pwr_scale_table,2,0)*$AL20*'Power Scaling'!I$5+VLOOKUP("vdd_int (lvt16)",pwr_scale_table,2,0)*AM20*'Power Scaling'!I$6+VLOOKUP("vdd_int (svt20)",pwr_scale_table,2,0)*$AN20*'Power Scaling'!I$3+VLOOKUP("vdd_int (svt16)",pwr_scale_table,2,0)*$AO20*'Power Scaling'!I$4)*AQ20,IF(OR($I20="AO",$I20="LU"),VLOOKUP($A20&"_"&"vdd_dyn"&"_"&$R20&"",MDB,5,0)*VLOOKUP("vdd_int (svt20)",pwr_scale_table,2,0),IF(OR($I20="LUUA",$I20="LUUB"),VLOOKUP($A20&"_"&"vdd_dyn"&"_"&$R20&"",MDB,5,0)*$C20*$S20*VLOOKUP("vdd_int (svt20)",pwr_scale_table,2,0),VLOOKUP($A20&"_"&"vdd_dyn"&"_"&$R20&"_idle",MDB,5,0)*(1-$S20)+VLOOKUP($A20&"_"&"vdd_dyn"&"_"&$R20&"_read",MDB,5,0)*($S20/2)+VLOOKUP($A20&"_"&"vdd_dyn"&"_"&$R20&"_write",MDB,5,0)*($S20/2)*VLOOKUP("vdd_int (svt20)",pwr_scale_table,2,0)))),0) -> 0 | W20: 0 | X20: 0 | Y20: 0 | Z20: 0 | AA20: 0 | AB20: 0 | AC20: 0 | AD20: 0 | AE20: 0 | AF20: 0 | AG20: 0 | AH20: 0 | AI20: 0 | AJ20: 0 | AK20: 0 | AL20: 0 | AM20: 0 | AN20: 0 | AO20: 0 | AR20: The Vx1 macro is a display data standard used on the DLPC8430. It is a receiver only and it's under development. Power is estimated at this time. | AT20: CF$17 | BD20: CC$19 | BG20: VPAC | CA20: MAIN PLL 5 HSDIV 2 | CB20: MAIN DMPAC 0 Frequency [MHz] | CC20: 0 | CD20: 428 | CE20: MAIN Video Encoder/Decoder 0 | CF20: 1 | CJ20: PD_A53_2 | CL20: ON
C21: 0 | O21: 0 | Q21: 428 | R21: 0 | S21: 0 | T21: 0 | U21: =IFERROR(IF($I21="SI",AP21*$C21*(VLOOKUP("vdd_lkg (ulvt20)",pwr_scale_table,2,0)*$AJ21*'Power Scaling'!F$7+VLOOKUP("vdd_lkg (ulvt16)",pwr_scale_table,2,0)*$AK21*'Power Scaling'!F$8+VLOOKUP("vdd_lkg (lvt20)",pwr_scale_table,2,0)*$AL21*'Power Scaling'!F$5+VLOOKUP("vdd_lkg (lvt16)",pwr_scale_table,2,0)*AM21*'Power Scaling'!F$6+VLOOKUP("vdd_lkg (svt20)",pwr_scale_table,2,0)*$AN21*'Power Scaling'!F$3+VLOOKUP("vdd_lkg (svt16)",pwr_scale_table,2,0)*$AO21*'Power Scaling'!F$4)*IF(P21="OFF",0.06,1),VLOOKUP($A21&"_"&U$3,MDB,5,0)*$C21*VLOOKUP("vdd_lkg (svt16)",pwr_scale_table,2,0)*IF(P21="OFF",0.06,1)),0) -> 0 | V21: =C21*IFERROR(IF($I21="SI",(AE21*IF(S21=0,0,1)+(AF21-AE21)*S21)*IF(R21>0,R21,Q21)/Q21*(VLOOKUP("vdd_int (ulvt20)",pwr_scale_table,2,0)*$AJ21*'Power Scaling'!I$7+VLOOKUP("vdd_int (ulvt16)",pwr_scale_table,2,0)*$AK21*'Power Scaling'!I$8+VLOOKUP("vdd_int (lvt20)",pwr_scale_table,2,0)*$AL21*'Power Scaling'!I$5+VLOOKUP("vdd_int (lvt16)",pwr_scale_table,2,0)*AM21*'Power Scaling'!I$6+VLOOKUP("vdd_int (svt20)",pwr_scale_table,2,0)*$AN21*'Power Scaling'!I$3+VLOOKUP("vdd_int (svt16)",pwr_scale_table,2,0)*$AO21*'Power Scaling'!I$4)*AQ21,IF(OR($I21="AO",$I21="LU"),VLOOKUP($A21&"_"&"vdd_dyn"&"_"&$R21&"",MDB,5,0)*VLOOKUP("vdd_int (svt20)",pwr_scale_table,2,0),IF(OR($I21="LUUA",$I21="LUUB"),VLOOKUP($A21&"_"&"vdd_dyn"&"_"&$R21&"",MDB,5,0)*$C21*$S21*VLOOKUP("vdd_int (svt20)",pwr_scale_table,2,0),VLOOKUP($A21&"_"&"vdd_dyn"&"_"&$R21&"_idle",MDB,5,0)*(1-$S21)+VLOOKUP($A21&"_"&"vdd_dyn"&"_"&$R21&"_read",MDB,5,0)*($S21/2)+VLOOKUP($A21&"_"&"vdd_dyn"&"_"&$R21&"_write",MDB,5,0)*($S21/2)*VLOOKUP("vdd_int (svt20)",pwr_scale_table,2,0)))),0) -> 0 | W21: 0 | X21: 0 | Y21: 0 | Z21: 0 | AA21: 0 | AB21: 0 | AC21: 0 | AD21: 0 | AE21: 0 | AF21: 0 | AG21: 0 | AH21: 0 | AI21: 0 | AJ21: 0 | AK21: 0 | AL21: 0 | AM21: 0 | AN21: 0 | AO21: 0 | AR21: The Vx1 macro is a display data standard used on the DLPC8430. It is a receiver only and it's under development. Power is estimated at this time. | AT21: CF$18 | BD21: CC$20 | BG21: DMPAC | CA21: MAIN PLL 6 HSDIV 0 | CB21: MAIN GPU 0 Frequency [MHz] | CC21: 720 | CD21: 800 | CE21: MCU R5FSS | CF21: 1 | CJ21: PD_A53_3 | CL21: ON
A22: sam67_cpsw3_wrap | B22: _0 | C22: 1 | D22: 3 | E22: VDD_CORE | F22: N/A | G22: N/A | H22: N/A | I22: SI | J22: PD_CPSW | K22: CPSW3x eAVB AM62 | L22: sam62p_pg10_weekly_20230328 | M22: 2 ASPE | N22: Networking | O22: 19.6293905 | P22: ON | Q22: 250 | R22: 0 | S22: =IF(ISBLANK(AW22),0,AW22)*IF(ISBLANK(AU22),0,INDIRECT(AU22))*IF(ISBLANK(AV22),0,INDIRECT(AV22))/(1000*1*2) -> 1 | T22: 0 | U22: =IFERROR(IF($I22="SI",AP22*$C22*(VLOOKUP("vdd_lkg (ulvt20)",pwr_scale_table,2,0)*$AJ22*'Power Scaling'!F$7+VLOOKUP("vdd_lkg (ulvt16)",pwr_scale_table,2,0)*$AK22*'Power Scaling'!F$8+VLOOKUP("vdd_lkg (lvt20)",pwr_scale_table,2,0)*$AL22*'Power Scaling'!F$5+VLOOKUP("vdd_lkg (lvt16)",pwr_scale_table,2,0)*AM22*'Power Scaling'!F$6+VLOOKUP("vdd_lkg (svt20)",pwr_scale_table,2,0)*$AN22*'Power Scaling'!F$3+VLOOKUP("vdd_lkg (svt16)",pwr_scale_table,2,0)*$AO22*'Power Scaling'!F$4)*IF(P22="OFF",0.06,1),VLOOKUP($A22&"_"&U$3,MDB,5,0)*$C22*VLOOKUP("vdd_lkg (svt16)",pwr_scale_table,2,0)*IF(P22="OFF",0.06,1)),0) -> 0 | V22: =C22*IFERROR(IF($I22="SI",(AE22*IF(S22=0,0,1)+(AF22-AE22)*S22)*IF(R22>0,R22,Q22)/Q22*(VLOOKUP("vdd_int (ulvt20)",pwr_scale_table,2,0)*$AJ22*'Power Scaling'!I$7+VLOOKUP("vdd_int (ulvt16)",pwr_scale_table,2,0)*$AK22*'Power Scaling'!I$8+VLOOKUP("vdd_int (lvt20)",pwr_scale_table,2,0)*$AL22*'Power Scaling'!I$5+VLOOKUP("vdd_int (lvt16)",pwr_scale_table,2,0)*AM22*'Power Scaling'!I$6+VLOOKUP("vdd_int (svt20)",pwr_scale_table,2,0)*$AN22*'Power Scaling'!I$3+VLOOKUP("vdd_int (svt16)",pwr_scale_table,2,0)*$AO22*'Power Scaling'!I$4)*AQ22,IF(OR($I22="AO",$I22="LU"),VLOOKUP($A22&"_"&"vdd_dyn"&"_"&$R22&"",MDB,5,0)*VLOOKUP("vdd_int (svt20)",pwr_scale_table,2,0),IF(OR($I22="LUUA",$I22="LUUB"),VLOOKUP($A22&"_"&"vdd_dyn"&"_"&$R22&"",MDB,5,0)*$C22*$S22*VLOOKUP("vdd_int (svt20)",pwr_scale_table,2,0),VLOOKUP($A22&"_"&"vdd_dyn"&"_"&$R22&"_idle",MDB,5,0)*(1-$S22)+VLOOKUP($A22&"_"&"vdd_dyn"&"_"&$R22&"_read",MDB,5,0)*($S22/2)+VLOOKUP($A22&"_"&"vdd_dyn"&"_"&$R22&"_write",MDB,5,0)*($S22/2)*VLOOKUP("vdd_int (svt20)",pwr_scale_table,2,0)))),0) -> 0 | W22: 19.6293905 | X22: 0 | Y22: 0 | Z22: 0 | AA22: 0 | AB22: 0 | AC22: 0 | AD22: 0 | AE22: 0.339 | AF22: 0.48 | AG22: 0.58 | AH22: 85.3 | AI22: 56.3 | AJ22: 0 | AK22: 0 | AL22: 0.01 | AM22: 0.06 | AN22: 0.9 | AO22: 0.03 | AP22: 4.734995509 | AQ22: 83.91752507 | AR22: The Vx1 macro is a display data standard used on the DLPC8430. It is a receiver only and it's under development. Power is estimated at this time. | AS22: sam67_cpsw3_wrap_0 | AT22: CB$65 | AU22: CC$65 | AV22: CD$65 | AW22: =IF(OR(ISBLANK(AT22),ISNUMBER(FIND("unused",INDIRECT(AT22)))),0,IF(ISNUMBER(FIND(1000,INDIRECT(AT22))),1000,IF(ISNUMBER(FIND(100,INDIRECT(AT22))),100,10))) -> 1000 | CA22: MAIN PLL 2 HSDIV 4 | CB22: MAIN Video Encoder/Decoder 0 Frequency [MHz] | CC22: 100 | CD22: 500 | CJ22: PD_A53_Cluster_0 | CL22: ON
A23: sam67_vpu_wave521cl_wrap | B23: _0 | C23: 1 | D23: 5 | E23: VDD_CORE | F23: N/A | G23: N/A | H23: N/A | I23: SI | J23: PD_ENCODE | K23: WAVE521CL Video Codec AM62A | L23: sam62p_may_c3end_base_pg_power | M23: 2 ASPE | N23: Video | O23: 55.27957128 | P23: ON | Q23: 500 | R23: 100 | S23: =IF(ISBLANK(AT23),0,INDIRECT(AT23)) -> 1 | T23: 0 | U23: =IFERROR(IF($I23="SI",AP23*$C23*(VLOOKUP("vdd_lkg (ulvt20)",pwr_scale_table,2,0)*$AJ23*'Power Scaling'!F$7+VLOOKUP("vdd_lkg (ulvt16)",pwr_scale_table,2,0)*$AK23*'Power Scaling'!F$8+VLOOKUP("vdd_lkg (lvt20)",pwr_scale_table,2,0)*$AL23*'Power Scaling'!F$5+VLOOKUP("vdd_lkg (lvt16)",pwr_scale_table,2,0)*AM23*'Power Scaling'!F$6+VLOOKUP("vdd_lkg (svt20)",pwr_scale_table,2,0)*$AN23*'Power Scaling'!F$3+VLOOKUP("vdd_lkg (svt16)",pwr_scale_table,2,0)*$AO23*'Power Scaling'!F$4)*IF(P23="OFF",0.06,1),VLOOKUP($A23&"_"&U$3,MDB,5,0)*$C23*VLOOKUP("vdd_lkg (svt16)",pwr_scale_table,2,0)*IF(P23="OFF",0.06,1)),0) -> 0 | V23: =C23*IFERROR(IF($I23="SI",(AE23*IF(S23=0,0,1)+(AF23-AE23)*S23)*IF(R23>0,R23,Q23)/Q23*(VLOOKUP("vdd_int (ulvt20)",pwr_scale_table,2,0)*$AJ23*'Power Scaling'!I$7+VLOOKUP("vdd_int (ulvt16)",pwr_scale_table,2,0)*$AK23*'Power Scaling'!I$8+VLOOKUP("vdd_int (lvt20)",pwr_scale_table,2,0)*$AL23*'Power Scaling'!I$5+VLOOKUP("vdd_int (lvt16)",pwr_scale_table,2,0)*AM23*'Power Scaling'!I$6+VLOOKUP("vdd_int (svt20)",pwr_scale_table,2,0)*$AN23*'Power Scaling'!I$3+VLOOKUP("vdd_int (svt16)",pwr_scale_table,2,0)*$AO23*'Power Scaling'!I$4)*AQ23,IF(OR($I23="AO",$I23="LU"),VLOOKUP($A23&"_"&"vdd_dyn"&"_"&$R23&"",MDB,5,0)*VLOOKUP("vdd_int (svt20)",pwr_scale_table,2,0),IF(OR($I23="LUUA",$I23="LUUB"),VLOOKUP($A23&"_"&"vdd_dyn"&"_"&$R23&"",MDB,5,0)*$C23*$S23*VLOOKUP("vdd_int (svt20)",pwr_scale_table,2,0),VLOOKUP($A23&"_"&"vdd_dyn"&"_"&$R23&"_idle",MDB,5,0)*(1-$S23)+VLOOKUP($A23&"_"&"vdd_dyn"&"_"&$R23&"_read",MDB,5,0)*($S23/2)+VLOOKUP($A23&"_"&"vdd_dyn"&"_"&$R23&"_write",MDB,5,0)*($S23/2)*VLOOKUP("vdd_int (svt20)",pwr_scale_table,2,0)))),0) -> 0 | W23: 55.27957128 | X23: 0 | Y23: 0 | Z23: 0 | AA23: 0 | AB23: 0 | AC23: 0 | AD23: 0 | AE23: 0.104 | AF23: 0.4 | AG23: 0.6 | AH23: 813.2 | AI23: 951.3 | AJ23: 0 | AK23: 0 | AL23: 0.16 | AM23: 0.07 | AN23: 0.45 | AO23: 0.32 | AP23: 31.88650499 | AQ23: 774.7473225 | AR23: The Vx1 macro is a display data standard used on the DLPC8430. It is a receiver only and it's under development. Power is estimated at this time. | AS23: sam67_vpu_wave521cl_wrap_0 | AT23: CF$20 | BD23: CC$22 | BG23: WAVE512CL | CA23: MAIN PLL 0 HSDIV 0 div 2 | CB23: MAIN JPEG Encoder 0 Frequency [MHz] | CC23: 250 | CJ23: PD_DSS | CL23: ON
A24: sam62_mcasp_wrap | B24: _0 | C24: 1 | D24: 4 | E24: VDD_CORE | F24: N/A | G24: N/A | H24: N/A | I24: SI | J24: GP_Core_CTL | K24: MCASP AM62 | L24: sam62a_april_power | M24: 3 Periph | N24: Audio | O24: 1.568956612 | P24: ON | Q24: 250 | R24: 0 | S24: =IF(ISBLANK(AT24),0,IF(AND(INDIRECT(AT24)<>"unused",INDIRECT(AV24)>AW24),INDIRECT(AU24),0)) -> 1 | T24: 0 | U24: =IFERROR(IF($I24="SI",AP24*$C24*(VLOOKUP("vdd_lkg (ulvt20)",pwr_scale_table,2,0)*$AJ24*'Power Scaling'!F$7+VLOOKUP("vdd_lkg (ulvt16)",pwr_scale_table,2,0)*$AK24*'Power Scaling'!F$8+VLOOKUP("vdd_lkg (lvt20)",pwr_scale_table,2,0)*$AL24*'Power Scaling'!F$5+VLOOKUP("vdd_lkg (lvt16)",pwr_scale_table,2,0)*AM24*'Power Scaling'!F$6+VLOOKUP("vdd_lkg (svt20)",pwr_scale_table,2,0)*$AN24*'Power Scaling'!F$3+VLOOKUP("vdd_lkg (svt16)",pwr_scale_table,2,0)*$AO24*'Power Scaling'!F$4)*IF(P24="OFF",0.06,1),VLOOKUP($A24&"_"&U$3,MDB,5,0)*$C24*VLOOKUP("vdd_lkg (svt16)",pwr_scale_table,2,0)*IF(P24="OFF",0.06,1)),0) -> 0 | V24: =C24*IFERROR(IF($I24="SI",(AE24*IF(S24=0,0,1)+(AF24-AE24)*S24)*IF(R24>0,R24,Q24)/Q24*(VLOOKUP("vdd_int (ulvt20)",pwr_scale_table,2,0)*$AJ24*'Power Scaling'!I$7+VLOOKUP("vdd_int (ulvt16)",pwr_scale_table,2,0)*$AK24*'Power Scaling'!I$8+VLOOKUP("vdd_int (lvt20)",pwr_scale_table,2,0)*$AL24*'Power Scaling'!I$5+VLOOKUP("vdd_int (lvt16)",pwr_scale_table,2,0)*AM24*'Power Scaling'!I$6+VLOOKUP("vdd_int (svt20)",pwr_scale_table,2,0)*$AN24*'Power Scaling'!I$3+VLOOKUP("vdd_int (svt16)",pwr_scale_table,2,0)*$AO24*'Power Scaling'!I$4)*AQ24,IF(OR($I24="AO",$I24="LU"),VLOOKUP($A24&"_"&"vdd_dyn"&"_"&$R24&"",MDB,5,0)*VLOOKUP("vdd_int (svt20)",pwr_scale_table,2,0),IF(OR($I24="LUUA",$I24="LUUB"),VLOOKUP($A24&"_"&"vdd_dyn"&"_"&$R24&"",MDB,5,0)*$C24*$S24*VLOOKUP("vdd_int (svt20)",pwr_scale_table,2,0),VLOOKUP($A24&"_"&"vdd_dyn"&"_"&$R24&"_idle",MDB,5,0)*(1-$S24)+VLOOKUP($A24&"_"&"vdd_dyn"&"_"&$R24&"_read",MDB,5,0)*($S24/2)+VLOOKUP($A24&"_"&"vdd_dyn"&"_"&$R24&"_write",MDB,5,0)*($S24/2)*VLOOKUP("vdd_int (svt20)",pwr_scale_table,2,0)))),0) -> 0 | W24: 1.568956612 | X24: 0 | Y24: 0 | Z24: 0 | AA24: 0 | AB24: 0 | AC24: 0 | AD24: 0 | AE24: 0.402 | AF24: 0.72 | AG24: 0.86 | AH24: 2.9 | AI24: 3 | AJ24: 0 | AK24: 0 | AL24: 0.02 | AM24: 0.11 | AN24: 0.78 | AO24: 0.08 | AP24: 0.208808416 | AQ24: 2.84292136 | AR24: The Vx1 macro is a display data standard used on the DLPC8430. It is a receiver only and it's under development. Power is estimated at this time. | AS24: sam62_mcasp_wrap_0 | AT24: CB$57 | AU24: CC$57 | AV24: CD$57 | AW24: 0 | CA24: MAIN PLL 12 HSDIV0 | CB24: LPDDR4 EMIF 0 [MT/s] | CC24: 2133 | CD24: 4000 | CE24: Memory Interfaces | CF24: Mode | CG24: Utilization | CJ24: PD_GPU | CL24: ON
A25: sam62_mcasp_wrap | B25: _1 | C25: 1 | D25: 4 | E25: VDD_CORE | F25: N/A | G25: N/A | H25: N/A | I25: SI | J25: GP_Core_CTL | K25: MCASP AM62 | L25: sam62a_april_power | M25: 3 Periph | N25: Audio | O25: 1.568956612 | P25: ON | Q25: 250 | R25: 0 | S25: =IF(ISBLANK(AT25),0,IF(AND(INDIRECT(AT25)<>"unused",INDIRECT(AV25)>AW25),INDIRECT(AU25),0)) -> 1 | T25: 0 | U25: =IFERROR(IF($I25="SI",AP25*$C25*(VLOOKUP("vdd_lkg (ulvt20)",pwr_scale_table,2,0)*$AJ25*'Power Scaling'!F$7+VLOOKUP("vdd_lkg (ulvt16)",pwr_scale_table,2,0)*$AK25*'Power Scaling'!F$8+VLOOKUP("vdd_lkg (lvt20)",pwr_scale_table,2,0)*$AL25*'Power Scaling'!F$5+VLOOKUP("vdd_lkg (lvt16)",pwr_scale_table,2,0)*AM25*'Power Scaling'!F$6+VLOOKUP("vdd_lkg (svt20)",pwr_scale_table,2,0)*$AN25*'Power Scaling'!F$3+VLOOKUP("vdd_lkg (svt16)",pwr_scale_table,2,0)*$AO25*'Power Scaling'!F$4)*IF(P25="OFF",0.06,1),VLOOKUP($A25&"_"&U$3,MDB,5,0)*$C25*VLOOKUP("vdd_lkg (svt16)",pwr_scale_table,2,0)*IF(P25="OFF",0.06,1)),0) -> 0 | V25: =C25*IFERROR(IF($I25="SI",(AE25*IF(S25=0,0,1)+(AF25-AE25)*S25)*IF(R25>0,R25,Q25)/Q25*(VLOOKUP("vdd_int (ulvt20)",pwr_scale_table,2,0)*$AJ25*'Power Scaling'!I$7+VLOOKUP("vdd_int (ulvt16)",pwr_scale_table,2,0)*$AK25*'Power Scaling'!I$8+VLOOKUP("vdd_int (lvt20)",pwr_scale_table,2,0)*$AL25*'Power Scaling'!I$5+VLOOKUP("vdd_int (lvt16)",pwr_scale_table,2,0)*AM25*'Power Scaling'!I$6+VLOOKUP("vdd_int (svt20)",pwr_scale_table,2,0)*$AN25*'Power Scaling'!I$3+VLOOKUP("vdd_int (svt16)",pwr_scale_table,2,0)*$AO25*'Power Scaling'!I$4)*AQ25,IF(OR($I25="AO",$I25="LU"),VLOOKUP($A25&"_"&"vdd_dyn"&"_"&$R25&"",MDB,5,0)*VLOOKUP("vdd_int (svt20)",pwr_scale_table,2,0),IF(OR($I25="LUUA",$I25="LUUB"),VLOOKUP($A25&"_"&"vdd_dyn"&"_"&$R25&"",MDB,5,0)*$C25*$S25*VLOOKUP("vdd_int (svt20)",pwr_scale_table,2,0),VLOOKUP($A25&"_"&"vdd_dyn"&"_"&$R25&"_idle",MDB,5,0)*(1-$S25)+VLOOKUP($A25&"_"&"vdd_dyn"&"_"&$R25&"_read",MDB,5,0)*($S25/2)+VLOOKUP($A25&"_"&"vdd_dyn"&"_"&$R25&"_write",MDB,5,0)*($S25/2)*VLOOKUP("vdd_int (svt20)",pwr_scale_table,2,0)))),0) -> 0 | W25: 1.568956612 | X25: 0 | Y25: 0 | Z25: 0 | AA25: 0 | AB25: 0 | AC25: 0 | AD25: 0 | AE25: 0.402 | AF25: 0.72 | AG25: 0.86 | AH25: 2.9 | AI25: 3 | AJ25: 0 | AK25: 0 | AL25: 0.02 | AM25: 0.11 | AN25: 0.78 | AO25: 0.08 | AP25: 0.208808416 | AQ25: 2.84292136 | AR25: The Vx1 macro is a display data standard used on the DLPC8430. It is a receiver only and it's under development. Power is estimated at this time. | AS25: sam62_mcasp_wrap_1 | AT25: CB$57 | AU25: CC$57 | AV25: CD$57 | AW25: 1 | CA25: MCU PLL 0 HSDIV 0 | CB25: MCU SS / WKUP Modules CLK [MHz] (MCU SYSCLK) | CC25: 400 | CD25: 400 | CE25: DDRSS 0 | CF25: lpddr4_2400_32 | CG25: 1 | CJ25: PD_CPSW | CL25: ON
A26: sam62_mcasp_wrap | B26: _2 | C26: 1 | D26: 4 | E26: VDD_CORE | F26: N/A | G26: N/A | H26: N/A | I26: SI | J26: GP_Core_CTL | K26: MCASP AM62 | L26: sam62a_april_power | M26: 3 Periph | N26: Audio | O26: 1.568956612 | P26: ON | Q26: 250 | R26: 0 | S26: =IF(ISBLANK(AT26),0,IF(AND(INDIRECT(AT26)<>"unused",INDIRECT(AV26)>AW26),INDIRECT(AU26),0)) -> 1 | T26: 0 | U26: =IFERROR(IF($I26="SI",AP26*$C26*(VLOOKUP("vdd_lkg (ulvt20)",pwr_scale_table,2,0)*$AJ26*'Power Scaling'!F$7+VLOOKUP("vdd_lkg (ulvt16)",pwr_scale_table,2,0)*$AK26*'Power Scaling'!F$8+VLOOKUP("vdd_lkg (lvt20)",pwr_scale_table,2,0)*$AL26*'Power Scaling'!F$5+VLOOKUP("vdd_lkg (lvt16)",pwr_scale_table,2,0)*AM26*'Power Scaling'!F$6+VLOOKUP("vdd_lkg (svt20)",pwr_scale_table,2,0)*$AN26*'Power Scaling'!F$3+VLOOKUP("vdd_lkg (svt16)",pwr_scale_table,2,0)*$AO26*'Power Scaling'!F$4)*IF(P26="OFF",0.06,1),VLOOKUP($A26&"_"&U$3,MDB,5,0)*$C26*VLOOKUP("vdd_lkg (svt16)",pwr_scale_table,2,0)*IF(P26="OFF",0.06,1)),0) -> 0 | V26: =C26*IFERROR(IF($I26="SI",(AE26*IF(S26=0,0,1)+(AF26-AE26)*S26)*IF(R26>0,R26,Q26)/Q26*(VLOOKUP("vdd_int (ulvt20)",pwr_scale_table,2,0)*$AJ26*'Power Scaling'!I$7+VLOOKUP("vdd_int (ulvt16)",pwr_scale_table,2,0)*$AK26*'Power Scaling'!I$8+VLOOKUP("vdd_int (lvt20)",pwr_scale_table,2,0)*$AL26*'Power Scaling'!I$5+VLOOKUP("vdd_int (lvt16)",pwr_scale_table,2,0)*AM26*'Power Scaling'!I$6+VLOOKUP("vdd_int (svt20)",pwr_scale_table,2,0)*$AN26*'Power Scaling'!I$3+VLOOKUP("vdd_int (svt16)",pwr_scale_table,2,0)*$AO26*'Power Scaling'!I$4)*AQ26,IF(OR($I26="AO",$I26="LU"),VLOOKUP($A26&"_"&"vdd_dyn"&"_"&$R26&"",MDB,5,0)*VLOOKUP("vdd_int (svt20)",pwr_scale_table,2,0),IF(OR($I26="LUUA",$I26="LUUB"),VLOOKUP($A26&"_"&"vdd_dyn"&"_"&$R26&"",MDB,5,0)*$C26*$S26*VLOOKUP("vdd_int (svt20)",pwr_scale_table,2,0),VLOOKUP($A26&"_"&"vdd_dyn"&"_"&$R26&"_idle",MDB,5,0)*(1-$S26)+VLOOKUP($A26&"_"&"vdd_dyn"&"_"&$R26&"_read",MDB,5,0)*($S26/2)+VLOOKUP($A26&"_"&"vdd_dyn"&"_"&$R26&"_write",MDB,5,0)*($S26/2)*VLOOKUP("vdd_int (svt20)",pwr_scale_table,2,0)))),0) -> 0 | W26: 1.568956612 | X26: 0 | Y26: 0 | Z26: 0 | AA26: 0 | AB26: 0 | AC26: 0 | AD26: 0 | AE26: 0.402 | AF26: 0.72 | AG26: 0.86 | AH26: 2.9 | AI26: 3 | AJ26: 0 | AK26: 0 | AL26: 0.02 | AM26: 0.11 | AN26: 0.78 | AO26: 0.08 | AP26: 0.208808416 | AQ26: 2.84292136 | AR26: The Vx1 macro is a display data standard used on the DLPC8430. It is a receiver only and it's under development. Power is estimated at this time. | AS26: sam62_mcasp_wrap_2 | AT26: CB$57 | AU26: CC$57 | AV26: CD$57 | AW26: 2 | CA26: MAIN PLL 0 HSDIV 0 | CB26: MAIN Modules CLK [MHz] (SYSCLK) | CC26: 500 | CD26: 500 | CE26: GPMC / ELM | CF26: unused | CG26: 0 | CJ26: PD_ENCODE | CL26: ON
C27: 0 | O27: 0 | Q27: 250 | R27: 0 | S27: =IF(ISBLANK(AT27),0,IF(AND(INDIRECT(AT27)<>"unused",INDIRECT(AV27)>AW27),INDIRECT(AU27),0)) -> 0 | T27: 0 | U27: =IFERROR(IF($I27="SI",AP27*$C27*(VLOOKUP("vdd_lkg (ulvt20)",pwr_scale_table,2,0)*$AJ27*'Power Scaling'!F$7+VLOOKUP("vdd_lkg (ulvt16)",pwr_scale_table,2,0)*$AK27*'Power Scaling'!F$8+VLOOKUP("vdd_lkg (lvt20)",pwr_scale_table,2,0)*$AL27*'Power Scaling'!F$5+VLOOKUP("vdd_lkg (lvt16)",pwr_scale_table,2,0)*AM27*'Power Scaling'!F$6+VLOOKUP("vdd_lkg (svt20)",pwr_scale_table,2,0)*$AN27*'Power Scaling'!F$3+VLOOKUP("vdd_lkg (svt16)",pwr_scale_table,2,0)*$AO27*'Power Scaling'!F$4)*IF(P27="OFF",0.06,1),VLOOKUP($A27&"_"&U$3,MDB,5,0)*$C27*VLOOKUP("vdd_lkg (svt16)",pwr_scale_table,2,0)*IF(P27="OFF",0.06,1)),0) -> 0 | V27: =C27*IFERROR(IF($I27="SI",(AE27*IF(S27=0,0,1)+(AF27-AE27)*S27)*IF(R27>0,R27,Q27)/Q27*(VLOOKUP("vdd_int (ulvt20)",pwr_scale_table,2,0)*$AJ27*'Power Scaling'!I$7+VLOOKUP("vdd_int (ulvt16)",pwr_scale_table,2,0)*$AK27*'Power Scaling'!I$8+VLOOKUP("vdd_int (lvt20)",pwr_scale_table,2,0)*$AL27*'Power Scaling'!I$5+VLOOKUP("vdd_int (lvt16)",pwr_scale_table,2,0)*AM27*'Power Scaling'!I$6+VLOOKUP("vdd_int (svt20)",pwr_scale_table,2,0)*$AN27*'Power Scaling'!I$3+VLOOKUP("vdd_int (svt16)",pwr_scale_table,2,0)*$AO27*'Power Scaling'!I$4)*AQ27,IF(OR($I27="AO",$I27="LU"),VLOOKUP($A27&"_"&"vdd_dyn"&"_"&$R27&"",MDB,5,0)*VLOOKUP("vdd_int (svt20)",pwr_scale_table,2,0),IF(OR($I27="LUUA",$I27="LUUB"),VLOOKUP($A27&"_"&"vdd_dyn"&"_"&$R27&"",MDB,5,0)*$C27*$S27*VLOOKUP("vdd_int (svt20)",pwr_scale_table,2,0),VLOOKUP($A27&"_"&"vdd_dyn"&"_"&$R27&"_idle",MDB,5,0)*(1-$S27)+VLOOKUP($A27&"_"&"vdd_dyn"&"_"&$R27&"_read",MDB,5,0)*($S27/2)+VLOOKUP($A27&"_"&"vdd_dyn"&"_"&$R27&"_write",MDB,5,0)*($S27/2)*VLOOKUP("vdd_int (svt20)",pwr_scale_table,2,0)))),0) -> 0 | W27: 0 | X27: 0 | Y27: 0 | Z27: 0 | AA27: 0 | AB27: 0 | AC27: 0 | AD27: 0 | AE27: 0 | AF27: 0 | AG27: 0 | AH27: 0 | AI27: 0 | AJ27: 0 | AK27: 0 | AL27: 0 | AM27: 0 | AN27: 0 | AO27: 0 | AR27: The Vx1 macro is a display data standard used on the DLPC8430. It is a receiver only and it's under development. Power is estimated at this time. | AT27: CB$57 | AU27: CC$57 | AV27: CD$57 | AW27: 3 | CA27: MAIN PLL 15 HSDIV 0 MCU PLL 0 HSDIV 0 | CB27: Device Manager Domain CLK [MHz] | CC27: 400 | CD27: 400 | CJ27: PD_DDR | CL27: ON
C28: 0 | O28: 0 | Q28: 250 | R28: 0 | S28: =IF(ISBLANK(AT28),0,IF(AND(INDIRECT(AT28)<>"unused",INDIRECT(AV28)>AW28),INDIRECT(AU28),0)) -> 0 | T28: 0 | U28: =IFERROR(IF($I28="SI",AP28*$C28*(VLOOKUP("vdd_lkg (ulvt20)",pwr_scale_table,2,0)*$AJ28*'Power Scaling'!F$7+VLOOKUP("vdd_lkg (ulvt16)",pwr_scale_table,2,0)*$AK28*'Power Scaling'!F$8+VLOOKUP("vdd_lkg (lvt20)",pwr_scale_table,2,0)*$AL28*'Power Scaling'!F$5+VLOOKUP("vdd_lkg (lvt16)",pwr_scale_table,2,0)*AM28*'Power Scaling'!F$6+VLOOKUP("vdd_lkg (svt20)",pwr_scale_table,2,0)*$AN28*'Power Scaling'!F$3+VLOOKUP("vdd_lkg (svt16)",pwr_scale_table,2,0)*$AO28*'Power Scaling'!F$4)*IF(P28="OFF",0.06,1),VLOOKUP($A28&"_"&U$3,MDB,5,0)*$C28*VLOOKUP("vdd_lkg (svt16)",pwr_scale_table,2,0)*IF(P28="OFF",0.06,1)),0) -> 0 | V28: =C28*IFERROR(IF($I28="SI",(AE28*IF(S28=0,0,1)+(AF28-AE28)*S28)*IF(R28>0,R28,Q28)/Q28*(VLOOKUP("vdd_int (ulvt20)",pwr_scale_table,2,0)*$AJ28*'Power Scaling'!I$7+VLOOKUP("vdd_int (ulvt16)",pwr_scale_table,2,0)*$AK28*'Power Scaling'!I$8+VLOOKUP("vdd_int (lvt20)",pwr_scale_table,2,0)*$AL28*'Power Scaling'!I$5+VLOOKUP("vdd_int (lvt16)",pwr_scale_table,2,0)*AM28*'Power Scaling'!I$6+VLOOKUP("vdd_int (svt20)",pwr_scale_table,2,0)*$AN28*'Power Scaling'!I$3+VLOOKUP("vdd_int (svt16)",pwr_scale_table,2,0)*$AO28*'Power Scaling'!I$4)*AQ28,IF(OR($I28="AO",$I28="LU"),VLOOKUP($A28&"_"&"vdd_dyn"&"_"&$R28&"",MDB,5,0)*VLOOKUP("vdd_int (svt20)",pwr_scale_table,2,0),IF(OR($I28="LUUA",$I28="LUUB"),VLOOKUP($A28&"_"&"vdd_dyn"&"_"&$R28&"",MDB,5,0)*$C28*$S28*VLOOKUP("vdd_int (svt20)",pwr_scale_table,2,0),VLOOKUP($A28&"_"&"vdd_dyn"&"_"&$R28&"_idle",MDB,5,0)*(1-$S28)+VLOOKUP($A28&"_"&"vdd_dyn"&"_"&$R28&"_read",MDB,5,0)*($S28/2)+VLOOKUP($A28&"_"&"vdd_dyn"&"_"&$R28&"_write",MDB,5,0)*($S28/2)*VLOOKUP("vdd_int (svt20)",pwr_scale_table,2,0)))),0) -> 0 | W28: 0 | X28: 0 | Y28: 0 | Z28: 0 | AA28: 0 | AB28: 0 | AC28: 0 | AD28: 0 | AE28: 0 | AF28: 0 | AG28: 0 | AH28: 0 | AI28: 0 | AJ28: 0 | AK28: 0 | AL28: 0 | AM28: 0 | AN28: 0 | AO28: 0 | AR28: The Vx1 macro is a display data standard used on the DLPC8430. It is a receiver only and it's under development. Power is estimated at this time. | AT28: CB$57 | AU28: CC$57 | AV28: CD$57 | AW28: 4 | CA28: MAIN PLL 15 HSDIV 0 | CB28: HSM Domain CLK | CC28: 400 | CE28: PHYs | CF28: Mode | CG28: Utilization | CH28: Instances | CJ28: PD_Debug | CL28: OFF
A29: sam67_csirx_wrap | B29: _0 | C29: 1 | D29: 1 | E29: VDD_CORE | F29: N/A | G29: N/A | H29: N/A | I29: SI | J29: GP_Core_CTL | K29: CSI_RX | L29: sam67_feb_power | M29: 3 Periph | N29: Camera | O29: 5.260014205 | P29: ON | Q29: 720 | R29: 0 | S29: =IF(ISBLANK(AT29),0,IF(AND(INDIRECT(AT29)<>"ulps",INDIRECT(AV29)>AW29),IF($CE$3="PDN",1,INDIRECT(AU29)),0)) -> 0.1 | T29: 0 | U29: =IFERROR(IF($I29="SI",AP29*$C29*(VLOOKUP("vdd_lkg (ulvt20)",pwr_scale_table,2,0)*$AJ29*'Power Scaling'!F$7+VLOOKUP("vdd_lkg (ulvt16)",pwr_scale_table,2,0)*$AK29*'Power Scaling'!F$8+VLOOKUP("vdd_lkg (lvt20)",pwr_scale_table,2,0)*$AL29*'Power Scaling'!F$5+VLOOKUP("vdd_lkg (lvt16)",pwr_scale_table,2,0)*AM29*'Power Scaling'!F$6+VLOOKUP("vdd_lkg (svt20)",pwr_scale_table,2,0)*$AN29*'Power Scaling'!F$3+VLOOKUP("vdd_lkg (svt16)",pwr_scale_table,2,0)*$AO29*'Power Scaling'!F$4)*IF(P29="OFF",0.06,1),VLOOKUP($A29&"_"&U$3,MDB,5,0)*$C29*VLOOKUP("vdd_lkg (svt16)",pwr_scale_table,2,0)*IF(P29="OFF",0.06,1)),0) -> 0 | V29: =C29*IFERROR(IF($I29="SI",(AE29*IF(S29=0,0,1)+(AF29-AE29)*S29)*IF(R29>0,R29,Q29)/Q29*(VLOOKUP("vdd_int (ulvt20)",pwr_scale_table,2,0)*$AJ29*'Power Scaling'!I$7+VLOOKUP("vdd_int (ulvt16)",pwr_scale_table,2,0)*$AK29*'Power Scaling'!I$8+VLOOKUP("vdd_int (lvt20)",pwr_scale_table,2,0)*$AL29*'Power Scaling'!I$5+VLOOKUP("vdd_int (lvt16)",pwr_scale_table,2,0)*AM29*'Power Scaling'!I$6+VLOOKUP("vdd_int (svt20)",pwr_scale_table,2,0)*$AN29*'Power Scaling'!I$3+VLOOKUP("vdd_int (svt16)",pwr_scale_table,2,0)*$AO29*'Power Scaling'!I$4)*AQ29,IF(OR($I29="AO",$I29="LU"),VLOOKUP($A29&"_"&"vdd_dyn"&"_"&$R29&"",MDB,5,0)*VLOOKUP("vdd_int (svt20)",pwr_scale_table,2,0),IF(OR($I29="LUUA",$I29="LUUB"),VLOOKUP($A29&"_"&"vdd_dyn"&"_"&$R29&"",MDB,5,0)*$C29*$S29*VLOOKUP("vdd_int (svt20)",pwr_scale_table,2,0),VLOOKUP($A29&"_"&"vdd_dyn"&"_"&$R29&"_idle",MDB,5,0)*(1-$S29)+VLOOKUP($A29&"_"&"vdd_dyn"&"_"&$R29&"_read",MDB,5,0)*($S29/2)+VLOOKUP($A29&"_"&"vdd_dyn"&"_"&$R29&"_write",MDB,5,0)*($S29/2)*VLOOKUP("vdd_int (svt20)",pwr_scale_table,2,0)))),0) -> 0 | W29: 5.260014205 | X29: 0 | Y29: 0 | Z29: 0 | AA29: 0 | AB29: 0 | AC29: 0 | AD29: 0 | AE29: 0.228 | AF29: 0.48 | AG29: 0.58 | AH29: 40 | AI29: 28.6 | AJ29: 0 | AK29: 0 | AL29: 0.07 | AM29: 0.1 | AN29: 0.73 | AO29: 0.09 | AP29: 2.059459511 | AQ29: 38.84512548 | AR29: The Vx1 macro is a display data standard used on the DLPC8430. It is a receiver only and it's under development. Power is estimated at this time. | AS29: sam67_csirx_wrap_0 | AT29: CF$29 | AU29: CG$29 | AV29: CH$29 | AW29: 0 | CE29: CSI2.0 D_PHY 4L Rx | CF29: 1p5g4l | CG29: 0.1 | CH29: 1 | CJ29: PD_HSM | CL29: ON
C30: 0 | O30: 0 | Q30: 720 | R30: 0 | S30: =IF(ISBLANK(AT30),0,IF(AND(INDIRECT(AT30)<>"ulps",INDIRECT(AV30)>AW30),IF($CE$3="PDN",1,INDIRECT(AU30)),0)) -> 0 | T30: 0 | U30: =IFERROR(IF($I30="SI",AP30*$C30*(VLOOKUP("vdd_lkg (ulvt20)",pwr_scale_table,2,0)*$AJ30*'Power Scaling'!F$7+VLOOKUP("vdd_lkg (ulvt16)",pwr_scale_table,2,0)*$AK30*'Power Scaling'!F$8+VLOOKUP("vdd_lkg (lvt20)",pwr_scale_table,2,0)*$AL30*'Power Scaling'!F$5+VLOOKUP("vdd_lkg (lvt16)",pwr_scale_table,2,0)*AM30*'Power Scaling'!F$6+VLOOKUP("vdd_lkg (svt20)",pwr_scale_table,2,0)*$AN30*'Power Scaling'!F$3+VLOOKUP("vdd_lkg (svt16)",pwr_scale_table,2,0)*$AO30*'Power Scaling'!F$4)*IF(P30="OFF",0.06,1),VLOOKUP($A30&"_"&U$3,MDB,5,0)*$C30*VLOOKUP("vdd_lkg (svt16)",pwr_scale_table,2,0)*IF(P30="OFF",0.06,1)),0) -> 0 | V30: =C30*IFERROR(IF($I30="SI",(AE30*IF(S30=0,0,1)+(AF30-AE30)*S30)*IF(R30>0,R30,Q30)/Q30*(VLOOKUP("vdd_int (ulvt20)",pwr_scale_table,2,0)*$AJ30*'Power Scaling'!I$7+VLOOKUP("vdd_int (ulvt16)",pwr_scale_table,2,0)*$AK30*'Power Scaling'!I$8+VLOOKUP("vdd_int (lvt20)",pwr_scale_table,2,0)*$AL30*'Power Scaling'!I$5+VLOOKUP("vdd_int (lvt16)",pwr_scale_table,2,0)*AM30*'Power Scaling'!I$6+VLOOKUP("vdd_int (svt20)",pwr_scale_table,2,0)*$AN30*'Power Scaling'!I$3+VLOOKUP("vdd_int (svt16)",pwr_scale_table,2,0)*$AO30*'Power Scaling'!I$4)*AQ30,IF(OR($I30="AO",$I30="LU"),VLOOKUP($A30&"_"&"vdd_dyn"&"_"&$R30&"",MDB,5,0)*VLOOKUP("vdd_int (svt20)",pwr_scale_table,2,0),IF(OR($I30="LUUA",$I30="LUUB"),VLOOKUP($A30&"_"&"vdd_dyn"&"_"&$R30&"",MDB,5,0)*$C30*$S30*VLOOKUP("vdd_int (svt20)",pwr_scale_table,2,0),VLOOKUP($A30&"_"&"vdd_dyn"&"_"&$R30&"_idle",MDB,5,0)*(1-$S30)+VLOOKUP($A30&"_"&"vdd_dyn"&"_"&$R30&"_read",MDB,5,0)*($S30/2)+VLOOKUP($A30&"_"&"vdd_dyn"&"_"&$R30&"_write",MDB,5,0)*($S30/2)*VLOOKUP("vdd_int (svt20)",pwr_scale_table,2,0)))),0) -> 0 | W30: 0 | X30: 0 | Y30: 0 | Z30: 0 | AA30: 0 | AB30: 0 | AC30: 0 | AD30: 0 | AE30: 0 | AF30: 0 | AG30: 0 | AH30: 0 | AI30: 0 | AJ30: 0 | AK30: 0 | AL30: 0 | AM30: 0 | AN30: 0 | AO30: 0 | AR30: The Vx1 macro is a display data standard used on the DLPC8430. It is a receiver only and it's under development. Power is estimated at this time. | AT30: CF$29 | AU30: CG$29 | AV30: CH$29 | AW30: 1 | CA30: IP for Complex IOs | CB30: Mode | CC30: Utilization | CD30: Instances | CE30: DSI D_PHY 4L Tx | CF30: off | CG30: 0 | CH30: 0 | CJ30: GP_Core_CTL_MCU | CL30: ON
C31: 0 | O31: 0 | Q31: 720 | R31: 0 | S31: =IF(ISBLANK(AT31),0,IF(AND(INDIRECT(AT31)<>"ulps",INDIRECT(AV31)>AW31),IF($CE$3="PDN",1,INDIRECT(AU31)),0)) -> 0 | T31: 0 | U31: =IFERROR(IF($I31="SI",AP31*$C31*(VLOOKUP("vdd_lkg (ulvt20)",pwr_scale_table,2,0)*$AJ31*'Power Scaling'!F$7+VLOOKUP("vdd_lkg (ulvt16)",pwr_scale_table,2,0)*$AK31*'Power Scaling'!F$8+VLOOKUP("vdd_lkg (lvt20)",pwr_scale_table,2,0)*$AL31*'Power Scaling'!F$5+VLOOKUP("vdd_lkg (lvt16)",pwr_scale_table,2,0)*AM31*'Power Scaling'!F$6+VLOOKUP("vdd_lkg (svt20)",pwr_scale_table,2,0)*$AN31*'Power Scaling'!F$3+VLOOKUP("vdd_lkg (svt16)",pwr_scale_table,2,0)*$AO31*'Power Scaling'!F$4)*IF(P31="OFF",0.06,1),VLOOKUP($A31&"_"&U$3,MDB,5,0)*$C31*VLOOKUP("vdd_lkg (svt16)",pwr_scale_table,2,0)*IF(P31="OFF",0.06,1)),0) -> 0 | V31: =C31*IFERROR(IF($I31="SI",(AE31*IF(S31=0,0,1)+(AF31-AE31)*S31)*IF(R31>0,R31,Q31)/Q31*(VLOOKUP("vdd_int (ulvt20)",pwr_scale_table,2,0)*$AJ31*'Power Scaling'!I$7+VLOOKUP("vdd_int (ulvt16)",pwr_scale_table,2,0)*$AK31*'Power Scaling'!I$8+VLOOKUP("vdd_int (lvt20)",pwr_scale_table,2,0)*$AL31*'Power Scaling'!I$5+VLOOKUP("vdd_int (lvt16)",pwr_scale_table,2,0)*AM31*'Power Scaling'!I$6+VLOOKUP("vdd_int (svt20)",pwr_scale_table,2,0)*$AN31*'Power Scaling'!I$3+VLOOKUP("vdd_int (svt16)",pwr_scale_table,2,0)*$AO31*'Power Scaling'!I$4)*AQ31,IF(OR($I31="AO",$I31="LU"),VLOOKUP($A31&"_"&"vdd_dyn"&"_"&$R31&"",MDB,5,0)*VLOOKUP("vdd_int (svt20)",pwr_scale_table,2,0),IF(OR($I31="LUUA",$I31="LUUB"),VLOOKUP($A31&"_"&"vdd_dyn"&"_"&$R31&"",MDB,5,0)*$C31*$S31*VLOOKUP("vdd_int (svt20)",pwr_scale_table,2,0),VLOOKUP($A31&"_"&"vdd_dyn"&"_"&$R31&"_idle",MDB,5,0)*(1-$S31)+VLOOKUP($A31&"_"&"vdd_dyn"&"_"&$R31&"_read",MDB,5,0)*($S31/2)+VLOOKUP($A31&"_"&"vdd_dyn"&"_"&$R31&"_write",MDB,5,0)*($S31/2)*VLOOKUP("vdd_int (svt20)",pwr_scale_table,2,0)))),0) -> 0 | W31: 0 | X31: 0 | Y31: 0 | Z31: 0 | AA31: 0 | AB31: 0 | AC31: 0 | AD31: 0 | AE31: 0 | AF31: 0 | AG31: 0 | AH31: 0 | AI31: 0 | AJ31: 0 | AK31: 0 | AL31: 0 | AM31: 0 | AN31: 0 | AO31: 0 | AR31: The Vx1 macro is a display data standard used on the DLPC8430. It is a receiver only and it's under development. Power is estimated at this time. | AT31: CF$29 | AU31: CG$29 | AV31: CH$29 | AW31: 2 | CA31: CPSW3 | CC31: 0.2 | CE31: MAIN MMCSD0 | CF31: hs400 | CG31: 1 | CH31: 1
C32: 0 | O32: 0 | Q32: 720 | R32: 0 | S32: =IF(ISBLANK(AT32),0,IF(AND(INDIRECT(AT32)<>"ulps",INDIRECT(AV32)>AW32),IF($CE$3="PDN",1,INDIRECT(AU32)),0)) -> 0 | T32: 0 | U32: =IFERROR(IF($I32="SI",AP32*$C32*(VLOOKUP("vdd_lkg (ulvt20)",pwr_scale_table,2,0)*$AJ32*'Power Scaling'!F$7+VLOOKUP("vdd_lkg (ulvt16)",pwr_scale_table,2,0)*$AK32*'Power Scaling'!F$8+VLOOKUP("vdd_lkg (lvt20)",pwr_scale_table,2,0)*$AL32*'Power Scaling'!F$5+VLOOKUP("vdd_lkg (lvt16)",pwr_scale_table,2,0)*AM32*'Power Scaling'!F$6+VLOOKUP("vdd_lkg (svt20)",pwr_scale_table,2,0)*$AN32*'Power Scaling'!F$3+VLOOKUP("vdd_lkg (svt16)",pwr_scale_table,2,0)*$AO32*'Power Scaling'!F$4)*IF(P32="OFF",0.06,1),VLOOKUP($A32&"_"&U$3,MDB,5,0)*$C32*VLOOKUP("vdd_lkg (svt16)",pwr_scale_table,2,0)*IF(P32="OFF",0.06,1)),0) -> 0 | V32: =C32*IFERROR(IF($I32="SI",(AE32*IF(S32=0,0,1)+(AF32-AE32)*S32)*IF(R32>0,R32,Q32)/Q32*(VLOOKUP("vdd_int (ulvt20)",pwr_scale_table,2,0)*$AJ32*'Power Scaling'!I$7+VLOOKUP("vdd_int (ulvt16)",pwr_scale_table,2,0)*$AK32*'Power Scaling'!I$8+VLOOKUP("vdd_int (lvt20)",pwr_scale_table,2,0)*$AL32*'Power Scaling'!I$5+VLOOKUP("vdd_int (lvt16)",pwr_scale_table,2,0)*AM32*'Power Scaling'!I$6+VLOOKUP("vdd_int (svt20)",pwr_scale_table,2,0)*$AN32*'Power Scaling'!I$3+VLOOKUP("vdd_int (svt16)",pwr_scale_table,2,0)*$AO32*'Power Scaling'!I$4)*AQ32,IF(OR($I32="AO",$I32="LU"),VLOOKUP($A32&"_"&"vdd_dyn"&"_"&$R32&"",MDB,5,0)*VLOOKUP("vdd_int (svt20)",pwr_scale_table,2,0),IF(OR($I32="LUUA",$I32="LUUB"),VLOOKUP($A32&"_"&"vdd_dyn"&"_"&$R32&"",MDB,5,0)*$C32*$S32*VLOOKUP("vdd_int (svt20)",pwr_scale_table,2,0),VLOOKUP($A32&"_"&"vdd_dyn"&"_"&$R32&"_idle",MDB,5,0)*(1-$S32)+VLOOKUP($A32&"_"&"vdd_dyn"&"_"&$R32&"_read",MDB,5,0)*($S32/2)+VLOOKUP($A32&"_"&"vdd_dyn"&"_"&$R32&"_write",MDB,5,0)*($S32/2)*VLOOKUP("vdd_int (svt20)",pwr_scale_table,2,0)))),0) -> 0 | W32: 0 | X32: 0 | Y32: 0 | Z32: 0 | AA32: 0 | AB32: 0 | AC32: 0 | AD32: 0 | AE32: 0 | AF32: 0 | AG32: 0 | AH32: 0 | AI32: 0 | AJ32: 0 | AK32: 0 | AL32: 0 | AM32: 0 | AN32: 0 | AO32: 0 | AR32: The Vx1 macro is a display data standard used on the DLPC8430. It is a receiver only and it's under development. Power is estimated at this time. | AT32: CF$29 | AU32: CG$29 | AV32: CH$29 | AW32: 3 | CA32: 1G SGMII SerDes ports | CB32: disable | CC32: 0 | CD32: 0 | CE32: OLDI (2 Link) | CF32: oldi_dual_24b_modes | CG32: 1 | CH32: 1
C33: 0 | O33: 0 | Q33: 720 | R33: 0 | S33: =IF(ISBLANK(AT33),0,IF(AND(INDIRECT(AT33)<>"ulps",INDIRECT(AV33)>AW33),IF($CE$3="PDN",1,INDIRECT(AU33)),0)) ->  | T33: 0 | U33: =IFERROR(IF($I33="SI",AP33*$C33*(VLOOKUP("vdd_lkg (ulvt20)",pwr_scale_table,2,0)*$AJ33*'Power Scaling'!F$7+VLOOKUP("vdd_lkg (ulvt16)",pwr_scale_table,2,0)*$AK33*'Power Scaling'!F$8+VLOOKUP("vdd_lkg (lvt20)",pwr_scale_table,2,0)*$AL33*'Power Scaling'!F$5+VLOOKUP("vdd_lkg (lvt16)",pwr_scale_table,2,0)*AM33*'Power Scaling'!F$6+VLOOKUP("vdd_lkg (svt20)",pwr_scale_table,2,0)*$AN33*'Power Scaling'!F$3+VLOOKUP("vdd_lkg (svt16)",pwr_scale_table,2,0)*$AO33*'Power Scaling'!F$4)*IF(P33="OFF",0.06,1),VLOOKUP($A33&"_"&U$3,MDB,5,0)*$C33*VLOOKUP("vdd_lkg (svt16)",pwr_scale_table,2,0)*IF(P33="OFF",0.06,1)),0) -> 0 | V33: =C33*IFERROR(IF($I33="SI",(AE33*IF(S33=0,0,1)+(AF33-AE33)*S33)*IF(R33>0,R33,Q33)/Q33*(VLOOKUP("vdd_int (ulvt20)",pwr_scale_table,2,0)*$AJ33*'Power Scaling'!I$7+VLOOKUP("vdd_int (ulvt16)",pwr_scale_table,2,0)*$AK33*'Power Scaling'!I$8+VLOOKUP("vdd_int (lvt20)",pwr_scale_table,2,0)*$AL33*'Power Scaling'!I$5+VLOOKUP("vdd_int (lvt16)",pwr_scale_table,2,0)*AM33*'Power Scaling'!I$6+VLOOKUP("vdd_int (svt20)",pwr_scale_table,2,0)*$AN33*'Power Scaling'!I$3+VLOOKUP("vdd_int (svt16)",pwr_scale_table,2,0)*$AO33*'Power Scaling'!I$4)*AQ33,IF(OR($I33="AO",$I33="LU"),VLOOKUP($A33&"_"&"vdd_dyn"&"_"&$R33&"",MDB,5,0)*VLOOKUP("vdd_int (svt20)",pwr_scale_table,2,0),IF(OR($I33="LUUA",$I33="LUUB"),VLOOKUP($A33&"_"&"vdd_dyn"&"_"&$R33&"",MDB,5,0)*$C33*$S33*VLOOKUP("vdd_int (svt20)",pwr_scale_table,2,0),VLOOKUP($A33&"_"&"vdd_dyn"&"_"&$R33&"_idle",MDB,5,0)*(1-$S33)+VLOOKUP($A33&"_"&"vdd_dyn"&"_"&$R33&"_read",MDB,5,0)*($S33/2)+VLOOKUP($A33&"_"&"vdd_dyn"&"_"&$R33&"_write",MDB,5,0)*($S33/2)*VLOOKUP("vdd_int (svt20)",pwr_scale_table,2,0)))),0) -> 0 | W33: 0 | X33: 0 | Y33: 0 | Z33: 0 | AA33: 0 | AB33: 0 | AC33: 0 | AD33: 0 | AE33: 0 | AF33: 0 | AG33: 0 | AH33: 0 | AI33: 0 | AJ33: 0 | AK33: 0 | AL33: 0 | AM33: 0 | AN33: 0 | AO33: 0 | AR33: The Vx1 macro is a display data standard used on the DLPC8430. It is a receiver only and it's under development. Power is estimated at this time. | AT33: CB$35 | AU33: CC$35 | AV33: CD$35 | AW33: 0 | CA33: LVCMOS ports | CB33: rgmii_1000_1p8v | CC33: 0.2 | CD33: 2
C34: 0 | O34: 0 | Q34: 500 | R34: =IF(ISBLANK(BD34),0,INDIRECT(BD34)) -> 0 | S34: =IF(AND(IF(ISBLANK(AT34),"disable",INDIRECT(AT34))<>"disable",IF(ISBLANK(AU34),0,INDIRECT(AU34))*IF(ISBLANK(AV34),0,INDIRECT(AV34))),INDIRECT(AU34),0%) ->  | T34: 0 | U34: =IFERROR(IF($I34="SI",AP34*$C34*(VLOOKUP("vdd_lkg (ulvt20)",pwr_scale_table,2,0)*$AJ34*'Power Scaling'!F$7+VLOOKUP("vdd_lkg (ulvt16)",pwr_scale_table,2,0)*$AK34*'Power Scaling'!F$8+VLOOKUP("vdd_lkg (lvt20)",pwr_scale_table,2,0)*$AL34*'Power Scaling'!F$5+VLOOKUP("vdd_lkg (lvt16)",pwr_scale_table,2,0)*AM34*'Power Scaling'!F$6+VLOOKUP("vdd_lkg (svt20)",pwr_scale_table,2,0)*$AN34*'Power Scaling'!F$3+VLOOKUP("vdd_lkg (svt16)",pwr_scale_table,2,0)*$AO34*'Power Scaling'!F$4)*IF(P34="OFF",0.06,1),VLOOKUP($A34&"_"&U$3,MDB,5,0)*$C34*VLOOKUP("vdd_lkg (svt16)",pwr_scale_table,2,0)*IF(P34="OFF",0.06,1)),0) -> 0 | V34: =C34*IFERROR(IF($I34="SI",(AE34*IF(S34=0,0,1)+(AF34-AE34)*S34)*IF(R34>0,R34,Q34)/Q34*(VLOOKUP("vdd_int (ulvt20)",pwr_scale_table,2,0)*$AJ34*'Power Scaling'!I$7+VLOOKUP("vdd_int (ulvt16)",pwr_scale_table,2,0)*$AK34*'Power Scaling'!I$8+VLOOKUP("vdd_int (lvt20)",pwr_scale_table,2,0)*$AL34*'Power Scaling'!I$5+VLOOKUP("vdd_int (lvt16)",pwr_scale_table,2,0)*AM34*'Power Scaling'!I$6+VLOOKUP("vdd_int (svt20)",pwr_scale_table,2,0)*$AN34*'Power Scaling'!I$3+VLOOKUP("vdd_int (svt16)",pwr_scale_table,2,0)*$AO34*'Power Scaling'!I$4)*AQ34,IF(OR($I34="AO",$I34="LU"),VLOOKUP($A34&"_"&"vdd_dyn"&"_"&$R34&"",MDB,5,0)*VLOOKUP("vdd_int (svt20)",pwr_scale_table,2,0),IF(OR($I34="LUUA",$I34="LUUB"),VLOOKUP($A34&"_"&"vdd_dyn"&"_"&$R34&"",MDB,5,0)*$C34*$S34*VLOOKUP("vdd_int (svt20)",pwr_scale_table,2,0),VLOOKUP($A34&"_"&"vdd_dyn"&"_"&$R34&"_idle",MDB,5,0)*(1-$S34)+VLOOKUP($A34&"_"&"vdd_dyn"&"_"&$R34&"_read",MDB,5,0)*($S34/2)+VLOOKUP($A34&"_"&"vdd_dyn"&"_"&$R34&"_write",MDB,5,0)*($S34/2)*VLOOKUP("vdd_int (svt20)",pwr_scale_table,2,0)))),0) -> 0 | W34: 0 | X34: 0 | Y34: 0 | Z34: 0 | AA34: 0 | AB34: 0 | AC34: 0 | AD34: 0 | AE34: 0 | AF34: 0 | AG34: 0 | AH34: 0 | AI34: 0 | AJ34: 0 | AK34: 0 | AL34: 0 | AM34: 0 | AN34: 0 | AO34: 0 | AR34: The Vx1 macro is a display data standard used on the DLPC8430. It is a receiver only and it's under development. Power is estimated at this time. | AT34: CB$38 | AU34: CC$38 | AV34: CD$38 | CA34: CSI (TX) / DSI D-PHY
A35: sam67_usb2_wrap | B35: _0 | C35: 1 | D35: 4 | E35: VDD_CORE | F35: N/A | G35: N/A | H35: N/A | I35: SI | J35: GP_Core_CTL | K35: USB2 Controller | L35: sam62p_dec_power | M35: 3 Periph | N35: HS_Serial | O35: 5.974383394 | P35: ON | Q35: 125 | R35: =IF(ISBLANK(BD35),0,INDIRECT(BD35)) -> 0 | S35: =IF(AND(IF(ISBLANK(AT35),"unused",INDIRECT(AT35))<>"suspend",IF(ISBLANK(AU35),0,INDIRECT(AU35))*IF(ISBLANK(AV35),0,IF(INDIRECT(AV35)>0,1,0))),INDIRECT(AU35),0%) -> 1 | T35: 0 | U35: =IFERROR(IF($I35="SI",AP35*$C35*(VLOOKUP("vdd_lkg (ulvt20)",pwr_scale_table,2,0)*$AJ35*'Power Scaling'!F$7+VLOOKUP("vdd_lkg (ulvt16)",pwr_scale_table,2,0)*$AK35*'Power Scaling'!F$8+VLOOKUP("vdd_lkg (lvt20)",pwr_scale_table,2,0)*$AL35*'Power Scaling'!F$5+VLOOKUP("vdd_lkg (lvt16)",pwr_scale_table,2,0)*AM35*'Power Scaling'!F$6+VLOOKUP("vdd_lkg (svt20)",pwr_scale_table,2,0)*$AN35*'Power Scaling'!F$3+VLOOKUP("vdd_lkg (svt16)",pwr_scale_table,2,0)*$AO35*'Power Scaling'!F$4)*IF(P35="OFF",0.06,1),VLOOKUP($A35&"_"&U$3,MDB,5,0)*$C35*VLOOKUP("vdd_lkg (svt16)",pwr_scale_table,2,0)*IF(P35="OFF",0.06,1)),0) -> 0 | V35: =C35*IFERROR(IF($I35="SI",(AE35*IF(S35=0,0,1)+(AF35-AE35)*S35)*IF(R35>0,R35,Q35)/Q35*(VLOOKUP("vdd_int (ulvt20)",pwr_scale_table,2,0)*$AJ35*'Power Scaling'!I$7+VLOOKUP("vdd_int (ulvt16)",pwr_scale_table,2,0)*$AK35*'Power Scaling'!I$8+VLOOKUP("vdd_int (lvt20)",pwr_scale_table,2,0)*$AL35*'Power Scaling'!I$5+VLOOKUP("vdd_int (lvt16)",pwr_scale_table,2,0)*AM35*'Power Scaling'!I$6+VLOOKUP("vdd_int (svt20)",pwr_scale_table,2,0)*$AN35*'Power Scaling'!I$3+VLOOKUP("vdd_int (svt16)",pwr_scale_table,2,0)*$AO35*'Power Scaling'!I$4)*AQ35,IF(OR($I35="AO",$I35="LU"),VLOOKUP($A35&"_"&"vdd_dyn"&"_"&$R35&"",MDB,5,0)*VLOOKUP("vdd_int (svt20)",pwr_scale_table,2,0),IF(OR($I35="LUUA",$I35="LUUB"),VLOOKUP($A35&"_"&"vdd_dyn"&"_"&$R35&"",MDB,5,0)*$C35*$S35*VLOOKUP("vdd_int (svt20)",pwr_scale_table,2,0),VLOOKUP($A35&"_"&"vdd_dyn"&"_"&$R35&"_idle",MDB,5,0)*(1-$S35)+VLOOKUP($A35&"_"&"vdd_dyn"&"_"&$R35&"_read",MDB,5,0)*($S35/2)+VLOOKUP($A35&"_"&"vdd_dyn"&"_"&$R35&"_write",MDB,5,0)*($S35/2)*VLOOKUP("vdd_int (svt20)",pwr_scale_table,2,0)))),0) -> 0 | W35: 5.974383394 | X35: 0 | Y35: 0 | Z35: 0 | AA35: 0 | AB35: 0 | AC35: 0 | AD35: 0 | AE35: 0.276 | AF35: 0.35 | AG35: 0.29 | AH35: 21 | AI35: 23.5 | AJ35: 0 | AK35: 0 | AL35: 0.02 | AM35: 0.06 | AN35: 0.84 | AO35: 0.08 | AP35: 1.869545542 | AQ35: 20.6314205 | AR35: The Vx1 macro is a display data standard used on the DLPC8430. It is a receiver only and it's under development. Power is estimated at this time. | AS35: sam67_usb2_wrap_0 | AT35: CB$41 | AU35: CC$41 | AV35: CD$41 | CA35: CSI Tx ports | CD35: 1 | CE35: High Speed Serial Interfaces | CF35: Mode | CG35: Utilization | CJ35: Core | CK35: Frequency | CL35: Utilization
C36: 0 | O36: =SUM(U36:AD36) -> 0 | P36: =INDEX(PD_State_Table,MATCH(J36,PD_Table_Row_Header,0),2) ->  | Q36: 125 | R36: =IF(ISBLANK(BD36),0,INDIRECT(BD36)) -> 0 | S36: =IF(AND(IF(ISBLANK(AT36),"unused",INDIRECT(AT36))<>"suspend",IF(ISBLANK(AU36),0,INDIRECT(AU36))*IF(ISBLANK(AV36),0,INDIRECT(AV36))),INDIRECT(AU36),0%) ->  | T36: 0 | U36: =IFERROR(IF($I36="SI",AP36*$C36*(VLOOKUP("vdd_lkg (ulvt20)",pwr_scale_table,2,0)*$AJ36*'Power Scaling'!F$7+VLOOKUP("vdd_lkg (ulvt16)",pwr_scale_table,2,0)*$AK36*'Power Scaling'!F$8+VLOOKUP("vdd_lkg (lvt20)",pwr_scale_table,2,0)*$AL36*'Power Scaling'!F$5+VLOOKUP("vdd_lkg (lvt16)",pwr_scale_table,2,0)*AM36*'Power Scaling'!F$6+VLOOKUP("vdd_lkg (svt20)",pwr_scale_table,2,0)*$AN36*'Power Scaling'!F$3+VLOOKUP("vdd_lkg (svt16)",pwr_scale_table,2,0)*$AO36*'Power Scaling'!F$4)*IF(P36="OFF",0.06,1),VLOOKUP($A36&"_"&U$3,MDB,5,0)*$C36*VLOOKUP("vdd_lkg (svt16)",pwr_scale_table,2,0)*IF(P36="OFF",0.06,1)),0) -> 0 | V36: =C36*IFERROR(IF($I36="SI",(AE36*IF(S36=0,0,1)+(AF36-AE36)*S36)*IF(R36>0,R36,Q36)/Q36*(VLOOKUP("vdd_int (ulvt20)",pwr_scale_table,2,0)*$AJ36*'Power Scaling'!I$7+VLOOKUP("vdd_int (ulvt16)",pwr_scale_table,2,0)*$AK36*'Power Scaling'!I$8+VLOOKUP("vdd_int (lvt20)",pwr_scale_table,2,0)*$AL36*'Power Scaling'!I$5+VLOOKUP("vdd_int (lvt16)",pwr_scale_table,2,0)*AM36*'Power Scaling'!I$6+VLOOKUP("vdd_int (svt20)",pwr_scale_table,2,0)*$AN36*'Power Scaling'!I$3+VLOOKUP("vdd_int (svt16)",pwr_scale_table,2,0)*$AO36*'Power Scaling'!I$4)*AQ36,IF(OR($I36="AO",$I36="LU"),VLOOKUP($A36&"_"&"vdd_dyn"&"_"&$R36&"",MDB,5,0)*VLOOKUP("vdd_int (svt20)",pwr_scale_table,2,0),IF(OR($I36="LUUA",$I36="LUUB"),VLOOKUP($A36&"_"&"vdd_dyn"&"_"&$R36&"",MDB,5,0)*$C36*$S36*VLOOKUP("vdd_int (svt20)",pwr_scale_table,2,0),VLOOKUP($A36&"_"&"vdd_dyn"&"_"&$R36&"_idle",MDB,5,0)*(1-$S36)+VLOOKUP($A36&"_"&"vdd_dyn"&"_"&$R36&"_read",MDB,5,0)*($S36/2)+VLOOKUP($A36&"_"&"vdd_dyn"&"_"&$R36&"_write",MDB,5,0)*($S36/2)*VLOOKUP("vdd_int (svt20)",pwr_scale_table,2,0)))),0) -> 0 | W36: =C36*IFERROR(IF($I36="SI",(AE36*IF(S36=0,0,1)+(AF36-AE36)*S36)*(IF(R36>0,R36,Q36)/Q36)*VLOOKUP("vdd_sw",pwr_scale_table,2,0)*AI36,0),0) -> 0 | X36: =IFERROR(VLOOKUP($A36&"_"&X$3,MDB,5,0)*$C36*VLOOKUP("vddr_lkg",pwr_scale_table,2,0)*IF(P36="OFF",0.06,1),0) -> 0 | Y36: =IFERROR(VLOOKUP($A36&"_"&Y$3,MDB,5,0)*$C36*(VLOOKUP("vdd_lkg (lvt16)",pwr_scale_table,2,0)*0.5+VLOOKUP("vdd_lkg (svt16)",pwr_scale_table,2,0)*0.5),0) -> 0 | Z36: =IFERROR(IF(I36="LUUB",VLOOKUP($A36&"_"&Z$3&"_"&$R36&"",MDB,5,0)*$C36*$S36*((VLOOKUP("vdd_int (lvt16)",pwr_scale_table,2,0)/4+VLOOKUP("vdd_int (svt16)",pwr_scale_table,2,0)/4+VLOOKUP("vdd_sw",pwr_scale_table,2,0)/2)),VLOOKUP($A36&"_"&Z$3&"_"&$R36&"",MDB,5,0)*$C36*((VLOOKUP("vdd_int (lvt16)",pwr_scale_table,2,0)/4+VLOOKUP("vdd_int (svt16)",pwr_scale_table,2,0)/4+VLOOKUP("vdd_sw",pwr_scale_table,2,0)/2))),0) -> 0 | AA36: =IFERROR(VLOOKUP($A36&"_"&AA$3,MDB,5,0)*$C36*VLOOKUP("vdd_lkg (svt16)",pwr_scale_table,2,0),0) -> 0 | AB36: =IFERROR(IF(OR($I36="LUUA",$I36="LUUB"),VLOOKUP($A36&"_"&AB$3&"_"&$R36&"",MDB,5,0)*$C36*$S36,IF(I36="LUUD",VLOOKUP($A36&"_"&AB$3&"_"&$R36&"_idle",MDB,5,0)*(1-$S36)+VLOOKUP($A36&"_"&AB$3&"_"&$R36&"_read",MDB,5,0)*($S36/2)+VLOOKUP($A36&"_"&AB$3&"_"&$R36&"_write",MDB,5,0)*($S36/2),VLOOKUP($A36&"_"&AB$3&"_"&$R36&"",MDB,5,0)*$C36)),0) -> 0 | AC36: =IFERROR(VLOOKUP($A36&"_"&AC$3,MDB,5,0)*$C36*VLOOKUP("vdd_lkg (svt16)",pwr_scale_table,2,0),0) -> 0 | AD36: =IFERROR(IF(OR($I36="LUUA",$I36="LUUB"),VLOOKUP($A36&"_"&AD$3&"_"&$R36&"",MDB,5,0)*$C36*$S36,IF(I36="LUUD",VLOOKUP($A36&"_"&AD$3&"_"&$R36&"_idle",MDB,5,0)*(1-$S36)+VLOOKUP($A36&"_"&AD$3&"_"&$R36&"_read",MDB,5,0)*($S36/2)+VLOOKUP($A36&"_"&AD$3&"_"&$R36&"_write",MDB,5,0)*($S36/2),VLOOKUP($A36&"_"&AD$3&"_"&$R36&"",MDB,5,0)*$C36)),0) -> 0 | AE36: 0 | AF36: 0 | AG36: 0 | AH36: 0 | AI36: 0 | AJ36: 0 | AK36: 0 | AL36: 0 | AM36: 0 | AN36: 0 | AO36: 0 | AR36: The Vx1 macro is a display data standard used on the DLPC8430. It is a receiver only and it's under development. Power is estimated at this time. | AS36: =A36&B36 ->  | AT36: CB$40 | AU36: CC$40 | AV36: CD$40 | CA36: DSI Tx ports | CB36: ulps | CC36: 0 | CD36: 0 | CE36: SerDes 0 (PCIE_3, PCIE_1, USB_0, Hyperlink_0) | CJ36: A53 CPU | CK36: =IF(R8=0,Q8,R8) -> 1250 | CL36: =IF(C8>0,S8,0) -> 1
C37: 0 | O37: 0 | Q37: 125 | R37: =IF(ISBLANK(BD37),0,INDIRECT(BD37)) -> 0 | S37: =IF(BB37="disable",0,LEFT(BB37,1)*1)*IF(AZ37="disable",INDIRECT(AX37),INDIRECT(AU37))/10 ->  | T37: 0 | U37: =IFERROR(IF($I37="SI",AP37*$C37*(VLOOKUP("vdd_lkg (ulvt20)",pwr_scale_table,2,0)*$AJ37*'Power Scaling'!F$7+VLOOKUP("vdd_lkg (ulvt16)",pwr_scale_table,2,0)*$AK37*'Power Scaling'!F$8+VLOOKUP("vdd_lkg (lvt20)",pwr_scale_table,2,0)*$AL37*'Power Scaling'!F$5+VLOOKUP("vdd_lkg (lvt16)",pwr_scale_table,2,0)*AM37*'Power Scaling'!F$6+VLOOKUP("vdd_lkg (svt20)",pwr_scale_table,2,0)*$AN37*'Power Scaling'!F$3+VLOOKUP("vdd_lkg (svt16)",pwr_scale_table,2,0)*$AO37*'Power Scaling'!F$4)*IF(P37="OFF",0.06,1),VLOOKUP($A37&"_"&U$3,MDB,5,0)*$C37*VLOOKUP("vdd_lkg (svt16)",pwr_scale_table,2,0)*IF(P37="OFF",0.06,1)),0) -> 0 | V37: =C37*IFERROR(IF($I37="SI",(AE37*IF(S37=0,0,1)+(AF37-AE37)*S37)*IF(R37>0,R37,Q37)/Q37*(VLOOKUP("vdd_int (ulvt20)",pwr_scale_table,2,0)*$AJ37*'Power Scaling'!I$7+VLOOKUP("vdd_int (ulvt16)",pwr_scale_table,2,0)*$AK37*'Power Scaling'!I$8+VLOOKUP("vdd_int (lvt20)",pwr_scale_table,2,0)*$AL37*'Power Scaling'!I$5+VLOOKUP("vdd_int (lvt16)",pwr_scale_table,2,0)*AM37*'Power Scaling'!I$6+VLOOKUP("vdd_int (svt20)",pwr_scale_table,2,0)*$AN37*'Power Scaling'!I$3+VLOOKUP("vdd_int (svt16)",pwr_scale_table,2,0)*$AO37*'Power Scaling'!I$4)*AQ37,IF(OR($I37="AO",$I37="LU"),VLOOKUP($A37&"_"&"vdd_dyn"&"_"&$R37&"",MDB,5,0)*VLOOKUP("vdd_int (svt20)",pwr_scale_table,2,0),IF(OR($I37="LUUA",$I37="LUUB"),VLOOKUP($A37&"_"&"vdd_dyn"&"_"&$R37&"",MDB,5,0)*$C37*$S37*VLOOKUP("vdd_int (svt20)",pwr_scale_table,2,0),VLOOKUP($A37&"_"&"vdd_dyn"&"_"&$R37&"_idle",MDB,5,0)*(1-$S37)+VLOOKUP($A37&"_"&"vdd_dyn"&"_"&$R37&"_read",MDB,5,0)*($S37/2)+VLOOKUP($A37&"_"&"vdd_dyn"&"_"&$R37&"_write",MDB,5,0)*($S37/2)*VLOOKUP("vdd_int (svt20)",pwr_scale_table,2,0)))),0) -> 0 | W37: 0 | X37: 0 | Y37: 0 | Z37: 0 | AA37: 0 | AB37: 0 | AC37: 0 | AD37: 0 | AE37: 0 | AF37: 0 | AG37: 0 | AH37: 0 | AI37: 0 | AJ37: 0 | AK37: 0 | AL37: 0 | AM37: 0 | AN37: 0 | AO37: 0 | AR37: The Vx1 macro is a display data standard used on the DLPC8430. It is a receiver only and it's under development. Power is estimated at this time. | AT37: CB$38 | AU37: CC$38 | AV37: CD$38 | AW37: CB$32 | AX37: CC$32 | AY37: CD$32 | AZ37: =IF(AND(IF(ISBLANK(AT37),"disable",INDIRECT(AT37))<>"disable",IF(ISBLANK(AU37),0,INDIRECT(AU37))*IF(ISBLANK(AV37),0,INDIRECT(AV37))),INDIRECT(AT37),"disable") ->  | BA37: =IF(AND(IF(ISBLANK(AW37),"disable",INDIRECT(AW37))<>"disable",IF(ISBLANK(AX37),0,INDIRECT(AX37))*IF(ISBLANK(AY37),0,INDIRECT(AY37))),INDIRECT(AW37),"disable") -> disable | BB37: =IF(AZ37="disable",BA37,AZ37) ->  | CA37: PCIE | CE37: Lane0 | CJ37: A53 CPU | CK37: =IF(R9=0,Q9,R9) -> 1250 | CL37: =IF(C9>0,S9,0) -> 1
C38: 0 | O38: 0 | Q38: 125 | R38: =IF(ISBLANK(BD38),0,INDIRECT(BD38)) -> 0 | S38: =IF(BB38="disable",0,LEFT(BB38,1)*1)*IF(AZ38="disable",INDIRECT(AU38),INDIRECT(AX38))/10 ->  | T38: 0 | U38: =IFERROR(IF($I38="SI",AP38*$C38*(VLOOKUP("vdd_lkg (ulvt20)",pwr_scale_table,2,0)*$AJ38*'Power Scaling'!F$7+VLOOKUP("vdd_lkg (ulvt16)",pwr_scale_table,2,0)*$AK38*'Power Scaling'!F$8+VLOOKUP("vdd_lkg (lvt20)",pwr_scale_table,2,0)*$AL38*'Power Scaling'!F$5+VLOOKUP("vdd_lkg (lvt16)",pwr_scale_table,2,0)*AM38*'Power Scaling'!F$6+VLOOKUP("vdd_lkg (svt20)",pwr_scale_table,2,0)*$AN38*'Power Scaling'!F$3+VLOOKUP("vdd_lkg (svt16)",pwr_scale_table,2,0)*$AO38*'Power Scaling'!F$4)*IF(P38="OFF",0.06,1),VLOOKUP($A38&"_"&U$3,MDB,5,0)*$C38*VLOOKUP("vdd_lkg (svt16)",pwr_scale_table,2,0)*IF(P38="OFF",0.06,1)),0) -> 0 | V38: =C38*IFERROR(IF($I38="SI",(AE38*IF(S38=0,0,1)+(AF38-AE38)*S38)*IF(R38>0,R38,Q38)/Q38*(VLOOKUP("vdd_int (ulvt20)",pwr_scale_table,2,0)*$AJ38*'Power Scaling'!I$7+VLOOKUP("vdd_int (ulvt16)",pwr_scale_table,2,0)*$AK38*'Power Scaling'!I$8+VLOOKUP("vdd_int (lvt20)",pwr_scale_table,2,0)*$AL38*'Power Scaling'!I$5+VLOOKUP("vdd_int (lvt16)",pwr_scale_table,2,0)*AM38*'Power Scaling'!I$6+VLOOKUP("vdd_int (svt20)",pwr_scale_table,2,0)*$AN38*'Power Scaling'!I$3+VLOOKUP("vdd_int (svt16)",pwr_scale_table,2,0)*$AO38*'Power Scaling'!I$4)*AQ38,IF(OR($I38="AO",$I38="LU"),VLOOKUP($A38&"_"&"vdd_dyn"&"_"&$R38&"",MDB,5,0)*VLOOKUP("vdd_int (svt20)",pwr_scale_table,2,0),IF(OR($I38="LUUA",$I38="LUUB"),VLOOKUP($A38&"_"&"vdd_dyn"&"_"&$R38&"",MDB,5,0)*$C38*$S38*VLOOKUP("vdd_int (svt20)",pwr_scale_table,2,0),VLOOKUP($A38&"_"&"vdd_dyn"&"_"&$R38&"_idle",MDB,5,0)*(1-$S38)+VLOOKUP($A38&"_"&"vdd_dyn"&"_"&$R38&"_read",MDB,5,0)*($S38/2)+VLOOKUP($A38&"_"&"vdd_dyn"&"_"&$R38&"_write",MDB,5,0)*($S38/2)*VLOOKUP("vdd_int (svt20)",pwr_scale_table,2,0)))),0) -> 0 | W38: 0 | X38: 0 | Y38: 0 | Z38: 0 | AA38: 0 | AB38: 0 | AC38: 0 | AD38: 0 | AE38: 0 | AF38: 0 | AG38: 0 | AH38: 0 | AI38: 0 | AJ38: 0 | AK38: 0 | AL38: 0 | AM38: 0 | AN38: 0 | AO38: 0 | AR38: The Vx1 macro is a display data standard used on the DLPC8430. It is a receiver only and it's under development. Power is estimated at this time. | AT38: CB$40 | AU38: CC$40 | AV38: CD$40 | AW38: CB$32 | AX38: CC$32 | AY38: CD$32 | AZ38: =IF(AND(IF(ISBLANK(AT38),"unused",INDIRECT(AT38))="5g",IF(ISBLANK(AU38),0,INDIRECT(AU38))*IF(ISBLANK(AV38),0,INDIRECT(AV38))),"5g","disable") ->  | BA38: =IF(AND(IF(ISBLANK(AW38),"disable",INDIRECT(AW38))<>"disable",IF(ISBLANK(AX38),0,INDIRECT(AX38))*IF(ISBLANK(AY38),0,INDIRECT(AY38))),INDIRECT(AW38),"disable") -> disable | BB38: =IF(IF(IF(AZ38="unused",BA38,AZ38)="1g",1,0)+IF(BA37="1g",1,0)>INDIRECT(AY38),"unused",IF(AZ38="unused",BA38,AZ38)) ->  | CA38: PCIE_0 (1 Lane) | CD38: 1 | CE38: SerDes 1 (CPSW3_0, PCIE_0, PCIE_2, n/a) | CF38: 0 | CG38: 0 | CJ38: A53 CPU | CK38: =IF(R10=0,Q10,R10) -> 1250 | CL38: =IF(C10>0,S10,0) -> 1
A39: ddr32_3733_phy | B39: _0 | C39: 1 | D39: 3 | E39: VDD_CORE | F39: N/A | G39: N/A | H39: N/A | I39: SI | J39: PD_DDR | K39: LP/DDR4-32 PHY 3733 | L39: 44468 | M39: 3 Periph | N39: Memory | O39: 105.49995 | P39: ON | Q39: 1066.75 | R39: =IF(ISBLANK(BD39),0,INDIRECT(BD39))/4 -> 533.25 | S39: =S44*1.1 -> 1.1 | T39: 0 | U39: =IFERROR(IF($I39="SI",AP39*$C39*(VLOOKUP("vdd_lkg (ulvt20)",pwr_scale_table,2,0)*$AJ39*'Power Scaling'!F$7+VLOOKUP("vdd_lkg (ulvt16)",pwr_scale_table,2,0)*$AK39*'Power Scaling'!F$8+VLOOKUP("vdd_lkg (lvt20)",pwr_scale_table,2,0)*$AL39*'Power Scaling'!F$5+VLOOKUP("vdd_lkg (lvt16)",pwr_scale_table,2,0)*AM39*'Power Scaling'!F$6+VLOOKUP("vdd_lkg (svt20)",pwr_scale_table,2,0)*$AN39*'Power Scaling'!F$3+VLOOKUP("vdd_lkg (svt16)",pwr_scale_table,2,0)*$AO39*'Power Scaling'!F$4)*IF(P39="OFF",0.06,1),VLOOKUP($A39&"_"&U$3,MDB,5,0)*$C39*VLOOKUP("vdd_lkg (svt16)",pwr_scale_table,2,0)*IF(P39="OFF",0.06,1)),0) -> 0 | V39: =C39*IFERROR(IF($I39="SI",(AE39*IF(S39=0,0,1)+(AF39-AE39)*S39)*IF(R39>0,R39,Q39)/Q39*(VLOOKUP("vdd_int (ulvt20)",pwr_scale_table,2,0)*$AJ39*'Power Scaling'!I$7+VLOOKUP("vdd_int (ulvt16)",pwr_scale_table,2,0)*$AK39*'Power Scaling'!I$8+VLOOKUP("vdd_int (lvt20)",pwr_scale_table,2,0)*$AL39*'Power Scaling'!I$5+VLOOKUP("vdd_int (lvt16)",pwr_scale_table,2,0)*AM39*'Power Scaling'!I$6+VLOOKUP("vdd_int (svt20)",pwr_scale_table,2,0)*$AN39*'Power Scaling'!I$3+VLOOKUP("vdd_int (svt16)",pwr_scale_table,2,0)*$AO39*'Power Scaling'!I$4)*AQ39,IF(OR($I39="AO",$I39="LU"),VLOOKUP($A39&"_"&"vdd_dyn"&"_"&$R39&"",MDB,5,0)*VLOOKUP("vdd_int (svt20)",pwr_scale_table,2,0),IF(OR($I39="LUUA",$I39="LUUB"),VLOOKUP($A39&"_"&"vdd_dyn"&"_"&$R39&"",MDB,5,0)*$C39*$S39*VLOOKUP("vdd_int (svt20)",pwr_scale_table,2,0),VLOOKUP($A39&"_"&"vdd_dyn"&"_"&$R39&"_idle",MDB,5,0)*(1-$S39)+VLOOKUP($A39&"_"&"vdd_dyn"&"_"&$R39&"_read",MDB,5,0)*($S39/2)+VLOOKUP($A39&"_"&"vdd_dyn"&"_"&$R39&"_write",MDB,5,0)*($S39/2)*VLOOKUP("vdd_int (svt20)",pwr_scale_table,2,0)))),0) -> 0 | W39: 105.49995 | X39: 0 | Y39: 0 | Z39: 0 | AA39: 0 | AB39: 0 | AC39: 0 | AD39: 0 | AE39: 0.11 | AF39: 0.95 | AG39: 1 | AH39: 281 | AI39: 281 | AJ39: 0.262 | AK39: 0.0498 | AL39: 0.0534 | AM39: 0.3243 | AN39: 0.1324 | AO39: 0.1781 | AP39: 13.3838266 | AQ39: 224.6117142 | AR39: The Vx1 macro is a display data standard used on the DLPC8430. It is a receiver only and it's under development. Power is estimated at this time. | AS39: ddr32_3733_phy_0 | AT39: CG$25 | BD39: CC$24 | BG39: DDR | CA39: USB | CE39: Lane0 | CJ39: A53 CPU | CK39: =IF(R11=0,Q11,R11) -> 1250 | CL39: =IF(C11>0,S11,0) -> 1
A40: sam62_emmc_4bit_wrap | B40: _1 | C40: 1 | D40: 5 | E40: VDD_CORE | F40: N/A | G40: N/A | H40: N/A | I40: SI | J40: GP_Core_CTL | K40: EMMC 4 AM62 | L40: sam62a_april_power | M40: 3 Periph | N40: Memory | O40: 2.649793388 | P40: ON | Q40: 250 | R40: 0 | S40: =IF(ISBLANK(AT40),0,IF(AND(INDIRECT(AT40)<>"unused",INDIRECT(AV40)>AW40),INDIRECT(AU40),0)) -> 1 | T40: 0 | U40: =IFERROR(IF($I40="SI",AP40*$C40*(VLOOKUP("vdd_lkg (ulvt20)",pwr_scale_table,2,0)*$AJ40*'Power Scaling'!F$7+VLOOKUP("vdd_lkg (ulvt16)",pwr_scale_table,2,0)*$AK40*'Power Scaling'!F$8+VLOOKUP("vdd_lkg (lvt20)",pwr_scale_table,2,0)*$AL40*'Power Scaling'!F$5+VLOOKUP("vdd_lkg (lvt16)",pwr_scale_table,2,0)*AM40*'Power Scaling'!F$6+VLOOKUP("vdd_lkg (svt20)",pwr_scale_table,2,0)*$AN40*'Power Scaling'!F$3+VLOOKUP("vdd_lkg (svt16)",pwr_scale_table,2,0)*$AO40*'Power Scaling'!F$4)*IF(P40="OFF",0.06,1),VLOOKUP($A40&"_"&U$3,MDB,5,0)*$C40*VLOOKUP("vdd_lkg (svt16)",pwr_scale_table,2,0)*IF(P40="OFF",0.06,1)),0) -> 0 | V40: =C40*IFERROR(IF($I40="SI",(AE40*IF(S40=0,0,1)+(AF40-AE40)*S40)*IF(R40>0,R40,Q40)/Q40*(VLOOKUP("vdd_int (ulvt20)",pwr_scale_table,2,0)*$AJ40*'Power Scaling'!I$7+VLOOKUP("vdd_int (ulvt16)",pwr_scale_table,2,0)*$AK40*'Power Scaling'!I$8+VLOOKUP("vdd_int (lvt20)",pwr_scale_table,2,0)*$AL40*'Power Scaling'!I$5+VLOOKUP("vdd_int (lvt16)",pwr_scale_table,2,0)*AM40*'Power Scaling'!I$6+VLOOKUP("vdd_int (svt20)",pwr_scale_table,2,0)*$AN40*'Power Scaling'!I$3+VLOOKUP("vdd_int (svt16)",pwr_scale_table,2,0)*$AO40*'Power Scaling'!I$4)*AQ40,IF(OR($I40="AO",$I40="LU"),VLOOKUP($A40&"_"&"vdd_dyn"&"_"&$R40&"",MDB,5,0)*VLOOKUP("vdd_int (svt20)",pwr_scale_table,2,0),IF(OR($I40="LUUA",$I40="LUUB"),VLOOKUP($A40&"_"&"vdd_dyn"&"_"&$R40&"",MDB,5,0)*$C40*$S40*VLOOKUP("vdd_int (svt20)",pwr_scale_table,2,0),VLOOKUP($A40&"_"&"vdd_dyn"&"_"&$R40&"_idle",MDB,5,0)*(1-$S40)+VLOOKUP($A40&"_"&"vdd_dyn"&"_"&$R40&"_read",MDB,5,0)*($S40/2)+VLOOKUP($A40&"_"&"vdd_dyn"&"_"&$R40&"_write",MDB,5,0)*($S40/2)*VLOOKUP("vdd_int (svt20)",pwr_scale_table,2,0)))),0) -> 0 | W40: 2.649793388 | X40: 0 | Y40: 0 | Z40: 0 | AA40: 0 | AB40: 0 | AC40: 0 | AD40: 0 | AE40: 0.268 | AF40: 0.48 | AG40: 0.58 | AH40: 8.5 | AI40: 7.6 | AJ40: 0.01 | AK40: 0 | AL40: 0.01 | AM40: 0.12 | AN40: 0.81 | AO40: 0.06 | AP40: 0.5638715011 | AQ40: 8.129673845 | AR40: The Vx1 macro is a display data standard used on the DLPC8430. It is a receiver only and it's under development. Power is estimated at this time. | AS40: sam62_emmc_4bit_wrap_1 | AT40: CB$62 | AU40: CC$62 | AV40: CD$62 | AW40: 0 | CA40: 3.0 | CD40: 1 | CJ40: C7x | CK40: =IF(R$15=0,Q$15,R$15) -> 912.5 | CL40: =IF(C15>0,IF($CE$3="PDN",1,(S15-CL41*0.8)/0.66),0) -> 0
A41: sam62_emmc_4bit_wrap | B41: _2 | C41: 1 | D41: 5 | E41: VDD_CORE | F41: N/A | G41: N/A | H41: N/A | I41: SI | J41: GP_Core_CTL | K41: EMMC 4 AM62 | L41: sam62a_april_power | M41: 3 Periph | N41: Memory | O41: 2.649793388 | P41: ON | Q41: 250 | R41: 0 | S41: =IF(ISBLANK(AT41),0,IF(AND(INDIRECT(AT41)<>"unused",INDIRECT(AV41)>AW41),INDIRECT(AU41),0)) -> 1 | T41: 0 | U41: =IFERROR(IF($I41="SI",AP41*$C41*(VLOOKUP("vdd_lkg (ulvt20)",pwr_scale_table,2,0)*$AJ41*'Power Scaling'!F$7+VLOOKUP("vdd_lkg (ulvt16)",pwr_scale_table,2,0)*$AK41*'Power Scaling'!F$8+VLOOKUP("vdd_lkg (lvt20)",pwr_scale_table,2,0)*$AL41*'Power Scaling'!F$5+VLOOKUP("vdd_lkg (lvt16)",pwr_scale_table,2,0)*AM41*'Power Scaling'!F$6+VLOOKUP("vdd_lkg (svt20)",pwr_scale_table,2,0)*$AN41*'Power Scaling'!F$3+VLOOKUP("vdd_lkg (svt16)",pwr_scale_table,2,0)*$AO41*'Power Scaling'!F$4)*IF(P41="OFF",0.06,1),VLOOKUP($A41&"_"&U$3,MDB,5,0)*$C41*VLOOKUP("vdd_lkg (svt16)",pwr_scale_table,2,0)*IF(P41="OFF",0.06,1)),0) -> 0 | V41: =C41*IFERROR(IF($I41="SI",(AE41*IF(S41=0,0,1)+(AF41-AE41)*S41)*IF(R41>0,R41,Q41)/Q41*(VLOOKUP("vdd_int (ulvt20)",pwr_scale_table,2,0)*$AJ41*'Power Scaling'!I$7+VLOOKUP("vdd_int (ulvt16)",pwr_scale_table,2,0)*$AK41*'Power Scaling'!I$8+VLOOKUP("vdd_int (lvt20)",pwr_scale_table,2,0)*$AL41*'Power Scaling'!I$5+VLOOKUP("vdd_int (lvt16)",pwr_scale_table,2,0)*AM41*'Power Scaling'!I$6+VLOOKUP("vdd_int (svt20)",pwr_scale_table,2,0)*$AN41*'Power Scaling'!I$3+VLOOKUP("vdd_int (svt16)",pwr_scale_table,2,0)*$AO41*'Power Scaling'!I$4)*AQ41,IF(OR($I41="AO",$I41="LU"),VLOOKUP($A41&"_"&"vdd_dyn"&"_"&$R41&"",MDB,5,0)*VLOOKUP("vdd_int (svt20)",pwr_scale_table,2,0),IF(OR($I41="LUUA",$I41="LUUB"),VLOOKUP($A41&"_"&"vdd_dyn"&"_"&$R41&"",MDB,5,0)*$C41*$S41*VLOOKUP("vdd_int (svt20)",pwr_scale_table,2,0),VLOOKUP($A41&"_"&"vdd_dyn"&"_"&$R41&"_idle",MDB,5,0)*(1-$S41)+VLOOKUP($A41&"_"&"vdd_dyn"&"_"&$R41&"_read",MDB,5,0)*($S41/2)+VLOOKUP($A41&"_"&"vdd_dyn"&"_"&$R41&"_write",MDB,5,0)*($S41/2)*VLOOKUP("vdd_int (svt20)",pwr_scale_table,2,0)))),0) -> 0 | W41: 2.649793388 | X41: 0 | Y41: 0 | Z41: 0 | AA41: 0 | AB41: 0 | AC41: 0 | AD41: 0 | AE41: 0.268 | AF41: 0.48 | AG41: 0.58 | AH41: 8.5 | AI41: 7.6 | AJ41: 0.01 | AK41: 0 | AL41: 0.01 | AM41: 0.12 | AN41: 0.81 | AO41: 0.06 | AP41: 0.5638715011 | AQ41: 8.129673845 | AR41: The Vx1 macro is a display data standard used on the DLPC8430. It is a receiver only and it's under development. Power is estimated at this time. | AS41: sam62_emmc_4bit_wrap_2 | AT41: CB$62 | AU41: CC$62 | AV41: CD$62 | AW41: 1 | CA41: USB 2.0 | CB41: host_hs | CC41: 1 | CD41: 2 | CJ41: MMA | CK41: =IF(R$15=0,Q$15,R$15) -> 912.5 | CL41: =IF(C6>0,S16,0) -> 0
A42: sam67_emmc_8bit_wrap | B42: _0 | C42: 1 | D42: 2 | E42: VDD_CORE | F42: N/A | G42: N/A | H42: N/A | I42: SI | J42: GP_Core_CTL | K42: EMMC 8 AM62 | L42: sam62p_march_c2end_power | M42: 3 Periph | N42: Memory | O42: 2.824121901 | P42: ON | Q42: 250 | R42: 0 | S42: =IF(ISBLANK(AT42),0,IF(AND(INDIRECT(AT42)<>"off",INDIRECT(AV42)>AW42),INDIRECT(AU42),0)) -> 1 | T42: 0 | U42: =IFERROR(IF($I42="SI",AP42*$C42*(VLOOKUP("vdd_lkg (ulvt20)",pwr_scale_table,2,0)*$AJ42*'Power Scaling'!F$7+VLOOKUP("vdd_lkg (ulvt16)",pwr_scale_table,2,0)*$AK42*'Power Scaling'!F$8+VLOOKUP("vdd_lkg (lvt20)",pwr_scale_table,2,0)*$AL42*'Power Scaling'!F$5+VLOOKUP("vdd_lkg (lvt16)",pwr_scale_table,2,0)*AM42*'Power Scaling'!F$6+VLOOKUP("vdd_lkg (svt20)",pwr_scale_table,2,0)*$AN42*'Power Scaling'!F$3+VLOOKUP("vdd_lkg (svt16)",pwr_scale_table,2,0)*$AO42*'Power Scaling'!F$4)*IF(P42="OFF",0.06,1),VLOOKUP($A42&"_"&U$3,MDB,5,0)*$C42*VLOOKUP("vdd_lkg (svt16)",pwr_scale_table,2,0)*IF(P42="OFF",0.06,1)),0) -> 0 | V42: =C42*IFERROR(IF($I42="SI",(AE42*IF(S42=0,0,1)+(AF42-AE42)*S42)*IF(R42>0,R42,Q42)/Q42*(VLOOKUP("vdd_int (ulvt20)",pwr_scale_table,2,0)*$AJ42*'Power Scaling'!I$7+VLOOKUP("vdd_int (ulvt16)",pwr_scale_table,2,0)*$AK42*'Power Scaling'!I$8+VLOOKUP("vdd_int (lvt20)",pwr_scale_table,2,0)*$AL42*'Power Scaling'!I$5+VLOOKUP("vdd_int (lvt16)",pwr_scale_table,2,0)*AM42*'Power Scaling'!I$6+VLOOKUP("vdd_int (svt20)",pwr_scale_table,2,0)*$AN42*'Power Scaling'!I$3+VLOOKUP("vdd_int (svt16)",pwr_scale_table,2,0)*$AO42*'Power Scaling'!I$4)*AQ42,IF(OR($I42="AO",$I42="LU"),VLOOKUP($A42&"_"&"vdd_dyn"&"_"&$R42&"",MDB,5,0)*VLOOKUP("vdd_int (svt20)",pwr_scale_table,2,0),IF(OR($I42="LUUA",$I42="LUUB"),VLOOKUP($A42&"_"&"vdd_dyn"&"_"&$R42&"",MDB,5,0)*$C42*$S42*VLOOKUP("vdd_int (svt20)",pwr_scale_table,2,0),VLOOKUP($A42&"_"&"vdd_dyn"&"_"&$R42&"_idle",MDB,5,0)*(1-$S42)+VLOOKUP($A42&"_"&"vdd_dyn"&"_"&$R42&"_read",MDB,5,0)*($S42/2)+VLOOKUP($A42&"_"&"vdd_dyn"&"_"&$R42&"_write",MDB,5,0)*($S42/2)*VLOOKUP("vdd_int (svt20)",pwr_scale_table,2,0)))),0) -> 0 | W42: 2.824121901 | X42: 0 | Y42: 0 | Z42: 0 | AA42: 0 | AB42: 0 | AC42: 0 | AD42: 0 | AE42: 0.303 | AF42: 0.48 | AG42: 0.58 | AH42: 8.3 | AI42: 8.1 | AJ42: 0 | AK42: 0 | AL42: 0 | AM42: 0.08 | AN42: 0.88 | AO42: 0.04 | AP42: 0.5831364127 | AQ42: 8.147774478 | AR42: The Vx1 macro is a display data standard used on the DLPC8430. It is a receiver only and it's under development. Power is estimated at this time. | AS42: sam67_emmc_8bit_wrap_0 | AT42: CF$31 | AU42: CG$31 | AV42: CH$31 | AW42: 0 | CJ42: C7x | CK42: =IF(R$13=0,Q$13,R$13) -> 912.5 | CL42: =IF(C13>0,IF($CE$3="PDN",1,(S13-0.8*CL43)/0.66),0) -> 0
A43: sam62_gpmc_elm_wrap | B43: _0 | C43: 1 | D43: 4 | E43: VDD_CORE | F43: N/A | G43: N/A | H43: N/A | I43: SI | J43: GP_Core_CTL | K43: GPMC_ELM AM62 | L43: sam62a_april_power | M43: 3 Periph | N43: Memory | O43: 0 | P43: ON | Q43: 166.6666667 | R43: =IF(ISBLANK(BD43),0,INDIRECT(BD43)) -> 0 | S43: =IF(ISBLANK(AT43),0,IF(INDIRECT(AT43)="unused",0,INDIRECT(AU43))) -> 0 | T43: 0 | U43: =IFERROR(IF($I43="SI",AP43*$C43*(VLOOKUP("vdd_lkg (ulvt20)",pwr_scale_table,2,0)*$AJ43*'Power Scaling'!F$7+VLOOKUP("vdd_lkg (ulvt16)",pwr_scale_table,2,0)*$AK43*'Power Scaling'!F$8+VLOOKUP("vdd_lkg (lvt20)",pwr_scale_table,2,0)*$AL43*'Power Scaling'!F$5+VLOOKUP("vdd_lkg (lvt16)",pwr_scale_table,2,0)*AM43*'Power Scaling'!F$6+VLOOKUP("vdd_lkg (svt20)",pwr_scale_table,2,0)*$AN43*'Power Scaling'!F$3+VLOOKUP("vdd_lkg (svt16)",pwr_scale_table,2,0)*$AO43*'Power Scaling'!F$4)*IF(P43="OFF",0.06,1),VLOOKUP($A43&"_"&U$3,MDB,5,0)*$C43*VLOOKUP("vdd_lkg (svt16)",pwr_scale_table,2,0)*IF(P43="OFF",0.06,1)),0) -> 0 | V43: =C43*IFERROR(IF($I43="SI",(AE43*IF(S43=0,0,1)+(AF43-AE43)*S43)*IF(R43>0,R43,Q43)/Q43*(VLOOKUP("vdd_int (ulvt20)",pwr_scale_table,2,0)*$AJ43*'Power Scaling'!I$7+VLOOKUP("vdd_int (ulvt16)",pwr_scale_table,2,0)*$AK43*'Power Scaling'!I$8+VLOOKUP("vdd_int (lvt20)",pwr_scale_table,2,0)*$AL43*'Power Scaling'!I$5+VLOOKUP("vdd_int (lvt16)",pwr_scale_table,2,0)*AM43*'Power Scaling'!I$6+VLOOKUP("vdd_int (svt20)",pwr_scale_table,2,0)*$AN43*'Power Scaling'!I$3+VLOOKUP("vdd_int (svt16)",pwr_scale_table,2,0)*$AO43*'Power Scaling'!I$4)*AQ43,IF(OR($I43="AO",$I43="LU"),VLOOKUP($A43&"_"&"vdd_dyn"&"_"&$R43&"",MDB,5,0)*VLOOKUP("vdd_int (svt20)",pwr_scale_table,2,0),IF(OR($I43="LUUA",$I43="LUUB"),VLOOKUP($A43&"_"&"vdd_dyn"&"_"&$R43&"",MDB,5,0)*$C43*$S43*VLOOKUP("vdd_int (svt20)",pwr_scale_table,2,0),VLOOKUP($A43&"_"&"vdd_dyn"&"_"&$R43&"_idle",MDB,5,0)*(1-$S43)+VLOOKUP($A43&"_"&"vdd_dyn"&"_"&$R43&"_read",MDB,5,0)*($S43/2)+VLOOKUP($A43&"_"&"vdd_dyn"&"_"&$R43&"_write",MDB,5,0)*($S43/2)*VLOOKUP("vdd_int (svt20)",pwr_scale_table,2,0)))),0) -> 0 | W43: 0 | X43: 0 | Y43: 0 | Z43: 0 | AA43: 0 | AB43: 0 | AC43: 0 | AD43: 0 | AE43: 0.206 | AF43: 0.48 | AG43: 0.58 | AH43: 6.5 | AI43: 6.9 | AJ43: 0 | AK43: 0 | AL43: 0.02 | AM43: 0.09 | AN43: 0.78 | AO43: 0.11 | AP43: 0.4970907952 | AQ43: 6.344250119 | AR43: The Vx1 macro is a display data standard used on the DLPC8430. It is a receiver only and it's under development. Power is estimated at this time. | AS43: sam62_gpmc_elm_wrap_0 | AT43: CF$26 | AU43: CG$26 | CA43: LVCMOS IO | CB43: Mode | CC43: Utilization | CD43: Instances | CJ43: MMA | CK43: =IF(R$13=0,Q$13,R$13) -> 912.5 | CL43: =IF(C14=0,S14,0) -> 0
A44: sam67_ddr_wrap | B44: _0 | C44: 1 | D44: 3 | E44: VDD_CORE | F44: N/A | G44: N/A | H44: N/A | I44: SI | J44: PD_DDR | K44: LP/DDR4-32 EMIF AM62A | L44: sam62p_nov_power | M44: 3 Periph | N44: Memory | O44: 63.74026418 | P44: ON | Q44: 1066.75 | R44: =IF(ISBLANK(BD44),0,INDIRECT(BD44))/4 -> 533.25 | S44: =IF(ISBLANK(AT44),0,IF(INDIRECT(AT44)<>"sleep",IF($CE$3="PDN",0.91,INDIRECT(AU44)),0)) -> 1 | T44: 0 | U44: =IFERROR(IF($I44="SI",AP44*$C44*(VLOOKUP("vdd_lkg (ulvt20)",pwr_scale_table,2,0)*$AJ44*'Power Scaling'!F$7+VLOOKUP("vdd_lkg (ulvt16)",pwr_scale_table,2,0)*$AK44*'Power Scaling'!F$8+VLOOKUP("vdd_lkg (lvt20)",pwr_scale_table,2,0)*$AL44*'Power Scaling'!F$5+VLOOKUP("vdd_lkg (lvt16)",pwr_scale_table,2,0)*AM44*'Power Scaling'!F$6+VLOOKUP("vdd_lkg (svt20)",pwr_scale_table,2,0)*$AN44*'Power Scaling'!F$3+VLOOKUP("vdd_lkg (svt16)",pwr_scale_table,2,0)*$AO44*'Power Scaling'!F$4)*IF(P44="OFF",0.06,1),VLOOKUP($A44&"_"&U$3,MDB,5,0)*$C44*VLOOKUP("vdd_lkg (svt16)",pwr_scale_table,2,0)*IF(P44="OFF",0.06,1)),0) -> 0 | V44: =C44*IFERROR(IF($I44="SI",(AE44*IF(S44=0,0,1)+(AF44-AE44)*S44)*IF(R44>0,R44,Q44)/Q44*(VLOOKUP("vdd_int (ulvt20)",pwr_scale_table,2,0)*$AJ44*'Power Scaling'!I$7+VLOOKUP("vdd_int (ulvt16)",pwr_scale_table,2,0)*$AK44*'Power Scaling'!I$8+VLOOKUP("vdd_int (lvt20)",pwr_scale_table,2,0)*$AL44*'Power Scaling'!I$5+VLOOKUP("vdd_int (lvt16)",pwr_scale_table,2,0)*AM44*'Power Scaling'!I$6+VLOOKUP("vdd_int (svt20)",pwr_scale_table,2,0)*$AN44*'Power Scaling'!I$3+VLOOKUP("vdd_int (svt16)",pwr_scale_table,2,0)*$AO44*'Power Scaling'!I$4)*AQ44,IF(OR($I44="AO",$I44="LU"),VLOOKUP($A44&"_"&"vdd_dyn"&"_"&$R44&"",MDB,5,0)*VLOOKUP("vdd_int (svt20)",pwr_scale_table,2,0),IF(OR($I44="LUUA",$I44="LUUB"),VLOOKUP($A44&"_"&"vdd_dyn"&"_"&$R44&"",MDB,5,0)*$C44*$S44*VLOOKUP("vdd_int (svt20)",pwr_scale_table,2,0),VLOOKUP($A44&"_"&"vdd_dyn"&"_"&$R44&"_idle",MDB,5,0)*(1-$S44)+VLOOKUP($A44&"_"&"vdd_dyn"&"_"&$R44&"_read",MDB,5,0)*($S44/2)+VLOOKUP($A44&"_"&"vdd_dyn"&"_"&$R44&"_write",MDB,5,0)*($S44/2)*VLOOKUP("vdd_int (svt20)",pwr_scale_table,2,0)))),0) -> 0 | W44: 63.74026418 | X44: 0 | Y44: 0 | Z44: 0 | AA44: 0 | AB44: 0 | AC44: 0 | AD44: 0 | AE44: 0.173 | AF44: 0.45 | AG44: 0.75 | AH44: 293.9 | AI44: 390.1 | AJ44: 0.06 | AK44: 0.02 | AL44: 0.16 | AM44: 0.08 | AN44: 0.28 | AO44: 0.4 | AP44: 6.11896669 | AQ44: 268.9627231 | AR44: The Vx1 macro is a display data standard used on the DLPC8430. It is a receiver only and it's under development. Power is estimated at this time. | AS44: sam67_ddr_wrap_0 | AT44: Cf$25 | AU44: CG$25 | BD44: CC$24 | BG44: DDR | CA44: WKUP I2C | CB44: i2c_400k_3p3v | CC44: 1 | CD44: 1 | CJ44: R5F | CK44: =IF(R4=0,Q4,R4) -> 800 | CL44: =IF(C4>0,S4,0) -> 1
A45: sam67_debug_wrap | B45: _0 | C45: 1 | D45: 4 | E45: VDD_CORE | F45: N/A | G45: N/A | H45: N/A | I45: SI | J45: PD_Debug | K45: Debug SS AM67 | L45: sam62p_dec_power | M45: 4 Infra | N45: Debug | O45: 0 | P45: OFF | Q45: 250 | R45: =IF(ISBLANK(BD45),0,INDIRECT(BD45)) -> 0 | S45: 0 | T45: 0 | U45: =IFERROR(IF($I45="SI",AP45*$C45*(VLOOKUP("vdd_lkg (ulvt20)",pwr_scale_table,2,0)*$AJ45*'Power Scaling'!F$7+VLOOKUP("vdd_lkg (ulvt16)",pwr_scale_table,2,0)*$AK45*'Power Scaling'!F$8+VLOOKUP("vdd_lkg (lvt20)",pwr_scale_table,2,0)*$AL45*'Power Scaling'!F$5+VLOOKUP("vdd_lkg (lvt16)",pwr_scale_table,2,0)*AM45*'Power Scaling'!F$6+VLOOKUP("vdd_lkg (svt20)",pwr_scale_table,2,0)*$AN45*'Power Scaling'!F$3+VLOOKUP("vdd_lkg (svt16)",pwr_scale_table,2,0)*$AO45*'Power Scaling'!F$4)*IF(P45="OFF",0.06,1),VLOOKUP($A45&"_"&U$3,MDB,5,0)*$C45*VLOOKUP("vdd_lkg (svt16)",pwr_scale_table,2,0)*IF(P45="OFF",0.06,1)),0) -> 0 | V45: =C45*IFERROR(IF($I45="SI",(AE45*IF(S45=0,0,1)+(AF45-AE45)*S45)*IF(R45>0,R45,Q45)/Q45*(VLOOKUP("vdd_int (ulvt20)",pwr_scale_table,2,0)*$AJ45*'Power Scaling'!I$7+VLOOKUP("vdd_int (ulvt16)",pwr_scale_table,2,0)*$AK45*'Power Scaling'!I$8+VLOOKUP("vdd_int (lvt20)",pwr_scale_table,2,0)*$AL45*'Power Scaling'!I$5+VLOOKUP("vdd_int (lvt16)",pwr_scale_table,2,0)*AM45*'Power Scaling'!I$6+VLOOKUP("vdd_int (svt20)",pwr_scale_table,2,0)*$AN45*'Power Scaling'!I$3+VLOOKUP("vdd_int (svt16)",pwr_scale_table,2,0)*$AO45*'Power Scaling'!I$4)*AQ45,IF(OR($I45="AO",$I45="LU"),VLOOKUP($A45&"_"&"vdd_dyn"&"_"&$R45&"",MDB,5,0)*VLOOKUP("vdd_int (svt20)",pwr_scale_table,2,0),IF(OR($I45="LUUA",$I45="LUUB"),VLOOKUP($A45&"_"&"vdd_dyn"&"_"&$R45&"",MDB,5,0)*$C45*$S45*VLOOKUP("vdd_int (svt20)",pwr_scale_table,2,0),VLOOKUP($A45&"_"&"vdd_dyn"&"_"&$R45&"_idle",MDB,5,0)*(1-$S45)+VLOOKUP($A45&"_"&"vdd_dyn"&"_"&$R45&"_read",MDB,5,0)*($S45/2)+VLOOKUP($A45&"_"&"vdd_dyn"&"_"&$R45&"_write",MDB,5,0)*($S45/2)*VLOOKUP("vdd_int (svt20)",pwr_scale_table,2,0)))),0) -> 0 | W45: 0 | X45: 0 | Y45: 0 | Z45: 0 | AA45: 0 | AB45: 0 | AC45: 0 | AD45: 0 | AE45: 0.299 | AF45: 0.48 | AG45: 0.58 | AH45: 20.6 | AI45: 16.5 | AJ45: 0 | AK45: 0 | AL45: 0 | AM45: 0.12 | AN45: 0.65 | AO45: 0.24 | AP45: 1.452175888 | AQ45: 19.9193849 | AR45: The Vx1 macro is a display data standard used on the DLPC8430. It is a receiver only and it's under development. Power is estimated at this time. | AS45: sam67_debug_wrap_0 | CA45: WKUP UART | CB45: 1m_3p3v | CC45: 1 | CD45: 1 | CJ45: R5F | CK45: =IF(R5=0,Q5,R5) -> 800 | CL45: =IF(C5>0,S5,0) -> 1
A46: sam62_efuse_ctrl_wrap | B46: _0 | C46: 1 | D46: 4 | E46: VDD_CORE | F46: N/A | G46: N/A | H46: N/A | I46: SI | J46: GP_Core_CTL | K46: eFuse Controller AM62 | L46: sam62a_april_power | M46: 4 Infra | N46: Mix | O46: 0 | P46: ON | Q46: 250 | R46: =IF(ISBLANK(BD46),0,INDIRECT(BD46)) -> 0 | S46: 0 | T46: 0 | U46: =IFERROR(IF($I46="SI",AP46*$C46*(VLOOKUP("vdd_lkg (ulvt20)",pwr_scale_table,2,0)*$AJ46*'Power Scaling'!F$7+VLOOKUP("vdd_lkg (ulvt16)",pwr_scale_table,2,0)*$AK46*'Power Scaling'!F$8+VLOOKUP("vdd_lkg (lvt20)",pwr_scale_table,2,0)*$AL46*'Power Scaling'!F$5+VLOOKUP("vdd_lkg (lvt16)",pwr_scale_table,2,0)*AM46*'Power Scaling'!F$6+VLOOKUP("vdd_lkg (svt20)",pwr_scale_table,2,0)*$AN46*'Power Scaling'!F$3+VLOOKUP("vdd_lkg (svt16)",pwr_scale_table,2,0)*$AO46*'Power Scaling'!F$4)*IF(P46="OFF",0.06,1),VLOOKUP($A46&"_"&U$3,MDB,5,0)*$C46*VLOOKUP("vdd_lkg (svt16)",pwr_scale_table,2,0)*IF(P46="OFF",0.06,1)),0) -> 0 | V46: =C46*IFERROR(IF($I46="SI",(AE46*IF(S46=0,0,1)+(AF46-AE46)*S46)*IF(R46>0,R46,Q46)/Q46*(VLOOKUP("vdd_int (ulvt20)",pwr_scale_table,2,0)*$AJ46*'Power Scaling'!I$7+VLOOKUP("vdd_int (ulvt16)",pwr_scale_table,2,0)*$AK46*'Power Scaling'!I$8+VLOOKUP("vdd_int (lvt20)",pwr_scale_table,2,0)*$AL46*'Power Scaling'!I$5+VLOOKUP("vdd_int (lvt16)",pwr_scale_table,2,0)*AM46*'Power Scaling'!I$6+VLOOKUP("vdd_int (svt20)",pwr_scale_table,2,0)*$AN46*'Power Scaling'!I$3+VLOOKUP("vdd_int (svt16)",pwr_scale_table,2,0)*$AO46*'Power Scaling'!I$4)*AQ46,IF(OR($I46="AO",$I46="LU"),VLOOKUP($A46&"_"&"vdd_dyn"&"_"&$R46&"",MDB,5,0)*VLOOKUP("vdd_int (svt20)",pwr_scale_table,2,0),IF(OR($I46="LUUA",$I46="LUUB"),VLOOKUP($A46&"_"&"vdd_dyn"&"_"&$R46&"",MDB,5,0)*$C46*$S46*VLOOKUP("vdd_int (svt20)",pwr_scale_table,2,0),VLOOKUP($A46&"_"&"vdd_dyn"&"_"&$R46&"_idle",MDB,5,0)*(1-$S46)+VLOOKUP($A46&"_"&"vdd_dyn"&"_"&$R46&"_read",MDB,5,0)*($S46/2)+VLOOKUP($A46&"_"&"vdd_dyn"&"_"&$R46&"_write",MDB,5,0)*($S46/2)*VLOOKUP("vdd_int (svt20)",pwr_scale_table,2,0)))),0) -> 0 | W46: 0 | X46: 0 | Y46: 0 | Z46: 0 | AA46: 0 | AB46: 0 | AC46: 0 | AD46: 0 | AE46: 0.155 | AF46: 0.18 | AG46: 0.22 | AH46: 3.7 | AI46: 3.9 | AJ46: 0 | AK46: 0 | AL46: 0 | AM46: 0.16 | AN46: 0.63 | AO46: 0.21 | AP46: 0.1952186491 | AQ46: 3.576326447 | AR46: The Vx1 macro is a display data standard used on the DLPC8430. It is a receiver only and it's under development. Power is estimated at this time. | AS46: sam62_efuse_ctrl_wrap_0 | CA46: MCU I2C | CB46: i2c_400k_3p3v | CC46: 1 | CD46: 1 | CJ46: R5F | CK46: =IF(R6=0,Q6,R6) -> 800 | CL46: =IF(C6>0,S6,0) -> 0
A47: sam62_odp_ctrl_wrap | B47: _0 | C47: 1 | D47: 4 | E47: VDD_CORE | F47: N/A | G47: N/A | H47: N/A | I47: SI | J47: GP_Core_CTL | K47: ODP Controller AM62 | L47: sam62a_april_power | M47: 4 Infra | N47: Mix | O47: 0 | P47: ON | Q47: 500 | R47: =IF(ISBLANK(BD47),0,INDIRECT(BD47)) -> 0 | S47: 0 | T47: 0 | U47: =IFERROR(IF($I47="SI",AP47*$C47*(VLOOKUP("vdd_lkg (ulvt20)",pwr_scale_table,2,0)*$AJ47*'Power Scaling'!F$7+VLOOKUP("vdd_lkg (ulvt16)",pwr_scale_table,2,0)*$AK47*'Power Scaling'!F$8+VLOOKUP("vdd_lkg (lvt20)",pwr_scale_table,2,0)*$AL47*'Power Scaling'!F$5+VLOOKUP("vdd_lkg (lvt16)",pwr_scale_table,2,0)*AM47*'Power Scaling'!F$6+VLOOKUP("vdd_lkg (svt20)",pwr_scale_table,2,0)*$AN47*'Power Scaling'!F$3+VLOOKUP("vdd_lkg (svt16)",pwr_scale_table,2,0)*$AO47*'Power Scaling'!F$4)*IF(P47="OFF",0.06,1),VLOOKUP($A47&"_"&U$3,MDB,5,0)*$C47*VLOOKUP("vdd_lkg (svt16)",pwr_scale_table,2,0)*IF(P47="OFF",0.06,1)),0) -> 0 | V47: =C47*IFERROR(IF($I47="SI",(AE47*IF(S47=0,0,1)+(AF47-AE47)*S47)*IF(R47>0,R47,Q47)/Q47*(VLOOKUP("vdd_int (ulvt20)",pwr_scale_table,2,0)*$AJ47*'Power Scaling'!I$7+VLOOKUP("vdd_int (ulvt16)",pwr_scale_table,2,0)*$AK47*'Power Scaling'!I$8+VLOOKUP("vdd_int (lvt20)",pwr_scale_table,2,0)*$AL47*'Power Scaling'!I$5+VLOOKUP("vdd_int (lvt16)",pwr_scale_table,2,0)*AM47*'Power Scaling'!I$6+VLOOKUP("vdd_int (svt20)",pwr_scale_table,2,0)*$AN47*'Power Scaling'!I$3+VLOOKUP("vdd_int (svt16)",pwr_scale_table,2,0)*$AO47*'Power Scaling'!I$4)*AQ47,IF(OR($I47="AO",$I47="LU"),VLOOKUP($A47&"_"&"vdd_dyn"&"_"&$R47&"",MDB,5,0)*VLOOKUP("vdd_int (svt20)",pwr_scale_table,2,0),IF(OR($I47="LUUA",$I47="LUUB"),VLOOKUP($A47&"_"&"vdd_dyn"&"_"&$R47&"",MDB,5,0)*$C47*$S47*VLOOKUP("vdd_int (svt20)",pwr_scale_table,2,0),VLOOKUP($A47&"_"&"vdd_dyn"&"_"&$R47&"_idle",MDB,5,0)*(1-$S47)+VLOOKUP($A47&"_"&"vdd_dyn"&"_"&$R47&"_read",MDB,5,0)*($S47/2)+VLOOKUP($A47&"_"&"vdd_dyn"&"_"&$R47&"_write",MDB,5,0)*($S47/2)*VLOOKUP("vdd_int (svt20)",pwr_scale_table,2,0)))),0) -> 0 | W47: 0 | X47: 0 | Y47: 0 | Z47: 0 | AA47: 0 | AB47: 0 | AC47: 0 | AD47: 0 | AE47: 0.44 | AF47: 0.5 | AG47: 0.52 | AH47: 1 | AI47: 1 | AJ47: 0 | AK47: 0 | AL47: 0 | AM47: 0.44 | AN47: 0.4 | AO47: 0.16 | AP47: 0.02596515061 | AQ47: 0.9057623806 | AR47: The Vx1 macro is a display data standard used on the DLPC8430. It is a receiver only and it's under development. Power is estimated at this time. | AS47: sam62_odp_ctrl_wrap_0 | CA47: MCU UART | CB47: 112k_3p3v | CC47: 1 | CD47: 1 | CJ47: Double DSS7UL + DSI + OLDI wrap | CK47: =IF(R12=0,Q12,R12) -> 320 | CL47: =IF(C12>0,S12,0) -> 0.76
A48: sam62_pll_ctrl_wrap | B48: _0 | C48: 2 | D48: 0 | E48: VDD_CORE | F48: N/A | G48: N/A | H48: N/A | I48: SI | J48: GP_Core_CTL | K48: PLL Controller AM62 | L48: sam62a_april_power | M48: 4 Infra | N48: Mix | O48: 2.106469525 | P48: ON | Q48: 500 | R48: =SYSCLK -> 500 | S48: 1 | T48: 0 | U48: =IFERROR(IF($I48="SI",AP48*$C48*(VLOOKUP("vdd_lkg (ulvt20)",pwr_scale_table,2,0)*$AJ48*'Power Scaling'!F$7+VLOOKUP("vdd_lkg (ulvt16)",pwr_scale_table,2,0)*$AK48*'Power Scaling'!F$8+VLOOKUP("vdd_lkg (lvt20)",pwr_scale_table,2,0)*$AL48*'Power Scaling'!F$5+VLOOKUP("vdd_lkg (lvt16)",pwr_scale_table,2,0)*AM48*'Power Scaling'!F$6+VLOOKUP("vdd_lkg (svt20)",pwr_scale_table,2,0)*$AN48*'Power Scaling'!F$3+VLOOKUP("vdd_lkg (svt16)",pwr_scale_table,2,0)*$AO48*'Power Scaling'!F$4)*IF(P48="OFF",0.06,1),VLOOKUP($A48&"_"&U$3,MDB,5,0)*$C48*VLOOKUP("vdd_lkg (svt16)",pwr_scale_table,2,0)*IF(P48="OFF",0.06,1)),0) -> 0 | V48: =C48*IFERROR(IF($I48="SI",(AE48*IF(S48=0,0,1)+(AF48-AE48)*S48)*IF(R48>0,R48,Q48)/Q48*(VLOOKUP("vdd_int (ulvt20)",pwr_scale_table,2,0)*$AJ48*'Power Scaling'!I$7+VLOOKUP("vdd_int (ulvt16)",pwr_scale_table,2,0)*$AK48*'Power Scaling'!I$8+VLOOKUP("vdd_int (lvt20)",pwr_scale_table,2,0)*$AL48*'Power Scaling'!I$5+VLOOKUP("vdd_int (lvt16)",pwr_scale_table,2,0)*AM48*'Power Scaling'!I$6+VLOOKUP("vdd_int (svt20)",pwr_scale_table,2,0)*$AN48*'Power Scaling'!I$3+VLOOKUP("vdd_int (svt16)",pwr_scale_table,2,0)*$AO48*'Power Scaling'!I$4)*AQ48,IF(OR($I48="AO",$I48="LU"),VLOOKUP($A48&"_"&"vdd_dyn"&"_"&$R48&"",MDB,5,0)*VLOOKUP("vdd_int (svt20)",pwr_scale_table,2,0),IF(OR($I48="LUUA",$I48="LUUB"),VLOOKUP($A48&"_"&"vdd_dyn"&"_"&$R48&"",MDB,5,0)*$C48*$S48*VLOOKUP("vdd_int (svt20)",pwr_scale_table,2,0),VLOOKUP($A48&"_"&"vdd_dyn"&"_"&$R48&"_idle",MDB,5,0)*(1-$S48)+VLOOKUP($A48&"_"&"vdd_dyn"&"_"&$R48&"_read",MDB,5,0)*($S48/2)+VLOOKUP($A48&"_"&"vdd_dyn"&"_"&$R48&"_write",MDB,5,0)*($S48/2)*VLOOKUP("vdd_int (svt20)",pwr_scale_table,2,0)))),0) -> 0 | W48: 2.106469525 | X48: 0 | Y48: 0 | Z48: 0 | AA48: 0 | AB48: 0 | AC48: 0 | AD48: 0 | AE48: 0.475 | AF48: 0.5 | AG48: 0.31 | AH48: 3.4 | AI48: 2.9 | AJ48: 0.01 | AK48: 0 | AL48: 0.05 | AM48: 0.39 | AN48: 0.48 | AO48: 0.06 | AP48: 0.07612964788 | AQ48: 3.08712736 | AR48: The Vx1 macro is a display data standard used on the DLPC8430. It is a receiver only and it's under development. Power is estimated at this time. | AS48: sam62_pll_ctrl_wrap_0 | CA48: MCU McSPI | CB48: Controller_2.083_Mbaud_3p3v | CC48: 1 | CD48: 1 | CJ48: GPU BXS4-64-256KB DUST AM67 | CK48: =IF(R$17=0,Q$17,R$17) -> 720 | CL48: =IF(C$17>0,S$17,0) -> 1
C49: 0 | O49: 0 | Q49: 500 | R49: =SYSCLK -> 500 | S49: 1 | T49: 0 | U49: =IFERROR(IF($I49="SI",AP49*$C49*(VLOOKUP("vdd_lkg (ulvt20)",pwr_scale_table,2,0)*$AJ49*'Power Scaling'!F$7+VLOOKUP("vdd_lkg (ulvt16)",pwr_scale_table,2,0)*$AK49*'Power Scaling'!F$8+VLOOKUP("vdd_lkg (lvt20)",pwr_scale_table,2,0)*$AL49*'Power Scaling'!F$5+VLOOKUP("vdd_lkg (lvt16)",pwr_scale_table,2,0)*AM49*'Power Scaling'!F$6+VLOOKUP("vdd_lkg (svt20)",pwr_scale_table,2,0)*$AN49*'Power Scaling'!F$3+VLOOKUP("vdd_lkg (svt16)",pwr_scale_table,2,0)*$AO49*'Power Scaling'!F$4)*IF(P49="OFF",0.06,1),VLOOKUP($A49&"_"&U$3,MDB,5,0)*$C49*VLOOKUP("vdd_lkg (svt16)",pwr_scale_table,2,0)*IF(P49="OFF",0.06,1)),0) -> 0 | V49: =C49*IFERROR(IF($I49="SI",(AE49*IF(S49=0,0,1)+(AF49-AE49)*S49)*IF(R49>0,R49,Q49)/Q49*(VLOOKUP("vdd_int (ulvt20)",pwr_scale_table,2,0)*$AJ49*'Power Scaling'!I$7+VLOOKUP("vdd_int (ulvt16)",pwr_scale_table,2,0)*$AK49*'Power Scaling'!I$8+VLOOKUP("vdd_int (lvt20)",pwr_scale_table,2,0)*$AL49*'Power Scaling'!I$5+VLOOKUP("vdd_int (lvt16)",pwr_scale_table,2,0)*AM49*'Power Scaling'!I$6+VLOOKUP("vdd_int (svt20)",pwr_scale_table,2,0)*$AN49*'Power Scaling'!I$3+VLOOKUP("vdd_int (svt16)",pwr_scale_table,2,0)*$AO49*'Power Scaling'!I$4)*AQ49,IF(OR($I49="AO",$I49="LU"),VLOOKUP($A49&"_"&"vdd_dyn"&"_"&$R49&"",MDB,5,0)*VLOOKUP("vdd_int (svt20)",pwr_scale_table,2,0),IF(OR($I49="LUUA",$I49="LUUB"),VLOOKUP($A49&"_"&"vdd_dyn"&"_"&$R49&"",MDB,5,0)*$C49*$S49*VLOOKUP("vdd_int (svt20)",pwr_scale_table,2,0),VLOOKUP($A49&"_"&"vdd_dyn"&"_"&$R49&"_idle",MDB,5,0)*(1-$S49)+VLOOKUP($A49&"_"&"vdd_dyn"&"_"&$R49&"_read",MDB,5,0)*($S49/2)+VLOOKUP($A49&"_"&"vdd_dyn"&"_"&$R49&"_write",MDB,5,0)*($S49/2)*VLOOKUP("vdd_int (svt20)",pwr_scale_table,2,0)))),0) -> 0 | W49: 0 | X49: 0 | Y49: 0 | Z49: 0 | AA49: 0 | AB49: 0 | AC49: 0 | AD49: 0 | AE49: 0 | AF49: 0 | AG49: 0 | AH49: 0 | AI49: 0 | AJ49: 0 | AK49: 0 | AL49: 0 | AM49: 0 | AN49: 0 | AO49: 0 | AR49: The Vx1 macro is a display data standard used on the DLPC8430. It is a receiver only and it's under development. Power is estimated at this time. | CA49: MCU MCAN | CB49: 5mbs_3p3v | CC49: 1 | CD49: 1 | CJ49: GPU BXS4-64-256KB Rascal AM67 | CK49: =IF(R$17=0,Q$17,R$17) -> 720 | CL49: =IF(C$17>0,S$17,0) -> 1
A50: sam67_ls_mcu_can | B50: _0 | C50: 1 | D50: 5 | E50: VDD_CORE | F50: N/A | G50: N/A | H50: N/A | I50: SI | J50: GP_Core_CTL | K50: CAN_IO wrap AM62A | L50: sam62a_april_power | M50: 4 Infra | N50: Buffering | O50: 0.2033832645 | P50: ON | Q50: 1066 | R50: =IF(ISBLANK(BD50),0,INDIRECT(BD50)) -> 0 | S50: 1 | T50: 0 | U50: =IFERROR(IF($I50="SI",AP50*$C50*(VLOOKUP("vdd_lkg (ulvt20)",pwr_scale_table,2,0)*$AJ50*'Power Scaling'!F$7+VLOOKUP("vdd_lkg (ulvt16)",pwr_scale_table,2,0)*$AK50*'Power Scaling'!F$8+VLOOKUP("vdd_lkg (lvt20)",pwr_scale_table,2,0)*$AL50*'Power Scaling'!F$5+VLOOKUP("vdd_lkg (lvt16)",pwr_scale_table,2,0)*AM50*'Power Scaling'!F$6+VLOOKUP("vdd_lkg (svt20)",pwr_scale_table,2,0)*$AN50*'Power Scaling'!F$3+VLOOKUP("vdd_lkg (svt16)",pwr_scale_table,2,0)*$AO50*'Power Scaling'!F$4)*IF(P50="OFF",0.06,1),VLOOKUP($A50&"_"&U$3,MDB,5,0)*$C50*VLOOKUP("vdd_lkg (svt16)",pwr_scale_table,2,0)*IF(P50="OFF",0.06,1)),0) -> 0 | V50: =C50*IFERROR(IF($I50="SI",(AE50*IF(S50=0,0,1)+(AF50-AE50)*S50)*IF(R50>0,R50,Q50)/Q50*(VLOOKUP("vdd_int (ulvt20)",pwr_scale_table,2,0)*$AJ50*'Power Scaling'!I$7+VLOOKUP("vdd_int (ulvt16)",pwr_scale_table,2,0)*$AK50*'Power Scaling'!I$8+VLOOKUP("vdd_int (lvt20)",pwr_scale_table,2,0)*$AL50*'Power Scaling'!I$5+VLOOKUP("vdd_int (lvt16)",pwr_scale_table,2,0)*AM50*'Power Scaling'!I$6+VLOOKUP("vdd_int (svt20)",pwr_scale_table,2,0)*$AN50*'Power Scaling'!I$3+VLOOKUP("vdd_int (svt16)",pwr_scale_table,2,0)*$AO50*'Power Scaling'!I$4)*AQ50,IF(OR($I50="AO",$I50="LU"),VLOOKUP($A50&"_"&"vdd_dyn"&"_"&$R50&"",MDB,5,0)*VLOOKUP("vdd_int (svt20)",pwr_scale_table,2,0),IF(OR($I50="LUUA",$I50="LUUB"),VLOOKUP($A50&"_"&"vdd_dyn"&"_"&$R50&"",MDB,5,0)*$C50*$S50*VLOOKUP("vdd_int (svt20)",pwr_scale_table,2,0),VLOOKUP($A50&"_"&"vdd_dyn"&"_"&$R50&"_idle",MDB,5,0)*(1-$S50)+VLOOKUP($A50&"_"&"vdd_dyn"&"_"&$R50&"_read",MDB,5,0)*($S50/2)+VLOOKUP($A50&"_"&"vdd_dyn"&"_"&$R50&"_write",MDB,5,0)*($S50/2)*VLOOKUP("vdd_int (svt20)",pwr_scale_table,2,0)))),0) -> 0 | W50: 0.2033832645 | X50: 0 | Y50: 0 | Z50: 0 | AA50: 0 | AB50: 0 | AC50: 0 | AD50: 0 | AE50: 0 | AF50: 0.4 | AG50: 0.48 | AH50: 0.2 | AI50: 0.7 | AJ50: 0 | AK50: 0 | AL50: 0.06 | AM50: 0.92 | AN50: 0.02 | AO50: 0 | AP50: 0.006581699471 | AQ50: 0.1613578066 | AR50: The Vx1 macro is a display data standard used on the DLPC8430. It is a receiver only and it's under development. Power is estimated at this time. | AS50: sam67_ls_mcu_can_0 | CA50: MCU GPIO | CB50: 1mbs_3p3v_20pf | CC50: 1 | CD50: 5 | CJ50: GPU BXS4-64-256KB Wrap AM67 | CK50: =IF(R$17=0,Q$17,R$17) -> 720 | CL50: =IF(C$17>0,S$17,0) -> 1
A51: j7_n16_edg_lvl_iopm | B51: _0 | C51: 1 | D51: 5 | E51: VDD_CORE | F51: N/A | G51: N/A | H51: N/A | I51: SI | J51: GP_Core_CTL | K51: N16_EDG_LS J7ES | L51: j7aep_pg1 | M51: 4 Infra | N51: Buffering | O51: 0 | P51: ON | Q51: 200 | R51: =IF(ISBLANK(BD51),0,INDIRECT(BD51)) -> 0 | S51: 1 | T51: 0 | U51: =IFERROR(IF($I51="SI",AP51*$C51*(VLOOKUP("vdd_lkg (ulvt20)",pwr_scale_table,2,0)*$AJ51*'Power Scaling'!F$7+VLOOKUP("vdd_lkg (ulvt16)",pwr_scale_table,2,0)*$AK51*'Power Scaling'!F$8+VLOOKUP("vdd_lkg (lvt20)",pwr_scale_table,2,0)*$AL51*'Power Scaling'!F$5+VLOOKUP("vdd_lkg (lvt16)",pwr_scale_table,2,0)*AM51*'Power Scaling'!F$6+VLOOKUP("vdd_lkg (svt20)",pwr_scale_table,2,0)*$AN51*'Power Scaling'!F$3+VLOOKUP("vdd_lkg (svt16)",pwr_scale_table,2,0)*$AO51*'Power Scaling'!F$4)*IF(P51="OFF",0.06,1),VLOOKUP($A51&"_"&U$3,MDB,5,0)*$C51*VLOOKUP("vdd_lkg (svt16)",pwr_scale_table,2,0)*IF(P51="OFF",0.06,1)),0) -> 0 | V51: =C51*IFERROR(IF($I51="SI",(AE51*IF(S51=0,0,1)+(AF51-AE51)*S51)*IF(R51>0,R51,Q51)/Q51*(VLOOKUP("vdd_int (ulvt20)",pwr_scale_table,2,0)*$AJ51*'Power Scaling'!I$7+VLOOKUP("vdd_int (ulvt16)",pwr_scale_table,2,0)*$AK51*'Power Scaling'!I$8+VLOOKUP("vdd_int (lvt20)",pwr_scale_table,2,0)*$AL51*'Power Scaling'!I$5+VLOOKUP("vdd_int (lvt16)",pwr_scale_table,2,0)*AM51*'Power Scaling'!I$6+VLOOKUP("vdd_int (svt20)",pwr_scale_table,2,0)*$AN51*'Power Scaling'!I$3+VLOOKUP("vdd_int (svt16)",pwr_scale_table,2,0)*$AO51*'Power Scaling'!I$4)*AQ51,IF(OR($I51="AO",$I51="LU"),VLOOKUP($A51&"_"&"vdd_dyn"&"_"&$R51&"",MDB,5,0)*VLOOKUP("vdd_int (svt20)",pwr_scale_table,2,0),IF(OR($I51="LUUA",$I51="LUUB"),VLOOKUP($A51&"_"&"vdd_dyn"&"_"&$R51&"",MDB,5,0)*$C51*$S51*VLOOKUP("vdd_int (svt20)",pwr_scale_table,2,0),VLOOKUP($A51&"_"&"vdd_dyn"&"_"&$R51&"_idle",MDB,5,0)*(1-$S51)+VLOOKUP($A51&"_"&"vdd_dyn"&"_"&$R51&"_read",MDB,5,0)*($S51/2)+VLOOKUP($A51&"_"&"vdd_dyn"&"_"&$R51&"_write",MDB,5,0)*($S51/2)*VLOOKUP("vdd_int (svt20)",pwr_scale_table,2,0)))),0) -> 0 | W51: 0 | X51: 0 | Y51: 0 | Z51: 0 | AA51: 0 | AB51: 0 | AC51: 0 | AD51: 0 | AE51: 0 | AF51: 0.4 | AG51: 0.48 | AH51: 0 | AI51: 0 | AJ51: 0 | AK51: 0 | AL51: 0 | AM51: 0 | AN51: 1 | AO51: 0 | AP51: 0 | AR51: The Vx1 macro is a display data standard used on the DLPC8430. It is a receiver only and it's under development. Power is estimated at this time. | AS51: j7_n16_edg_lvl_iopm_0 | CJ51: VPAC3L | CK51: =IF(R20=0,Q20,R20) -> 600 | CL51: =IF(C20>0,S20,0) -> 0
A52: sam62a_can_io_domain | B52: _0 | C52: 1 | D52: 5 | E52: VDD_CORE | F52: N/A | G52: N/A | H52: N/A | I52: SI | J52: GP_Core_CTL | K52: CAN_IO wrap AM62A | L52: sam62a_feb_power | M52: 4 Infra | N52: Buffering | O52: 0.0871642562 | P52: ON | Q52: 1066 | R52: =IF(ISBLANK(BD52),0,INDIRECT(BD52)) -> 0 | S52: 1 | T52: 0 | U52: =IFERROR(IF($I52="SI",AP52*$C52*(VLOOKUP("vdd_lkg (ulvt20)",pwr_scale_table,2,0)*$AJ52*'Power Scaling'!F$7+VLOOKUP("vdd_lkg (ulvt16)",pwr_scale_table,2,0)*$AK52*'Power Scaling'!F$8+VLOOKUP("vdd_lkg (lvt20)",pwr_scale_table,2,0)*$AL52*'Power Scaling'!F$5+VLOOKUP("vdd_lkg (lvt16)",pwr_scale_table,2,0)*AM52*'Power Scaling'!F$6+VLOOKUP("vdd_lkg (svt20)",pwr_scale_table,2,0)*$AN52*'Power Scaling'!F$3+VLOOKUP("vdd_lkg (svt16)",pwr_scale_table,2,0)*$AO52*'Power Scaling'!F$4)*IF(P52="OFF",0.06,1),VLOOKUP($A52&"_"&U$3,MDB,5,0)*$C52*VLOOKUP("vdd_lkg (svt16)",pwr_scale_table,2,0)*IF(P52="OFF",0.06,1)),0) -> 0 | V52: =C52*IFERROR(IF($I52="SI",(AE52*IF(S52=0,0,1)+(AF52-AE52)*S52)*IF(R52>0,R52,Q52)/Q52*(VLOOKUP("vdd_int (ulvt20)",pwr_scale_table,2,0)*$AJ52*'Power Scaling'!I$7+VLOOKUP("vdd_int (ulvt16)",pwr_scale_table,2,0)*$AK52*'Power Scaling'!I$8+VLOOKUP("vdd_int (lvt20)",pwr_scale_table,2,0)*$AL52*'Power Scaling'!I$5+VLOOKUP("vdd_int (lvt16)",pwr_scale_table,2,0)*AM52*'Power Scaling'!I$6+VLOOKUP("vdd_int (svt20)",pwr_scale_table,2,0)*$AN52*'Power Scaling'!I$3+VLOOKUP("vdd_int (svt16)",pwr_scale_table,2,0)*$AO52*'Power Scaling'!I$4)*AQ52,IF(OR($I52="AO",$I52="LU"),VLOOKUP($A52&"_"&"vdd_dyn"&"_"&$R52&"",MDB,5,0)*VLOOKUP("vdd_int (svt20)",pwr_scale_table,2,0),IF(OR($I52="LUUA",$I52="LUUB"),VLOOKUP($A52&"_"&"vdd_dyn"&"_"&$R52&"",MDB,5,0)*$C52*$S52*VLOOKUP("vdd_int (svt20)",pwr_scale_table,2,0),VLOOKUP($A52&"_"&"vdd_dyn"&"_"&$R52&"_idle",MDB,5,0)*(1-$S52)+VLOOKUP($A52&"_"&"vdd_dyn"&"_"&$R52&"_read",MDB,5,0)*($S52/2)+VLOOKUP($A52&"_"&"vdd_dyn"&"_"&$R52&"_write",MDB,5,0)*($S52/2)*VLOOKUP("vdd_int (svt20)",pwr_scale_table,2,0)))),0) -> 0 | W52: 0.0871642562 | X52: 0 | Y52: 0 | Z52: 0 | AA52: 0 | AB52: 0 | AC52: 0 | AD52: 0 | AE52: 0 | AF52: 0.4 | AG52: 0.48 | AH52: 0.1 | AI52: 0.3 | AJ52: 0 | AK52: 0 | AL52: 0 | AM52: 0 | AN52: 1 | AO52: 0 | AP52: 0 | AQ52: 0.1 | AR52: The Vx1 macro is a display data standard used on the DLPC8430. It is a receiver only and it's under development. Power is estimated at this time. | AS52: sam62a_can_io_domain_0 | CA52: LVCMOS IO | CB52: Mode | CC52: Utilization | CD52: Instances | CJ52: DMPAC | CK52: =IF(R21=0,Q21,R21) -> 428 | CL52: =IF(C21>0,S21,0) -> 0
A53: sam67_main_infra_phys | B53: _0 | C53: 1 | D53: 4 | E53: VDD_CORE | F53: N/A | G53: N/A | H53: N/A | I53: SI | J53: GP_Core_CTL | K53: Main_infra AM67 | L53: sam62p_nov_power | M53: 4 Infra | N53: Mix | O53: 11.68001033 | P53: ON | Q53: 250 | R53: =SYSCLK/2 -> 250 | S53: 1 | T53: 0 | U53: =IFERROR(IF($I53="SI",AP53*$C53*(VLOOKUP("vdd_lkg (ulvt20)",pwr_scale_table,2,0)*$AJ53*'Power Scaling'!F$7+VLOOKUP("vdd_lkg (ulvt16)",pwr_scale_table,2,0)*$AK53*'Power Scaling'!F$8+VLOOKUP("vdd_lkg (lvt20)",pwr_scale_table,2,0)*$AL53*'Power Scaling'!F$5+VLOOKUP("vdd_lkg (lvt16)",pwr_scale_table,2,0)*AM53*'Power Scaling'!F$6+VLOOKUP("vdd_lkg (svt20)",pwr_scale_table,2,0)*$AN53*'Power Scaling'!F$3+VLOOKUP("vdd_lkg (svt16)",pwr_scale_table,2,0)*$AO53*'Power Scaling'!F$4)*IF(P53="OFF",0.06,1),VLOOKUP($A53&"_"&U$3,MDB,5,0)*$C53*VLOOKUP("vdd_lkg (svt16)",pwr_scale_table,2,0)*IF(P53="OFF",0.06,1)),0) -> 0 | V53: =C53*IFERROR(IF($I53="SI",(AE53*IF(S53=0,0,1)+(AF53-AE53)*S53)*IF(R53>0,R53,Q53)/Q53*(VLOOKUP("vdd_int (ulvt20)",pwr_scale_table,2,0)*$AJ53*'Power Scaling'!I$7+VLOOKUP("vdd_int (ulvt16)",pwr_scale_table,2,0)*$AK53*'Power Scaling'!I$8+VLOOKUP("vdd_int (lvt20)",pwr_scale_table,2,0)*$AL53*'Power Scaling'!I$5+VLOOKUP("vdd_int (lvt16)",pwr_scale_table,2,0)*AM53*'Power Scaling'!I$6+VLOOKUP("vdd_int (svt20)",pwr_scale_table,2,0)*$AN53*'Power Scaling'!I$3+VLOOKUP("vdd_int (svt16)",pwr_scale_table,2,0)*$AO53*'Power Scaling'!I$4)*AQ53,IF(OR($I53="AO",$I53="LU"),VLOOKUP($A53&"_"&"vdd_dyn"&"_"&$R53&"",MDB,5,0)*VLOOKUP("vdd_int (svt20)",pwr_scale_table,2,0),IF(OR($I53="LUUA",$I53="LUUB"),VLOOKUP($A53&"_"&"vdd_dyn"&"_"&$R53&"",MDB,5,0)*$C53*$S53*VLOOKUP("vdd_int (svt20)",pwr_scale_table,2,0),VLOOKUP($A53&"_"&"vdd_dyn"&"_"&$R53&"_idle",MDB,5,0)*(1-$S53)+VLOOKUP($A53&"_"&"vdd_dyn"&"_"&$R53&"_read",MDB,5,0)*($S53/2)+VLOOKUP($A53&"_"&"vdd_dyn"&"_"&$R53&"_write",MDB,5,0)*($S53/2)*VLOOKUP("vdd_int (svt20)",pwr_scale_table,2,0)))),0) -> 0 | W53: 11.68001033 | X53: 0 | Y53: 0 | Z53: 0 | AA53: 0 | AB53: 0 | AC53: 0 | AD53: 0 | AE53: 0.219 | AF53: 0.4 | AG53: 0.48 | AH53: 33.3 | AI53: 40.2 | AJ53: 0 | AK53: 0 | AL53: 0 | AM53: 0.18 | AN53: 0.77 | AO53: 0.05 | AP53: 3.032027603 | AQ53: 31.93038294 | AR53: The Vx1 macro is a display data standard used on the DLPC8430. It is a receiver only and it's under development. Power is estimated at this time. | AS53: sam67_main_infra_phys_0 | CA53: MAIN GPIO | CB53: 1mbs_1p8v_20pf | CC53: 1 | CD53: 30 | CJ53: WAVE521CL Video Codec | CK53: =IF(R23=0,Q23,R23) -> 100 | CL53: =IF(C23>0,S23,0) -> 1
A54: sam62p_main_ip_wrap | B54: _0 | C54: 1 | D54: 6 | E54: VDD_CORE | F54: N/A | G54: N/A | H54: N/A | I54: SI | J54: PD_HSM | K54: Main_IP AM62P_J7AEN | L54: sam62p_march_c2end_power | M54: 4 Infra | N54: Mix | O54: 66.71401085 | P54: ON | Q54: 290 | R54: =SYSCLK*290/500 -> 290 | S54: =MAX(AVERAGE(S8:S11),S44)*0.4 -> 0.4 | T54: 0 | U54: =IFERROR(IF($I54="SI",AP54*$C54*(VLOOKUP("vdd_lkg (ulvt20)",pwr_scale_table,2,0)*$AJ54*'Power Scaling'!F$7+VLOOKUP("vdd_lkg (ulvt16)",pwr_scale_table,2,0)*$AK54*'Power Scaling'!F$8+VLOOKUP("vdd_lkg (lvt20)",pwr_scale_table,2,0)*$AL54*'Power Scaling'!F$5+VLOOKUP("vdd_lkg (lvt16)",pwr_scale_table,2,0)*AM54*'Power Scaling'!F$6+VLOOKUP("vdd_lkg (svt20)",pwr_scale_table,2,0)*$AN54*'Power Scaling'!F$3+VLOOKUP("vdd_lkg (svt16)",pwr_scale_table,2,0)*$AO54*'Power Scaling'!F$4)*IF(P54="OFF",0.06,1),VLOOKUP($A54&"_"&U$3,MDB,5,0)*$C54*VLOOKUP("vdd_lkg (svt16)",pwr_scale_table,2,0)*IF(P54="OFF",0.06,1)),0) -> 0 | V54: =C54*IFERROR(IF($I54="SI",(AE54*IF(S54=0,0,1)+(AF54-AE54)*S54)*IF(R54>0,R54,Q54)/Q54*(VLOOKUP("vdd_int (ulvt20)",pwr_scale_table,2,0)*$AJ54*'Power Scaling'!I$7+VLOOKUP("vdd_int (ulvt16)",pwr_scale_table,2,0)*$AK54*'Power Scaling'!I$8+VLOOKUP("vdd_int (lvt20)",pwr_scale_table,2,0)*$AL54*'Power Scaling'!I$5+VLOOKUP("vdd_int (lvt16)",pwr_scale_table,2,0)*AM54*'Power Scaling'!I$6+VLOOKUP("vdd_int (svt20)",pwr_scale_table,2,0)*$AN54*'Power Scaling'!I$3+VLOOKUP("vdd_int (svt16)",pwr_scale_table,2,0)*$AO54*'Power Scaling'!I$4)*AQ54,IF(OR($I54="AO",$I54="LU"),VLOOKUP($A54&"_"&"vdd_dyn"&"_"&$R54&"",MDB,5,0)*VLOOKUP("vdd_int (svt20)",pwr_scale_table,2,0),IF(OR($I54="LUUA",$I54="LUUB"),VLOOKUP($A54&"_"&"vdd_dyn"&"_"&$R54&"",MDB,5,0)*$C54*$S54*VLOOKUP("vdd_int (svt20)",pwr_scale_table,2,0),VLOOKUP($A54&"_"&"vdd_dyn"&"_"&$R54&"_idle",MDB,5,0)*(1-$S54)+VLOOKUP($A54&"_"&"vdd_dyn"&"_"&$R54&"_read",MDB,5,0)*($S54/2)+VLOOKUP($A54&"_"&"vdd_dyn"&"_"&$R54&"_write",MDB,5,0)*($S54/2)*VLOOKUP("vdd_int (svt20)",pwr_scale_table,2,0)))),0) -> 0 | W54: 66.71401085 | X54: 0 | Y54: 0 | Z54: 0 | AA54: 0 | AB54: 0 | AC54: 0 | AD54: 0 | AE54: 0.068 | AF54: 0.4 | AG54: 0.48 | AH54: 379.5 | AI54: 457.4 | AJ54: 0 | AK54: 0 | AL54: 0.05 | AM54: 0.09 | AN54: 0.65 | AO54: 0.21 | AP54: 26.56776356 | AQ54: 368.520603 | AR54: The Vx1 macro is a display data standard used on the DLPC8430. It is a receiver only and it's under development. Power is estimated at this time. | AS54: sam62p_main_ip_wrap_0 | CA54: MAIN I2C | CB54: i2c_400k_3p3v | CC54: 1 | CD54: 3 | CJ54: CSI_RX | CK54: =IF(R29=0,Q29,R29) -> 720 | CL54: =IF(C29>0,S29,0) -> 0.1
A55: sam62p_main_rt_wrap | B55: _0 | C55: 1 | D55: 1 | E55: VDD_CORE | F55: N/A | G55: N/A | H55: N/A | I55: SI | J55: PD_HSM | K55: dmss csi + secondary main cbass | L55: sam62p_pg10_weekly_20230328 | M55: 4 Infra | N55: Mix | O55: 17.17061351 | P55: ON | Q55: 290 | R55: =SYSCLK*290/500 -> 290 | S55: =AVERAGE(S12,S24:S26,S29,S35,S42)*0.8 -> 0.6697142857 | T55: 0 | U55: =IFERROR(IF($I55="SI",AP55*$C55*(VLOOKUP("vdd_lkg (ulvt20)",pwr_scale_table,2,0)*$AJ55*'Power Scaling'!F$7+VLOOKUP("vdd_lkg (ulvt16)",pwr_scale_table,2,0)*$AK55*'Power Scaling'!F$8+VLOOKUP("vdd_lkg (lvt20)",pwr_scale_table,2,0)*$AL55*'Power Scaling'!F$5+VLOOKUP("vdd_lkg (lvt16)",pwr_scale_table,2,0)*AM55*'Power Scaling'!F$6+VLOOKUP("vdd_lkg (svt20)",pwr_scale_table,2,0)*$AN55*'Power Scaling'!F$3+VLOOKUP("vdd_lkg (svt16)",pwr_scale_table,2,0)*$AO55*'Power Scaling'!F$4)*IF(P55="OFF",0.06,1),VLOOKUP($A55&"_"&U$3,MDB,5,0)*$C55*VLOOKUP("vdd_lkg (svt16)",pwr_scale_table,2,0)*IF(P55="OFF",0.06,1)),0) -> 0 | V55: =C55*IFERROR(IF($I55="SI",(AE55*IF(S55=0,0,1)+(AF55-AE55)*S55)*IF(R55>0,R55,Q55)/Q55*(VLOOKUP("vdd_int (ulvt20)",pwr_scale_table,2,0)*$AJ55*'Power Scaling'!I$7+VLOOKUP("vdd_int (ulvt16)",pwr_scale_table,2,0)*$AK55*'Power Scaling'!I$8+VLOOKUP("vdd_int (lvt20)",pwr_scale_table,2,0)*$AL55*'Power Scaling'!I$5+VLOOKUP("vdd_int (lvt16)",pwr_scale_table,2,0)*AM55*'Power Scaling'!I$6+VLOOKUP("vdd_int (svt20)",pwr_scale_table,2,0)*$AN55*'Power Scaling'!I$3+VLOOKUP("vdd_int (svt16)",pwr_scale_table,2,0)*$AO55*'Power Scaling'!I$4)*AQ55,IF(OR($I55="AO",$I55="LU"),VLOOKUP($A55&"_"&"vdd_dyn"&"_"&$R55&"",MDB,5,0)*VLOOKUP("vdd_int (svt20)",pwr_scale_table,2,0),IF(OR($I55="LUUA",$I55="LUUB"),VLOOKUP($A55&"_"&"vdd_dyn"&"_"&$R55&"",MDB,5,0)*$C55*$S55*VLOOKUP("vdd_int (svt20)",pwr_scale_table,2,0),VLOOKUP($A55&"_"&"vdd_dyn"&"_"&$R55&"_idle",MDB,5,0)*(1-$S55)+VLOOKUP($A55&"_"&"vdd_dyn"&"_"&$R55&"_read",MDB,5,0)*($S55/2)+VLOOKUP($A55&"_"&"vdd_dyn"&"_"&$R55&"_write",MDB,5,0)*($S55/2)*VLOOKUP("vdd_int (svt20)",pwr_scale_table,2,0)))),0) -> 0 | W55: 17.17061351 | X55: 0 | Y55: 0 | Z55: 0 | AA55: 0 | AB55: 0 | AC55: 0 | AD55: 0 | AE55: 0.043 | AF55: 0.4 | AG55: 0.48 | AH55: 86.7 | AI55: 83.8 | AJ55: 0 | AK55: 0 | AL55: 0.08 | AM55: 0.15 | AN55: 0.51 | AO55: 0.27 | AP55: 3.779585483 | AQ55: 81.75015175 | AR55: The Vx1 macro is a display data standard used on the DLPC8430. It is a receiver only and it's under development. Power is estimated at this time. | AS55: sam62p_main_rt_wrap_0 | CA55: MAIN UART | CB55: 3p6m_1p8v | CC55: 1 | CD55: 5 | CJ55: CSI_RX | CK55: =IF(R30=0,Q30,R30) -> 720 | CL55: =IF(C30>0,S30,0) -> 0
A56: sam67_mcu_infra_phys | B56: _0 | C56: 1 | D56: 4 | E56: VDD_CORE | F56: N/A | G56: N/A | H56: N/A | I56: SI | J56: GP_Core_CTL_MCU | K56: MCU_INFRA_WAKEUP AM62A | L56: sam62p_march_c2end_power | M56: 4 Infra | N56: Mix | O56: 4.009555785 | P56: ON | Q56: 200 | R56: =MCU_SYSCLK/2 -> 200 | S56: 1 | T56: 0 | U56: =IFERROR(IF($I56="SI",AP56*$C56*(VLOOKUP("vdd_lkg (ulvt20)",pwr_scale_table,2,0)*$AJ56*'Power Scaling'!F$7+VLOOKUP("vdd_lkg (ulvt16)",pwr_scale_table,2,0)*$AK56*'Power Scaling'!F$8+VLOOKUP("vdd_lkg (lvt20)",pwr_scale_table,2,0)*$AL56*'Power Scaling'!F$5+VLOOKUP("vdd_lkg (lvt16)",pwr_scale_table,2,0)*AM56*'Power Scaling'!F$6+VLOOKUP("vdd_lkg (svt20)",pwr_scale_table,2,0)*$AN56*'Power Scaling'!F$3+VLOOKUP("vdd_lkg (svt16)",pwr_scale_table,2,0)*$AO56*'Power Scaling'!F$4)*IF(P56="OFF",0.06,1),VLOOKUP($A56&"_"&U$3,MDB,5,0)*$C56*VLOOKUP("vdd_lkg (svt16)",pwr_scale_table,2,0)*IF(P56="OFF",0.06,1)),0) -> 0 | V56: =C56*IFERROR(IF($I56="SI",(AE56*IF(S56=0,0,1)+(AF56-AE56)*S56)*IF(R56>0,R56,Q56)/Q56*(VLOOKUP("vdd_int (ulvt20)",pwr_scale_table,2,0)*$AJ56*'Power Scaling'!I$7+VLOOKUP("vdd_int (ulvt16)",pwr_scale_table,2,0)*$AK56*'Power Scaling'!I$8+VLOOKUP("vdd_int (lvt20)",pwr_scale_table,2,0)*$AL56*'Power Scaling'!I$5+VLOOKUP("vdd_int (lvt16)",pwr_scale_table,2,0)*AM56*'Power Scaling'!I$6+VLOOKUP("vdd_int (svt20)",pwr_scale_table,2,0)*$AN56*'Power Scaling'!I$3+VLOOKUP("vdd_int (svt16)",pwr_scale_table,2,0)*$AO56*'Power Scaling'!I$4)*AQ56,IF(OR($I56="AO",$I56="LU"),VLOOKUP($A56&"_"&"vdd_dyn"&"_"&$R56&"",MDB,5,0)*VLOOKUP("vdd_int (svt20)",pwr_scale_table,2,0),IF(OR($I56="LUUA",$I56="LUUB"),VLOOKUP($A56&"_"&"vdd_dyn"&"_"&$R56&"",MDB,5,0)*$C56*$S56*VLOOKUP("vdd_int (svt20)",pwr_scale_table,2,0),VLOOKUP($A56&"_"&"vdd_dyn"&"_"&$R56&"_idle",MDB,5,0)*(1-$S56)+VLOOKUP($A56&"_"&"vdd_dyn"&"_"&$R56&"_read",MDB,5,0)*($S56/2)+VLOOKUP($A56&"_"&"vdd_dyn"&"_"&$R56&"_write",MDB,5,0)*($S56/2)*VLOOKUP("vdd_int (svt20)",pwr_scale_table,2,0)))),0) -> 0 | W56: 4.009555785 | X56: 0 | Y56: 0 | Z56: 0 | AA56: 0 | AB56: 0 | AC56: 0 | AD56: 0 | AE56: 0.205 | AF56: 0.48 | AG56: 0.58 | AH56: 9.2 | AI56: 11.5 | AJ56: 0 | AK56: 0 | AL56: 0 | AM56: 0.11 | AN56: 0.87 | AO56: 0.02 | AP56: 1.204770288 | AQ56: 8.963026192 | AR56: The Vx1 macro is a display data standard used on the DLPC8430. It is a receiver only and it's under development. Power is estimated at this time. | AS56: sam67_mcu_infra_phys_0 | CA56: MAIN McSPI | CB56: Controller_3.125_Mbaud_3p3v | CC56: 1 | CD56: 3 | CJ56: CSI_RX | CK56: =IF(R31=0,Q31,R31) -> 720 | CL56: =IF(C31>0,S31,0) -> 0
A57: sam67_mcu_wrap | B57: _0 | C57: 1 | D57: 3 | E57: VDD_CORE | F57: N/A | G57: N/A | H57: N/A | I57: SI | J57: PD_Pulsar_MCU | K57: MCUSS AM62A | L57: sam62p_may_c3end_base_pg_power | M57: 4 Infra | N57: Mix | O57: 23.08109792 | P57: ON | Q57: 266.6666667 | R57: =MCU_WRAP/2*266.6667/400 -> 266.6667 | S57: =S4 -> 1 | T57: 0 | U57: =IFERROR(IF($I57="SI",AP57*$C57*(VLOOKUP("vdd_lkg (ulvt20)",pwr_scale_table,2,0)*$AJ57*'Power Scaling'!F$7+VLOOKUP("vdd_lkg (ulvt16)",pwr_scale_table,2,0)*$AK57*'Power Scaling'!F$8+VLOOKUP("vdd_lkg (lvt20)",pwr_scale_table,2,0)*$AL57*'Power Scaling'!F$5+VLOOKUP("vdd_lkg (lvt16)",pwr_scale_table,2,0)*AM57*'Power Scaling'!F$6+VLOOKUP("vdd_lkg (svt20)",pwr_scale_table,2,0)*$AN57*'Power Scaling'!F$3+VLOOKUP("vdd_lkg (svt16)",pwr_scale_table,2,0)*$AO57*'Power Scaling'!F$4)*IF(P57="OFF",0.06,1),VLOOKUP($A57&"_"&U$3,MDB,5,0)*$C57*VLOOKUP("vdd_lkg (svt16)",pwr_scale_table,2,0)*IF(P57="OFF",0.06,1)),0) -> 0 | V57: =C57*IFERROR(IF($I57="SI",(AE57*IF(S57=0,0,1)+(AF57-AE57)*S57)*IF(R57>0,R57,Q57)/Q57*(VLOOKUP("vdd_int (ulvt20)",pwr_scale_table,2,0)*$AJ57*'Power Scaling'!I$7+VLOOKUP("vdd_int (ulvt16)",pwr_scale_table,2,0)*$AK57*'Power Scaling'!I$8+VLOOKUP("vdd_int (lvt20)",pwr_scale_table,2,0)*$AL57*'Power Scaling'!I$5+VLOOKUP("vdd_int (lvt16)",pwr_scale_table,2,0)*AM57*'Power Scaling'!I$6+VLOOKUP("vdd_int (svt20)",pwr_scale_table,2,0)*$AN57*'Power Scaling'!I$3+VLOOKUP("vdd_int (svt16)",pwr_scale_table,2,0)*$AO57*'Power Scaling'!I$4)*AQ57,IF(OR($I57="AO",$I57="LU"),VLOOKUP($A57&"_"&"vdd_dyn"&"_"&$R57&"",MDB,5,0)*VLOOKUP("vdd_int (svt20)",pwr_scale_table,2,0),IF(OR($I57="LUUA",$I57="LUUB"),VLOOKUP($A57&"_"&"vdd_dyn"&"_"&$R57&"",MDB,5,0)*$C57*$S57*VLOOKUP("vdd_int (svt20)",pwr_scale_table,2,0),VLOOKUP($A57&"_"&"vdd_dyn"&"_"&$R57&"_idle",MDB,5,0)*(1-$S57)+VLOOKUP($A57&"_"&"vdd_dyn"&"_"&$R57&"_read",MDB,5,0)*($S57/2)+VLOOKUP($A57&"_"&"vdd_dyn"&"_"&$R57&"_write",MDB,5,0)*($S57/2)*VLOOKUP("vdd_int (svt20)",pwr_scale_table,2,0)))),0) -> 0 | W57: 23.08109792 | X57: 0 | Y57: 0 | Z57: 0 | AA57: 0 | AB57: 0 | AC57: 0 | AD57: 0 | AE57: 0.126 | AF57: 0.48 | AG57: 0.58 | AH57: 65.6 | AI57: 66.2 | AJ57: 0 | AK57: 0 | AL57: 0.04 | AM57: 0.08 | AN57: 0.67 | AO57: 0.22 | AP57: 6.648132304 | AQ57: 63.4015794 | AR57: The Vx1 macro is a display data standard used on the DLPC8430. It is a receiver only and it's under development. Power is estimated at this time. | AS57: sam67_mcu_wrap_0 | CA57: MAIN McASP | CB57: 16Ch_TX_48_ksps_24b_3p3v | CC57: 1 | CD57: 3 | CJ57: CSI_RX | CK57: =IF(R32=0,Q32,R32) -> 720 | CL57: =IF(C32>0,S32,0) -> 0
A58: sam67_sec_wrap | B58: _0 | C58: 1 | D58: 2 | E58: VDD_CORE | F58: N/A | G58: N/A | H58: N/A | I58: SI | J58: PD_HSM | K58: HSM AM67 | L58: sam62p_may_c3end_base_pg_power | M58: 4 Infra | N58: Security | O58: 30.72292702 | P58: ON | Q58: 400 | R58: =SEC_WRAP -> 400 | S58: 0.05 | T58: 0 | U58: =IFERROR(IF($I58="SI",AP58*$C58*(VLOOKUP("vdd_lkg (ulvt20)",pwr_scale_table,2,0)*$AJ58*'Power Scaling'!F$7+VLOOKUP("vdd_lkg (ulvt16)",pwr_scale_table,2,0)*$AK58*'Power Scaling'!F$8+VLOOKUP("vdd_lkg (lvt20)",pwr_scale_table,2,0)*$AL58*'Power Scaling'!F$5+VLOOKUP("vdd_lkg (lvt16)",pwr_scale_table,2,0)*AM58*'Power Scaling'!F$6+VLOOKUP("vdd_lkg (svt20)",pwr_scale_table,2,0)*$AN58*'Power Scaling'!F$3+VLOOKUP("vdd_lkg (svt16)",pwr_scale_table,2,0)*$AO58*'Power Scaling'!F$4)*IF(P58="OFF",0.06,1),VLOOKUP($A58&"_"&U$3,MDB,5,0)*$C58*VLOOKUP("vdd_lkg (svt16)",pwr_scale_table,2,0)*IF(P58="OFF",0.06,1)),0) -> 0 | V58: =C58*IFERROR(IF($I58="SI",(AE58*IF(S58=0,0,1)+(AF58-AE58)*S58)*IF(R58>0,R58,Q58)/Q58*(VLOOKUP("vdd_int (ulvt20)",pwr_scale_table,2,0)*$AJ58*'Power Scaling'!I$7+VLOOKUP("vdd_int (ulvt16)",pwr_scale_table,2,0)*$AK58*'Power Scaling'!I$8+VLOOKUP("vdd_int (lvt20)",pwr_scale_table,2,0)*$AL58*'Power Scaling'!I$5+VLOOKUP("vdd_int (lvt16)",pwr_scale_table,2,0)*AM58*'Power Scaling'!I$6+VLOOKUP("vdd_int (svt20)",pwr_scale_table,2,0)*$AN58*'Power Scaling'!I$3+VLOOKUP("vdd_int (svt16)",pwr_scale_table,2,0)*$AO58*'Power Scaling'!I$4)*AQ58,IF(OR($I58="AO",$I58="LU"),VLOOKUP($A58&"_"&"vdd_dyn"&"_"&$R58&"",MDB,5,0)*VLOOKUP("vdd_int (svt20)",pwr_scale_table,2,0),IF(OR($I58="LUUA",$I58="LUUB"),VLOOKUP($A58&"_"&"vdd_dyn"&"_"&$R58&"",MDB,5,0)*$C58*$S58*VLOOKUP("vdd_int (svt20)",pwr_scale_table,2,0),VLOOKUP($A58&"_"&"vdd_dyn"&"_"&$R58&"_idle",MDB,5,0)*(1-$S58)+VLOOKUP($A58&"_"&"vdd_dyn"&"_"&$R58&"_read",MDB,5,0)*($S58/2)+VLOOKUP($A58&"_"&"vdd_dyn"&"_"&$R58&"_write",MDB,5,0)*($S58/2)*VLOOKUP("vdd_int (svt20)",pwr_scale_table,2,0)))),0) -> 0 | W58: 30.72292702 | X58: 0 | Y58: 0 | Z58: 0 | AA58: 0 | AB58: 0 | AC58: 0 | AD58: 0 | AE58: 0.119 | AF58: 0.4 | AG58: 0.48 | AH58: 305.9 | AI58: 317.9 | AJ58: 0.01 | AK58: 0 | AL58: 0.05 | AM58: 0.07 | AN58: 0.63 | AO58: 0.24 | AP58: 17.63275727 | AQ58: 297.1832122 | AR58: The Vx1 macro is a display data standard used on the DLPC8430. It is a receiver only and it's under development. Power is estimated at this time. | AS58: sam67_sec_wrap_0 | CA58: MAIN ECAP | CB58: unused | CC58: 1 | CD58: 0 | CJ58: CSI_TX | CK58: =IF(R33=0,Q33,R33) -> 720 | CL58: =IF(C33>0,S33,0) -> 0
A59: sam62p_core | B59: _0 | C59: 1 | D59: 5 | E59: VDD_CORE | F59: N/A | G59: N/A | H59: N/A | I59: SI | J59: GP_Core_CTL | K59: AM62P Top | L59: 28-Nov | M59: 4 Infra | N59: Top | O59: 30.05162061 | P59: ON | Q59: 250 | R59: =SYSCLK/2 -> 250 | S59: 0.4 | T59: 0 | U59: =IFERROR(IF($I59="SI",AP59*$C59*(VLOOKUP("vdd_lkg (ulvt20)",pwr_scale_table,2,0)*$AJ59*'Power Scaling'!F$7+VLOOKUP("vdd_lkg (ulvt16)",pwr_scale_table,2,0)*$AK59*'Power Scaling'!F$8+VLOOKUP("vdd_lkg (lvt20)",pwr_scale_table,2,0)*$AL59*'Power Scaling'!F$5+VLOOKUP("vdd_lkg (lvt16)",pwr_scale_table,2,0)*AM59*'Power Scaling'!F$6+VLOOKUP("vdd_lkg (svt20)",pwr_scale_table,2,0)*$AN59*'Power Scaling'!F$3+VLOOKUP("vdd_lkg (svt16)",pwr_scale_table,2,0)*$AO59*'Power Scaling'!F$4)*IF(P59="OFF",0.06,1),VLOOKUP($A59&"_"&U$3,MDB,5,0)*$C59*VLOOKUP("vdd_lkg (svt16)",pwr_scale_table,2,0)*IF(P59="OFF",0.06,1)),0) -> 0 | V59: =C59*IFERROR(IF($I59="SI",(AE59*IF(S59=0,0,1)+(AF59-AE59)*S59)*IF(R59>0,R59,Q59)/Q59*(VLOOKUP("vdd_int (ulvt20)",pwr_scale_table,2,0)*$AJ59*'Power Scaling'!I$7+VLOOKUP("vdd_int (ulvt16)",pwr_scale_table,2,0)*$AK59*'Power Scaling'!I$8+VLOOKUP("vdd_int (lvt20)",pwr_scale_table,2,0)*$AL59*'Power Scaling'!I$5+VLOOKUP("vdd_int (lvt16)",pwr_scale_table,2,0)*AM59*'Power Scaling'!I$6+VLOOKUP("vdd_int (svt20)",pwr_scale_table,2,0)*$AN59*'Power Scaling'!I$3+VLOOKUP("vdd_int (svt16)",pwr_scale_table,2,0)*$AO59*'Power Scaling'!I$4)*AQ59,IF(OR($I59="AO",$I59="LU"),VLOOKUP($A59&"_"&"vdd_dyn"&"_"&$R59&"",MDB,5,0)*VLOOKUP("vdd_int (svt20)",pwr_scale_table,2,0),IF(OR($I59="LUUA",$I59="LUUB"),VLOOKUP($A59&"_"&"vdd_dyn"&"_"&$R59&"",MDB,5,0)*$C59*$S59*VLOOKUP("vdd_int (svt20)",pwr_scale_table,2,0),VLOOKUP($A59&"_"&"vdd_dyn"&"_"&$R59&"_idle",MDB,5,0)*(1-$S59)+VLOOKUP($A59&"_"&"vdd_dyn"&"_"&$R59&"_read",MDB,5,0)*($S59/2)+VLOOKUP($A59&"_"&"vdd_dyn"&"_"&$R59&"_write",MDB,5,0)*($S59/2)*VLOOKUP("vdd_int (svt20)",pwr_scale_table,2,0)))),0) -> 0 | W59: 30.05162061 | X59: 0 | Y59: 0 | Z59: 0 | AA59: 0 | AB59: 0 | AC59: 0 | AD59: 0 | AE59: 0.233 | AF59: 0.4 | AG59: 0.48 | AH59: 138 | AI59: 138 | AJ59: 0.012 | AK59: 0.006 | AL59: 0.292 | AM59: 0.343 | AN59: 0.213 | AO59: 0.134 | AP59: 5.278162409 | AQ59: 118.7135984 | AR59: The Vx1 macro is a display data standard used on the DLPC8430. It is a receiver only and it's under development. Power is estimated at this time. | AS59: sam62p_core_0 | CA59: MAIN EPWM | CB59: on_1p8v | CC59: 1 | CD59: 3 | CJ59: CPSW3x | CK59: =IF(R22=0,Q22,R22) -> 250 | CL59: =IF(C22>0,S22,0) -> 1
A60: DIVTS16FFC1TO128A | B60: _main | C60: 40 | D60: 5 | E60: VDD_CORE | F60: N/A | G60: N/A | H60: N/A | I60: LU | J60: GP_Core_CTL | K60: HSDIVIDER | L60: 10/30/2021 | M60: 5 Analog | N60: Clocking | O60: 0 | P60: ON | Q60: 0 | R60: 400 | S60: 1 | T60: 0 | U60: =IFERROR(IF($I60="SI",AP60*$C60*(VLOOKUP("vdd_lkg (ulvt20)",pwr_scale_table,2,0)*$AJ60*'Power Scaling'!F$7+VLOOKUP("vdd_lkg (ulvt16)",pwr_scale_table,2,0)*$AK60*'Power Scaling'!F$8+VLOOKUP("vdd_lkg (lvt20)",pwr_scale_table,2,0)*$AL60*'Power Scaling'!F$5+VLOOKUP("vdd_lkg (lvt16)",pwr_scale_table,2,0)*AM60*'Power Scaling'!F$6+VLOOKUP("vdd_lkg (svt20)",pwr_scale_table,2,0)*$AN60*'Power Scaling'!F$3+VLOOKUP("vdd_lkg (svt16)",pwr_scale_table,2,0)*$AO60*'Power Scaling'!F$4)*IF(P60="OFF",0.06,1),VLOOKUP($A60&"_"&U$3,MDB,5,0)*$C60*VLOOKUP("vdd_lkg (svt16)",pwr_scale_table,2,0)*IF(P60="OFF",0.06,1)),0) -> 0 | V60: =C60*IFERROR(IF($I60="SI",(AE60*IF(S60=0,0,1)+(AF60-AE60)*S60)*IF(R60>0,R60,Q60)/Q60*(VLOOKUP("vdd_int (ulvt20)",pwr_scale_table,2,0)*$AJ60*'Power Scaling'!I$7+VLOOKUP("vdd_int (ulvt16)",pwr_scale_table,2,0)*$AK60*'Power Scaling'!I$8+VLOOKUP("vdd_int (lvt20)",pwr_scale_table,2,0)*$AL60*'Power Scaling'!I$5+VLOOKUP("vdd_int (lvt16)",pwr_scale_table,2,0)*AM60*'Power Scaling'!I$6+VLOOKUP("vdd_int (svt20)",pwr_scale_table,2,0)*$AN60*'Power Scaling'!I$3+VLOOKUP("vdd_int (svt16)",pwr_scale_table,2,0)*$AO60*'Power Scaling'!I$4)*AQ60,IF(OR($I60="AO",$I60="LU"),VLOOKUP($A60&"_"&"vdd_dyn"&"_"&$R60&"",MDB,5,0)*VLOOKUP("vdd_int (svt20)",pwr_scale_table,2,0),IF(OR($I60="LUUA",$I60="LUUB"),VLOOKUP($A60&"_"&"vdd_dyn"&"_"&$R60&"",MDB,5,0)*$C60*$S60*VLOOKUP("vdd_int (svt20)",pwr_scale_table,2,0),VLOOKUP($A60&"_"&"vdd_dyn"&"_"&$R60&"_idle",MDB,5,0)*(1-$S60)+VLOOKUP($A60&"_"&"vdd_dyn"&"_"&$R60&"_read",MDB,5,0)*($S60/2)+VLOOKUP($A60&"_"&"vdd_dyn"&"_"&$R60&"_write",MDB,5,0)*($S60/2)*VLOOKUP("vdd_int (svt20)",pwr_scale_table,2,0)))),0) -> 0 | W60: 0 | X60: 0 | Y60: 0 | Z60: 0 | AA60: 0 | AB60: 0 | AC60: 0 | AD60: 0 | AE60: 0 | AF60: 0 | AG60: 0 | AH60: 0 | AI60: 0 | AJ60: 0 | AK60: 0 | AL60: 0 | AM60: 0 | AN60: 0 | AO60: 0 | AP60: 0 | AQ60: 0 | AR60: The Vx1 macro is a display data standard used on the DLPC8430. It is a receiver only and it's under development. Power is estimated at this time. | AS60: DIVTS16FFC1TO128A_main | CA60: MAIN EQEP | CB60: off | CC60: 1 | CD60: 0 | CJ60: PCIE_G3 4L | CK60: =IF(R34=0,Q34,R34) -> 500 | CL60: =IF(C34>0,S34,0) -> 0
A61: DIVTS16FFC1TO128A | B61: _wkup | C61: 8 | D61: 5 | E61: VDD_CORE | F61: N/A | G61: N/A | H61: N/A | I61: LU | J61: GP_Core_CTL | K61: HSDIVIDER | L61: 10/30/2021 | M61: 5 Analog | N61: Clocking | O61: 0 | P61: ON | Q61: 0 | R61: 400 | S61: 1 | T61: 0 | U61: =IFERROR(IF($I61="SI",AP61*$C61*(VLOOKUP("vdd_lkg (ulvt20)",pwr_scale_table,2,0)*$AJ61*'Power Scaling'!F$7+VLOOKUP("vdd_lkg (ulvt16)",pwr_scale_table,2,0)*$AK61*'Power Scaling'!F$8+VLOOKUP("vdd_lkg (lvt20)",pwr_scale_table,2,0)*$AL61*'Power Scaling'!F$5+VLOOKUP("vdd_lkg (lvt16)",pwr_scale_table,2,0)*AM61*'Power Scaling'!F$6+VLOOKUP("vdd_lkg (svt20)",pwr_scale_table,2,0)*$AN61*'Power Scaling'!F$3+VLOOKUP("vdd_lkg (svt16)",pwr_scale_table,2,0)*$AO61*'Power Scaling'!F$4)*IF(P61="OFF",0.06,1),VLOOKUP($A61&"_"&U$3,MDB,5,0)*$C61*VLOOKUP("vdd_lkg (svt16)",pwr_scale_table,2,0)*IF(P61="OFF",0.06,1)),0) -> 0 | V61: =C61*IFERROR(IF($I61="SI",(AE61*IF(S61=0,0,1)+(AF61-AE61)*S61)*IF(R61>0,R61,Q61)/Q61*(VLOOKUP("vdd_int (ulvt20)",pwr_scale_table,2,0)*$AJ61*'Power Scaling'!I$7+VLOOKUP("vdd_int (ulvt16)",pwr_scale_table,2,0)*$AK61*'Power Scaling'!I$8+VLOOKUP("vdd_int (lvt20)",pwr_scale_table,2,0)*$AL61*'Power Scaling'!I$5+VLOOKUP("vdd_int (lvt16)",pwr_scale_table,2,0)*AM61*'Power Scaling'!I$6+VLOOKUP("vdd_int (svt20)",pwr_scale_table,2,0)*$AN61*'Power Scaling'!I$3+VLOOKUP("vdd_int (svt16)",pwr_scale_table,2,0)*$AO61*'Power Scaling'!I$4)*AQ61,IF(OR($I61="AO",$I61="LU"),VLOOKUP($A61&"_"&"vdd_dyn"&"_"&$R61&"",MDB,5,0)*VLOOKUP("vdd_int (svt20)",pwr_scale_table,2,0),IF(OR($I61="LUUA",$I61="LUUB"),VLOOKUP($A61&"_"&"vdd_dyn"&"_"&$R61&"",MDB,5,0)*$C61*$S61*VLOOKUP("vdd_int (svt20)",pwr_scale_table,2,0),VLOOKUP($A61&"_"&"vdd_dyn"&"_"&$R61&"_idle",MDB,5,0)*(1-$S61)+VLOOKUP($A61&"_"&"vdd_dyn"&"_"&$R61&"_read",MDB,5,0)*($S61/2)+VLOOKUP($A61&"_"&"vdd_dyn"&"_"&$R61&"_write",MDB,5,0)*($S61/2)*VLOOKUP("vdd_int (svt20)",pwr_scale_table,2,0)))),0) -> 0 | W61: 0 | X61: 0 | Y61: 0 | Z61: 0 | AA61: 0 | AB61: 0 | AC61: 0 | AD61: 0 | AE61: 0 | AF61: 0 | AG61: 0 | AH61: 0 | AI61: 0 | AJ61: 0 | AK61: 0 | AL61: 0 | AM61: 0 | AN61: 0 | AO61: 0 | AP61: 0 | AQ61: 0 | AR61: The Vx1 macro is a display data standard used on the DLPC8430. It is a receiver only and it's under development. Power is estimated at this time. | AS61: DIVTS16FFC1TO128A_wkup | CA61: MAIN MCAN | CB61: 1mbs_3p3v | CC61: 1 | CD61: 1 | CJ61: USB2 Controller | CK61: =IF(R35=0,Q35,R35) -> 125 | CL61: =IF(C35>0,S35,0) -> 1
A62: PLLTS16FFCLAFRACF | B62: _ARM0_PLL | C62: 1 | D62: 5 | E62: VDD_CORE | F62: N/A | G62: VDDA_PLL4 | H62: N/A | I62: LU | J62: GP_Core_CTL | K62: ADPLL - FRACF | L62: 10/30/2021 | M62: 5 Analog | N62: Clocking | O62: 11.20865587 | P62: ON | Q62: 0 | R62: 3000 | S62: 1 | T62: 0 | U62: =IFERROR(IF($I62="SI",AP62*$C62*(VLOOKUP("vdd_lkg (ulvt20)",pwr_scale_table,2,0)*$AJ62*'Power Scaling'!F$7+VLOOKUP("vdd_lkg (ulvt16)",pwr_scale_table,2,0)*$AK62*'Power Scaling'!F$8+VLOOKUP("vdd_lkg (lvt20)",pwr_scale_table,2,0)*$AL62*'Power Scaling'!F$5+VLOOKUP("vdd_lkg (lvt16)",pwr_scale_table,2,0)*AM62*'Power Scaling'!F$6+VLOOKUP("vdd_lkg (svt20)",pwr_scale_table,2,0)*$AN62*'Power Scaling'!F$3+VLOOKUP("vdd_lkg (svt16)",pwr_scale_table,2,0)*$AO62*'Power Scaling'!F$4)*IF(P62="OFF",0.06,1),VLOOKUP($A62&"_"&U$3,MDB,5,0)*$C62*VLOOKUP("vdd_lkg (svt16)",pwr_scale_table,2,0)*IF(P62="OFF",0.06,1)),0) -> 0 | V62: =C62*IFERROR(IF($I62="SI",(AE62*IF(S62=0,0,1)+(AF62-AE62)*S62)*IF(R62>0,R62,Q62)/Q62*(VLOOKUP("vdd_int (ulvt20)",pwr_scale_table,2,0)*$AJ62*'Power Scaling'!I$7+VLOOKUP("vdd_int (ulvt16)",pwr_scale_table,2,0)*$AK62*'Power Scaling'!I$8+VLOOKUP("vdd_int (lvt20)",pwr_scale_table,2,0)*$AL62*'Power Scaling'!I$5+VLOOKUP("vdd_int (lvt16)",pwr_scale_table,2,0)*AM62*'Power Scaling'!I$6+VLOOKUP("vdd_int (svt20)",pwr_scale_table,2,0)*$AN62*'Power Scaling'!I$3+VLOOKUP("vdd_int (svt16)",pwr_scale_table,2,0)*$AO62*'Power Scaling'!I$4)*AQ62,IF(OR($I62="AO",$I62="LU"),VLOOKUP($A62&"_"&"vdd_dyn"&"_"&$R62&"",MDB,5,0)*VLOOKUP("vdd_int (svt20)",pwr_scale_table,2,0),IF(OR($I62="LUUA",$I62="LUUB"),VLOOKUP($A62&"_"&"vdd_dyn"&"_"&$R62&"",MDB,5,0)*$C62*$S62*VLOOKUP("vdd_int (svt20)",pwr_scale_table,2,0),VLOOKUP($A62&"_"&"vdd_dyn"&"_"&$R62&"_idle",MDB,5,0)*(1-$S62)+VLOOKUP($A62&"_"&"vdd_dyn"&"_"&$R62&"_read",MDB,5,0)*($S62/2)+VLOOKUP($A62&"_"&"vdd_dyn"&"_"&$R62&"_write",MDB,5,0)*($S62/2)*VLOOKUP("vdd_int (svt20)",pwr_scale_table,2,0)))),0) -> 0 | W62: 0 | X62: 0 | Y62: 0 | Z62: 0 | AA62: 0 | AB62: 11.20865587 | AC62: 0 | AD62: 0 | AE62: 0 | AF62: 0 | AG62: 0 | AH62: 0 | AI62: 0 | AJ62: 0 | AK62: 0 | AL62: 0 | AM62: 0 | AN62: 0 | AO62: 0 | AP62: 0 | AQ62: 0 | AR62: The Vx1 macro is a display data standard used on the DLPC8430. It is a receiver only and it's under development. Power is estimated at this time. | AS62: PLLTS16FFCLAFRACF_ARM0_PLL | CA62: MAIN MMCSD1 | CB62: hs200_200mbs | CC62: 1 | CD62: 3 | CJ62: USB3P0TCx1 | CK62: =IF(R36=0,Q36,R36) -> 125 | CL62: =IF(C36>0,S36,0) -> 0
C63: 0 | O63: 0 | Q63: 0 | R63: 2000 | S63: 1 | T63: 0 | U63: =IFERROR(IF($I63="SI",AP63*$C63*(VLOOKUP("vdd_lkg (ulvt20)",pwr_scale_table,2,0)*$AJ63*'Power Scaling'!F$7+VLOOKUP("vdd_lkg (ulvt16)",pwr_scale_table,2,0)*$AK63*'Power Scaling'!F$8+VLOOKUP("vdd_lkg (lvt20)",pwr_scale_table,2,0)*$AL63*'Power Scaling'!F$5+VLOOKUP("vdd_lkg (lvt16)",pwr_scale_table,2,0)*AM63*'Power Scaling'!F$6+VLOOKUP("vdd_lkg (svt20)",pwr_scale_table,2,0)*$AN63*'Power Scaling'!F$3+VLOOKUP("vdd_lkg (svt16)",pwr_scale_table,2,0)*$AO63*'Power Scaling'!F$4)*IF(P63="OFF",0.06,1),VLOOKUP($A63&"_"&U$3,MDB,5,0)*$C63*VLOOKUP("vdd_lkg (svt16)",pwr_scale_table,2,0)*IF(P63="OFF",0.06,1)),0) -> 0 | V63: =C63*IFERROR(IF($I63="SI",(AE63*IF(S63=0,0,1)+(AF63-AE63)*S63)*IF(R63>0,R63,Q63)/Q63*(VLOOKUP("vdd_int (ulvt20)",pwr_scale_table,2,0)*$AJ63*'Power Scaling'!I$7+VLOOKUP("vdd_int (ulvt16)",pwr_scale_table,2,0)*$AK63*'Power Scaling'!I$8+VLOOKUP("vdd_int (lvt20)",pwr_scale_table,2,0)*$AL63*'Power Scaling'!I$5+VLOOKUP("vdd_int (lvt16)",pwr_scale_table,2,0)*AM63*'Power Scaling'!I$6+VLOOKUP("vdd_int (svt20)",pwr_scale_table,2,0)*$AN63*'Power Scaling'!I$3+VLOOKUP("vdd_int (svt16)",pwr_scale_table,2,0)*$AO63*'Power Scaling'!I$4)*AQ63,IF(OR($I63="AO",$I63="LU"),VLOOKUP($A63&"_"&"vdd_dyn"&"_"&$R63&"",MDB,5,0)*VLOOKUP("vdd_int (svt20)",pwr_scale_table,2,0),IF(OR($I63="LUUA",$I63="LUUB"),VLOOKUP($A63&"_"&"vdd_dyn"&"_"&$R63&"",MDB,5,0)*$C63*$S63*VLOOKUP("vdd_int (svt20)",pwr_scale_table,2,0),VLOOKUP($A63&"_"&"vdd_dyn"&"_"&$R63&"_idle",MDB,5,0)*(1-$S63)+VLOOKUP($A63&"_"&"vdd_dyn"&"_"&$R63&"_read",MDB,5,0)*($S63/2)+VLOOKUP($A63&"_"&"vdd_dyn"&"_"&$R63&"_write",MDB,5,0)*($S63/2)*VLOOKUP("vdd_int (svt20)",pwr_scale_table,2,0)))),0) -> 0 | W63: 0 | X63: 0 | Y63: 0 | Z63: 0 | AA63: 0 | AB63: 0 | AC63: 0 | AD63: 0 | AE63: 0 | AF63: 0 | AG63: 0 | AH63: 0 | AI63: 0 | AJ63: 0 | AK63: 0 | AL63: 0 | AM63: 0 | AN63: 0 | AO63: 0 | AR63: The Vx1 macro is a display data standard used on the DLPC8430. It is a receiver only and it's under development. Power is estimated at this time. | CA63: MAIN DSS 0: DPI | CB63: HD_|_1280x720x60_fps_24b_|_3p3V | CC63: 1 | CD63: 1 | CJ63: LP/DDR4-32 PHY 3733 | CK63: =IF(R39=0,Q39,R39) -> 533.25 | CL63: =IF(C39>0,S39,0) -> 1.1
A64: PLLTS16FFCLAFRACF | B64: _DSS0_PLL | C64: 1 | D64: 5 | E64: VDD_CORE | F64: N/A | G64: VDDA_PLL1 | H64: N/A | I64: LU | J64: GP_Core_CTL | K64: ADPLL - FRACF | L64: 10/30/2021 | M64: 5 Analog | N64: Clocking | O64: 8.526713412 | P64: ON | Q64: 0 | R64: 2500 | S64: 1 | T64: 0 | U64: =IFERROR(IF($I64="SI",AP64*$C64*(VLOOKUP("vdd_lkg (ulvt20)",pwr_scale_table,2,0)*$AJ64*'Power Scaling'!F$7+VLOOKUP("vdd_lkg (ulvt16)",pwr_scale_table,2,0)*$AK64*'Power Scaling'!F$8+VLOOKUP("vdd_lkg (lvt20)",pwr_scale_table,2,0)*$AL64*'Power Scaling'!F$5+VLOOKUP("vdd_lkg (lvt16)",pwr_scale_table,2,0)*AM64*'Power Scaling'!F$6+VLOOKUP("vdd_lkg (svt20)",pwr_scale_table,2,0)*$AN64*'Power Scaling'!F$3+VLOOKUP("vdd_lkg (svt16)",pwr_scale_table,2,0)*$AO64*'Power Scaling'!F$4)*IF(P64="OFF",0.06,1),VLOOKUP($A64&"_"&U$3,MDB,5,0)*$C64*VLOOKUP("vdd_lkg (svt16)",pwr_scale_table,2,0)*IF(P64="OFF",0.06,1)),0) -> 0 | V64: =C64*IFERROR(IF($I64="SI",(AE64*IF(S64=0,0,1)+(AF64-AE64)*S64)*IF(R64>0,R64,Q64)/Q64*(VLOOKUP("vdd_int (ulvt20)",pwr_scale_table,2,0)*$AJ64*'Power Scaling'!I$7+VLOOKUP("vdd_int (ulvt16)",pwr_scale_table,2,0)*$AK64*'Power Scaling'!I$8+VLOOKUP("vdd_int (lvt20)",pwr_scale_table,2,0)*$AL64*'Power Scaling'!I$5+VLOOKUP("vdd_int (lvt16)",pwr_scale_table,2,0)*AM64*'Power Scaling'!I$6+VLOOKUP("vdd_int (svt20)",pwr_scale_table,2,0)*$AN64*'Power Scaling'!I$3+VLOOKUP("vdd_int (svt16)",pwr_scale_table,2,0)*$AO64*'Power Scaling'!I$4)*AQ64,IF(OR($I64="AO",$I64="LU"),VLOOKUP($A64&"_"&"vdd_dyn"&"_"&$R64&"",MDB,5,0)*VLOOKUP("vdd_int (svt20)",pwr_scale_table,2,0),IF(OR($I64="LUUA",$I64="LUUB"),VLOOKUP($A64&"_"&"vdd_dyn"&"_"&$R64&"",MDB,5,0)*$C64*$S64*VLOOKUP("vdd_int (svt20)",pwr_scale_table,2,0),VLOOKUP($A64&"_"&"vdd_dyn"&"_"&$R64&"_idle",MDB,5,0)*(1-$S64)+VLOOKUP($A64&"_"&"vdd_dyn"&"_"&$R64&"_read",MDB,5,0)*($S64/2)+VLOOKUP($A64&"_"&"vdd_dyn"&"_"&$R64&"_write",MDB,5,0)*($S64/2)*VLOOKUP("vdd_int (svt20)",pwr_scale_table,2,0)))),0) -> 0 | W64: 0 | X64: 0 | Y64: 0 | Z64: 0 | AA64: 0 | AB64: 8.526713412 | AC64: 0 | AD64: 0 | AE64: 0 | AF64: 0 | AG64: 0 | AH64: 0 | AI64: 0 | AJ64: 0 | AK64: 0 | AL64: 0 | AM64: 0 | AN64: 0 | AO64: 0 | AP64: 0 | AQ64: 0 | AR64: The Vx1 macro is a display data standard used on the DLPC8430. It is a receiver only and it's under development. Power is estimated at this time. | AS64: PLLTS16FFCLAFRACF_DSS0_PLL | CA64: MAIN FSS OSPI1 (QSPI) | CB64: ospi_ddr_controller_133_3p3v | CC64: 1 | CD64: 1 | CJ64: EMMC 4 | CK64: =IF(R40=0,Q40,R40) -> 250 | CL64: =IF(C40>0,S40,0) -> 1
A65: PLLTS16FFCLAFRACF | B65: _DSS1_PLL | C65: 1 | D65: 5 | E65: VDD_CORE | F65: N/A | G65: VDDA_PLL1 | H65: N/A | I65: LU | J65: GP_Core_CTL | K65: ADPLL - FRACF | L65: 10/30/2021 | M65: 5 Analog | N65: Clocking | O65: 8.526713412 | P65: ON | Q65: 0 | R65: 2500 | S65: 1 | T65: 0 | U65: =IFERROR(IF($I65="SI",AP65*$C65*(VLOOKUP("vdd_lkg (ulvt20)",pwr_scale_table,2,0)*$AJ65*'Power Scaling'!F$7+VLOOKUP("vdd_lkg (ulvt16)",pwr_scale_table,2,0)*$AK65*'Power Scaling'!F$8+VLOOKUP("vdd_lkg (lvt20)",pwr_scale_table,2,0)*$AL65*'Power Scaling'!F$5+VLOOKUP("vdd_lkg (lvt16)",pwr_scale_table,2,0)*AM65*'Power Scaling'!F$6+VLOOKUP("vdd_lkg (svt20)",pwr_scale_table,2,0)*$AN65*'Power Scaling'!F$3+VLOOKUP("vdd_lkg (svt16)",pwr_scale_table,2,0)*$AO65*'Power Scaling'!F$4)*IF(P65="OFF",0.06,1),VLOOKUP($A65&"_"&U$3,MDB,5,0)*$C65*VLOOKUP("vdd_lkg (svt16)",pwr_scale_table,2,0)*IF(P65="OFF",0.06,1)),0) -> 0 | V65: =C65*IFERROR(IF($I65="SI",(AE65*IF(S65=0,0,1)+(AF65-AE65)*S65)*IF(R65>0,R65,Q65)/Q65*(VLOOKUP("vdd_int (ulvt20)",pwr_scale_table,2,0)*$AJ65*'Power Scaling'!I$7+VLOOKUP("vdd_int (ulvt16)",pwr_scale_table,2,0)*$AK65*'Power Scaling'!I$8+VLOOKUP("vdd_int (lvt20)",pwr_scale_table,2,0)*$AL65*'Power Scaling'!I$5+VLOOKUP("vdd_int (lvt16)",pwr_scale_table,2,0)*AM65*'Power Scaling'!I$6+VLOOKUP("vdd_int (svt20)",pwr_scale_table,2,0)*$AN65*'Power Scaling'!I$3+VLOOKUP("vdd_int (svt16)",pwr_scale_table,2,0)*$AO65*'Power Scaling'!I$4)*AQ65,IF(OR($I65="AO",$I65="LU"),VLOOKUP($A65&"_"&"vdd_dyn"&"_"&$R65&"",MDB,5,0)*VLOOKUP("vdd_int (svt20)",pwr_scale_table,2,0),IF(OR($I65="LUUA",$I65="LUUB"),VLOOKUP($A65&"_"&"vdd_dyn"&"_"&$R65&"",MDB,5,0)*$C65*$S65*VLOOKUP("vdd_int (svt20)",pwr_scale_table,2,0),VLOOKUP($A65&"_"&"vdd_dyn"&"_"&$R65&"_idle",MDB,5,0)*(1-$S65)+VLOOKUP($A65&"_"&"vdd_dyn"&"_"&$R65&"_read",MDB,5,0)*($S65/2)+VLOOKUP($A65&"_"&"vdd_dyn"&"_"&$R65&"_write",MDB,5,0)*($S65/2)*VLOOKUP("vdd_int (svt20)",pwr_scale_table,2,0)))),0) -> 0 | W65: 0 | X65: 0 | Y65: 0 | Z65: 0 | AA65: 0 | AB65: 8.526713412 | AC65: 0 | AD65: 0 | AE65: 0 | AF65: 0 | AG65: 0 | AH65: 0 | AI65: 0 | AJ65: 0 | AK65: 0 | AL65: 0 | AM65: 0 | AN65: 0 | AO65: 0 | AP65: 0 | AQ65: 0 | AR65: The Vx1 macro is a display data standard used on the DLPC8430. It is a receiver only and it's under development. Power is estimated at this time. | AS65: PLLTS16FFCLAFRACF_DSS1_PLL | CA65: MAIN Ethernet | CB65: rgmii_1000_1p8v | CC65: 1 | CD65: 2 | CJ65: EMMC 4 | CK65: =IF(R41=0,Q41,R41) -> 250 | CL65: =IF(C41>0,S41,0) -> 1
A66: PLLTS16FFCLAFRACF | B66: _GPU_PLL | C66: 1 | D66: 5 | E66: VDD_CORE | F66: N/A | G66: VDDA_PLL2 | H66: N/A | I66: LU | J66: GP_Core_CTL | K66: ADPLL - FRACF | L66: 10/30/2021 | M66: 5 Analog | N66: Clocking | O66: 7.280235541 | P66: ON | Q66: 0 | R66: 2250 | S66: 1 | T66: 0 | U66: =IFERROR(IF($I66="SI",AP66*$C66*(VLOOKUP("vdd_lkg (ulvt20)",pwr_scale_table,2,0)*$AJ66*'Power Scaling'!F$7+VLOOKUP("vdd_lkg (ulvt16)",pwr_scale_table,2,0)*$AK66*'Power Scaling'!F$8+VLOOKUP("vdd_lkg (lvt20)",pwr_scale_table,2,0)*$AL66*'Power Scaling'!F$5+VLOOKUP("vdd_lkg (lvt16)",pwr_scale_table,2,0)*AM66*'Power Scaling'!F$6+VLOOKUP("vdd_lkg (svt20)",pwr_scale_table,2,0)*$AN66*'Power Scaling'!F$3+VLOOKUP("vdd_lkg (svt16)",pwr_scale_table,2,0)*$AO66*'Power Scaling'!F$4)*IF(P66="OFF",0.06,1),VLOOKUP($A66&"_"&U$3,MDB,5,0)*$C66*VLOOKUP("vdd_lkg (svt16)",pwr_scale_table,2,0)*IF(P66="OFF",0.06,1)),0) -> 0 | V66: =C66*IFERROR(IF($I66="SI",(AE66*IF(S66=0,0,1)+(AF66-AE66)*S66)*IF(R66>0,R66,Q66)/Q66*(VLOOKUP("vdd_int (ulvt20)",pwr_scale_table,2,0)*$AJ66*'Power Scaling'!I$7+VLOOKUP("vdd_int (ulvt16)",pwr_scale_table,2,0)*$AK66*'Power Scaling'!I$8+VLOOKUP("vdd_int (lvt20)",pwr_scale_table,2,0)*$AL66*'Power Scaling'!I$5+VLOOKUP("vdd_int (lvt16)",pwr_scale_table,2,0)*AM66*'Power Scaling'!I$6+VLOOKUP("vdd_int (svt20)",pwr_scale_table,2,0)*$AN66*'Power Scaling'!I$3+VLOOKUP("vdd_int (svt16)",pwr_scale_table,2,0)*$AO66*'Power Scaling'!I$4)*AQ66,IF(OR($I66="AO",$I66="LU"),VLOOKUP($A66&"_"&"vdd_dyn"&"_"&$R66&"",MDB,5,0)*VLOOKUP("vdd_int (svt20)",pwr_scale_table,2,0),IF(OR($I66="LUUA",$I66="LUUB"),VLOOKUP($A66&"_"&"vdd_dyn"&"_"&$R66&"",MDB,5,0)*$C66*$S66*VLOOKUP("vdd_int (svt20)",pwr_scale_table,2,0),VLOOKUP($A66&"_"&"vdd_dyn"&"_"&$R66&"_idle",MDB,5,0)*(1-$S66)+VLOOKUP($A66&"_"&"vdd_dyn"&"_"&$R66&"_read",MDB,5,0)*($S66/2)+VLOOKUP($A66&"_"&"vdd_dyn"&"_"&$R66&"_write",MDB,5,0)*($S66/2)*VLOOKUP("vdd_int (svt20)",pwr_scale_table,2,0)))),0) -> 0 | W66: 0 | X66: 0 | Y66: 0 | Z66: 0 | AA66: 0 | AB66: 7.280235541 | AC66: 0 | AD66: 0 | AE66: 0 | AF66: 0 | AG66: 0 | AH66: 0 | AI66: 0 | AJ66: 0 | AK66: 0 | AL66: 0 | AM66: 0 | AN66: 0 | AO66: 0 | AP66: 0 | AQ66: 0 | AR66: The Vx1 macro is a display data standard used on the DLPC8430. It is a receiver only and it's under development. Power is estimated at this time. | AS66: PLLTS16FFCLAFRACF_GPU_PLL | CJ66: EMMC 8 | CK66: =IF(R42=0,Q42,R42) -> 250 | CL66: =IF(C42>0,S42,0) -> 1
A67: PLLTS16FFCLAFRACF | B67: _Main | C67: 1 | D67: 5 | E67: VDD_CORE | F67: N/A | G67: VDDA_PLL0 | H67: N/A | I67: LU | J67: GP_Core_CTL | K67: ADPLL - FRACF | L67: 10/30/2021 | M67: 5 Analog | N67: Clocking | O67: 6.101219461 | P67: ON | Q67: 0 | R67: 2000 | S67: 1 | T67: 0 | U67: =IFERROR(IF($I67="SI",AP67*$C67*(VLOOKUP("vdd_lkg (ulvt20)",pwr_scale_table,2,0)*$AJ67*'Power Scaling'!F$7+VLOOKUP("vdd_lkg (ulvt16)",pwr_scale_table,2,0)*$AK67*'Power Scaling'!F$8+VLOOKUP("vdd_lkg (lvt20)",pwr_scale_table,2,0)*$AL67*'Power Scaling'!F$5+VLOOKUP("vdd_lkg (lvt16)",pwr_scale_table,2,0)*AM67*'Power Scaling'!F$6+VLOOKUP("vdd_lkg (svt20)",pwr_scale_table,2,0)*$AN67*'Power Scaling'!F$3+VLOOKUP("vdd_lkg (svt16)",pwr_scale_table,2,0)*$AO67*'Power Scaling'!F$4)*IF(P67="OFF",0.06,1),VLOOKUP($A67&"_"&U$3,MDB,5,0)*$C67*VLOOKUP("vdd_lkg (svt16)",pwr_scale_table,2,0)*IF(P67="OFF",0.06,1)),0) -> 0 | V67: =C67*IFERROR(IF($I67="SI",(AE67*IF(S67=0,0,1)+(AF67-AE67)*S67)*IF(R67>0,R67,Q67)/Q67*(VLOOKUP("vdd_int (ulvt20)",pwr_scale_table,2,0)*$AJ67*'Power Scaling'!I$7+VLOOKUP("vdd_int (ulvt16)",pwr_scale_table,2,0)*$AK67*'Power Scaling'!I$8+VLOOKUP("vdd_int (lvt20)",pwr_scale_table,2,0)*$AL67*'Power Scaling'!I$5+VLOOKUP("vdd_int (lvt16)",pwr_scale_table,2,0)*AM67*'Power Scaling'!I$6+VLOOKUP("vdd_int (svt20)",pwr_scale_table,2,0)*$AN67*'Power Scaling'!I$3+VLOOKUP("vdd_int (svt16)",pwr_scale_table,2,0)*$AO67*'Power Scaling'!I$4)*AQ67,IF(OR($I67="AO",$I67="LU"),VLOOKUP($A67&"_"&"vdd_dyn"&"_"&$R67&"",MDB,5,0)*VLOOKUP("vdd_int (svt20)",pwr_scale_table,2,0),IF(OR($I67="LUUA",$I67="LUUB"),VLOOKUP($A67&"_"&"vdd_dyn"&"_"&$R67&"",MDB,5,0)*$C67*$S67*VLOOKUP("vdd_int (svt20)",pwr_scale_table,2,0),VLOOKUP($A67&"_"&"vdd_dyn"&"_"&$R67&"_idle",MDB,5,0)*(1-$S67)+VLOOKUP($A67&"_"&"vdd_dyn"&"_"&$R67&"_read",MDB,5,0)*($S67/2)+VLOOKUP($A67&"_"&"vdd_dyn"&"_"&$R67&"_write",MDB,5,0)*($S67/2)*VLOOKUP("vdd_int (svt20)",pwr_scale_table,2,0)))),0) -> 0 | W67: 0 | X67: 0 | Y67: 0 | Z67: 0 | AA67: 0 | AB67: 6.101219461 | AC67: 0 | AD67: 0 | AE67: 0 | AF67: 0 | AG67: 0 | AH67: 0 | AI67: 0 | AJ67: 0 | AK67: 0 | AL67: 0 | AM67: 0 | AN67: 0 | AO67: 0 | AP67: 0 | AQ67: 0 | AR67: The Vx1 macro is a display data standard used on the DLPC8430. It is a receiver only and it's under development. Power is estimated at this time. | AS67: PLLTS16FFCLAFRACF_Main | CJ67: GPMC_ELM | CK67: =IF(R43=0,Q43,R43) -> 166.6666667 | CL67: =IF(C43>0,S43,0) -> 0
A68: PLLTS16FFCLAFRACF | B68: _SMS | C68: 1 | D68: 5 | E68: VDD_CORE | F68: N/A | G68: VDDA_PLL4 | H68: N/A | I68: LU | J68: GP_Core_CTL | K68: ADPLL - FRACF | L68: 10/30/2021 | M68: 5 Analog | N68: Clocking | O68: =SUM(U68:AD68) -> 8.526713412 | P68: =INDEX(PD_State_Table,MATCH(J68,PD_Table_Row_Header,0),2) -> ON | Q68: 0 | R68: 2500 | S68: 1 | T68: 0 | U68: =IFERROR(IF($I68="SI",AP68*$C68*(VLOOKUP("vdd_lkg (ulvt20)",pwr_scale_table,2,0)*$AJ68*'Power Scaling'!F$7+VLOOKUP("vdd_lkg (ulvt16)",pwr_scale_table,2,0)*$AK68*'Power Scaling'!F$8+VLOOKUP("vdd_lkg (lvt20)",pwr_scale_table,2,0)*$AL68*'Power Scaling'!F$5+VLOOKUP("vdd_lkg (lvt16)",pwr_scale_table,2,0)*AM68*'Power Scaling'!F$6+VLOOKUP("vdd_lkg (svt20)",pwr_scale_table,2,0)*$AN68*'Power Scaling'!F$3+VLOOKUP("vdd_lkg (svt16)",pwr_scale_table,2,0)*$AO68*'Power Scaling'!F$4)*IF(P68="OFF",0.06,1),VLOOKUP($A68&"_"&U$3,MDB,5,0)*$C68*VLOOKUP("vdd_lkg (svt16)",pwr_scale_table,2,0)*IF(P68="OFF",0.06,1)),0) -> 0 | V68: =C68*IFERROR(IF($I68="SI",(AE68*IF(S68=0,0,1)+(AF68-AE68)*S68)*IF(R68>0,R68,Q68)/Q68*(VLOOKUP("vdd_int (ulvt20)",pwr_scale_table,2,0)*$AJ68*'Power Scaling'!I$7+VLOOKUP("vdd_int (ulvt16)",pwr_scale_table,2,0)*$AK68*'Power Scaling'!I$8+VLOOKUP("vdd_int (lvt20)",pwr_scale_table,2,0)*$AL68*'Power Scaling'!I$5+VLOOKUP("vdd_int (lvt16)",pwr_scale_table,2,0)*AM68*'Power Scaling'!I$6+VLOOKUP("vdd_int (svt20)",pwr_scale_table,2,0)*$AN68*'Power Scaling'!I$3+VLOOKUP("vdd_int (svt16)",pwr_scale_table,2,0)*$AO68*'Power Scaling'!I$4)*AQ68,IF(OR($I68="AO",$I68="LU"),VLOOKUP($A68&"_"&"vdd_dyn"&"_"&$R68&"",MDB,5,0)*VLOOKUP("vdd_int (svt20)",pwr_scale_table,2,0),IF(OR($I68="LUUA",$I68="LUUB"),VLOOKUP($A68&"_"&"vdd_dyn"&"_"&$R68&"",MDB,5,0)*$C68*$S68*VLOOKUP("vdd_int (svt20)",pwr_scale_table,2,0),VLOOKUP($A68&"_"&"vdd_dyn"&"_"&$R68&"_idle",MDB,5,0)*(1-$S68)+VLOOKUP($A68&"_"&"vdd_dyn"&"_"&$R68&"_read",MDB,5,0)*($S68/2)+VLOOKUP($A68&"_"&"vdd_dyn"&"_"&$R68&"_write",MDB,5,0)*($S68/2)*VLOOKUP("vdd_int (svt20)",pwr_scale_table,2,0)))),0) -> 0 | W68: =C68*IFERROR(IF($I68="SI",(AE68*IF(S68=0,0,1)+(AF68-AE68)*S68)*(IF(R68>0,R68,Q68)/Q68)*VLOOKUP("vdd_sw",pwr_scale_table,2,0)*AI68,0),0) -> 0 | X68: =IFERROR(VLOOKUP($A68&"_"&X$3,MDB,5,0)*$C68*VLOOKUP("vddr_lkg",pwr_scale_table,2,0)*IF(P68="OFF",0.06,1),0) -> 0 | Y68: =IFERROR(VLOOKUP($A68&"_"&Y$3,MDB,5,0)*$C68*(VLOOKUP("vdd_lkg (lvt16)",pwr_scale_table,2,0)*0.5+VLOOKUP("vdd_lkg (svt16)",pwr_scale_table,2,0)*0.5),0) -> 0 | Z68: =IFERROR(IF(I68="LUUB",VLOOKUP($A68&"_"&Z$3&"_"&$R68&"",MDB,5,0)*$C68*$S68*((VLOOKUP("vdd_int (lvt16)",pwr_scale_table,2,0)/4+VLOOKUP("vdd_int (svt16)",pwr_scale_table,2,0)/4+VLOOKUP("vdd_sw",pwr_scale_table,2,0)/2)),VLOOKUP($A68&"_"&Z$3&"_"&$R68&"",MDB,5,0)*$C68*((VLOOKUP("vdd_int (lvt16)",pwr_scale_table,2,0)/4+VLOOKUP("vdd_int (svt16)",pwr_scale_table,2,0)/4+VLOOKUP("vdd_sw",pwr_scale_table,2,0)/2))),0) -> 0 | AA68: =IFERROR(VLOOKUP($A68&"_"&AA$3,MDB,5,0)*$C68*VLOOKUP("vdd_lkg (svt16)",pwr_scale_table,2,0),0) -> 0 | AB68: =IFERROR(IF(OR($I68="LUUA",$I68="LUUB"),VLOOKUP($A68&"_"&AB$3&"_"&$R68&"",MDB,5,0)*$C68*$S68,IF(I68="LUUD",VLOOKUP($A68&"_"&AB$3&"_"&$R68&"_idle",MDB,5,0)*(1-$S68)+VLOOKUP($A68&"_"&AB$3&"_"&$R68&"_read",MDB,5,0)*($S68/2)+VLOOKUP($A68&"_"&AB$3&"_"&$R68&"_write",MDB,5,0)*($S68/2),VLOOKUP($A68&"_"&AB$3&"_"&$R68&"",MDB,5,0)*$C68)),0) -> 8.526713412 | AC68: =IFERROR(VLOOKUP($A68&"_"&AC$3,MDB,5,0)*$C68*VLOOKUP("vdd_lkg (svt16)",pwr_scale_table,2,0),0) -> 0 | AD68: =IFERROR(IF(OR($I68="LUUA",$I68="LUUB"),VLOOKUP($A68&"_"&AD$3&"_"&$R68&"",MDB,5,0)*$C68*$S68,IF(I68="LUUD",VLOOKUP($A68&"_"&AD$3&"_"&$R68&"_idle",MDB,5,0)*(1-$S68)+VLOOKUP($A68&"_"&AD$3&"_"&$R68&"_read",MDB,5,0)*($S68/2)+VLOOKUP($A68&"_"&AD$3&"_"&$R68&"_write",MDB,5,0)*($S68/2),VLOOKUP($A68&"_"&AD$3&"_"&$R68&"",MDB,5,0)*$C68)),0) -> 0 | AE68: 0 | AF68: 0 | AG68: 0 | AH68: 0 | AI68: 0 | AJ68: 0 | AK68: 0 | AL68: 0 | AM68: 0 | AN68: 0 | AO68: 0 | AP68: 0 | AQ68: 0 | AR68: The Vx1 macro is a display data standard used on the DLPC8430. It is a receiver only and it's under development. Power is estimated at this time. | AS68: =A68&B68 -> PLLTS16FFCLAFRACF_SMS
A69: PLLTS16FFCLAFRACF | B69: _Per0 | C69: 1 | D69: 5 | E69: VDD_CORE | F69: N/A | G69: VDDA_PLL0 | H69: N/A | I69: LU | J69: GP_Core_CTL | K69: ADPLL - FRACF | L69: 10/30/2021 | M69: 5 Analog | N69: Clocking | O69: 6.101219461 | P69: ON | Q69: 0 | R69: 2000 | S69: 1 | T69: 0 | U69: =IFERROR(IF($I69="SI",AP69*$C69*(VLOOKUP("vdd_lkg (ulvt20)",pwr_scale_table,2,0)*$AJ69*'Power Scaling'!F$7+VLOOKUP("vdd_lkg (ulvt16)",pwr_scale_table,2,0)*$AK69*'Power Scaling'!F$8+VLOOKUP("vdd_lkg (lvt20)",pwr_scale_table,2,0)*$AL69*'Power Scaling'!F$5+VLOOKUP("vdd_lkg (lvt16)",pwr_scale_table,2,0)*AM69*'Power Scaling'!F$6+VLOOKUP("vdd_lkg (svt20)",pwr_scale_table,2,0)*$AN69*'Power Scaling'!F$3+VLOOKUP("vdd_lkg (svt16)",pwr_scale_table,2,0)*$AO69*'Power Scaling'!F$4)*IF(P69="OFF",0.06,1),VLOOKUP($A69&"_"&U$3,MDB,5,0)*$C69*VLOOKUP("vdd_lkg (svt16)",pwr_scale_table,2,0)*IF(P69="OFF",0.06,1)),0) -> 0 | V69: =C69*IFERROR(IF($I69="SI",(AE69*IF(S69=0,0,1)+(AF69-AE69)*S69)*IF(R69>0,R69,Q69)/Q69*(VLOOKUP("vdd_int (ulvt20)",pwr_scale_table,2,0)*$AJ69*'Power Scaling'!I$7+VLOOKUP("vdd_int (ulvt16)",pwr_scale_table,2,0)*$AK69*'Power Scaling'!I$8+VLOOKUP("vdd_int (lvt20)",pwr_scale_table,2,0)*$AL69*'Power Scaling'!I$5+VLOOKUP("vdd_int (lvt16)",pwr_scale_table,2,0)*AM69*'Power Scaling'!I$6+VLOOKUP("vdd_int (svt20)",pwr_scale_table,2,0)*$AN69*'Power Scaling'!I$3+VLOOKUP("vdd_int (svt16)",pwr_scale_table,2,0)*$AO69*'Power Scaling'!I$4)*AQ69,IF(OR($I69="AO",$I69="LU"),VLOOKUP($A69&"_"&"vdd_dyn"&"_"&$R69&"",MDB,5,0)*VLOOKUP("vdd_int (svt20)",pwr_scale_table,2,0),IF(OR($I69="LUUA",$I69="LUUB"),VLOOKUP($A69&"_"&"vdd_dyn"&"_"&$R69&"",MDB,5,0)*$C69*$S69*VLOOKUP("vdd_int (svt20)",pwr_scale_table,2,0),VLOOKUP($A69&"_"&"vdd_dyn"&"_"&$R69&"_idle",MDB,5,0)*(1-$S69)+VLOOKUP($A69&"_"&"vdd_dyn"&"_"&$R69&"_read",MDB,5,0)*($S69/2)+VLOOKUP($A69&"_"&"vdd_dyn"&"_"&$R69&"_write",MDB,5,0)*($S69/2)*VLOOKUP("vdd_int (svt20)",pwr_scale_table,2,0)))),0) -> 0 | W69: 0 | X69: 0 | Y69: 0 | Z69: 0 | AA69: 0 | AB69: 6.101219461 | AC69: 0 | AD69: 0 | AE69: 0 | AF69: 0 | AG69: 0 | AH69: 0 | AI69: 0 | AJ69: 0 | AK69: 0 | AL69: 0 | AM69: 0 | AN69: 0 | AO69: 0 | AP69: 0 | AQ69: 0 | AR69: The Vx1 macro is a display data standard used on the DLPC8430. It is a receiver only and it's under development. Power is estimated at this time. | AS69: PLLTS16FFCLAFRACF_Per0 | CJ69: SerDes 10G Common | CK69: =IF(C91>0,R91,"disable") -> disable | CL69: =IF(C91>0,S91,0) -> 0
A70: PLLTS16FFCLAFRACF | B70: _Per1 | C70: 1 | D70: 5 | E70: VDD_CORE | F70: N/A | G70: VDDA_PLL0 | H70: N/A | I70: LU | J70: GP_Core_CTL | K70: ADPLL - FRACF | L70: 10/30/2021 | M70: 5 Analog | N70: Clocking | O70: 6.101219461 | P70: ON | Q70: 0 | R70: 2000 | S70: 1 | T70: 0 | U70: =IFERROR(IF($I70="SI",AP70*$C70*(VLOOKUP("vdd_lkg (ulvt20)",pwr_scale_table,2,0)*$AJ70*'Power Scaling'!F$7+VLOOKUP("vdd_lkg (ulvt16)",pwr_scale_table,2,0)*$AK70*'Power Scaling'!F$8+VLOOKUP("vdd_lkg (lvt20)",pwr_scale_table,2,0)*$AL70*'Power Scaling'!F$5+VLOOKUP("vdd_lkg (lvt16)",pwr_scale_table,2,0)*AM70*'Power Scaling'!F$6+VLOOKUP("vdd_lkg (svt20)",pwr_scale_table,2,0)*$AN70*'Power Scaling'!F$3+VLOOKUP("vdd_lkg (svt16)",pwr_scale_table,2,0)*$AO70*'Power Scaling'!F$4)*IF(P70="OFF",0.06,1),VLOOKUP($A70&"_"&U$3,MDB,5,0)*$C70*VLOOKUP("vdd_lkg (svt16)",pwr_scale_table,2,0)*IF(P70="OFF",0.06,1)),0) -> 0 | V70: =C70*IFERROR(IF($I70="SI",(AE70*IF(S70=0,0,1)+(AF70-AE70)*S70)*IF(R70>0,R70,Q70)/Q70*(VLOOKUP("vdd_int (ulvt20)",pwr_scale_table,2,0)*$AJ70*'Power Scaling'!I$7+VLOOKUP("vdd_int (ulvt16)",pwr_scale_table,2,0)*$AK70*'Power Scaling'!I$8+VLOOKUP("vdd_int (lvt20)",pwr_scale_table,2,0)*$AL70*'Power Scaling'!I$5+VLOOKUP("vdd_int (lvt16)",pwr_scale_table,2,0)*AM70*'Power Scaling'!I$6+VLOOKUP("vdd_int (svt20)",pwr_scale_table,2,0)*$AN70*'Power Scaling'!I$3+VLOOKUP("vdd_int (svt16)",pwr_scale_table,2,0)*$AO70*'Power Scaling'!I$4)*AQ70,IF(OR($I70="AO",$I70="LU"),VLOOKUP($A70&"_"&"vdd_dyn"&"_"&$R70&"",MDB,5,0)*VLOOKUP("vdd_int (svt20)",pwr_scale_table,2,0),IF(OR($I70="LUUA",$I70="LUUB"),VLOOKUP($A70&"_"&"vdd_dyn"&"_"&$R70&"",MDB,5,0)*$C70*$S70*VLOOKUP("vdd_int (svt20)",pwr_scale_table,2,0),VLOOKUP($A70&"_"&"vdd_dyn"&"_"&$R70&"_idle",MDB,5,0)*(1-$S70)+VLOOKUP($A70&"_"&"vdd_dyn"&"_"&$R70&"_read",MDB,5,0)*($S70/2)+VLOOKUP($A70&"_"&"vdd_dyn"&"_"&$R70&"_write",MDB,5,0)*($S70/2)*VLOOKUP("vdd_int (svt20)",pwr_scale_table,2,0)))),0) -> 0 | W70: 0 | X70: 0 | Y70: 0 | Z70: 0 | AA70: 0 | AB70: 6.101219461 | AC70: 0 | AD70: 0 | AE70: 0 | AF70: 0 | AG70: 0 | AH70: 0 | AI70: 0 | AJ70: 0 | AK70: 0 | AL70: 0 | AM70: 0 | AN70: 0 | AO70: 0 | AP70: 0 | AQ70: 0 | AR70: The Vx1 macro is a display data standard used on the DLPC8430. It is a receiver only and it's under development. Power is estimated at this time. | AS70: PLLTS16FFCLAFRACF_Per1 | CJ70: SerDes 10G Lane | CK70: =IF(C93>0,R93,"unused") -> unused | CL70: =IF(C93>0,S93,0) -> 0
A71: PLLTS16FFCLAFRACF | B71: _DSS2_PLL | C71: 1 | D71: 5 | E71: VDD_CORE | F71: N/A | G71: VDDA_PLL1 | H71: N/A | I71: LU | J71: GP_Core_CTL | K71: ADPLL - FRACF | L71: 10/30/2021 | M71: 5 Analog | N71: Clocking | O71: 11.20865587 | P71: ON | Q71: 0 | R71: 3000 | S71: 1 | T71: 0 | U71: =IFERROR(IF($I71="SI",AP71*$C71*(VLOOKUP("vdd_lkg (ulvt20)",pwr_scale_table,2,0)*$AJ71*'Power Scaling'!F$7+VLOOKUP("vdd_lkg (ulvt16)",pwr_scale_table,2,0)*$AK71*'Power Scaling'!F$8+VLOOKUP("vdd_lkg (lvt20)",pwr_scale_table,2,0)*$AL71*'Power Scaling'!F$5+VLOOKUP("vdd_lkg (lvt16)",pwr_scale_table,2,0)*AM71*'Power Scaling'!F$6+VLOOKUP("vdd_lkg (svt20)",pwr_scale_table,2,0)*$AN71*'Power Scaling'!F$3+VLOOKUP("vdd_lkg (svt16)",pwr_scale_table,2,0)*$AO71*'Power Scaling'!F$4)*IF(P71="OFF",0.06,1),VLOOKUP($A71&"_"&U$3,MDB,5,0)*$C71*VLOOKUP("vdd_lkg (svt16)",pwr_scale_table,2,0)*IF(P71="OFF",0.06,1)),0) -> 0 | V71: =C71*IFERROR(IF($I71="SI",(AE71*IF(S71=0,0,1)+(AF71-AE71)*S71)*IF(R71>0,R71,Q71)/Q71*(VLOOKUP("vdd_int (ulvt20)",pwr_scale_table,2,0)*$AJ71*'Power Scaling'!I$7+VLOOKUP("vdd_int (ulvt16)",pwr_scale_table,2,0)*$AK71*'Power Scaling'!I$8+VLOOKUP("vdd_int (lvt20)",pwr_scale_table,2,0)*$AL71*'Power Scaling'!I$5+VLOOKUP("vdd_int (lvt16)",pwr_scale_table,2,0)*AM71*'Power Scaling'!I$6+VLOOKUP("vdd_int (svt20)",pwr_scale_table,2,0)*$AN71*'Power Scaling'!I$3+VLOOKUP("vdd_int (svt16)",pwr_scale_table,2,0)*$AO71*'Power Scaling'!I$4)*AQ71,IF(OR($I71="AO",$I71="LU"),VLOOKUP($A71&"_"&"vdd_dyn"&"_"&$R71&"",MDB,5,0)*VLOOKUP("vdd_int (svt20)",pwr_scale_table,2,0),IF(OR($I71="LUUA",$I71="LUUB"),VLOOKUP($A71&"_"&"vdd_dyn"&"_"&$R71&"",MDB,5,0)*$C71*$S71*VLOOKUP("vdd_int (svt20)",pwr_scale_table,2,0),VLOOKUP($A71&"_"&"vdd_dyn"&"_"&$R71&"_idle",MDB,5,0)*(1-$S71)+VLOOKUP($A71&"_"&"vdd_dyn"&"_"&$R71&"_read",MDB,5,0)*($S71/2)+VLOOKUP($A71&"_"&"vdd_dyn"&"_"&$R71&"_write",MDB,5,0)*($S71/2)*VLOOKUP("vdd_int (svt20)",pwr_scale_table,2,0)))),0) -> 0 | W71: 0 | X71: 0 | Y71: 0 | Z71: 0 | AA71: 0 | AB71: 11.20865587 | AC71: 0 | AD71: 0 | AE71: 0 | AF71: 0 | AG71: 0 | AH71: 0 | AI71: 0 | AJ71: 0 | AK71: 0 | AL71: 0 | AM71: 0 | AN71: 0 | AO71: 0 | AP71: 0 | AQ71: 0 | AR71: The Vx1 macro is a display data standard used on the DLPC8430. It is a receiver only and it's under development. Power is estimated at this time. | AS71: PLLTS16FFCLAFRACF_DSS2_PLL | CJ71: SerDes 10G Common | CK71: =IF(C92>0,R92,"disabled") -> disabled | CL71: =IF(C92>0,S92,0) -> 0
C72: 0 | O72: 0 | Q72: 0 | R72: 2250 | S72: 1 | T72: 0 | U72: =IFERROR(IF($I72="SI",AP72*$C72*(VLOOKUP("vdd_lkg (ulvt20)",pwr_scale_table,2,0)*$AJ72*'Power Scaling'!F$7+VLOOKUP("vdd_lkg (ulvt16)",pwr_scale_table,2,0)*$AK72*'Power Scaling'!F$8+VLOOKUP("vdd_lkg (lvt20)",pwr_scale_table,2,0)*$AL72*'Power Scaling'!F$5+VLOOKUP("vdd_lkg (lvt16)",pwr_scale_table,2,0)*AM72*'Power Scaling'!F$6+VLOOKUP("vdd_lkg (svt20)",pwr_scale_table,2,0)*$AN72*'Power Scaling'!F$3+VLOOKUP("vdd_lkg (svt16)",pwr_scale_table,2,0)*$AO72*'Power Scaling'!F$4)*IF(P72="OFF",0.06,1),VLOOKUP($A72&"_"&U$3,MDB,5,0)*$C72*VLOOKUP("vdd_lkg (svt16)",pwr_scale_table,2,0)*IF(P72="OFF",0.06,1)),0) -> 0 | V72: =C72*IFERROR(IF($I72="SI",(AE72*IF(S72=0,0,1)+(AF72-AE72)*S72)*IF(R72>0,R72,Q72)/Q72*(VLOOKUP("vdd_int (ulvt20)",pwr_scale_table,2,0)*$AJ72*'Power Scaling'!I$7+VLOOKUP("vdd_int (ulvt16)",pwr_scale_table,2,0)*$AK72*'Power Scaling'!I$8+VLOOKUP("vdd_int (lvt20)",pwr_scale_table,2,0)*$AL72*'Power Scaling'!I$5+VLOOKUP("vdd_int (lvt16)",pwr_scale_table,2,0)*AM72*'Power Scaling'!I$6+VLOOKUP("vdd_int (svt20)",pwr_scale_table,2,0)*$AN72*'Power Scaling'!I$3+VLOOKUP("vdd_int (svt16)",pwr_scale_table,2,0)*$AO72*'Power Scaling'!I$4)*AQ72,IF(OR($I72="AO",$I72="LU"),VLOOKUP($A72&"_"&"vdd_dyn"&"_"&$R72&"",MDB,5,0)*VLOOKUP("vdd_int (svt20)",pwr_scale_table,2,0),IF(OR($I72="LUUA",$I72="LUUB"),VLOOKUP($A72&"_"&"vdd_dyn"&"_"&$R72&"",MDB,5,0)*$C72*$S72*VLOOKUP("vdd_int (svt20)",pwr_scale_table,2,0),VLOOKUP($A72&"_"&"vdd_dyn"&"_"&$R72&"_idle",MDB,5,0)*(1-$S72)+VLOOKUP($A72&"_"&"vdd_dyn"&"_"&$R72&"_read",MDB,5,0)*($S72/2)+VLOOKUP($A72&"_"&"vdd_dyn"&"_"&$R72&"_write",MDB,5,0)*($S72/2)*VLOOKUP("vdd_int (svt20)",pwr_scale_table,2,0)))),0) -> 0 | W72: 0 | X72: 0 | Y72: 0 | Z72: 0 | AA72: 0 | AB72: 0 | AC72: 0 | AD72: 0 | AE72: 0 | AF72: 0 | AG72: 0 | AH72: 0 | AI72: 0 | AJ72: 0 | AK72: 0 | AL72: 0 | AM72: 0 | AN72: 0 | AO72: 0 | AR72: The Vx1 macro is a display data standard used on the DLPC8430. It is a receiver only and it's under development. Power is estimated at this time. | CJ72: SerDes 10G Lane | CK72: =IF(C94>0,R94,"unused") -> unused | CL72: =IF(C94>0,S94,0) -> 0
A73: PLLTS16FFCLAFRACF | B73: DDR_PHY | C73: 1 | D73: 5 | E73: VDD_CORE | F73: N/A | G73: VDDA_PLL3 | H73: N/A | I73: LU | J73: GP_Core_CTL | K73: ADPLL - FRACF | L73: 10/30/2021 | M73: 5 Analog | N73: Clocking | O73: 6.101219461 | P73: ON | Q73: 0 | R73: 2000 | S73: 1 | T73: 0 | U73: =IFERROR(IF($I73="SI",AP73*$C73*(VLOOKUP("vdd_lkg (ulvt20)",pwr_scale_table,2,0)*$AJ73*'Power Scaling'!F$7+VLOOKUP("vdd_lkg (ulvt16)",pwr_scale_table,2,0)*$AK73*'Power Scaling'!F$8+VLOOKUP("vdd_lkg (lvt20)",pwr_scale_table,2,0)*$AL73*'Power Scaling'!F$5+VLOOKUP("vdd_lkg (lvt16)",pwr_scale_table,2,0)*AM73*'Power Scaling'!F$6+VLOOKUP("vdd_lkg (svt20)",pwr_scale_table,2,0)*$AN73*'Power Scaling'!F$3+VLOOKUP("vdd_lkg (svt16)",pwr_scale_table,2,0)*$AO73*'Power Scaling'!F$4)*IF(P73="OFF",0.06,1),VLOOKUP($A73&"_"&U$3,MDB,5,0)*$C73*VLOOKUP("vdd_lkg (svt16)",pwr_scale_table,2,0)*IF(P73="OFF",0.06,1)),0) -> 0 | V73: =C73*IFERROR(IF($I73="SI",(AE73*IF(S73=0,0,1)+(AF73-AE73)*S73)*IF(R73>0,R73,Q73)/Q73*(VLOOKUP("vdd_int (ulvt20)",pwr_scale_table,2,0)*$AJ73*'Power Scaling'!I$7+VLOOKUP("vdd_int (ulvt16)",pwr_scale_table,2,0)*$AK73*'Power Scaling'!I$8+VLOOKUP("vdd_int (lvt20)",pwr_scale_table,2,0)*$AL73*'Power Scaling'!I$5+VLOOKUP("vdd_int (lvt16)",pwr_scale_table,2,0)*AM73*'Power Scaling'!I$6+VLOOKUP("vdd_int (svt20)",pwr_scale_table,2,0)*$AN73*'Power Scaling'!I$3+VLOOKUP("vdd_int (svt16)",pwr_scale_table,2,0)*$AO73*'Power Scaling'!I$4)*AQ73,IF(OR($I73="AO",$I73="LU"),VLOOKUP($A73&"_"&"vdd_dyn"&"_"&$R73&"",MDB,5,0)*VLOOKUP("vdd_int (svt20)",pwr_scale_table,2,0),IF(OR($I73="LUUA",$I73="LUUB"),VLOOKUP($A73&"_"&"vdd_dyn"&"_"&$R73&"",MDB,5,0)*$C73*$S73*VLOOKUP("vdd_int (svt20)",pwr_scale_table,2,0),VLOOKUP($A73&"_"&"vdd_dyn"&"_"&$R73&"_idle",MDB,5,0)*(1-$S73)+VLOOKUP($A73&"_"&"vdd_dyn"&"_"&$R73&"_read",MDB,5,0)*($S73/2)+VLOOKUP($A73&"_"&"vdd_dyn"&"_"&$R73&"_write",MDB,5,0)*($S73/2)*VLOOKUP("vdd_int (svt20)",pwr_scale_table,2,0)))),0) -> 0 | W73: 0 | X73: 0 | Y73: 0 | Z73: 0 | AA73: 0 | AB73: 6.101219461 | AC73: 0 | AD73: 0 | AE73: 0 | AF73: 0 | AG73: 0 | AH73: 0 | AI73: 0 | AJ73: 0 | AK73: 0 | AL73: 0 | AM73: 0 | AN73: 0 | AO73: 0 | AP73: 0 | AQ73: 0 | AR73: The Vx1 macro is a display data standard used on the DLPC8430. It is a receiver only and it's under development. Power is estimated at this time. | AS73: PLLTS16FFCLAFRACFDDR_PHY
A74: PLLTS16FFCLAFRACF | B74: _MCU_PERIPHERIAL | C74: 1 | D74: 5 | E74: VDD_CORE | F74: N/A | G74: VDDA_MCU | H74: N/A | I74: LU | J74: GP_Core_CTL | K74: ADPLL - FRACF | L74: 10/30/2021 | M74: 5 Analog | N74: Clocking | O74: 8.526713412 | P74: ON | Q74: 0 | R74: 2500 | S74: 1 | T74: 0 | U74: =IFERROR(IF($I74="SI",AP74*$C74*(VLOOKUP("vdd_lkg (ulvt20)",pwr_scale_table,2,0)*$AJ74*'Power Scaling'!F$7+VLOOKUP("vdd_lkg (ulvt16)",pwr_scale_table,2,0)*$AK74*'Power Scaling'!F$8+VLOOKUP("vdd_lkg (lvt20)",pwr_scale_table,2,0)*$AL74*'Power Scaling'!F$5+VLOOKUP("vdd_lkg (lvt16)",pwr_scale_table,2,0)*AM74*'Power Scaling'!F$6+VLOOKUP("vdd_lkg (svt20)",pwr_scale_table,2,0)*$AN74*'Power Scaling'!F$3+VLOOKUP("vdd_lkg (svt16)",pwr_scale_table,2,0)*$AO74*'Power Scaling'!F$4)*IF(P74="OFF",0.06,1),VLOOKUP($A74&"_"&U$3,MDB,5,0)*$C74*VLOOKUP("vdd_lkg (svt16)",pwr_scale_table,2,0)*IF(P74="OFF",0.06,1)),0) -> 0 | V74: =C74*IFERROR(IF($I74="SI",(AE74*IF(S74=0,0,1)+(AF74-AE74)*S74)*IF(R74>0,R74,Q74)/Q74*(VLOOKUP("vdd_int (ulvt20)",pwr_scale_table,2,0)*$AJ74*'Power Scaling'!I$7+VLOOKUP("vdd_int (ulvt16)",pwr_scale_table,2,0)*$AK74*'Power Scaling'!I$8+VLOOKUP("vdd_int (lvt20)",pwr_scale_table,2,0)*$AL74*'Power Scaling'!I$5+VLOOKUP("vdd_int (lvt16)",pwr_scale_table,2,0)*AM74*'Power Scaling'!I$6+VLOOKUP("vdd_int (svt20)",pwr_scale_table,2,0)*$AN74*'Power Scaling'!I$3+VLOOKUP("vdd_int (svt16)",pwr_scale_table,2,0)*$AO74*'Power Scaling'!I$4)*AQ74,IF(OR($I74="AO",$I74="LU"),VLOOKUP($A74&"_"&"vdd_dyn"&"_"&$R74&"",MDB,5,0)*VLOOKUP("vdd_int (svt20)",pwr_scale_table,2,0),IF(OR($I74="LUUA",$I74="LUUB"),VLOOKUP($A74&"_"&"vdd_dyn"&"_"&$R74&"",MDB,5,0)*$C74*$S74*VLOOKUP("vdd_int (svt20)",pwr_scale_table,2,0),VLOOKUP($A74&"_"&"vdd_dyn"&"_"&$R74&"_idle",MDB,5,0)*(1-$S74)+VLOOKUP($A74&"_"&"vdd_dyn"&"_"&$R74&"_read",MDB,5,0)*($S74/2)+VLOOKUP($A74&"_"&"vdd_dyn"&"_"&$R74&"_write",MDB,5,0)*($S74/2)*VLOOKUP("vdd_int (svt20)",pwr_scale_table,2,0)))),0) -> 0 | W74: 0 | X74: 0 | Y74: 0 | Z74: 0 | AA74: 0 | AB74: 8.526713412 | AC74: 0 | AD74: 0 | AE74: 0 | AF74: 0 | AG74: 0 | AH74: 0 | AI74: 0 | AJ74: 0 | AK74: 0 | AL74: 0 | AM74: 0 | AN74: 0 | AO74: 0 | AP74: 0 | AQ74: 0 | AR74: The Vx1 macro is a display data standard used on the DLPC8430. It is a receiver only and it's under development. Power is estimated at this time. | AS74: PLLTS16FFCLAFRACF_MCU_PERIPHERIAL
A75: TEF16FCLL256X32HD18_PHRM | B75: _main | C75: 2 | D75: 5 | E75: VDD_CORE | F75: N/A | G75: N/A | H75: VPP | I75: LU | J75: GP_Core_CTL | K75: eFuse | L75: 10/30/2021 | M75: 5 Analog | N75: eFuse | O75: 0 | P75: ON | Q75: 0 | R75: on | S75: 1 | T75: 0 | U75: =IFERROR(IF($I75="SI",AP75*$C75*(VLOOKUP("vdd_lkg (ulvt20)",pwr_scale_table,2,0)*$AJ75*'Power Scaling'!F$7+VLOOKUP("vdd_lkg (ulvt16)",pwr_scale_table,2,0)*$AK75*'Power Scaling'!F$8+VLOOKUP("vdd_lkg (lvt20)",pwr_scale_table,2,0)*$AL75*'Power Scaling'!F$5+VLOOKUP("vdd_lkg (lvt16)",pwr_scale_table,2,0)*AM75*'Power Scaling'!F$6+VLOOKUP("vdd_lkg (svt20)",pwr_scale_table,2,0)*$AN75*'Power Scaling'!F$3+VLOOKUP("vdd_lkg (svt16)",pwr_scale_table,2,0)*$AO75*'Power Scaling'!F$4)*IF(P75="OFF",0.06,1),VLOOKUP($A75&"_"&U$3,MDB,5,0)*$C75*VLOOKUP("vdd_lkg (svt16)",pwr_scale_table,2,0)*IF(P75="OFF",0.06,1)),0) -> 0 | V75: =C75*IFERROR(IF($I75="SI",(AE75*IF(S75=0,0,1)+(AF75-AE75)*S75)*IF(R75>0,R75,Q75)/Q75*(VLOOKUP("vdd_int (ulvt20)",pwr_scale_table,2,0)*$AJ75*'Power Scaling'!I$7+VLOOKUP("vdd_int (ulvt16)",pwr_scale_table,2,0)*$AK75*'Power Scaling'!I$8+VLOOKUP("vdd_int (lvt20)",pwr_scale_table,2,0)*$AL75*'Power Scaling'!I$5+VLOOKUP("vdd_int (lvt16)",pwr_scale_table,2,0)*AM75*'Power Scaling'!I$6+VLOOKUP("vdd_int (svt20)",pwr_scale_table,2,0)*$AN75*'Power Scaling'!I$3+VLOOKUP("vdd_int (svt16)",pwr_scale_table,2,0)*$AO75*'Power Scaling'!I$4)*AQ75,IF(OR($I75="AO",$I75="LU"),VLOOKUP($A75&"_"&"vdd_dyn"&"_"&$R75&"",MDB,5,0)*VLOOKUP("vdd_int (svt20)",pwr_scale_table,2,0),IF(OR($I75="LUUA",$I75="LUUB"),VLOOKUP($A75&"_"&"vdd_dyn"&"_"&$R75&"",MDB,5,0)*$C75*$S75*VLOOKUP("vdd_int (svt20)",pwr_scale_table,2,0),VLOOKUP($A75&"_"&"vdd_dyn"&"_"&$R75&"_idle",MDB,5,0)*(1-$S75)+VLOOKUP($A75&"_"&"vdd_dyn"&"_"&$R75&"_read",MDB,5,0)*($S75/2)+VLOOKUP($A75&"_"&"vdd_dyn"&"_"&$R75&"_write",MDB,5,0)*($S75/2)*VLOOKUP("vdd_int (svt20)",pwr_scale_table,2,0)))),0) -> 0 | W75: =C75*IFERROR(IF($I75="SI",(AE75*IF(S75=0,0,1)+(AF75-AE75)*S75)*VLOOKUP("vdd_sw",pwr_scale_table,2,0)*AI75,0),0) -> 0 | X75: 0 | Y75: 0 | Z75: 0 | AA75: 0 | AB75: 0 | AC75: 0 | AD75: 0 | AE75: 0 | AF75: 0 | AG75: 0 | AH75: 0 | AI75: 0 | AJ75: 0 | AK75: 0 | AL75: 0 | AM75: 0 | AN75: 0 | AO75: 0 | AP75: 0 | AQ75: 0 | AR75: The Vx1 macro is a display data standard used on the DLPC8430. It is a receiver only and it's under development. Power is estimated at this time. | AS75: TEF16FCLL256X32HD18_PHRM_main
A76: N16FFC_POK | B76: _PMIC_IN_OV | C76: 1 | D76: 5 | E76: VDD_CORE | F76: N/A | G76: VDDA_MCU | H76: N/A | I76: LU | J76: GP_Core_CTL | K76: POK | L76: 10/30/2021 | M76: 5 Analog | N76: Power | O76: 0.02 | P76: ON | Q76: 0 | R76: on | S76: 1 | T76: 0 | U76: =IFERROR(IF($I76="SI",AP76*$C76*(VLOOKUP("vdd_lkg (ulvt20)",pwr_scale_table,2,0)*$AJ76*'Power Scaling'!F$7+VLOOKUP("vdd_lkg (ulvt16)",pwr_scale_table,2,0)*$AK76*'Power Scaling'!F$8+VLOOKUP("vdd_lkg (lvt20)",pwr_scale_table,2,0)*$AL76*'Power Scaling'!F$5+VLOOKUP("vdd_lkg (lvt16)",pwr_scale_table,2,0)*AM76*'Power Scaling'!F$6+VLOOKUP("vdd_lkg (svt20)",pwr_scale_table,2,0)*$AN76*'Power Scaling'!F$3+VLOOKUP("vdd_lkg (svt16)",pwr_scale_table,2,0)*$AO76*'Power Scaling'!F$4)*IF(P76="OFF",0.06,1),VLOOKUP($A76&"_"&U$3,MDB,5,0)*$C76*VLOOKUP("vdd_lkg (svt16)",pwr_scale_table,2,0)*IF(P76="OFF",0.06,1)),0) -> 0 | V76: =C76*IFERROR(IF($I76="SI",(AE76*IF(S76=0,0,1)+(AF76-AE76)*S76)*IF(R76>0,R76,Q76)/Q76*(VLOOKUP("vdd_int (ulvt20)",pwr_scale_table,2,0)*$AJ76*'Power Scaling'!I$7+VLOOKUP("vdd_int (ulvt16)",pwr_scale_table,2,0)*$AK76*'Power Scaling'!I$8+VLOOKUP("vdd_int (lvt20)",pwr_scale_table,2,0)*$AL76*'Power Scaling'!I$5+VLOOKUP("vdd_int (lvt16)",pwr_scale_table,2,0)*AM76*'Power Scaling'!I$6+VLOOKUP("vdd_int (svt20)",pwr_scale_table,2,0)*$AN76*'Power Scaling'!I$3+VLOOKUP("vdd_int (svt16)",pwr_scale_table,2,0)*$AO76*'Power Scaling'!I$4)*AQ76,IF(OR($I76="AO",$I76="LU"),VLOOKUP($A76&"_"&"vdd_dyn"&"_"&$R76&"",MDB,5,0)*VLOOKUP("vdd_int (svt20)",pwr_scale_table,2,0),IF(OR($I76="LUUA",$I76="LUUB"),VLOOKUP($A76&"_"&"vdd_dyn"&"_"&$R76&"",MDB,5,0)*$C76*$S76*VLOOKUP("vdd_int (svt20)",pwr_scale_table,2,0),VLOOKUP($A76&"_"&"vdd_dyn"&"_"&$R76&"_idle",MDB,5,0)*(1-$S76)+VLOOKUP($A76&"_"&"vdd_dyn"&"_"&$R76&"_read",MDB,5,0)*($S76/2)+VLOOKUP($A76&"_"&"vdd_dyn"&"_"&$R76&"_write",MDB,5,0)*($S76/2)*VLOOKUP("vdd_int (svt20)",pwr_scale_table,2,0)))),0) -> 0 | W76: 0 | X76: 0 | Y76: 0 | Z76: 0 | AA76: 0 | AB76: 0.02 | AC76: 0 | AD76: 0 | AE76: 0 | AF76: 0 | AG76: 0 | AH76: 0 | AI76: 0 | AJ76: 0 | AK76: 0 | AL76: 0 | AM76: 0 | AN76: 0 | AO76: 0 | AP76: 0 | AQ76: 0 | AR76: The Vx1 macro is a display data standard used on the DLPC8430. It is a receiver only and it's under development. Power is estimated at this time. | AS76: N16FFC_POK_PMIC_IN_OV
A77: N16FFC_POK | B77: _VDD_CORE_OV | C77: 1 | D77: 5 | E77: VDD_CORE | F77: N/A | G77: VDDA_MCU | H77: N/A | I77: LU | J77: GP_Core_CTL | K77: POK | L77: 10/30/2021 | M77: 5 Analog | N77: Power | O77: 0.02 | P77: ON | Q77: 0 | R77: on | S77: 1 | T77: 0 | U77: =IFERROR(IF($I77="SI",AP77*$C77*(VLOOKUP("vdd_lkg (ulvt20)",pwr_scale_table,2,0)*$AJ77*'Power Scaling'!F$7+VLOOKUP("vdd_lkg (ulvt16)",pwr_scale_table,2,0)*$AK77*'Power Scaling'!F$8+VLOOKUP("vdd_lkg (lvt20)",pwr_scale_table,2,0)*$AL77*'Power Scaling'!F$5+VLOOKUP("vdd_lkg (lvt16)",pwr_scale_table,2,0)*AM77*'Power Scaling'!F$6+VLOOKUP("vdd_lkg (svt20)",pwr_scale_table,2,0)*$AN77*'Power Scaling'!F$3+VLOOKUP("vdd_lkg (svt16)",pwr_scale_table,2,0)*$AO77*'Power Scaling'!F$4)*IF(P77="OFF",0.06,1),VLOOKUP($A77&"_"&U$3,MDB,5,0)*$C77*VLOOKUP("vdd_lkg (svt16)",pwr_scale_table,2,0)*IF(P77="OFF",0.06,1)),0) -> 0 | V77: =C77*IFERROR(IF($I77="SI",(AE77*IF(S77=0,0,1)+(AF77-AE77)*S77)*IF(R77>0,R77,Q77)/Q77*(VLOOKUP("vdd_int (ulvt20)",pwr_scale_table,2,0)*$AJ77*'Power Scaling'!I$7+VLOOKUP("vdd_int (ulvt16)",pwr_scale_table,2,0)*$AK77*'Power Scaling'!I$8+VLOOKUP("vdd_int (lvt20)",pwr_scale_table,2,0)*$AL77*'Power Scaling'!I$5+VLOOKUP("vdd_int (lvt16)",pwr_scale_table,2,0)*AM77*'Power Scaling'!I$6+VLOOKUP("vdd_int (svt20)",pwr_scale_table,2,0)*$AN77*'Power Scaling'!I$3+VLOOKUP("vdd_int (svt16)",pwr_scale_table,2,0)*$AO77*'Power Scaling'!I$4)*AQ77,IF(OR($I77="AO",$I77="LU"),VLOOKUP($A77&"_"&"vdd_dyn"&"_"&$R77&"",MDB,5,0)*VLOOKUP("vdd_int (svt20)",pwr_scale_table,2,0),IF(OR($I77="LUUA",$I77="LUUB"),VLOOKUP($A77&"_"&"vdd_dyn"&"_"&$R77&"",MDB,5,0)*$C77*$S77*VLOOKUP("vdd_int (svt20)",pwr_scale_table,2,0),VLOOKUP($A77&"_"&"vdd_dyn"&"_"&$R77&"_idle",MDB,5,0)*(1-$S77)+VLOOKUP($A77&"_"&"vdd_dyn"&"_"&$R77&"_read",MDB,5,0)*($S77/2)+VLOOKUP($A77&"_"&"vdd_dyn"&"_"&$R77&"_write",MDB,5,0)*($S77/2)*VLOOKUP("vdd_int (svt20)",pwr_scale_table,2,0)))),0) -> 0 | W77: 0 | X77: 0 | Y77: 0 | Z77: 0 | AA77: 0 | AB77: 0.02 | AC77: 0 | AD77: 0 | AE77: 0 | AF77: 0 | AG77: 0 | AH77: 0 | AI77: 0 | AJ77: 0 | AK77: 0 | AL77: 0 | AM77: 0 | AN77: 0 | AO77: 0 | AP77: 0 | AQ77: 0 | AR77: The Vx1 macro is a display data standard used on the DLPC8430. It is a receiver only and it's under development. Power is estimated at this time. | AS77: N16FFC_POK_VDD_CORE_OV
A78: N16FFC_POK | B78: _VDD_CORE_UV | C78: 1 | D78: 5 | E78: VDD_CORE | F78: N/A | G78: VDDA_MCU | H78: N/A | I78: LU | J78: GP_Core_CTL | K78: POK | L78: 10/30/2021 | M78: 5 Analog | N78: Power | O78: 0.02 | P78: ON | Q78: 0 | R78: on | S78: 1 | T78: 0 | U78: =IFERROR(IF($I78="SI",AP78*$C78*(VLOOKUP("vdd_lkg (ulvt20)",pwr_scale_table,2,0)*$AJ78*'Power Scaling'!F$7+VLOOKUP("vdd_lkg (ulvt16)",pwr_scale_table,2,0)*$AK78*'Power Scaling'!F$8+VLOOKUP("vdd_lkg (lvt20)",pwr_scale_table,2,0)*$AL78*'Power Scaling'!F$5+VLOOKUP("vdd_lkg (lvt16)",pwr_scale_table,2,0)*AM78*'Power Scaling'!F$6+VLOOKUP("vdd_lkg (svt20)",pwr_scale_table,2,0)*$AN78*'Power Scaling'!F$3+VLOOKUP("vdd_lkg (svt16)",pwr_scale_table,2,0)*$AO78*'Power Scaling'!F$4)*IF(P78="OFF",0.06,1),VLOOKUP($A78&"_"&U$3,MDB,5,0)*$C78*VLOOKUP("vdd_lkg (svt16)",pwr_scale_table,2,0)*IF(P78="OFF",0.06,1)),0) -> 0 | V78: =C78*IFERROR(IF($I78="SI",(AE78*IF(S78=0,0,1)+(AF78-AE78)*S78)*IF(R78>0,R78,Q78)/Q78*(VLOOKUP("vdd_int (ulvt20)",pwr_scale_table,2,0)*$AJ78*'Power Scaling'!I$7+VLOOKUP("vdd_int (ulvt16)",pwr_scale_table,2,0)*$AK78*'Power Scaling'!I$8+VLOOKUP("vdd_int (lvt20)",pwr_scale_table,2,0)*$AL78*'Power Scaling'!I$5+VLOOKUP("vdd_int (lvt16)",pwr_scale_table,2,0)*AM78*'Power Scaling'!I$6+VLOOKUP("vdd_int (svt20)",pwr_scale_table,2,0)*$AN78*'Power Scaling'!I$3+VLOOKUP("vdd_int (svt16)",pwr_scale_table,2,0)*$AO78*'Power Scaling'!I$4)*AQ78,IF(OR($I78="AO",$I78="LU"),VLOOKUP($A78&"_"&"vdd_dyn"&"_"&$R78&"",MDB,5,0)*VLOOKUP("vdd_int (svt20)",pwr_scale_table,2,0),IF(OR($I78="LUUA",$I78="LUUB"),VLOOKUP($A78&"_"&"vdd_dyn"&"_"&$R78&"",MDB,5,0)*$C78*$S78*VLOOKUP("vdd_int (svt20)",pwr_scale_table,2,0),VLOOKUP($A78&"_"&"vdd_dyn"&"_"&$R78&"_idle",MDB,5,0)*(1-$S78)+VLOOKUP($A78&"_"&"vdd_dyn"&"_"&$R78&"_read",MDB,5,0)*($S78/2)+VLOOKUP($A78&"_"&"vdd_dyn"&"_"&$R78&"_write",MDB,5,0)*($S78/2)*VLOOKUP("vdd_int (svt20)",pwr_scale_table,2,0)))),0) -> 0 | W78: 0 | X78: 0 | Y78: 0 | Z78: 0 | AA78: 0 | AB78: 0.02 | AC78: 0 | AD78: 0 | AE78: 0 | AF78: 0 | AG78: 0 | AH78: 0 | AI78: 0 | AJ78: 0 | AK78: 0 | AL78: 0 | AM78: 0 | AN78: 0 | AO78: 0 | AP78: 0 | AQ78: 0 | AR78: The Vx1 macro is a display data standard used on the DLPC8430. It is a receiver only and it's under development. Power is estimated at this time. | AS78: N16FFC_POK_VDD_CORE_UV
A79: N16FFC_POK | B79: _VDDR_CORE_OV | C79: 1 | D79: 5 | E79: VDD_CORE | F79: N/A | G79: VDDA_MCU | H79: N/A | I79: LU | J79: GP_Core_CTL | K79: POK | L79: 10/30/2021 | M79: 5 Analog | N79: Power | O79: 0.02 | P79: ON | Q79: 0 | R79: on | S79: 1 | T79: 0 | U79: =IFERROR(IF($I79="SI",AP79*$C79*(VLOOKUP("vdd_lkg (ulvt20)",pwr_scale_table,2,0)*$AJ79*'Power Scaling'!F$7+VLOOKUP("vdd_lkg (ulvt16)",pwr_scale_table,2,0)*$AK79*'Power Scaling'!F$8+VLOOKUP("vdd_lkg (lvt20)",pwr_scale_table,2,0)*$AL79*'Power Scaling'!F$5+VLOOKUP("vdd_lkg (lvt16)",pwr_scale_table,2,0)*AM79*'Power Scaling'!F$6+VLOOKUP("vdd_lkg (svt20)",pwr_scale_table,2,0)*$AN79*'Power Scaling'!F$3+VLOOKUP("vdd_lkg (svt16)",pwr_scale_table,2,0)*$AO79*'Power Scaling'!F$4)*IF(P79="OFF",0.06,1),VLOOKUP($A79&"_"&U$3,MDB,5,0)*$C79*VLOOKUP("vdd_lkg (svt16)",pwr_scale_table,2,0)*IF(P79="OFF",0.06,1)),0) -> 0 | V79: =C79*IFERROR(IF($I79="SI",(AE79*IF(S79=0,0,1)+(AF79-AE79)*S79)*IF(R79>0,R79,Q79)/Q79*(VLOOKUP("vdd_int (ulvt20)",pwr_scale_table,2,0)*$AJ79*'Power Scaling'!I$7+VLOOKUP("vdd_int (ulvt16)",pwr_scale_table,2,0)*$AK79*'Power Scaling'!I$8+VLOOKUP("vdd_int (lvt20)",pwr_scale_table,2,0)*$AL79*'Power Scaling'!I$5+VLOOKUP("vdd_int (lvt16)",pwr_scale_table,2,0)*AM79*'Power Scaling'!I$6+VLOOKUP("vdd_int (svt20)",pwr_scale_table,2,0)*$AN79*'Power Scaling'!I$3+VLOOKUP("vdd_int (svt16)",pwr_scale_table,2,0)*$AO79*'Power Scaling'!I$4)*AQ79,IF(OR($I79="AO",$I79="LU"),VLOOKUP($A79&"_"&"vdd_dyn"&"_"&$R79&"",MDB,5,0)*VLOOKUP("vdd_int (svt20)",pwr_scale_table,2,0),IF(OR($I79="LUUA",$I79="LUUB"),VLOOKUP($A79&"_"&"vdd_dyn"&"_"&$R79&"",MDB,5,0)*$C79*$S79*VLOOKUP("vdd_int (svt20)",pwr_scale_table,2,0),VLOOKUP($A79&"_"&"vdd_dyn"&"_"&$R79&"_idle",MDB,5,0)*(1-$S79)+VLOOKUP($A79&"_"&"vdd_dyn"&"_"&$R79&"_read",MDB,5,0)*($S79/2)+VLOOKUP($A79&"_"&"vdd_dyn"&"_"&$R79&"_write",MDB,5,0)*($S79/2)*VLOOKUP("vdd_int (svt20)",pwr_scale_table,2,0)))),0) -> 0 | W79: 0 | X79: 0 | Y79: 0 | Z79: 0 | AA79: 0 | AB79: 0.02 | AC79: 0 | AD79: 0 | AE79: 0 | AF79: 0 | AG79: 0 | AH79: 0 | AI79: 0 | AJ79: 0 | AK79: 0 | AL79: 0 | AM79: 0 | AN79: 0 | AO79: 0 | AP79: 0 | AQ79: 0 | AR79: The Vx1 macro is a display data standard used on the DLPC8430. It is a receiver only and it's under development. Power is estimated at this time. | AS79: N16FFC_POK_VDDR_CORE_OV
A80: N16FFC_POK | B80: _VDDR_CORE_UV | C80: 1 | D80: 5 | E80: VDD_CORE | F80: N/A | G80: VDDA_MCU | H80: N/A | I80: LU | J80: GP_Core_CTL | K80: POK | L80: 10/30/2021 | M80: 5 Analog | N80: Power | O80: 0.02 | P80: ON | Q80: 0 | R80: on | S80: 1 | T80: 0 | U80: =IFERROR(IF($I80="SI",AP80*$C80*(VLOOKUP("vdd_lkg (ulvt20)",pwr_scale_table,2,0)*$AJ80*'Power Scaling'!F$7+VLOOKUP("vdd_lkg (ulvt16)",pwr_scale_table,2,0)*$AK80*'Power Scaling'!F$8+VLOOKUP("vdd_lkg (lvt20)",pwr_scale_table,2,0)*$AL80*'Power Scaling'!F$5+VLOOKUP("vdd_lkg (lvt16)",pwr_scale_table,2,0)*AM80*'Power Scaling'!F$6+VLOOKUP("vdd_lkg (svt20)",pwr_scale_table,2,0)*$AN80*'Power Scaling'!F$3+VLOOKUP("vdd_lkg (svt16)",pwr_scale_table,2,0)*$AO80*'Power Scaling'!F$4)*IF(P80="OFF",0.06,1),VLOOKUP($A80&"_"&U$3,MDB,5,0)*$C80*VLOOKUP("vdd_lkg (svt16)",pwr_scale_table,2,0)*IF(P80="OFF",0.06,1)),0) -> 0 | V80: =C80*IFERROR(IF($I80="SI",(AE80*IF(S80=0,0,1)+(AF80-AE80)*S80)*IF(R80>0,R80,Q80)/Q80*(VLOOKUP("vdd_int (ulvt20)",pwr_scale_table,2,0)*$AJ80*'Power Scaling'!I$7+VLOOKUP("vdd_int (ulvt16)",pwr_scale_table,2,0)*$AK80*'Power Scaling'!I$8+VLOOKUP("vdd_int (lvt20)",pwr_scale_table,2,0)*$AL80*'Power Scaling'!I$5+VLOOKUP("vdd_int (lvt16)",pwr_scale_table,2,0)*AM80*'Power Scaling'!I$6+VLOOKUP("vdd_int (svt20)",pwr_scale_table,2,0)*$AN80*'Power Scaling'!I$3+VLOOKUP("vdd_int (svt16)",pwr_scale_table,2,0)*$AO80*'Power Scaling'!I$4)*AQ80,IF(OR($I80="AO",$I80="LU"),VLOOKUP($A80&"_"&"vdd_dyn"&"_"&$R80&"",MDB,5,0)*VLOOKUP("vdd_int (svt20)",pwr_scale_table,2,0),IF(OR($I80="LUUA",$I80="LUUB"),VLOOKUP($A80&"_"&"vdd_dyn"&"_"&$R80&"",MDB,5,0)*$C80*$S80*VLOOKUP("vdd_int (svt20)",pwr_scale_table,2,0),VLOOKUP($A80&"_"&"vdd_dyn"&"_"&$R80&"_idle",MDB,5,0)*(1-$S80)+VLOOKUP($A80&"_"&"vdd_dyn"&"_"&$R80&"_read",MDB,5,0)*($S80/2)+VLOOKUP($A80&"_"&"vdd_dyn"&"_"&$R80&"_write",MDB,5,0)*($S80/2)*VLOOKUP("vdd_int (svt20)",pwr_scale_table,2,0)))),0) -> 0 | W80: 0 | X80: 0 | Y80: 0 | Z80: 0 | AA80: 0 | AB80: 0.02 | AC80: 0 | AD80: 0 | AE80: 0 | AF80: 0 | AG80: 0 | AH80: 0 | AI80: 0 | AJ80: 0 | AK80: 0 | AL80: 0 | AM80: 0 | AN80: 0 | AO80: 0 | AP80: 0 | AQ80: 0 | AR80: The Vx1 macro is a display data standard used on the DLPC8430. It is a receiver only and it's under development. Power is estimated at this time. | AS80: N16FFC_POK_VDDR_CORE_UV
A81: N16FFC_POK | B81: _VMON_EXT_OV | C81: 1 | D81: 5 | E81: VDD_CORE | F81: N/A | G81: VDDA_MCU | H81: N/A | I81: LU | J81: GP_Core_CTL | K81: POK | L81: 10/30/2021 | M81: 5 Analog | N81: Power | O81: 0.02 | P81: ON | Q81: 0 | R81: on | S81: 1 | T81: 0 | U81: =IFERROR(IF($I81="SI",AP81*$C81*(VLOOKUP("vdd_lkg (ulvt20)",pwr_scale_table,2,0)*$AJ81*'Power Scaling'!F$7+VLOOKUP("vdd_lkg (ulvt16)",pwr_scale_table,2,0)*$AK81*'Power Scaling'!F$8+VLOOKUP("vdd_lkg (lvt20)",pwr_scale_table,2,0)*$AL81*'Power Scaling'!F$5+VLOOKUP("vdd_lkg (lvt16)",pwr_scale_table,2,0)*AM81*'Power Scaling'!F$6+VLOOKUP("vdd_lkg (svt20)",pwr_scale_table,2,0)*$AN81*'Power Scaling'!F$3+VLOOKUP("vdd_lkg (svt16)",pwr_scale_table,2,0)*$AO81*'Power Scaling'!F$4)*IF(P81="OFF",0.06,1),VLOOKUP($A81&"_"&U$3,MDB,5,0)*$C81*VLOOKUP("vdd_lkg (svt16)",pwr_scale_table,2,0)*IF(P81="OFF",0.06,1)),0) -> 0 | V81: =C81*IFERROR(IF($I81="SI",(AE81*IF(S81=0,0,1)+(AF81-AE81)*S81)*IF(R81>0,R81,Q81)/Q81*(VLOOKUP("vdd_int (ulvt20)",pwr_scale_table,2,0)*$AJ81*'Power Scaling'!I$7+VLOOKUP("vdd_int (ulvt16)",pwr_scale_table,2,0)*$AK81*'Power Scaling'!I$8+VLOOKUP("vdd_int (lvt20)",pwr_scale_table,2,0)*$AL81*'Power Scaling'!I$5+VLOOKUP("vdd_int (lvt16)",pwr_scale_table,2,0)*AM81*'Power Scaling'!I$6+VLOOKUP("vdd_int (svt20)",pwr_scale_table,2,0)*$AN81*'Power Scaling'!I$3+VLOOKUP("vdd_int (svt16)",pwr_scale_table,2,0)*$AO81*'Power Scaling'!I$4)*AQ81,IF(OR($I81="AO",$I81="LU"),VLOOKUP($A81&"_"&"vdd_dyn"&"_"&$R81&"",MDB,5,0)*VLOOKUP("vdd_int (svt20)",pwr_scale_table,2,0),IF(OR($I81="LUUA",$I81="LUUB"),VLOOKUP($A81&"_"&"vdd_dyn"&"_"&$R81&"",MDB,5,0)*$C81*$S81*VLOOKUP("vdd_int (svt20)",pwr_scale_table,2,0),VLOOKUP($A81&"_"&"vdd_dyn"&"_"&$R81&"_idle",MDB,5,0)*(1-$S81)+VLOOKUP($A81&"_"&"vdd_dyn"&"_"&$R81&"_read",MDB,5,0)*($S81/2)+VLOOKUP($A81&"_"&"vdd_dyn"&"_"&$R81&"_write",MDB,5,0)*($S81/2)*VLOOKUP("vdd_int (svt20)",pwr_scale_table,2,0)))),0) -> 0 | W81: 0 | X81: 0 | Y81: 0 | Z81: 0 | AA81: 0 | AB81: 0.02 | AC81: 0 | AD81: 0 | AE81: 0 | AF81: 0 | AG81: 0 | AH81: 0 | AI81: 0 | AJ81: 0 | AK81: 0 | AL81: 0 | AM81: 0 | AN81: 0 | AO81: 0 | AP81: 0 | AQ81: 0 | AR81: The Vx1 macro is a display data standard used on the DLPC8430. It is a receiver only and it's under development. Power is estimated at this time. | AS81: N16FFC_POK_VMON_EXT_OV
A82: N16FFC_POK | B82: _VMON_EXT_UV | C82: 1 | D82: 5 | E82: VDD_CORE | F82: N/A | G82: VDDA_MCU | H82: N/A | I82: LU | J82: GP_Core_CTL | K82: POK | L82: 10/30/2021 | M82: 5 Analog | N82: Power | O82: 0.02 | P82: ON | Q82: 0 | R82: on | S82: 1 | T82: 0 | U82: =IFERROR(IF($I82="SI",AP82*$C82*(VLOOKUP("vdd_lkg (ulvt20)",pwr_scale_table,2,0)*$AJ82*'Power Scaling'!F$7+VLOOKUP("vdd_lkg (ulvt16)",pwr_scale_table,2,0)*$AK82*'Power Scaling'!F$8+VLOOKUP("vdd_lkg (lvt20)",pwr_scale_table,2,0)*$AL82*'Power Scaling'!F$5+VLOOKUP("vdd_lkg (lvt16)",pwr_scale_table,2,0)*AM82*'Power Scaling'!F$6+VLOOKUP("vdd_lkg (svt20)",pwr_scale_table,2,0)*$AN82*'Power Scaling'!F$3+VLOOKUP("vdd_lkg (svt16)",pwr_scale_table,2,0)*$AO82*'Power Scaling'!F$4)*IF(P82="OFF",0.06,1),VLOOKUP($A82&"_"&U$3,MDB,5,0)*$C82*VLOOKUP("vdd_lkg (svt16)",pwr_scale_table,2,0)*IF(P82="OFF",0.06,1)),0) -> 0 | V82: =C82*IFERROR(IF($I82="SI",(AE82*IF(S82=0,0,1)+(AF82-AE82)*S82)*IF(R82>0,R82,Q82)/Q82*(VLOOKUP("vdd_int (ulvt20)",pwr_scale_table,2,0)*$AJ82*'Power Scaling'!I$7+VLOOKUP("vdd_int (ulvt16)",pwr_scale_table,2,0)*$AK82*'Power Scaling'!I$8+VLOOKUP("vdd_int (lvt20)",pwr_scale_table,2,0)*$AL82*'Power Scaling'!I$5+VLOOKUP("vdd_int (lvt16)",pwr_scale_table,2,0)*AM82*'Power Scaling'!I$6+VLOOKUP("vdd_int (svt20)",pwr_scale_table,2,0)*$AN82*'Power Scaling'!I$3+VLOOKUP("vdd_int (svt16)",pwr_scale_table,2,0)*$AO82*'Power Scaling'!I$4)*AQ82,IF(OR($I82="AO",$I82="LU"),VLOOKUP($A82&"_"&"vdd_dyn"&"_"&$R82&"",MDB,5,0)*VLOOKUP("vdd_int (svt20)",pwr_scale_table,2,0),IF(OR($I82="LUUA",$I82="LUUB"),VLOOKUP($A82&"_"&"vdd_dyn"&"_"&$R82&"",MDB,5,0)*$C82*$S82*VLOOKUP("vdd_int (svt20)",pwr_scale_table,2,0),VLOOKUP($A82&"_"&"vdd_dyn"&"_"&$R82&"_idle",MDB,5,0)*(1-$S82)+VLOOKUP($A82&"_"&"vdd_dyn"&"_"&$R82&"_read",MDB,5,0)*($S82/2)+VLOOKUP($A82&"_"&"vdd_dyn"&"_"&$R82&"_write",MDB,5,0)*($S82/2)*VLOOKUP("vdd_int (svt20)",pwr_scale_table,2,0)))),0) -> 0 | W82: 0 | X82: 0 | Y82: 0 | Z82: 0 | AA82: 0 | AB82: 0.02 | AC82: 0 | AD82: 0 | AE82: 0 | AF82: 0 | AG82: 0 | AH82: 0 | AI82: 0 | AJ82: 0 | AK82: 0 | AL82: 0 | AM82: 0 | AN82: 0 | AO82: 0 | AP82: 0 | AQ82: 0 | AR82: The Vx1 macro is a display data standard used on the DLPC8430. It is a receiver only and it's under development. Power is estimated at this time. | AS82: N16FFC_POK_VMON_EXT_UV
A83: PGD | B83: _MAIN_CORE | C83: 1 | D83: 5 | E83: VDD_CORE | F83: VDD_CORE | G83: N/A | H83: N/A | I83: LU | J83: GP_Core_CTL | K83: PGD | L83: 10/30/2021 | M83: 5 Analog | N83: Power | O83: 0 | P83: ON | Q83: 0 | R83: on | S83: 1 | T83: 0 | U83: =IFERROR(IF($I83="SI",AP83*$C83*(VLOOKUP("vdd_lkg (ulvt20)",pwr_scale_table,2,0)*$AJ83*'Power Scaling'!F$7+VLOOKUP("vdd_lkg (ulvt16)",pwr_scale_table,2,0)*$AK83*'Power Scaling'!F$8+VLOOKUP("vdd_lkg (lvt20)",pwr_scale_table,2,0)*$AL83*'Power Scaling'!F$5+VLOOKUP("vdd_lkg (lvt16)",pwr_scale_table,2,0)*AM83*'Power Scaling'!F$6+VLOOKUP("vdd_lkg (svt20)",pwr_scale_table,2,0)*$AN83*'Power Scaling'!F$3+VLOOKUP("vdd_lkg (svt16)",pwr_scale_table,2,0)*$AO83*'Power Scaling'!F$4)*IF(P83="OFF",0.06,1),VLOOKUP($A83&"_"&U$3,MDB,5,0)*$C83*VLOOKUP("vdd_lkg (svt16)",pwr_scale_table,2,0)*IF(P83="OFF",0.06,1)),0) -> 0 | V83: =C83*IFERROR(IF($I83="SI",(AE83*IF(S83=0,0,1)+(AF83-AE83)*S83)*IF(R83>0,R83,Q83)/Q83*(VLOOKUP("vdd_int (ulvt20)",pwr_scale_table,2,0)*$AJ83*'Power Scaling'!I$7+VLOOKUP("vdd_int (ulvt16)",pwr_scale_table,2,0)*$AK83*'Power Scaling'!I$8+VLOOKUP("vdd_int (lvt20)",pwr_scale_table,2,0)*$AL83*'Power Scaling'!I$5+VLOOKUP("vdd_int (lvt16)",pwr_scale_table,2,0)*AM83*'Power Scaling'!I$6+VLOOKUP("vdd_int (svt20)",pwr_scale_table,2,0)*$AN83*'Power Scaling'!I$3+VLOOKUP("vdd_int (svt16)",pwr_scale_table,2,0)*$AO83*'Power Scaling'!I$4)*AQ83,IF(OR($I83="AO",$I83="LU"),VLOOKUP($A83&"_"&"vdd_dyn"&"_"&$R83&"",MDB,5,0)*VLOOKUP("vdd_int (svt20)",pwr_scale_table,2,0),IF(OR($I83="LUUA",$I83="LUUB"),VLOOKUP($A83&"_"&"vdd_dyn"&"_"&$R83&"",MDB,5,0)*$C83*$S83*VLOOKUP("vdd_int (svt20)",pwr_scale_table,2,0),VLOOKUP($A83&"_"&"vdd_dyn"&"_"&$R83&"_idle",MDB,5,0)*(1-$S83)+VLOOKUP($A83&"_"&"vdd_dyn"&"_"&$R83&"_read",MDB,5,0)*($S83/2)+VLOOKUP($A83&"_"&"vdd_dyn"&"_"&$R83&"_write",MDB,5,0)*($S83/2)*VLOOKUP("vdd_int (svt20)",pwr_scale_table,2,0)))),0) -> 0 | W83: 0 | X83: 0 | Y83: 0 | Z83: 0 | AA83: 0 | AB83: 0 | AC83: 0 | AD83: 0 | AE83: 0 | AF83: 0 | AG83: 0 | AH83: 0 | AI83: 0 | AJ83: 0 | AK83: 0 | AL83: 0 | AM83: 0 | AN83: 0 | AO83: 0 | AP83: 0 | AQ83: 0 | AR83: The Vx1 macro is a display data standard used on the DLPC8430. It is a receiver only and it's under development. Power is estimated at this time. | AS83: PGD_MAIN_CORE
A84: ddr32_3733_ios | B84: _0 | C84: 1 | D84: 3 | E84: VDD_CORE | F84: N/A | G84: VDDS_DDR | H84: VDDS_DDR_C | I84: LUUD | J84: PD_DDR | K84: LP/DDR4-32 IO 3733 | L84: 10/30/2021 | M84: 6 IO | N84: DDR-PHY | O84: 215.16 | P84: ON | Q84: 0 | R84: =IF(ISBLANK(BD84),0,INDIRECT(BD84)) -> lpddr4_2400_32 | S84: =S39 -> 1.1 | T84: 0 | U84: =IFERROR(IF($I84="SI",AP84*$C84*(VLOOKUP("vdd_lkg (ulvt20)",pwr_scale_table,2,0)*$AJ84*'Power Scaling'!F$7+VLOOKUP("vdd_lkg (ulvt16)",pwr_scale_table,2,0)*$AK84*'Power Scaling'!F$8+VLOOKUP("vdd_lkg (lvt20)",pwr_scale_table,2,0)*$AL84*'Power Scaling'!F$5+VLOOKUP("vdd_lkg (lvt16)",pwr_scale_table,2,0)*AM84*'Power Scaling'!F$6+VLOOKUP("vdd_lkg (svt20)",pwr_scale_table,2,0)*$AN84*'Power Scaling'!F$3+VLOOKUP("vdd_lkg (svt16)",pwr_scale_table,2,0)*$AO84*'Power Scaling'!F$4)*IF(P84="OFF",0.06,1),VLOOKUP($A84&"_"&U$3,MDB,5,0)*$C84*VLOOKUP("vdd_lkg (svt16)",pwr_scale_table,2,0)*IF(P84="OFF",0.06,1)),0) -> 0 | V84: =C84*IFERROR(IF($I84="SI",(AE84*IF(S84=0,0,1)+(AF84-AE84)*S84)*IF(R84>0,R84,Q84)/Q84*(VLOOKUP("vdd_int (ulvt20)",pwr_scale_table,2,0)*$AJ84*'Power Scaling'!I$7+VLOOKUP("vdd_int (ulvt16)",pwr_scale_table,2,0)*$AK84*'Power Scaling'!I$8+VLOOKUP("vdd_int (lvt20)",pwr_scale_table,2,0)*$AL84*'Power Scaling'!I$5+VLOOKUP("vdd_int (lvt16)",pwr_scale_table,2,0)*AM84*'Power Scaling'!I$6+VLOOKUP("vdd_int (svt20)",pwr_scale_table,2,0)*$AN84*'Power Scaling'!I$3+VLOOKUP("vdd_int (svt16)",pwr_scale_table,2,0)*$AO84*'Power Scaling'!I$4)*AQ84,IF(OR($I84="AO",$I84="LU"),VLOOKUP($A84&"_"&"vdd_dyn"&"_"&$R84&"",MDB,5,0)*VLOOKUP("vdd_int (svt20)",pwr_scale_table,2,0),IF(OR($I84="LUUA",$I84="LUUB"),VLOOKUP($A84&"_"&"vdd_dyn"&"_"&$R84&"",MDB,5,0)*$C84*$S84*VLOOKUP("vdd_int (svt20)",pwr_scale_table,2,0),VLOOKUP($A84&"_"&"vdd_dyn"&"_"&$R84&"_idle",MDB,5,0)*(1-$S84)+VLOOKUP($A84&"_"&"vdd_dyn"&"_"&$R84&"_read",MDB,5,0)*($S84/2)+VLOOKUP($A84&"_"&"vdd_dyn"&"_"&$R84&"_write",MDB,5,0)*($S84/2)*VLOOKUP("vdd_int (svt20)",pwr_scale_table,2,0)))),0) -> 0 | W84: 0 | X84: 0 | Y84: 0 | Z84: 0 | AA84: 0 | AB84: 215.16 | AC84: 0 | AD84: 0 | AE84: 0 | AF84: 0 | AG84: 0 | AH84: 0 | AI84: 0 | AJ84: 0 | AK84: 0 | AL84: 0 | AM84: 0 | AN84: 0 | AO84: 0 | AP84: 0 | AQ84: 0 | AR84: The Vx1 macro is a display data standard used on the DLPC8430. It is a receiver only and it's under development. Power is estimated at this time. | AS84: ddr32_3733_ios_0 | AT84: CG$25 | BD84: CF$25 | BG84: DDR
A85: ABJSTBL5 | B85: _multiple | C85: 1 | D85: 5 | E85: VDD_CORE | F85: N/A | G85: VDDA_TEMP0 | H85: N/A | I85: LU | J85: GP_Core_CTL | K85: PVT Sensor | L85: 10/30/2021 | M85: 6 IO | N85: Monitor | O85: 0.600002717 | P85: ON | Q85: 0 | R85: on | S85: 1 | T85: 0 | U85: =IFERROR(IF($I85="SI",AP85*$C85*(VLOOKUP("vdd_lkg (ulvt20)",pwr_scale_table,2,0)*$AJ85*'Power Scaling'!F$7+VLOOKUP("vdd_lkg (ulvt16)",pwr_scale_table,2,0)*$AK85*'Power Scaling'!F$8+VLOOKUP("vdd_lkg (lvt20)",pwr_scale_table,2,0)*$AL85*'Power Scaling'!F$5+VLOOKUP("vdd_lkg (lvt16)",pwr_scale_table,2,0)*AM85*'Power Scaling'!F$6+VLOOKUP("vdd_lkg (svt20)",pwr_scale_table,2,0)*$AN85*'Power Scaling'!F$3+VLOOKUP("vdd_lkg (svt16)",pwr_scale_table,2,0)*$AO85*'Power Scaling'!F$4)*IF(P85="OFF",0.06,1),VLOOKUP($A85&"_"&U$3,MDB,5,0)*$C85*VLOOKUP("vdd_lkg (svt16)",pwr_scale_table,2,0)*IF(P85="OFF",0.06,1)),0) -> 0 | V85: =C85*IFERROR(IF($I85="SI",(AE85*IF(S85=0,0,1)+(AF85-AE85)*S85)*IF(R85>0,R85,Q85)/Q85*(VLOOKUP("vdd_int (ulvt20)",pwr_scale_table,2,0)*$AJ85*'Power Scaling'!I$7+VLOOKUP("vdd_int (ulvt16)",pwr_scale_table,2,0)*$AK85*'Power Scaling'!I$8+VLOOKUP("vdd_int (lvt20)",pwr_scale_table,2,0)*$AL85*'Power Scaling'!I$5+VLOOKUP("vdd_int (lvt16)",pwr_scale_table,2,0)*AM85*'Power Scaling'!I$6+VLOOKUP("vdd_int (svt20)",pwr_scale_table,2,0)*$AN85*'Power Scaling'!I$3+VLOOKUP("vdd_int (svt16)",pwr_scale_table,2,0)*$AO85*'Power Scaling'!I$4)*AQ85,IF(OR($I85="AO",$I85="LU"),VLOOKUP($A85&"_"&"vdd_dyn"&"_"&$R85&"",MDB,5,0)*VLOOKUP("vdd_int (svt20)",pwr_scale_table,2,0),IF(OR($I85="LUUA",$I85="LUUB"),VLOOKUP($A85&"_"&"vdd_dyn"&"_"&$R85&"",MDB,5,0)*$C85*$S85*VLOOKUP("vdd_int (svt20)",pwr_scale_table,2,0),VLOOKUP($A85&"_"&"vdd_dyn"&"_"&$R85&"_idle",MDB,5,0)*(1-$S85)+VLOOKUP($A85&"_"&"vdd_dyn"&"_"&$R85&"_read",MDB,5,0)*($S85/2)+VLOOKUP($A85&"_"&"vdd_dyn"&"_"&$R85&"_write",MDB,5,0)*($S85/2)*VLOOKUP("vdd_int (svt20)",pwr_scale_table,2,0)))),0) -> 0 | W85: 0 | X85: 0 | Y85: 0 | Z85: 0 | AA85: 0 | AB85: 0.600002717 | AC85: 0 | AD85: 0 | AE85: 0 | AF85: 0 | AG85: 0 | AH85: 0 | AI85: 0 | AJ85: 0 | AK85: 0 | AL85: 0 | AM85: 0 | AN85: 0 | AO85: 0 | AP85: 0 | AQ85: 0 | AR85: The Vx1 macro is a display data standard used on the DLPC8430. It is a receiver only and it's under development. Power is estimated at this time. | AS85: ABJSTBL5_multiple
A86: ABJSTBL5 | B86: _multiple | C86: 1 | D86: 5 | E86: VDD_CORE | F86: N/A | G86: VDDA_TEMP1 | H86: N/A | I86: LU | J86: GP_Core_CTL | K86: PVT Sensor | L86: 10/30/2021 | M86: 6 IO | N86: Monitor | O86: 0.600002717 | P86: ON | Q86: 0 | R86: on | S86: 1 | T86: 0 | U86: =IFERROR(IF($I86="SI",AP86*$C86*(VLOOKUP("vdd_lkg (ulvt20)",pwr_scale_table,2,0)*$AJ86*'Power Scaling'!F$7+VLOOKUP("vdd_lkg (ulvt16)",pwr_scale_table,2,0)*$AK86*'Power Scaling'!F$8+VLOOKUP("vdd_lkg (lvt20)",pwr_scale_table,2,0)*$AL86*'Power Scaling'!F$5+VLOOKUP("vdd_lkg (lvt16)",pwr_scale_table,2,0)*AM86*'Power Scaling'!F$6+VLOOKUP("vdd_lkg (svt20)",pwr_scale_table,2,0)*$AN86*'Power Scaling'!F$3+VLOOKUP("vdd_lkg (svt16)",pwr_scale_table,2,0)*$AO86*'Power Scaling'!F$4)*IF(P86="OFF",0.06,1),VLOOKUP($A86&"_"&U$3,MDB,5,0)*$C86*VLOOKUP("vdd_lkg (svt16)",pwr_scale_table,2,0)*IF(P86="OFF",0.06,1)),0) -> 0 | V86: =C86*IFERROR(IF($I86="SI",(AE86*IF(S86=0,0,1)+(AF86-AE86)*S86)*IF(R86>0,R86,Q86)/Q86*(VLOOKUP("vdd_int (ulvt20)",pwr_scale_table,2,0)*$AJ86*'Power Scaling'!I$7+VLOOKUP("vdd_int (ulvt16)",pwr_scale_table,2,0)*$AK86*'Power Scaling'!I$8+VLOOKUP("vdd_int (lvt20)",pwr_scale_table,2,0)*$AL86*'Power Scaling'!I$5+VLOOKUP("vdd_int (lvt16)",pwr_scale_table,2,0)*AM86*'Power Scaling'!I$6+VLOOKUP("vdd_int (svt20)",pwr_scale_table,2,0)*$AN86*'Power Scaling'!I$3+VLOOKUP("vdd_int (svt16)",pwr_scale_table,2,0)*$AO86*'Power Scaling'!I$4)*AQ86,IF(OR($I86="AO",$I86="LU"),VLOOKUP($A86&"_"&"vdd_dyn"&"_"&$R86&"",MDB,5,0)*VLOOKUP("vdd_int (svt20)",pwr_scale_table,2,0),IF(OR($I86="LUUA",$I86="LUUB"),VLOOKUP($A86&"_"&"vdd_dyn"&"_"&$R86&"",MDB,5,0)*$C86*$S86*VLOOKUP("vdd_int (svt20)",pwr_scale_table,2,0),VLOOKUP($A86&"_"&"vdd_dyn"&"_"&$R86&"_idle",MDB,5,0)*(1-$S86)+VLOOKUP($A86&"_"&"vdd_dyn"&"_"&$R86&"_read",MDB,5,0)*($S86/2)+VLOOKUP($A86&"_"&"vdd_dyn"&"_"&$R86&"_write",MDB,5,0)*($S86/2)*VLOOKUP("vdd_int (svt20)",pwr_scale_table,2,0)))),0) -> 0 | W86: 0 | X86: 0 | Y86: 0 | Z86: 0 | AA86: 0 | AB86: 0.600002717 | AC86: 0 | AD86: 0 | AE86: 0 | AF86: 0 | AG86: 0 | AH86: 0 | AI86: 0 | AJ86: 0 | AK86: 0 | AL86: 0 | AM86: 0 | AN86: 0 | AO86: 0 | AP86: 0 | AQ86: 0 | AR86: The Vx1 macro is a display data standard used on the DLPC8430. It is a receiver only and it's under development. Power is estimated at this time. | AS86: ABJSTBL5_multiple
A87: ABJSTBL5 | B87: _multiple | C87: 1 | D87: 5 | E87: VDD_CORE | F87: N/A | G87: VDDA_TEMP2 | H87: N/A | I87: LU | J87: GP_Core_CTL | K87: PVT Sensor | L87: 10/30/2021 | M87: 6 IO | N87: Monitor | O87: 0.600002717 | P87: ON | Q87: 0 | R87: on | S87: 1 | T87: 0 | U87: =IFERROR(IF($I87="SI",AP87*$C87*(VLOOKUP("vdd_lkg (ulvt20)",pwr_scale_table,2,0)*$AJ87*'Power Scaling'!F$7+VLOOKUP("vdd_lkg (ulvt16)",pwr_scale_table,2,0)*$AK87*'Power Scaling'!F$8+VLOOKUP("vdd_lkg (lvt20)",pwr_scale_table,2,0)*$AL87*'Power Scaling'!F$5+VLOOKUP("vdd_lkg (lvt16)",pwr_scale_table,2,0)*AM87*'Power Scaling'!F$6+VLOOKUP("vdd_lkg (svt20)",pwr_scale_table,2,0)*$AN87*'Power Scaling'!F$3+VLOOKUP("vdd_lkg (svt16)",pwr_scale_table,2,0)*$AO87*'Power Scaling'!F$4)*IF(P87="OFF",0.06,1),VLOOKUP($A87&"_"&U$3,MDB,5,0)*$C87*VLOOKUP("vdd_lkg (svt16)",pwr_scale_table,2,0)*IF(P87="OFF",0.06,1)),0) -> 0 | V87: =C87*IFERROR(IF($I87="SI",(AE87*IF(S87=0,0,1)+(AF87-AE87)*S87)*IF(R87>0,R87,Q87)/Q87*(VLOOKUP("vdd_int (ulvt20)",pwr_scale_table,2,0)*$AJ87*'Power Scaling'!I$7+VLOOKUP("vdd_int (ulvt16)",pwr_scale_table,2,0)*$AK87*'Power Scaling'!I$8+VLOOKUP("vdd_int (lvt20)",pwr_scale_table,2,0)*$AL87*'Power Scaling'!I$5+VLOOKUP("vdd_int (lvt16)",pwr_scale_table,2,0)*AM87*'Power Scaling'!I$6+VLOOKUP("vdd_int (svt20)",pwr_scale_table,2,0)*$AN87*'Power Scaling'!I$3+VLOOKUP("vdd_int (svt16)",pwr_scale_table,2,0)*$AO87*'Power Scaling'!I$4)*AQ87,IF(OR($I87="AO",$I87="LU"),VLOOKUP($A87&"_"&"vdd_dyn"&"_"&$R87&"",MDB,5,0)*VLOOKUP("vdd_int (svt20)",pwr_scale_table,2,0),IF(OR($I87="LUUA",$I87="LUUB"),VLOOKUP($A87&"_"&"vdd_dyn"&"_"&$R87&"",MDB,5,0)*$C87*$S87*VLOOKUP("vdd_int (svt20)",pwr_scale_table,2,0),VLOOKUP($A87&"_"&"vdd_dyn"&"_"&$R87&"_idle",MDB,5,0)*(1-$S87)+VLOOKUP($A87&"_"&"vdd_dyn"&"_"&$R87&"_read",MDB,5,0)*($S87/2)+VLOOKUP($A87&"_"&"vdd_dyn"&"_"&$R87&"_write",MDB,5,0)*($S87/2)*VLOOKUP("vdd_int (svt20)",pwr_scale_table,2,0)))),0) -> 0 | W87: 0 | X87: 0 | Y87: 0 | Z87: 0 | AA87: 0 | AB87: 0.600002717 | AC87: 0 | AD87: 0 | AE87: 0 | AF87: 0 | AG87: 0 | AH87: 0 | AI87: 0 | AJ87: 0 | AK87: 0 | AL87: 0 | AM87: 0 | AN87: 0 | AO87: 0 | AP87: 0 | AQ87: 0 | AR87: The Vx1 macro is a display data standard used on the DLPC8430. It is a receiver only and it's under development. Power is estimated at this time. | AS87: ABJSTBL5_multiple
A88: N16FFC_HFXOSC | B88: _0 | C88: 1 | D88: 5 | E88: VDD_CORE | F88: N/A | G88: VDDS_OSC0 | H88: N/A | I88: LU | J88: GP_Core_CTL | K88: HFOSC | L88: 10/30/2021 | M88: 6 IO | N88: OSC | O88: 5.58 | P88: ON | Q88: 0 | R88: on | S88: 1 | T88: 0 | U88: =IFERROR(IF($I88="SI",AP88*$C88*(VLOOKUP("vdd_lkg (ulvt20)",pwr_scale_table,2,0)*$AJ88*'Power Scaling'!F$7+VLOOKUP("vdd_lkg (ulvt16)",pwr_scale_table,2,0)*$AK88*'Power Scaling'!F$8+VLOOKUP("vdd_lkg (lvt20)",pwr_scale_table,2,0)*$AL88*'Power Scaling'!F$5+VLOOKUP("vdd_lkg (lvt16)",pwr_scale_table,2,0)*AM88*'Power Scaling'!F$6+VLOOKUP("vdd_lkg (svt20)",pwr_scale_table,2,0)*$AN88*'Power Scaling'!F$3+VLOOKUP("vdd_lkg (svt16)",pwr_scale_table,2,0)*$AO88*'Power Scaling'!F$4)*IF(P88="OFF",0.06,1),VLOOKUP($A88&"_"&U$3,MDB,5,0)*$C88*VLOOKUP("vdd_lkg (svt16)",pwr_scale_table,2,0)*IF(P88="OFF",0.06,1)),0) -> 0 | V88: =C88*IFERROR(IF($I88="SI",(AE88*IF(S88=0,0,1)+(AF88-AE88)*S88)*IF(R88>0,R88,Q88)/Q88*(VLOOKUP("vdd_int (ulvt20)",pwr_scale_table,2,0)*$AJ88*'Power Scaling'!I$7+VLOOKUP("vdd_int (ulvt16)",pwr_scale_table,2,0)*$AK88*'Power Scaling'!I$8+VLOOKUP("vdd_int (lvt20)",pwr_scale_table,2,0)*$AL88*'Power Scaling'!I$5+VLOOKUP("vdd_int (lvt16)",pwr_scale_table,2,0)*AM88*'Power Scaling'!I$6+VLOOKUP("vdd_int (svt20)",pwr_scale_table,2,0)*$AN88*'Power Scaling'!I$3+VLOOKUP("vdd_int (svt16)",pwr_scale_table,2,0)*$AO88*'Power Scaling'!I$4)*AQ88,IF(OR($I88="AO",$I88="LU"),VLOOKUP($A88&"_"&"vdd_dyn"&"_"&$R88&"",MDB,5,0)*VLOOKUP("vdd_int (svt20)",pwr_scale_table,2,0),IF(OR($I88="LUUA",$I88="LUUB"),VLOOKUP($A88&"_"&"vdd_dyn"&"_"&$R88&"",MDB,5,0)*$C88*$S88*VLOOKUP("vdd_int (svt20)",pwr_scale_table,2,0),VLOOKUP($A88&"_"&"vdd_dyn"&"_"&$R88&"_idle",MDB,5,0)*(1-$S88)+VLOOKUP($A88&"_"&"vdd_dyn"&"_"&$R88&"_read",MDB,5,0)*($S88/2)+VLOOKUP($A88&"_"&"vdd_dyn"&"_"&$R88&"_write",MDB,5,0)*($S88/2)*VLOOKUP("vdd_int (svt20)",pwr_scale_table,2,0)))),0) -> 0 | W88: 0 | X88: 0 | Y88: 0 | Z88: 0 | AA88: 0 | AB88: 5.58 | AC88: 0 | AD88: 0 | AE88: 0 | AF88: 0 | AG88: 0 | AH88: 0 | AI88: 0 | AJ88: 0 | AK88: 0 | AL88: 0 | AM88: 0 | AN88: 0 | AO88: 0 | AP88: 0 | AQ88: 0 | AR88: The Vx1 macro is a display data standard used on the DLPC8430. It is a receiver only and it's under development. Power is estimated at this time. | AS88: N16FFC_HFXOSC_0
A89: N16FFC_LFXOSC | B89: _0 | C89: 1 | D89: 5 | E89: VDD_CORE | F89: N/A | G89: VDDS_OSC0 | H89: N/A | I89: LU | J89: GP_Core_CTL | K89: LFOSC | L89: 10/30/2021 | M89: 6 IO | N89: OSC | O89: 0.002628 | P89: ON | Q89: 0 | R89: on | S89: 1 | T89: 0 | U89: =IFERROR(IF($I89="SI",AP89*$C89*(VLOOKUP("vdd_lkg (ulvt20)",pwr_scale_table,2,0)*$AJ89*'Power Scaling'!F$7+VLOOKUP("vdd_lkg (ulvt16)",pwr_scale_table,2,0)*$AK89*'Power Scaling'!F$8+VLOOKUP("vdd_lkg (lvt20)",pwr_scale_table,2,0)*$AL89*'Power Scaling'!F$5+VLOOKUP("vdd_lkg (lvt16)",pwr_scale_table,2,0)*AM89*'Power Scaling'!F$6+VLOOKUP("vdd_lkg (svt20)",pwr_scale_table,2,0)*$AN89*'Power Scaling'!F$3+VLOOKUP("vdd_lkg (svt16)",pwr_scale_table,2,0)*$AO89*'Power Scaling'!F$4)*IF(P89="OFF",0.06,1),VLOOKUP($A89&"_"&U$3,MDB,5,0)*$C89*VLOOKUP("vdd_lkg (svt16)",pwr_scale_table,2,0)*IF(P89="OFF",0.06,1)),0) -> 0 | V89: =C89*IFERROR(IF($I89="SI",(AE89*IF(S89=0,0,1)+(AF89-AE89)*S89)*IF(R89>0,R89,Q89)/Q89*(VLOOKUP("vdd_int (ulvt20)",pwr_scale_table,2,0)*$AJ89*'Power Scaling'!I$7+VLOOKUP("vdd_int (ulvt16)",pwr_scale_table,2,0)*$AK89*'Power Scaling'!I$8+VLOOKUP("vdd_int (lvt20)",pwr_scale_table,2,0)*$AL89*'Power Scaling'!I$5+VLOOKUP("vdd_int (lvt16)",pwr_scale_table,2,0)*AM89*'Power Scaling'!I$6+VLOOKUP("vdd_int (svt20)",pwr_scale_table,2,0)*$AN89*'Power Scaling'!I$3+VLOOKUP("vdd_int (svt16)",pwr_scale_table,2,0)*$AO89*'Power Scaling'!I$4)*AQ89,IF(OR($I89="AO",$I89="LU"),VLOOKUP($A89&"_"&"vdd_dyn"&"_"&$R89&"",MDB,5,0)*VLOOKUP("vdd_int (svt20)",pwr_scale_table,2,0),IF(OR($I89="LUUA",$I89="LUUB"),VLOOKUP($A89&"_"&"vdd_dyn"&"_"&$R89&"",MDB,5,0)*$C89*$S89*VLOOKUP("vdd_int (svt20)",pwr_scale_table,2,0),VLOOKUP($A89&"_"&"vdd_dyn"&"_"&$R89&"_idle",MDB,5,0)*(1-$S89)+VLOOKUP($A89&"_"&"vdd_dyn"&"_"&$R89&"_read",MDB,5,0)*($S89/2)+VLOOKUP($A89&"_"&"vdd_dyn"&"_"&$R89&"_write",MDB,5,0)*($S89/2)*VLOOKUP("vdd_int (svt20)",pwr_scale_table,2,0)))),0) -> 0 | W89: 0 | X89: 0 | Y89: 0 | Z89: 0 | AA89: 0 | AB89: 0.002628 | AC89: 0 | AD89: 0 | AE89: 0 | AF89: 0 | AG89: 0 | AH89: 0 | AI89: 0 | AJ89: 0 | AK89: 0 | AL89: 0 | AM89: 0 | AN89: 0 | AO89: 0 | AP89: 0 | AQ89: 0 | AR89: The Vx1 macro is a display data standard used on the DLPC8430. It is a receiver only and it's under development. Power is estimated at this time. | AS89: N16FFC_LFXOSC_0
A90: N16FFC_RCOSC | B90: _0 | C90: 1 | D90: 5 | E90: VDD_CORE | F90: N/A | G90: VDDS_OSC0 | H90: N/A | I90: LU | J90: GP_Core_CTL | K90: RCOSC | L90: 10/30/2021 | M90: 6 IO | N90: OSC | O90: 0.0873 | P90: ON | Q90: 0 | R90: on | S90: 1 | T90: 0 | U90: =IFERROR(IF($I90="SI",AP90*$C90*(VLOOKUP("vdd_lkg (ulvt20)",pwr_scale_table,2,0)*$AJ90*'Power Scaling'!F$7+VLOOKUP("vdd_lkg (ulvt16)",pwr_scale_table,2,0)*$AK90*'Power Scaling'!F$8+VLOOKUP("vdd_lkg (lvt20)",pwr_scale_table,2,0)*$AL90*'Power Scaling'!F$5+VLOOKUP("vdd_lkg (lvt16)",pwr_scale_table,2,0)*AM90*'Power Scaling'!F$6+VLOOKUP("vdd_lkg (svt20)",pwr_scale_table,2,0)*$AN90*'Power Scaling'!F$3+VLOOKUP("vdd_lkg (svt16)",pwr_scale_table,2,0)*$AO90*'Power Scaling'!F$4)*IF(P90="OFF",0.06,1),VLOOKUP($A90&"_"&U$3,MDB,5,0)*$C90*VLOOKUP("vdd_lkg (svt16)",pwr_scale_table,2,0)*IF(P90="OFF",0.06,1)),0) -> 0 | V90: =C90*IFERROR(IF($I90="SI",(AE90*IF(S90=0,0,1)+(AF90-AE90)*S90)*IF(R90>0,R90,Q90)/Q90*(VLOOKUP("vdd_int (ulvt20)",pwr_scale_table,2,0)*$AJ90*'Power Scaling'!I$7+VLOOKUP("vdd_int (ulvt16)",pwr_scale_table,2,0)*$AK90*'Power Scaling'!I$8+VLOOKUP("vdd_int (lvt20)",pwr_scale_table,2,0)*$AL90*'Power Scaling'!I$5+VLOOKUP("vdd_int (lvt16)",pwr_scale_table,2,0)*AM90*'Power Scaling'!I$6+VLOOKUP("vdd_int (svt20)",pwr_scale_table,2,0)*$AN90*'Power Scaling'!I$3+VLOOKUP("vdd_int (svt16)",pwr_scale_table,2,0)*$AO90*'Power Scaling'!I$4)*AQ90,IF(OR($I90="AO",$I90="LU"),VLOOKUP($A90&"_"&"vdd_dyn"&"_"&$R90&"",MDB,5,0)*VLOOKUP("vdd_int (svt20)",pwr_scale_table,2,0),IF(OR($I90="LUUA",$I90="LUUB"),VLOOKUP($A90&"_"&"vdd_dyn"&"_"&$R90&"",MDB,5,0)*$C90*$S90*VLOOKUP("vdd_int (svt20)",pwr_scale_table,2,0),VLOOKUP($A90&"_"&"vdd_dyn"&"_"&$R90&"_idle",MDB,5,0)*(1-$S90)+VLOOKUP($A90&"_"&"vdd_dyn"&"_"&$R90&"_read",MDB,5,0)*($S90/2)+VLOOKUP($A90&"_"&"vdd_dyn"&"_"&$R90&"_write",MDB,5,0)*($S90/2)*VLOOKUP("vdd_int (svt20)",pwr_scale_table,2,0)))),0) -> 0 | W90: 0 | X90: 0 | Y90: 0 | Z90: 0 | AA90: 0 | AB90: 0.0873 | AC90: 0 | AD90: 0 | AE90: 0 | AF90: 0 | AG90: 0 | AH90: 0 | AI90: 0 | AJ90: 0 | AK90: 0 | AL90: 0 | AM90: 0 | AN90: 0 | AO90: 0 | AP90: 0 | AQ90: 0 | AR90: The Vx1 macro is a display data standard used on the DLPC8430. It is a receiver only and it's under development. Power is estimated at this time. | AS90: N16FFC_RCOSC_0
C91: 0 | O91: 0 | Q91: 0 | R91: =IF(R93="disable","disable","1PLL") ->  | S91: =IF(R91="disable",0%,100%) ->  | T91: 0 | U91: =IFERROR(IF($I91="SI",AP91*$C91*(VLOOKUP("vdd_lkg (ulvt20)",pwr_scale_table,2,0)*$AJ91*'Power Scaling'!F$7+VLOOKUP("vdd_lkg (ulvt16)",pwr_scale_table,2,0)*$AK91*'Power Scaling'!F$8+VLOOKUP("vdd_lkg (lvt20)",pwr_scale_table,2,0)*$AL91*'Power Scaling'!F$5+VLOOKUP("vdd_lkg (lvt16)",pwr_scale_table,2,0)*AM91*'Power Scaling'!F$6+VLOOKUP("vdd_lkg (svt20)",pwr_scale_table,2,0)*$AN91*'Power Scaling'!F$3+VLOOKUP("vdd_lkg (svt16)",pwr_scale_table,2,0)*$AO91*'Power Scaling'!F$4)*IF(P91="OFF",0.06,1),VLOOKUP($A91&"_"&U$3,MDB,5,0)*$C91*VLOOKUP("vdd_lkg (svt16)",pwr_scale_table,2,0)*IF(P91="OFF",0.06,1)),0) -> 0 | V91: =C91*IFERROR(IF($I91="SI",(AE91*IF(S91=0,0,1)+(AF91-AE91)*S91)*IF(R91>0,R91,Q91)/Q91*(VLOOKUP("vdd_int (ulvt20)",pwr_scale_table,2,0)*$AJ91*'Power Scaling'!I$7+VLOOKUP("vdd_int (ulvt16)",pwr_scale_table,2,0)*$AK91*'Power Scaling'!I$8+VLOOKUP("vdd_int (lvt20)",pwr_scale_table,2,0)*$AL91*'Power Scaling'!I$5+VLOOKUP("vdd_int (lvt16)",pwr_scale_table,2,0)*AM91*'Power Scaling'!I$6+VLOOKUP("vdd_int (svt20)",pwr_scale_table,2,0)*$AN91*'Power Scaling'!I$3+VLOOKUP("vdd_int (svt16)",pwr_scale_table,2,0)*$AO91*'Power Scaling'!I$4)*AQ91,IF(OR($I91="AO",$I91="LU"),VLOOKUP($A91&"_"&"vdd_dyn"&"_"&$R91&"",MDB,5,0)*VLOOKUP("vdd_int (svt20)",pwr_scale_table,2,0),IF(OR($I91="LUUA",$I91="LUUB"),VLOOKUP($A91&"_"&"vdd_dyn"&"_"&$R91&"",MDB,5,0)*$C91*$S91*VLOOKUP("vdd_int (svt20)",pwr_scale_table,2,0),VLOOKUP($A91&"_"&"vdd_dyn"&"_"&$R91&"_idle",MDB,5,0)*(1-$S91)+VLOOKUP($A91&"_"&"vdd_dyn"&"_"&$R91&"_read",MDB,5,0)*($S91/2)+VLOOKUP($A91&"_"&"vdd_dyn"&"_"&$R91&"_write",MDB,5,0)*($S91/2)*VLOOKUP("vdd_int (svt20)",pwr_scale_table,2,0)))),0) -> 0 | W91: 0 | X91: 0 | Y91: 0 | Z91: 0 | AA91: 0 | AB91: 0 | AC91: 0 | AD91: 0 | AE91: 0 | AF91: 0 | AG91: 0 | AH91: 0 | AI91: 0 | AJ91: 0 | AK91: 0 | AL91: 0 | AM91: 0 | AN91: 0 | AO91: 0 | AR91: The Vx1 macro is a display data standard used on the DLPC8430. It is a receiver only and it's under development. Power is estimated at this time. | BD91: CF$37
C92: 0 | O92: 0 | Q92: 0 | R92: =IF(OR(R94="unused",R94="suspend"),"disable","1PLL") ->  | S92: =IF(R92="disable",0%,100%) ->  | T92: 0 | U92: =IFERROR(IF($I92="SI",AP92*$C92*(VLOOKUP("vdd_lkg (ulvt20)",pwr_scale_table,2,0)*$AJ92*'Power Scaling'!F$7+VLOOKUP("vdd_lkg (ulvt16)",pwr_scale_table,2,0)*$AK92*'Power Scaling'!F$8+VLOOKUP("vdd_lkg (lvt20)",pwr_scale_table,2,0)*$AL92*'Power Scaling'!F$5+VLOOKUP("vdd_lkg (lvt16)",pwr_scale_table,2,0)*AM92*'Power Scaling'!F$6+VLOOKUP("vdd_lkg (svt20)",pwr_scale_table,2,0)*$AN92*'Power Scaling'!F$3+VLOOKUP("vdd_lkg (svt16)",pwr_scale_table,2,0)*$AO92*'Power Scaling'!F$4)*IF(P92="OFF",0.06,1),VLOOKUP($A92&"_"&U$3,MDB,5,0)*$C92*VLOOKUP("vdd_lkg (svt16)",pwr_scale_table,2,0)*IF(P92="OFF",0.06,1)),0) -> 0 | V92: =C92*IFERROR(IF($I92="SI",(AE92*IF(S92=0,0,1)+(AF92-AE92)*S92)*IF(R92>0,R92,Q92)/Q92*(VLOOKUP("vdd_int (ulvt20)",pwr_scale_table,2,0)*$AJ92*'Power Scaling'!I$7+VLOOKUP("vdd_int (ulvt16)",pwr_scale_table,2,0)*$AK92*'Power Scaling'!I$8+VLOOKUP("vdd_int (lvt20)",pwr_scale_table,2,0)*$AL92*'Power Scaling'!I$5+VLOOKUP("vdd_int (lvt16)",pwr_scale_table,2,0)*AM92*'Power Scaling'!I$6+VLOOKUP("vdd_int (svt20)",pwr_scale_table,2,0)*$AN92*'Power Scaling'!I$3+VLOOKUP("vdd_int (svt16)",pwr_scale_table,2,0)*$AO92*'Power Scaling'!I$4)*AQ92,IF(OR($I92="AO",$I92="LU"),VLOOKUP($A92&"_"&"vdd_dyn"&"_"&$R92&"",MDB,5,0)*VLOOKUP("vdd_int (svt20)",pwr_scale_table,2,0),IF(OR($I92="LUUA",$I92="LUUB"),VLOOKUP($A92&"_"&"vdd_dyn"&"_"&$R92&"",MDB,5,0)*$C92*$S92*VLOOKUP("vdd_int (svt20)",pwr_scale_table,2,0),VLOOKUP($A92&"_"&"vdd_dyn"&"_"&$R92&"_idle",MDB,5,0)*(1-$S92)+VLOOKUP($A92&"_"&"vdd_dyn"&"_"&$R92&"_read",MDB,5,0)*($S92/2)+VLOOKUP($A92&"_"&"vdd_dyn"&"_"&$R92&"_write",MDB,5,0)*($S92/2)*VLOOKUP("vdd_int (svt20)",pwr_scale_table,2,0)))),0) -> 0 | W92: 0 | X92: 0 | Y92: 0 | Z92: 0 | AA92: 0 | AB92: 0 | AC92: 0 | AD92: 0 | AE92: 0 | AF92: 0 | AG92: 0 | AH92: 0 | AI92: 0 | AJ92: 0 | AK92: 0 | AL92: 0 | AM92: 0 | AN92: 0 | AO92: 0 | AR92: The Vx1 macro is a display data standard used on the DLPC8430. It is a receiver only and it's under development. Power is estimated at this time. | BD92: CF$39
C93: 0 | O93: 0 | Q93: 0 | R93: =IF(AZ93="unused",BA93,AZ93) ->  | S93: =IF(R93="disable",0%,100%) ->  | T93: 0 | U93: =IFERROR(IF($I93="SI",AP93*$C93*(VLOOKUP("vdd_lkg (ulvt20)",pwr_scale_table,2,0)*$AJ93*'Power Scaling'!F$7+VLOOKUP("vdd_lkg (ulvt16)",pwr_scale_table,2,0)*$AK93*'Power Scaling'!F$8+VLOOKUP("vdd_lkg (lvt20)",pwr_scale_table,2,0)*$AL93*'Power Scaling'!F$5+VLOOKUP("vdd_lkg (lvt16)",pwr_scale_table,2,0)*AM93*'Power Scaling'!F$6+VLOOKUP("vdd_lkg (svt20)",pwr_scale_table,2,0)*$AN93*'Power Scaling'!F$3+VLOOKUP("vdd_lkg (svt16)",pwr_scale_table,2,0)*$AO93*'Power Scaling'!F$4)*IF(P93="OFF",0.06,1),VLOOKUP($A93&"_"&U$3,MDB,5,0)*$C93*VLOOKUP("vdd_lkg (svt16)",pwr_scale_table,2,0)*IF(P93="OFF",0.06,1)),0) -> 0 | V93: =C93*IFERROR(IF($I93="SI",(AE93*IF(S93=0,0,1)+(AF93-AE93)*S93)*IF(R93>0,R93,Q93)/Q93*(VLOOKUP("vdd_int (ulvt20)",pwr_scale_table,2,0)*$AJ93*'Power Scaling'!I$7+VLOOKUP("vdd_int (ulvt16)",pwr_scale_table,2,0)*$AK93*'Power Scaling'!I$8+VLOOKUP("vdd_int (lvt20)",pwr_scale_table,2,0)*$AL93*'Power Scaling'!I$5+VLOOKUP("vdd_int (lvt16)",pwr_scale_table,2,0)*AM93*'Power Scaling'!I$6+VLOOKUP("vdd_int (svt20)",pwr_scale_table,2,0)*$AN93*'Power Scaling'!I$3+VLOOKUP("vdd_int (svt16)",pwr_scale_table,2,0)*$AO93*'Power Scaling'!I$4)*AQ93,IF(OR($I93="AO",$I93="LU"),VLOOKUP($A93&"_"&"vdd_dyn"&"_"&$R93&"",MDB,5,0)*VLOOKUP("vdd_int (svt20)",pwr_scale_table,2,0),IF(OR($I93="LUUA",$I93="LUUB"),VLOOKUP($A93&"_"&"vdd_dyn"&"_"&$R93&"",MDB,5,0)*$C93*$S93*VLOOKUP("vdd_int (svt20)",pwr_scale_table,2,0),VLOOKUP($A93&"_"&"vdd_dyn"&"_"&$R93&"_idle",MDB,5,0)*(1-$S93)+VLOOKUP($A93&"_"&"vdd_dyn"&"_"&$R93&"_read",MDB,5,0)*($S93/2)+VLOOKUP($A93&"_"&"vdd_dyn"&"_"&$R93&"_write",MDB,5,0)*($S93/2)*VLOOKUP("vdd_int (svt20)",pwr_scale_table,2,0)))),0) -> 0 | W93: 0 | X93: 0 | Y93: 0 | Z93: 0 | AA93: 0 | AB93: 0 | AC93: 0 | AD93: 0 | AE93: 0 | AF93: 0 | AG93: 0 | AH93: 0 | AI93: 0 | AJ93: 0 | AK93: 0 | AL93: 0 | AM93: 0 | AN93: 0 | AO93: 0 | AR93: The Vx1 macro is a display data standard used on the DLPC8430. It is a receiver only and it's under development. Power is estimated at this time. | AT93: CB$38 | AU93: CC$38 | AV93: CD$38 | AW93: CB$32 | AX93: CC$32 | AY93: CD$32 | AZ93: =IF(AND(IF(ISBLANK(AT93),"unused",INDIRECT(AT93))<>"unused",IF(ISBLANK(AU93),0,INDIRECT(AU93))*IF(ISBLANK(AV93),0,INDIRECT(AV93))),INDIRECT(AT93),"unused") ->  | BA93: =IF(AND(IF(ISBLANK(AW93),"unused",INDIRECT(AW93))<>"unused",IF(ISBLANK(AX93),0,INDIRECT(AX93))*IF(ISBLANK(AY93),0,INDIRECT(AY93))),INDIRECT(AW93),"unused") -> unused | BD93: CF$37
C94: 0 | O94: 0 | Q94: 0 | R94: =IF(IF(IF(AZ94="suspend",BA94,AZ94)="1g",1,0)+IF(S93="1g",1,0)>INDIRECT(AY94),"unused",IF(AZ94="suspend",BA94,AZ94)) ->  | S94: =IF(OR(R94="suspend",R94="disable"),0%,100%) ->  | T94: 0 | U94: =IFERROR(IF($I94="SI",AP94*$C94*(VLOOKUP("vdd_lkg (ulvt20)",pwr_scale_table,2,0)*$AJ94*'Power Scaling'!F$7+VLOOKUP("vdd_lkg (ulvt16)",pwr_scale_table,2,0)*$AK94*'Power Scaling'!F$8+VLOOKUP("vdd_lkg (lvt20)",pwr_scale_table,2,0)*$AL94*'Power Scaling'!F$5+VLOOKUP("vdd_lkg (lvt16)",pwr_scale_table,2,0)*AM94*'Power Scaling'!F$6+VLOOKUP("vdd_lkg (svt20)",pwr_scale_table,2,0)*$AN94*'Power Scaling'!F$3+VLOOKUP("vdd_lkg (svt16)",pwr_scale_table,2,0)*$AO94*'Power Scaling'!F$4)*IF(P94="OFF",0.06,1),VLOOKUP($A94&"_"&U$3,MDB,5,0)*$C94*VLOOKUP("vdd_lkg (svt16)",pwr_scale_table,2,0)*IF(P94="OFF",0.06,1)),0) -> 0 | V94: =C94*IFERROR(IF($I94="SI",(AE94*IF(S94=0,0,1)+(AF94-AE94)*S94)*IF(R94>0,R94,Q94)/Q94*(VLOOKUP("vdd_int (ulvt20)",pwr_scale_table,2,0)*$AJ94*'Power Scaling'!I$7+VLOOKUP("vdd_int (ulvt16)",pwr_scale_table,2,0)*$AK94*'Power Scaling'!I$8+VLOOKUP("vdd_int (lvt20)",pwr_scale_table,2,0)*$AL94*'Power Scaling'!I$5+VLOOKUP("vdd_int (lvt16)",pwr_scale_table,2,0)*AM94*'Power Scaling'!I$6+VLOOKUP("vdd_int (svt20)",pwr_scale_table,2,0)*$AN94*'Power Scaling'!I$3+VLOOKUP("vdd_int (svt16)",pwr_scale_table,2,0)*$AO94*'Power Scaling'!I$4)*AQ94,IF(OR($I94="AO",$I94="LU"),VLOOKUP($A94&"_"&"vdd_dyn"&"_"&$R94&"",MDB,5,0)*VLOOKUP("vdd_int (svt20)",pwr_scale_table,2,0),IF(OR($I94="LUUA",$I94="LUUB"),VLOOKUP($A94&"_"&"vdd_dyn"&"_"&$R94&"",MDB,5,0)*$C94*$S94*VLOOKUP("vdd_int (svt20)",pwr_scale_table,2,0),VLOOKUP($A94&"_"&"vdd_dyn"&"_"&$R94&"_idle",MDB,5,0)*(1-$S94)+VLOOKUP($A94&"_"&"vdd_dyn"&"_"&$R94&"_read",MDB,5,0)*($S94/2)+VLOOKUP($A94&"_"&"vdd_dyn"&"_"&$R94&"_write",MDB,5,0)*($S94/2)*VLOOKUP("vdd_int (svt20)",pwr_scale_table,2,0)))),0) -> 0 | W94: 0 | X94: 0 | Y94: 0 | Z94: 0 | AA94: 0 | AB94: 0 | AC94: 0 | AD94: 0 | AE94: 0 | AF94: 0 | AG94: 0 | AH94: 0 | AI94: 0 | AJ94: 0 | AK94: 0 | AL94: 0 | AM94: 0 | AN94: 0 | AO94: 0 | AR94: The Vx1 macro is a display data standard used on the DLPC8430. It is a receiver only and it's under development. Power is estimated at this time. | AT94: CB$40 | AU94: CC$40 | AV94: CD$40 | AW94: CB$32 | AX94: CC$32 | AY94: CD$32 | AZ94: =IF(AND(IF(ISBLANK(AT94),"suspend",INDIRECT(AT94))<>"suspend",IF(ISBLANK(AU94),0,INDIRECT(AU94))*IF(ISBLANK(AV94),0,INDIRECT(AV94))),INDIRECT(AT94),"suspend") ->  | BA94: =IF(AND(IF(ISBLANK(AW94),"unused",INDIRECT(AW94))<>"unused",IF(ISBLANK(AX94),0,INDIRECT(AX94))*IF(ISBLANK(AY94),0,INDIRECT(AY94))),INDIRECT(AW94),"unused") -> unused | BD94: CF$39
A95: sd0901_rx4 | B95: _0 | C95: 1 | D95: 1 | E95: VDD_CORE | F95: VDDA_CORE_CSIRX0 | G95: VDDA_1P8_CSIRX0 | H95: N/A | I95: LU | J95: GP_Core_CTL | K95: DPHY 1.2 RX - 4L | L95: 10/30/2021 | M95: 6 IO | N95: SerDes | O95: 18.619 | P95: ON | Q95: 0 | R95: =IF(ISBLANK(BD95),"ulps",IF(INDIRECT(BE95)>BF95,INDIRECT(BD95),"ulps")) -> 1p5g4l | S95: =IF(R95="ulps",0,INDIRECT(AU95)) -> 0.1 | T95: 0 | U95: =IFERROR(IF($I95="SI",AP95*$C95*(VLOOKUP("vdd_lkg (ulvt20)",pwr_scale_table,2,0)*$AJ95*'Power Scaling'!F$7+VLOOKUP("vdd_lkg (ulvt16)",pwr_scale_table,2,0)*$AK95*'Power Scaling'!F$8+VLOOKUP("vdd_lkg (lvt20)",pwr_scale_table,2,0)*$AL95*'Power Scaling'!F$5+VLOOKUP("vdd_lkg (lvt16)",pwr_scale_table,2,0)*AM95*'Power Scaling'!F$6+VLOOKUP("vdd_lkg (svt20)",pwr_scale_table,2,0)*$AN95*'Power Scaling'!F$3+VLOOKUP("vdd_lkg (svt16)",pwr_scale_table,2,0)*$AO95*'Power Scaling'!F$4)*IF(P95="OFF",0.06,1),VLOOKUP($A95&"_"&U$3,MDB,5,0)*$C95*VLOOKUP("vdd_lkg (svt16)",pwr_scale_table,2,0)*IF(P95="OFF",0.06,1)),0) -> 0 | V95: =C95*IFERROR(IF($I95="SI",(AE95*IF(S95=0,0,1)+(AF95-AE95)*S95)*IF(R95>0,R95,Q95)/Q95*(VLOOKUP("vdd_int (ulvt20)",pwr_scale_table,2,0)*$AJ95*'Power Scaling'!I$7+VLOOKUP("vdd_int (ulvt16)",pwr_scale_table,2,0)*$AK95*'Power Scaling'!I$8+VLOOKUP("vdd_int (lvt20)",pwr_scale_table,2,0)*$AL95*'Power Scaling'!I$5+VLOOKUP("vdd_int (lvt16)",pwr_scale_table,2,0)*AM95*'Power Scaling'!I$6+VLOOKUP("vdd_int (svt20)",pwr_scale_table,2,0)*$AN95*'Power Scaling'!I$3+VLOOKUP("vdd_int (svt16)",pwr_scale_table,2,0)*$AO95*'Power Scaling'!I$4)*AQ95,IF(OR($I95="AO",$I95="LU"),VLOOKUP($A95&"_"&"vdd_dyn"&"_"&$R95&"",MDB,5,0)*VLOOKUP("vdd_int (svt20)",pwr_scale_table,2,0),IF(OR($I95="LUUA",$I95="LUUB"),VLOOKUP($A95&"_"&"vdd_dyn"&"_"&$R95&"",MDB,5,0)*$C95*$S95*VLOOKUP("vdd_int (svt20)",pwr_scale_table,2,0),VLOOKUP($A95&"_"&"vdd_dyn"&"_"&$R95&"_idle",MDB,5,0)*(1-$S95)+VLOOKUP($A95&"_"&"vdd_dyn"&"_"&$R95&"_read",MDB,5,0)*($S95/2)+VLOOKUP($A95&"_"&"vdd_dyn"&"_"&$R95&"_write",MDB,5,0)*($S95/2)*VLOOKUP("vdd_int (svt20)",pwr_scale_table,2,0)))),0) -> 0 | W95: 0 | X95: 0 | Y95: 0 | Z95: 0 | AA95: 0 | AB95: 18.619 | AC95: 0 | AD95: 0 | AE95: 0 | AF95: 0 | AG95: 0 | AH95: 0 | AI95: 0 | AJ95: 0 | AK95: 0 | AL95: 0 | AM95: 0 | AN95: 0 | AO95: 0 | AP95: 0 | AQ95: 0 | AR95: The Vx1 macro is a display data standard used on the DLPC8430. It is a receiver only and it's under development. Power is estimated at this time. | AS95: sd0901_rx4_0 | AT95: CF$29 | AU95: CG$29 | AV95: CH$29 | AW95: 0 | BD95: CF$29 | BE95: CH$29 | BF95: 0
C96: 0 | O96: 0 | Q96: 0 | R96: =IF(ISBLANK(BD96),"ulps",IF(INDIRECT(BE96)>BF96,INDIRECT(BD96),"ulps")) -> ulps | S96: =IF(R96="ulps",0,INDIRECT(AU96)) -> 0 | T96: 0 | U96: =IFERROR(IF($I96="SI",AP96*$C96*(VLOOKUP("vdd_lkg (ulvt20)",pwr_scale_table,2,0)*$AJ96*'Power Scaling'!F$7+VLOOKUP("vdd_lkg (ulvt16)",pwr_scale_table,2,0)*$AK96*'Power Scaling'!F$8+VLOOKUP("vdd_lkg (lvt20)",pwr_scale_table,2,0)*$AL96*'Power Scaling'!F$5+VLOOKUP("vdd_lkg (lvt16)",pwr_scale_table,2,0)*AM96*'Power Scaling'!F$6+VLOOKUP("vdd_lkg (svt20)",pwr_scale_table,2,0)*$AN96*'Power Scaling'!F$3+VLOOKUP("vdd_lkg (svt16)",pwr_scale_table,2,0)*$AO96*'Power Scaling'!F$4)*IF(P96="OFF",0.06,1),VLOOKUP($A96&"_"&U$3,MDB,5,0)*$C96*VLOOKUP("vdd_lkg (svt16)",pwr_scale_table,2,0)*IF(P96="OFF",0.06,1)),0) -> 0 | V96: =C96*IFERROR(IF($I96="SI",(AE96*IF(S96=0,0,1)+(AF96-AE96)*S96)*IF(R96>0,R96,Q96)/Q96*(VLOOKUP("vdd_int (ulvt20)",pwr_scale_table,2,0)*$AJ96*'Power Scaling'!I$7+VLOOKUP("vdd_int (ulvt16)",pwr_scale_table,2,0)*$AK96*'Power Scaling'!I$8+VLOOKUP("vdd_int (lvt20)",pwr_scale_table,2,0)*$AL96*'Power Scaling'!I$5+VLOOKUP("vdd_int (lvt16)",pwr_scale_table,2,0)*AM96*'Power Scaling'!I$6+VLOOKUP("vdd_int (svt20)",pwr_scale_table,2,0)*$AN96*'Power Scaling'!I$3+VLOOKUP("vdd_int (svt16)",pwr_scale_table,2,0)*$AO96*'Power Scaling'!I$4)*AQ96,IF(OR($I96="AO",$I96="LU"),VLOOKUP($A96&"_"&"vdd_dyn"&"_"&$R96&"",MDB,5,0)*VLOOKUP("vdd_int (svt20)",pwr_scale_table,2,0),IF(OR($I96="LUUA",$I96="LUUB"),VLOOKUP($A96&"_"&"vdd_dyn"&"_"&$R96&"",MDB,5,0)*$C96*$S96*VLOOKUP("vdd_int (svt20)",pwr_scale_table,2,0),VLOOKUP($A96&"_"&"vdd_dyn"&"_"&$R96&"_idle",MDB,5,0)*(1-$S96)+VLOOKUP($A96&"_"&"vdd_dyn"&"_"&$R96&"_read",MDB,5,0)*($S96/2)+VLOOKUP($A96&"_"&"vdd_dyn"&"_"&$R96&"_write",MDB,5,0)*($S96/2)*VLOOKUP("vdd_int (svt20)",pwr_scale_table,2,0)))),0) -> 0 | W96: 0 | X96: 0 | Y96: 0 | Z96: 0 | AA96: 0 | AB96: 0 | AC96: 0 | AD96: 0 | AE96: 0 | AF96: 0 | AG96: 0 | AH96: 0 | AI96: 0 | AJ96: 0 | AK96: 0 | AL96: 0 | AM96: 0 | AN96: 0 | AO96: 0 | AR96: The Vx1 macro is a display data standard used on the DLPC8430. It is a receiver only and it's under development. Power is estimated at this time. | AT96: CF$29 | AU96: CG$29 | AV96: CH$29 | AW96: 1 | BD96: CF$29 | BE96: CH$29 | BF96: 1
C97: 0 | O97: 0 | Q97: 0 | R97: =IF(ISBLANK(BD97),"ulps",IF(INDIRECT(BE97)>BF97,INDIRECT(BD97),"ulps")) -> ulps | S97: =IF(R97="ulps",0,INDIRECT(AU97)) -> 0 | T97: 0 | U97: =IFERROR(IF($I97="SI",AP97*$C97*(VLOOKUP("vdd_lkg (ulvt20)",pwr_scale_table,2,0)*$AJ97*'Power Scaling'!F$7+VLOOKUP("vdd_lkg (ulvt16)",pwr_scale_table,2,0)*$AK97*'Power Scaling'!F$8+VLOOKUP("vdd_lkg (lvt20)",pwr_scale_table,2,0)*$AL97*'Power Scaling'!F$5+VLOOKUP("vdd_lkg (lvt16)",pwr_scale_table,2,0)*AM97*'Power Scaling'!F$6+VLOOKUP("vdd_lkg (svt20)",pwr_scale_table,2,0)*$AN97*'Power Scaling'!F$3+VLOOKUP("vdd_lkg (svt16)",pwr_scale_table,2,0)*$AO97*'Power Scaling'!F$4)*IF(P97="OFF",0.06,1),VLOOKUP($A97&"_"&U$3,MDB,5,0)*$C97*VLOOKUP("vdd_lkg (svt16)",pwr_scale_table,2,0)*IF(P97="OFF",0.06,1)),0) -> 0 | V97: =C97*IFERROR(IF($I97="SI",(AE97*IF(S97=0,0,1)+(AF97-AE97)*S97)*IF(R97>0,R97,Q97)/Q97*(VLOOKUP("vdd_int (ulvt20)",pwr_scale_table,2,0)*$AJ97*'Power Scaling'!I$7+VLOOKUP("vdd_int (ulvt16)",pwr_scale_table,2,0)*$AK97*'Power Scaling'!I$8+VLOOKUP("vdd_int (lvt20)",pwr_scale_table,2,0)*$AL97*'Power Scaling'!I$5+VLOOKUP("vdd_int (lvt16)",pwr_scale_table,2,0)*AM97*'Power Scaling'!I$6+VLOOKUP("vdd_int (svt20)",pwr_scale_table,2,0)*$AN97*'Power Scaling'!I$3+VLOOKUP("vdd_int (svt16)",pwr_scale_table,2,0)*$AO97*'Power Scaling'!I$4)*AQ97,IF(OR($I97="AO",$I97="LU"),VLOOKUP($A97&"_"&"vdd_dyn"&"_"&$R97&"",MDB,5,0)*VLOOKUP("vdd_int (svt20)",pwr_scale_table,2,0),IF(OR($I97="LUUA",$I97="LUUB"),VLOOKUP($A97&"_"&"vdd_dyn"&"_"&$R97&"",MDB,5,0)*$C97*$S97*VLOOKUP("vdd_int (svt20)",pwr_scale_table,2,0),VLOOKUP($A97&"_"&"vdd_dyn"&"_"&$R97&"_idle",MDB,5,0)*(1-$S97)+VLOOKUP($A97&"_"&"vdd_dyn"&"_"&$R97&"_read",MDB,5,0)*($S97/2)+VLOOKUP($A97&"_"&"vdd_dyn"&"_"&$R97&"_write",MDB,5,0)*($S97/2)*VLOOKUP("vdd_int (svt20)",pwr_scale_table,2,0)))),0) -> 0 | W97: 0 | X97: 0 | Y97: 0 | Z97: 0 | AA97: 0 | AB97: 0 | AC97: 0 | AD97: 0 | AE97: 0 | AF97: 0 | AG97: 0 | AH97: 0 | AI97: 0 | AJ97: 0 | AK97: 0 | AL97: 0 | AM97: 0 | AN97: 0 | AO97: 0 | AR97: The Vx1 macro is a display data standard used on the DLPC8430. It is a receiver only and it's under development. Power is estimated at this time. | AT97: CF$29 | AU97: CG$29 | AV97: CH$29 | AW97: 2 | BD97: CF$29 | BE97: CH$29 | BF97: 2
C98: 0 | O98: 0 | Q98: 0 | R98: =IF(ISBLANK(BD98),"ulps",IF(INDIRECT(BE98)>BF98,INDIRECT(BD98),"ulps")) -> ulps | S98: =IF(R98="ulps",0,INDIRECT(AU98)) -> 0 | T98: 0 | U98: =IFERROR(IF($I98="SI",AP98*$C98*(VLOOKUP("vdd_lkg (ulvt20)",pwr_scale_table,2,0)*$AJ98*'Power Scaling'!F$7+VLOOKUP("vdd_lkg (ulvt16)",pwr_scale_table,2,0)*$AK98*'Power Scaling'!F$8+VLOOKUP("vdd_lkg (lvt20)",pwr_scale_table,2,0)*$AL98*'Power Scaling'!F$5+VLOOKUP("vdd_lkg (lvt16)",pwr_scale_table,2,0)*AM98*'Power Scaling'!F$6+VLOOKUP("vdd_lkg (svt20)",pwr_scale_table,2,0)*$AN98*'Power Scaling'!F$3+VLOOKUP("vdd_lkg (svt16)",pwr_scale_table,2,0)*$AO98*'Power Scaling'!F$4)*IF(P98="OFF",0.06,1),VLOOKUP($A98&"_"&U$3,MDB,5,0)*$C98*VLOOKUP("vdd_lkg (svt16)",pwr_scale_table,2,0)*IF(P98="OFF",0.06,1)),0) -> 0 | V98: =C98*IFERROR(IF($I98="SI",(AE98*IF(S98=0,0,1)+(AF98-AE98)*S98)*IF(R98>0,R98,Q98)/Q98*(VLOOKUP("vdd_int (ulvt20)",pwr_scale_table,2,0)*$AJ98*'Power Scaling'!I$7+VLOOKUP("vdd_int (ulvt16)",pwr_scale_table,2,0)*$AK98*'Power Scaling'!I$8+VLOOKUP("vdd_int (lvt20)",pwr_scale_table,2,0)*$AL98*'Power Scaling'!I$5+VLOOKUP("vdd_int (lvt16)",pwr_scale_table,2,0)*AM98*'Power Scaling'!I$6+VLOOKUP("vdd_int (svt20)",pwr_scale_table,2,0)*$AN98*'Power Scaling'!I$3+VLOOKUP("vdd_int (svt16)",pwr_scale_table,2,0)*$AO98*'Power Scaling'!I$4)*AQ98,IF(OR($I98="AO",$I98="LU"),VLOOKUP($A98&"_"&"vdd_dyn"&"_"&$R98&"",MDB,5,0)*VLOOKUP("vdd_int (svt20)",pwr_scale_table,2,0),IF(OR($I98="LUUA",$I98="LUUB"),VLOOKUP($A98&"_"&"vdd_dyn"&"_"&$R98&"",MDB,5,0)*$C98*$S98*VLOOKUP("vdd_int (svt20)",pwr_scale_table,2,0),VLOOKUP($A98&"_"&"vdd_dyn"&"_"&$R98&"_idle",MDB,5,0)*(1-$S98)+VLOOKUP($A98&"_"&"vdd_dyn"&"_"&$R98&"_read",MDB,5,0)*($S98/2)+VLOOKUP($A98&"_"&"vdd_dyn"&"_"&$R98&"_write",MDB,5,0)*($S98/2)*VLOOKUP("vdd_int (svt20)",pwr_scale_table,2,0)))),0) -> 0 | W98: 0 | X98: 0 | Y98: 0 | Z98: 0 | AA98: 0 | AB98: 0 | AC98: 0 | AD98: 0 | AE98: 0 | AF98: 0 | AG98: 0 | AH98: 0 | AI98: 0 | AJ98: 0 | AK98: 0 | AL98: 0 | AM98: 0 | AN98: 0 | AO98: 0 | AR98: The Vx1 macro is a display data standard used on the DLPC8430. It is a receiver only and it's under development. Power is estimated at this time. | AT98: CF$29 | AU98: CG$29 | AV98: CH$29 | AW98: 3 | BD98: CF$29 | BE98: CH$29 | BF98: 3
A99: sd0901_tx4 | B99: _0 | C99: 1 | D99: 3 | E99: VDD_CORE | F99: VDDA_0P8_DSITX_C | G99: VDDA_0P8_DSITX | H99: VDDA_1P8_DSITX | I99: LU | J99: GP_Core_CTL | K99: DPHY 1.2 TX - 4L | L99: 10/30/2021 | M99: 6 IO | N99: SerDes | O99: 3.088 | P99: ON | Q99: 0 | R99: =IF(ISBLANK(BD99),"ulps",IF(INDIRECT(BE99)>BF99,INDIRECT(BD99),"ulps")) -> ulps | S99: =IF(R99="ulps",0,INDIRECT(AU99)) -> 0 | T99: 0 | U99: =IFERROR(IF($I99="SI",AP99*$C99*(VLOOKUP("vdd_lkg (ulvt20)",pwr_scale_table,2,0)*$AJ99*'Power Scaling'!F$7+VLOOKUP("vdd_lkg (ulvt16)",pwr_scale_table,2,0)*$AK99*'Power Scaling'!F$8+VLOOKUP("vdd_lkg (lvt20)",pwr_scale_table,2,0)*$AL99*'Power Scaling'!F$5+VLOOKUP("vdd_lkg (lvt16)",pwr_scale_table,2,0)*AM99*'Power Scaling'!F$6+VLOOKUP("vdd_lkg (svt20)",pwr_scale_table,2,0)*$AN99*'Power Scaling'!F$3+VLOOKUP("vdd_lkg (svt16)",pwr_scale_table,2,0)*$AO99*'Power Scaling'!F$4)*IF(P99="OFF",0.06,1),VLOOKUP($A99&"_"&U$3,MDB,5,0)*$C99*VLOOKUP("vdd_lkg (svt16)",pwr_scale_table,2,0)*IF(P99="OFF",0.06,1)),0) -> 0 | V99: =C99*IFERROR(IF($I99="SI",(AE99*IF(S99=0,0,1)+(AF99-AE99)*S99)*IF(R99>0,R99,Q99)/Q99*(VLOOKUP("vdd_int (ulvt20)",pwr_scale_table,2,0)*$AJ99*'Power Scaling'!I$7+VLOOKUP("vdd_int (ulvt16)",pwr_scale_table,2,0)*$AK99*'Power Scaling'!I$8+VLOOKUP("vdd_int (lvt20)",pwr_scale_table,2,0)*$AL99*'Power Scaling'!I$5+VLOOKUP("vdd_int (lvt16)",pwr_scale_table,2,0)*AM99*'Power Scaling'!I$6+VLOOKUP("vdd_int (svt20)",pwr_scale_table,2,0)*$AN99*'Power Scaling'!I$3+VLOOKUP("vdd_int (svt16)",pwr_scale_table,2,0)*$AO99*'Power Scaling'!I$4)*AQ99,IF(OR($I99="AO",$I99="LU"),VLOOKUP($A99&"_"&"vdd_dyn"&"_"&$R99&"",MDB,5,0)*VLOOKUP("vdd_int (svt20)",pwr_scale_table,2,0),IF(OR($I99="LUUA",$I99="LUUB"),VLOOKUP($A99&"_"&"vdd_dyn"&"_"&$R99&"",MDB,5,0)*$C99*$S99*VLOOKUP("vdd_int (svt20)",pwr_scale_table,2,0),VLOOKUP($A99&"_"&"vdd_dyn"&"_"&$R99&"_idle",MDB,5,0)*(1-$S99)+VLOOKUP($A99&"_"&"vdd_dyn"&"_"&$R99&"_read",MDB,5,0)*($S99/2)+VLOOKUP($A99&"_"&"vdd_dyn"&"_"&$R99&"_write",MDB,5,0)*($S99/2)*VLOOKUP("vdd_int (svt20)",pwr_scale_table,2,0)))),0) -> 0 | W99: 0 | X99: 0 | Y99: 0 | Z99: 0 | AA99: 0 | AB99: 2.928 | AC99: 0 | AD99: 0.16 | AE99: 0 | AF99: 0 | AG99: 0 | AH99: 0 | AI99: 0 | AJ99: 0 | AK99: 0 | AL99: 0 | AM99: 0 | AN99: 0 | AO99: 0 | AP99: 0 | AQ99: 0 | AR99: The Vx1 macro is a display data standard used on the DLPC8430. It is a receiver only and it's under development. Power is estimated at this time. | AS99: sd0901_tx4_0 | AT99: CF$30 | AU99: CG$30 | AV99: CH$30 | AW99: 0 | BD99: CF$30 | BE99: CH$30 | BF99: 0
A100: LVDSTS16LLBI1E | B100: _multiple | C100: 10 | D100: 5 | E100: VDD_CORE | F100: N/A | G100: VDDA_1P8_OLDI0 | H100: N/A | I100: LU | J100: GP_Core_CTL | K100: LVDS IO | L100: 10/30/2021 | M100: 6 IO | N100: Special | O100: =SUM(U100:AD100) -> 148.1 | P100: =INDEX(PD_State_Table,MATCH(J100,PD_Table_Row_Header,0),2) -> ON | Q100: 0 | R100: =IF(ISBLANK(BD100),"disabled",INDIRECT(BD100)) -> oldi_dual_24b_modes | S100: =IF(R100="disabled",0,INDIRECT(AT100)) -> 1 | T100: 0 | U100: =IFERROR(IF($I100="SI",AP100*$C100*(VLOOKUP("vdd_lkg (ulvt20)",pwr_scale_table,2,0)*$AJ100*'Power Scaling'!F$7+VLOOKUP("vdd_lkg (ulvt16)",pwr_scale_table,2,0)*$AK100*'Power Scaling'!F$8+VLOOKUP("vdd_lkg (lvt20)",pwr_scale_table,2,0)*$AL100*'Power Scaling'!F$5+VLOOKUP("vdd_lkg (lvt16)",pwr_scale_table,2,0)*AM100*'Power Scaling'!F$6+VLOOKUP("vdd_lkg (svt20)",pwr_scale_table,2,0)*$AN100*'Power Scaling'!F$3+VLOOKUP("vdd_lkg (svt16)",pwr_scale_table,2,0)*$AO100*'Power Scaling'!F$4)*IF(P100="OFF",0.06,1),VLOOKUP($A100&"_"&U$3,MDB,5,0)*$C100*VLOOKUP("vdd_lkg (svt16)",pwr_scale_table,2,0)*IF(P100="OFF",0.06,1)),0) -> 0 | V100: =C100*IFERROR(IF($I100="SI",(AE100*IF(S100=0,0,1)+(AF100-AE100)*S100)*IF(R100>0,R100,Q100)/Q100*(VLOOKUP("vdd_int (ulvt20)",pwr_scale_table,2,0)*$AJ100*'Power Scaling'!I$7+VLOOKUP("vdd_int (ulvt16)",pwr_scale_table,2,0)*$AK100*'Power Scaling'!I$8+VLOOKUP("vdd_int (lvt20)",pwr_scale_table,2,0)*$AL100*'Power Scaling'!I$5+VLOOKUP("vdd_int (lvt16)",pwr_scale_table,2,0)*AM100*'Power Scaling'!I$6+VLOOKUP("vdd_int (svt20)",pwr_scale_table,2,0)*$AN100*'Power Scaling'!I$3+VLOOKUP("vdd_int (svt16)",pwr_scale_table,2,0)*$AO100*'Power Scaling'!I$4)*AQ100,IF(OR($I100="AO",$I100="LU"),VLOOKUP($A100&"_"&"vdd_dyn"&"_"&$R100&"",MDB,5,0)*VLOOKUP("vdd_int (svt20)",pwr_scale_table,2,0),IF(OR($I100="LUUA",$I100="LUUB"),VLOOKUP($A100&"_"&"vdd_dyn"&"_"&$R100&"",MDB,5,0)*$C100*$S100*VLOOKUP("vdd_int (svt20)",pwr_scale_table,2,0),VLOOKUP($A100&"_"&"vdd_dyn"&"_"&$R100&"_idle",MDB,5,0)*(1-$S100)+VLOOKUP($A100&"_"&"vdd_dyn"&"_"&$R100&"_read",MDB,5,0)*($S100/2)+VLOOKUP($A100&"_"&"vdd_dyn"&"_"&$R100&"_write",MDB,5,0)*($S100/2)*VLOOKUP("vdd_int (svt20)",pwr_scale_table,2,0)))),0) -> 0 | W100: 0 | X100: =IFERROR(VLOOKUP($A100&"_"&X$3,MDB,5,0)*$C100*VLOOKUP("vddr_lkg",pwr_scale_table,2,0)*IF(P100="OFF",0.06,1),0) -> 0 | Y100: =IFERROR(VLOOKUP($A100&"_"&Y$3,MDB,5,0)*$C100*(VLOOKUP("vdd_lkg (lvt16)",pwr_scale_table,2,0)*0.5+VLOOKUP("vdd_lkg (svt16)",pwr_scale_table,2,0)*0.5),0) -> 0 | Z100: =IFERROR(IF(I100="LUUB",VLOOKUP($A100&"_"&Z$3&"_"&$R100&"",MDB,5,0)*$C100*$S100*((VLOOKUP("vdd_int (lvt16)",pwr_scale_table,2,0)/4+VLOOKUP("vdd_int (svt16)",pwr_scale_table,2,0)/4+VLOOKUP("vdd_sw",pwr_scale_table,2,0)/2)),VLOOKUP($A100&"_"&Z$3&"_"&$R100&"",MDB,5,0)*$C100*((VLOOKUP("vdd_int (lvt16)",pwr_scale_table,2,0)/4+VLOOKUP("vdd_int (svt16)",pwr_scale_table,2,0)/4+VLOOKUP("vdd_sw",pwr_scale_table,2,0)/2))),0) -> 0 | AA100: =IFERROR(VLOOKUP($A100&"_"&AA$3,MDB,5,0)*$C100*VLOOKUP("vdd_lkg (svt16)",pwr_scale_table,2,0),0) -> 0 | AB100: =IFERROR(IF(OR($I100="LUUA",$I100="LUUB"),VLOOKUP($A100&"_"&AB$3&"_"&$R100&"",MDB,5,0)*$C100*$S100,IF(I100="LUUD",VLOOKUP($A100&"_"&AB$3&"_"&$R100&"_idle",MDB,5,0)*(1-$S100)+VLOOKUP($A100&"_"&AB$3&"_"&$R100&"_read",MDB,5,0)*($S100/2)+VLOOKUP($A100&"_"&AB$3&"_"&$R100&"_write",MDB,5,0)*($S100/2),VLOOKUP($A100&"_"&AB$3&"_"&$R100&"",MDB,5,0)*$C100)),0) -> 148.1 | AC100: =IFERROR(VLOOKUP($A100&"_"&AC$3,MDB,5,0)*$C100*VLOOKUP("vdd_lkg (svt16)",pwr_scale_table,2,0),0) -> 0 | AD100: =IFERROR(IF(OR($I100="LUUA",$I100="LUUB"),VLOOKUP($A100&"_"&AD$3&"_"&$R100&"",MDB,5,0)*$C100*$S100,IF(I100="LUUD",VLOOKUP($A100&"_"&AD$3&"_"&$R100&"_idle",MDB,5,0)*(1-$S100)+VLOOKUP($A100&"_"&AD$3&"_"&$R100&"_read",MDB,5,0)*($S100/2)+VLOOKUP($A100&"_"&AD$3&"_"&$R100&"_write",MDB,5,0)*($S100/2),VLOOKUP($A100&"_"&AD$3&"_"&$R100&"",MDB,5,0)*$C100)),0) -> 0 | AE100: 0 | AF100: 0 | AG100: 0 | AH100: 0 | AI100: 0 | AJ100: 0 | AK100: 0 | AL100: 0 | AM100: 0 | AN100: 0 | AO100: 0 | AP100: 0 | AQ100: 0 | AR100: The Vx1 macro is a display data standard used on the DLPC8430. It is a receiver only and it's under development. Power is estimated at this time. | AS100: =A100&B100 -> LVDSTS16LLBI1E_multiple | AT100: CG$32 | BD100: CF$32
A101: N16FFC_POR | B101: _0 | C101: 1 | D101: 5 | E101: VDD_CORE | F101: N/A | G101: VDDA_MCU | H101: N/A | I101: LU | J101: GP_Core_CTL | K101: POR | L101: 10/30/2021 | M101: 6 IO | N101: Special | O101: 0.486 | P101: ON | Q101: 0 | R101: on | S101: 1 | T101: 0 | U101: =IFERROR(IF($I101="SI",AP101*$C101*(VLOOKUP("vdd_lkg (ulvt20)",pwr_scale_table,2,0)*$AJ101*'Power Scaling'!F$7+VLOOKUP("vdd_lkg (ulvt16)",pwr_scale_table,2,0)*$AK101*'Power Scaling'!F$8+VLOOKUP("vdd_lkg (lvt20)",pwr_scale_table,2,0)*$AL101*'Power Scaling'!F$5+VLOOKUP("vdd_lkg (lvt16)",pwr_scale_table,2,0)*AM101*'Power Scaling'!F$6+VLOOKUP("vdd_lkg (svt20)",pwr_scale_table,2,0)*$AN101*'Power Scaling'!F$3+VLOOKUP("vdd_lkg (svt16)",pwr_scale_table,2,0)*$AO101*'Power Scaling'!F$4)*IF(P101="OFF",0.06,1),VLOOKUP($A101&"_"&U$3,MDB,5,0)*$C101*VLOOKUP("vdd_lkg (svt16)",pwr_scale_table,2,0)*IF(P101="OFF",0.06,1)),0) -> 0 | V101: =C101*IFERROR(IF($I101="SI",(AE101*IF(S101=0,0,1)+(AF101-AE101)*S101)*IF(R101>0,R101,Q101)/Q101*(VLOOKUP("vdd_int (ulvt20)",pwr_scale_table,2,0)*$AJ101*'Power Scaling'!I$7+VLOOKUP("vdd_int (ulvt16)",pwr_scale_table,2,0)*$AK101*'Power Scaling'!I$8+VLOOKUP("vdd_int (lvt20)",pwr_scale_table,2,0)*$AL101*'Power Scaling'!I$5+VLOOKUP("vdd_int (lvt16)",pwr_scale_table,2,0)*AM101*'Power Scaling'!I$6+VLOOKUP("vdd_int (svt20)",pwr_scale_table,2,0)*$AN101*'Power Scaling'!I$3+VLOOKUP("vdd_int (svt16)",pwr_scale_table,2,0)*$AO101*'Power Scaling'!I$4)*AQ101,IF(OR($I101="AO",$I101="LU"),VLOOKUP($A101&"_"&"vdd_dyn"&"_"&$R101&"",MDB,5,0)*VLOOKUP("vdd_int (svt20)",pwr_scale_table,2,0),IF(OR($I101="LUUA",$I101="LUUB"),VLOOKUP($A101&"_"&"vdd_dyn"&"_"&$R101&"",MDB,5,0)*$C101*$S101*VLOOKUP("vdd_int (svt20)",pwr_scale_table,2,0),VLOOKUP($A101&"_"&"vdd_dyn"&"_"&$R101&"_idle",MDB,5,0)*(1-$S101)+VLOOKUP($A101&"_"&"vdd_dyn"&"_"&$R101&"_read",MDB,5,0)*($S101/2)+VLOOKUP($A101&"_"&"vdd_dyn"&"_"&$R101&"_write",MDB,5,0)*($S101/2)*VLOOKUP("vdd_int (svt20)",pwr_scale_table,2,0)))),0) -> 0 | W101: 0 | X101: 0 | Y101: 0 | Z101: 0 | AA101: 0 | AB101: 0.486 | AC101: 0 | AD101: 0 | AE101: 0 | AF101: 0 | AG101: 0 | AH101: 0 | AI101: 0 | AJ101: 0 | AK101: 0 | AL101: 0 | AM101: 0 | AN101: 0 | AO101: 0 | AP101: 0 | AQ101: 0 | AR101: The Vx1 macro is a display data standard used on the DLPC8430. It is a receiver only and it's under development. Power is estimated at this time. | AS101: N16FFC_POR_0
A102: N16FFC_TEMP_DIODE_TOP | B102: _0 | C102: 1 | D102: 5 | E102: VDD_CORE | F102: N/A | G102: VDDA_TEMP0 | H102: N/A | I102: LU | J102: GP_Core_CTL | K102: Temp Sensing Diode | L102: 10/30/2021 | M102: 6 IO | N102: Special | O102: 2 | P102: ON | Q102: 0 | R102: on | S102: 1 | T102: 0 | U102: =IFERROR(IF($I102="SI",AP102*$C102*(VLOOKUP("vdd_lkg (ulvt20)",pwr_scale_table,2,0)*$AJ102*'Power Scaling'!F$7+VLOOKUP("vdd_lkg (ulvt16)",pwr_scale_table,2,0)*$AK102*'Power Scaling'!F$8+VLOOKUP("vdd_lkg (lvt20)",pwr_scale_table,2,0)*$AL102*'Power Scaling'!F$5+VLOOKUP("vdd_lkg (lvt16)",pwr_scale_table,2,0)*AM102*'Power Scaling'!F$6+VLOOKUP("vdd_lkg (svt20)",pwr_scale_table,2,0)*$AN102*'Power Scaling'!F$3+VLOOKUP("vdd_lkg (svt16)",pwr_scale_table,2,0)*$AO102*'Power Scaling'!F$4)*IF(P102="OFF",0.06,1),VLOOKUP($A102&"_"&U$3,MDB,5,0)*$C102*VLOOKUP("vdd_lkg (svt16)",pwr_scale_table,2,0)*IF(P102="OFF",0.06,1)),0) -> 0 | V102: =C102*IFERROR(IF($I102="SI",(AE102*IF(S102=0,0,1)+(AF102-AE102)*S102)*IF(R102>0,R102,Q102)/Q102*(VLOOKUP("vdd_int (ulvt20)",pwr_scale_table,2,0)*$AJ102*'Power Scaling'!I$7+VLOOKUP("vdd_int (ulvt16)",pwr_scale_table,2,0)*$AK102*'Power Scaling'!I$8+VLOOKUP("vdd_int (lvt20)",pwr_scale_table,2,0)*$AL102*'Power Scaling'!I$5+VLOOKUP("vdd_int (lvt16)",pwr_scale_table,2,0)*AM102*'Power Scaling'!I$6+VLOOKUP("vdd_int (svt20)",pwr_scale_table,2,0)*$AN102*'Power Scaling'!I$3+VLOOKUP("vdd_int (svt16)",pwr_scale_table,2,0)*$AO102*'Power Scaling'!I$4)*AQ102,IF(OR($I102="AO",$I102="LU"),VLOOKUP($A102&"_"&"vdd_dyn"&"_"&$R102&"",MDB,5,0)*VLOOKUP("vdd_int (svt20)",pwr_scale_table,2,0),IF(OR($I102="LUUA",$I102="LUUB"),VLOOKUP($A102&"_"&"vdd_dyn"&"_"&$R102&"",MDB,5,0)*$C102*$S102*VLOOKUP("vdd_int (svt20)",pwr_scale_table,2,0),VLOOKUP($A102&"_"&"vdd_dyn"&"_"&$R102&"_idle",MDB,5,0)*(1-$S102)+VLOOKUP($A102&"_"&"vdd_dyn"&"_"&$R102&"_read",MDB,5,0)*($S102/2)+VLOOKUP($A102&"_"&"vdd_dyn"&"_"&$R102&"_write",MDB,5,0)*($S102/2)*VLOOKUP("vdd_int (svt20)",pwr_scale_table,2,0)))),0) -> 0 | W102: 0 | X102: 0 | Y102: 0 | Z102: 0 | AA102: 0 | AB102: 2 | AC102: 0 | AD102: 0 | AE102: 0 | AF102: 0 | AG102: 0 | AH102: 0 | AI102: 0 | AJ102: 0 | AK102: 0 | AL102: 0 | AM102: 0 | AN102: 0 | AO102: 0 | AP102: 0 | AQ102: 0 | AR102: The Vx1 macro is a display data standard used on the DLPC8430. It is a receiver only and it's under development. Power is estimated at this time. | AS102: N16FFC_TEMP_DIODE_TOP_0
A103: PDBODPMACRO | B103: _0 | C103: 1 | D103: 5 | E103: VDD_CORE | F103: N/A | G103: N/A | H103: N/A | I103: AO | J103: GP_Core_CTL | K103: ODP IO | L103: 10/30/2021 | M103: 6 IO | N103: Special | O103: 0 | P103: ON | Q103: 0 | R103: on | S103: 1 | T103: 0 | U103: =IFERROR(IF($I103="SI",AP103*$C103*(VLOOKUP("vdd_lkg (ulvt20)",pwr_scale_table,2,0)*$AJ103*'Power Scaling'!F$7+VLOOKUP("vdd_lkg (ulvt16)",pwr_scale_table,2,0)*$AK103*'Power Scaling'!F$8+VLOOKUP("vdd_lkg (lvt20)",pwr_scale_table,2,0)*$AL103*'Power Scaling'!F$5+VLOOKUP("vdd_lkg (lvt16)",pwr_scale_table,2,0)*AM103*'Power Scaling'!F$6+VLOOKUP("vdd_lkg (svt20)",pwr_scale_table,2,0)*$AN103*'Power Scaling'!F$3+VLOOKUP("vdd_lkg (svt16)",pwr_scale_table,2,0)*$AO103*'Power Scaling'!F$4)*IF(P103="OFF",0.06,1),VLOOKUP($A103&"_"&U$3,MDB,5,0)*$C103*VLOOKUP("vdd_lkg (svt16)",pwr_scale_table,2,0)*IF(P103="OFF",0.06,1)),0) -> 0 | V103: =C103*IFERROR(IF($I103="SI",(AE103*IF(S103=0,0,1)+(AF103-AE103)*S103)*IF(R103>0,R103,Q103)/Q103*(VLOOKUP("vdd_int (ulvt20)",pwr_scale_table,2,0)*$AJ103*'Power Scaling'!I$7+VLOOKUP("vdd_int (ulvt16)",pwr_scale_table,2,0)*$AK103*'Power Scaling'!I$8+VLOOKUP("vdd_int (lvt20)",pwr_scale_table,2,0)*$AL103*'Power Scaling'!I$5+VLOOKUP("vdd_int (lvt16)",pwr_scale_table,2,0)*AM103*'Power Scaling'!I$6+VLOOKUP("vdd_int (svt20)",pwr_scale_table,2,0)*$AN103*'Power Scaling'!I$3+VLOOKUP("vdd_int (svt16)",pwr_scale_table,2,0)*$AO103*'Power Scaling'!I$4)*AQ103,IF(OR($I103="AO",$I103="LU"),VLOOKUP($A103&"_"&"vdd_dyn"&"_"&$R103&"",MDB,5,0)*VLOOKUP("vdd_int (svt20)",pwr_scale_table,2,0),IF(OR($I103="LUUA",$I103="LUUB"),VLOOKUP($A103&"_"&"vdd_dyn"&"_"&$R103&"",MDB,5,0)*$C103*$S103*VLOOKUP("vdd_int (svt20)",pwr_scale_table,2,0),VLOOKUP($A103&"_"&"vdd_dyn"&"_"&$R103&"_idle",MDB,5,0)*(1-$S103)+VLOOKUP($A103&"_"&"vdd_dyn"&"_"&$R103&"_read",MDB,5,0)*($S103/2)+VLOOKUP($A103&"_"&"vdd_dyn"&"_"&$R103&"_write",MDB,5,0)*($S103/2)*VLOOKUP("vdd_int (svt20)",pwr_scale_table,2,0)))),0) -> 0 | W103: 0 | X103: 0 | Y103: 0 | Z103: 0 | AA103: 0 | AB103: 0 | AC103: 0 | AD103: 0 | AE103: 0 | AF103: 0 | AG103: 0 | AH103: 0 | AI103: 0 | AJ103: 0 | AK103: 0 | AL103: 0 | AM103: 0 | AN103: 0 | AO103: 0 | AP103: 0 | AQ103: 0 | AR103: The Vx1 macro is a display data standard used on the DLPC8430. It is a receiver only and it's under development. Power is estimated at this time. | AS103: PDBODPMACRO_0
A104: emmc51phy_top | B104: _emmc_0 | C104: 1 | D104: 2 | E104: VDD_CORE | F104: VDDA_0P8_DLL_MMC0 | G104: VDDS_MMC0 | H104: VDDA_3P3_SDIO | I104: LU | J104: GP_Core_CTL | K104: Arasan HS400 8 bit | L104: 10/30/2021 | M104: 6 IO | N104: Special | O104: 99 | P104: ON | Q104: 0 | R104: =IF(ISBLANK(BD104),"ulps",IF(INDIRECT(BE104)>BF104,INDIRECT(BD104),"ulps")) -> hs400 | S104: =IF(R104="ulps",0,INDIRECT(AU104)) -> 1 | T104: 0 | U104: =IFERROR(IF($I104="SI",AP104*$C104*(VLOOKUP("vdd_lkg (ulvt20)",pwr_scale_table,2,0)*$AJ104*'Power Scaling'!F$7+VLOOKUP("vdd_lkg (ulvt16)",pwr_scale_table,2,0)*$AK104*'Power Scaling'!F$8+VLOOKUP("vdd_lkg (lvt20)",pwr_scale_table,2,0)*$AL104*'Power Scaling'!F$5+VLOOKUP("vdd_lkg (lvt16)",pwr_scale_table,2,0)*AM104*'Power Scaling'!F$6+VLOOKUP("vdd_lkg (svt20)",pwr_scale_table,2,0)*$AN104*'Power Scaling'!F$3+VLOOKUP("vdd_lkg (svt16)",pwr_scale_table,2,0)*$AO104*'Power Scaling'!F$4)*IF(P104="OFF",0.06,1),VLOOKUP($A104&"_"&U$3,MDB,5,0)*$C104*VLOOKUP("vdd_lkg (svt16)",pwr_scale_table,2,0)*IF(P104="OFF",0.06,1)),0) -> 0 | V104: =C104*IFERROR(IF($I104="SI",(AE104*IF(S104=0,0,1)+(AF104-AE104)*S104)*IF(R104>0,R104,Q104)/Q104*(VLOOKUP("vdd_int (ulvt20)",pwr_scale_table,2,0)*$AJ104*'Power Scaling'!I$7+VLOOKUP("vdd_int (ulvt16)",pwr_scale_table,2,0)*$AK104*'Power Scaling'!I$8+VLOOKUP("vdd_int (lvt20)",pwr_scale_table,2,0)*$AL104*'Power Scaling'!I$5+VLOOKUP("vdd_int (lvt16)",pwr_scale_table,2,0)*AM104*'Power Scaling'!I$6+VLOOKUP("vdd_int (svt20)",pwr_scale_table,2,0)*$AN104*'Power Scaling'!I$3+VLOOKUP("vdd_int (svt16)",pwr_scale_table,2,0)*$AO104*'Power Scaling'!I$4)*AQ104,IF(OR($I104="AO",$I104="LU"),VLOOKUP($A104&"_"&"vdd_dyn"&"_"&$R104&"",MDB,5,0)*VLOOKUP("vdd_int (svt20)",pwr_scale_table,2,0),IF(OR($I104="LUUA",$I104="LUUB"),VLOOKUP($A104&"_"&"vdd_dyn"&"_"&$R104&"",MDB,5,0)*$C104*$S104*VLOOKUP("vdd_int (svt20)",pwr_scale_table,2,0),VLOOKUP($A104&"_"&"vdd_dyn"&"_"&$R104&"_idle",MDB,5,0)*(1-$S104)+VLOOKUP($A104&"_"&"vdd_dyn"&"_"&$R104&"_read",MDB,5,0)*($S104/2)+VLOOKUP($A104&"_"&"vdd_dyn"&"_"&$R104&"_write",MDB,5,0)*($S104/2)*VLOOKUP("vdd_int (svt20)",pwr_scale_table,2,0)))),0) -> 0 | W104: 0 | X104: 0 | Y104: 0 | Z104: 0 | AA104: 0 | AB104: 99 | AC104: 0 | AD104: 0 | AE104: 0 | AF104: 0 | AG104: 0 | AH104: 0 | AI104: 0 | AJ104: 0 | AK104: 0 | AL104: 0 | AM104: 0 | AN104: 0 | AO104: 0 | AP104: 0 | AQ104: 0 | AR104: The Vx1 macro is a display data standard used on the DLPC8430. It is a receiver only and it's under development. Power is estimated at this time. | AS104: emmc51phy_top_emmc_0 | AT104: CF$31 | AU104: CG$31 | AV104: CH$31 | BD104: CF$31 | BE104: CH$31
A105: PRWDWUWSWEWCDGSDIO | B105: _mmc_1 | C105: 7 | D105: 5 | E105: VDD_CORE | F105: N/A | G105: VDDSHV1P8 | H105: N/A | I105: LUUB | J105: GP_Core_CTL | K105: SDIO - 1 bit | L105: 10/30/2021 | M105: 6 IO | N105: Special | O105: 9.03 | P105: ON | Q105: 0 | R105: =IF(ISBLANK(BD105),"unused",IF(INDIRECT(BE105)>BF105,INDIRECT(BD105),"unused")) -> hs200_200mbs | S105: =IF(R105="unused",0,INDIRECT(AU105)) -> 1 | T105: 0 | U105: =IFERROR(IF($I105="SI",AP105*$C105*(VLOOKUP("vdd_lkg (ulvt20)",pwr_scale_table,2,0)*$AJ105*'Power Scaling'!F$7+VLOOKUP("vdd_lkg (ulvt16)",pwr_scale_table,2,0)*$AK105*'Power Scaling'!F$8+VLOOKUP("vdd_lkg (lvt20)",pwr_scale_table,2,0)*$AL105*'Power Scaling'!F$5+VLOOKUP("vdd_lkg (lvt16)",pwr_scale_table,2,0)*AM105*'Power Scaling'!F$6+VLOOKUP("vdd_lkg (svt20)",pwr_scale_table,2,0)*$AN105*'Power Scaling'!F$3+VLOOKUP("vdd_lkg (svt16)",pwr_scale_table,2,0)*$AO105*'Power Scaling'!F$4)*IF(P105="OFF",0.06,1),VLOOKUP($A105&"_"&U$3,MDB,5,0)*$C105*VLOOKUP("vdd_lkg (svt16)",pwr_scale_table,2,0)*IF(P105="OFF",0.06,1)),0) -> 0 | V105: =C105*IFERROR(IF($I105="SI",(AE105*IF(S105=0,0,1)+(AF105-AE105)*S105)*IF(R105>0,R105,Q105)/Q105*(VLOOKUP("vdd_int (ulvt20)",pwr_scale_table,2,0)*$AJ105*'Power Scaling'!I$7+VLOOKUP("vdd_int (ulvt16)",pwr_scale_table,2,0)*$AK105*'Power Scaling'!I$8+VLOOKUP("vdd_int (lvt20)",pwr_scale_table,2,0)*$AL105*'Power Scaling'!I$5+VLOOKUP("vdd_int (lvt16)",pwr_scale_table,2,0)*AM105*'Power Scaling'!I$6+VLOOKUP("vdd_int (svt20)",pwr_scale_table,2,0)*$AN105*'Power Scaling'!I$3+VLOOKUP("vdd_int (svt16)",pwr_scale_table,2,0)*$AO105*'Power Scaling'!I$4)*AQ105,IF(OR($I105="AO",$I105="LU"),VLOOKUP($A105&"_"&"vdd_dyn"&"_"&$R105&"",MDB,5,0)*VLOOKUP("vdd_int (svt20)",pwr_scale_table,2,0),IF(OR($I105="LUUA",$I105="LUUB"),VLOOKUP($A105&"_"&"vdd_dyn"&"_"&$R105&"",MDB,5,0)*$C105*$S105*VLOOKUP("vdd_int (svt20)",pwr_scale_table,2,0),VLOOKUP($A105&"_"&"vdd_dyn"&"_"&$R105&"_idle",MDB,5,0)*(1-$S105)+VLOOKUP($A105&"_"&"vdd_dyn"&"_"&$R105&"_read",MDB,5,0)*($S105/2)+VLOOKUP($A105&"_"&"vdd_dyn"&"_"&$R105&"_write",MDB,5,0)*($S105/2)*VLOOKUP("vdd_int (svt20)",pwr_scale_table,2,0)))),0) -> 0 | W105: 0 | X105: 0 | Y105: 0 | Z105: 0 | AA105: 0 | AB105: 9.03 | AC105: 0 | AD105: 0 | AE105: 0 | AF105: 0 | AG105: 0 | AH105: 0 | AI105: 0 | AJ105: 0 | AK105: 0 | AL105: 0 | AM105: 0 | AN105: 0 | AO105: 0 | AP105: 0 | AQ105: 0 | AR105: The Vx1 macro is a display data standard used on the DLPC8430. It is a receiver only and it's under development. Power is estimated at this time. | AS105: PRWDWUWSWEWCDGSDIO_mmc_1 | AT105: CB$62 | AU105: CC$62 | AV105: CD$62 | AW105: 0 | BD105: CB$62 | BE105: CD$62 | BF105: 0
A106: PRWDWUWSWEWCDGSDIO | B106: _mmc_2 | C106: 7 | D106: 5 | E106: VDD_CORE | F106: N/A | G106: VDDSHV1P8 | H106: N/A | I106: LUUB | J106: GP_Core_CTL | K106: SDIO - 1 bit | L106: 10/30/2021 | M106: 6 IO | N106: Special | O106: 9.03 | P106: ON | Q106: 0 | R106: =IF(ISBLANK(BD106),"unused",IF(INDIRECT(BE106)>BF106,INDIRECT(BD106),"unused")) -> hs200_200mbs | S106: =IF(R106="unused",0,INDIRECT(AU106)) -> 1 | T106: 0 | U106: =IFERROR(IF($I106="SI",AP106*$C106*(VLOOKUP("vdd_lkg (ulvt20)",pwr_scale_table,2,0)*$AJ106*'Power Scaling'!F$7+VLOOKUP("vdd_lkg (ulvt16)",pwr_scale_table,2,0)*$AK106*'Power Scaling'!F$8+VLOOKUP("vdd_lkg (lvt20)",pwr_scale_table,2,0)*$AL106*'Power Scaling'!F$5+VLOOKUP("vdd_lkg (lvt16)",pwr_scale_table,2,0)*AM106*'Power Scaling'!F$6+VLOOKUP("vdd_lkg (svt20)",pwr_scale_table,2,0)*$AN106*'Power Scaling'!F$3+VLOOKUP("vdd_lkg (svt16)",pwr_scale_table,2,0)*$AO106*'Power Scaling'!F$4)*IF(P106="OFF",0.06,1),VLOOKUP($A106&"_"&U$3,MDB,5,0)*$C106*VLOOKUP("vdd_lkg (svt16)",pwr_scale_table,2,0)*IF(P106="OFF",0.06,1)),0) -> 0 | V106: =C106*IFERROR(IF($I106="SI",(AE106*IF(S106=0,0,1)+(AF106-AE106)*S106)*IF(R106>0,R106,Q106)/Q106*(VLOOKUP("vdd_int (ulvt20)",pwr_scale_table,2,0)*$AJ106*'Power Scaling'!I$7+VLOOKUP("vdd_int (ulvt16)",pwr_scale_table,2,0)*$AK106*'Power Scaling'!I$8+VLOOKUP("vdd_int (lvt20)",pwr_scale_table,2,0)*$AL106*'Power Scaling'!I$5+VLOOKUP("vdd_int (lvt16)",pwr_scale_table,2,0)*AM106*'Power Scaling'!I$6+VLOOKUP("vdd_int (svt20)",pwr_scale_table,2,0)*$AN106*'Power Scaling'!I$3+VLOOKUP("vdd_int (svt16)",pwr_scale_table,2,0)*$AO106*'Power Scaling'!I$4)*AQ106,IF(OR($I106="AO",$I106="LU"),VLOOKUP($A106&"_"&"vdd_dyn"&"_"&$R106&"",MDB,5,0)*VLOOKUP("vdd_int (svt20)",pwr_scale_table,2,0),IF(OR($I106="LUUA",$I106="LUUB"),VLOOKUP($A106&"_"&"vdd_dyn"&"_"&$R106&"",MDB,5,0)*$C106*$S106*VLOOKUP("vdd_int (svt20)",pwr_scale_table,2,0),VLOOKUP($A106&"_"&"vdd_dyn"&"_"&$R106&"_idle",MDB,5,0)*(1-$S106)+VLOOKUP($A106&"_"&"vdd_dyn"&"_"&$R106&"_read",MDB,5,0)*($S106/2)+VLOOKUP($A106&"_"&"vdd_dyn"&"_"&$R106&"_write",MDB,5,0)*($S106/2)*VLOOKUP("vdd_int (svt20)",pwr_scale_table,2,0)))),0) -> 0 | W106: 0 | X106: 0 | Y106: 0 | Z106: 0 | AA106: 0 | AB106: 9.03 | AC106: 0 | AD106: 0 | AE106: 0 | AF106: 0 | AG106: 0 | AH106: 0 | AI106: 0 | AJ106: 0 | AK106: 0 | AL106: 0 | AM106: 0 | AN106: 0 | AO106: 0 | AP106: 0 | AQ106: 0 | AR106: The Vx1 macro is a display data standard used on the DLPC8430. It is a receiver only and it's under development. Power is estimated at this time. | AS106: PRWDWUWSWEWCDGSDIO_mmc_2 | AT106: CB$62 | AU106: CC$62 | AV106: CD$62 | AW106: 1 | BD106: CB$62 | BE106: CD$62 | BF106: 1
A107: sd1000 | B107: _0 | C107: 1 | D107: 4 | E107: VDD_CORE | F107: VDDA_CORE_USB | G107: VDDA_1P8_USB | H107: VDDA_3P3_USB | I107: LU | J107: GP_Core_CTL | K107: USB2 - PHY | L107: 10/30/2021 | M107: 6 IO | N107: Special | O107: 14.79 | P107: ON | Q107: 0 | R107: =IF(ISBLANK(AT107),"sleep",IF(OR(INDIRECT(AT107)="sleep",INDIRECT(AV107)<=AW107),"sleep",INDIRECT(AT107))) -> host_hs | S107: =IF(R107="sleep",0,INDIRECT(AU107)) -> 1 | T107: 0 | U107: =IFERROR(IF($I107="SI",AP107*$C107*(VLOOKUP("vdd_lkg (ulvt20)",pwr_scale_table,2,0)*$AJ107*'Power Scaling'!F$7+VLOOKUP("vdd_lkg (ulvt16)",pwr_scale_table,2,0)*$AK107*'Power Scaling'!F$8+VLOOKUP("vdd_lkg (lvt20)",pwr_scale_table,2,0)*$AL107*'Power Scaling'!F$5+VLOOKUP("vdd_lkg (lvt16)",pwr_scale_table,2,0)*AM107*'Power Scaling'!F$6+VLOOKUP("vdd_lkg (svt20)",pwr_scale_table,2,0)*$AN107*'Power Scaling'!F$3+VLOOKUP("vdd_lkg (svt16)",pwr_scale_table,2,0)*$AO107*'Power Scaling'!F$4)*IF(P107="OFF",0.06,1),VLOOKUP($A107&"_"&U$3,MDB,5,0)*$C107*VLOOKUP("vdd_lkg (svt16)",pwr_scale_table,2,0)*IF(P107="OFF",0.06,1)),0) -> 0 | V107: =C107*IFERROR(IF($I107="SI",(AE107*IF(S107=0,0,1)+(AF107-AE107)*S107)*IF(R107>0,R107,Q107)/Q107*(VLOOKUP("vdd_int (ulvt20)",pwr_scale_table,2,0)*$AJ107*'Power Scaling'!I$7+VLOOKUP("vdd_int (ulvt16)",pwr_scale_table,2,0)*$AK107*'Power Scaling'!I$8+VLOOKUP("vdd_int (lvt20)",pwr_scale_table,2,0)*$AL107*'Power Scaling'!I$5+VLOOKUP("vdd_int (lvt16)",pwr_scale_table,2,0)*AM107*'Power Scaling'!I$6+VLOOKUP("vdd_int (svt20)",pwr_scale_table,2,0)*$AN107*'Power Scaling'!I$3+VLOOKUP("vdd_int (svt16)",pwr_scale_table,2,0)*$AO107*'Power Scaling'!I$4)*AQ107,IF(OR($I107="AO",$I107="LU"),VLOOKUP($A107&"_"&"vdd_dyn"&"_"&$R107&"",MDB,5,0)*VLOOKUP("vdd_int (svt20)",pwr_scale_table,2,0),IF(OR($I107="LUUA",$I107="LUUB"),VLOOKUP($A107&"_"&"vdd_dyn"&"_"&$R107&"",MDB,5,0)*$C107*$S107*VLOOKUP("vdd_int (svt20)",pwr_scale_table,2,0),VLOOKUP($A107&"_"&"vdd_dyn"&"_"&$R107&"_idle",MDB,5,0)*(1-$S107)+VLOOKUP($A107&"_"&"vdd_dyn"&"_"&$R107&"_read",MDB,5,0)*($S107/2)+VLOOKUP($A107&"_"&"vdd_dyn"&"_"&$R107&"_write",MDB,5,0)*($S107/2)*VLOOKUP("vdd_int (svt20)",pwr_scale_table,2,0)))),0) -> 0 | W107: =C107*IFERROR(IF($I107="SI",(AE107*IF(S107=0,0,1)+(AF107-AE107)*S107)*VLOOKUP("vdd_sw",pwr_scale_table,2,0)*AI107,0),0) -> 0 | X107: 0 | Y107: 0 | Z107: 0 | AA107: 0 | AB107: 12.88 | AC107: 0 | AD107: 1.91 | AE107: 0 | AF107: 0 | AG107: 0 | AH107: 0 | AI107: 0 | AJ107: 0 | AK107: 0 | AL107: 0 | AM107: 0 | AN107: 0 | AO107: 0 | AP107: 0 | AQ107: 0 | AR107: The Vx1 macro is a display data standard used on the DLPC8430. It is a receiver only and it's under development. Power is estimated at this time. | AS107: sd1000_0 | AT107: CB$41 | AU107: CC$41 | AV107: CD$41 | AW107: 0 | BD107: CB$40 | BE107: CD$41 | BF107: 0
A108: sd1000 | B108: _1 | C108: 1 | D108: 4 | E108: VDD_CORE | F108: VDDA_CORE_USB | G108: VDDA_1P8_USB | H108: VDDA_3P3_USB | I108: LU | J108: GP_Core_CTL | K108: USB2 - PHY | L108: 10/30/2021 | M108: 6 IO | N108: Special | O108: 14.79 | P108: ON | Q108: 0 | R108: =IF(ISBLANK(AT108),"sleep",IF(OR(INDIRECT(AT108)="sleep",INDIRECT(AV108)<=AW108),"sleep",INDIRECT(AT108))) -> host_hs | S108: =IF(R108="sleep",0,INDIRECT(AU108)) -> 1 | T108: 0 | U108: =IFERROR(IF($I108="SI",AP108*$C108*(VLOOKUP("vdd_lkg (ulvt20)",pwr_scale_table,2,0)*$AJ108*'Power Scaling'!F$7+VLOOKUP("vdd_lkg (ulvt16)",pwr_scale_table,2,0)*$AK108*'Power Scaling'!F$8+VLOOKUP("vdd_lkg (lvt20)",pwr_scale_table,2,0)*$AL108*'Power Scaling'!F$5+VLOOKUP("vdd_lkg (lvt16)",pwr_scale_table,2,0)*AM108*'Power Scaling'!F$6+VLOOKUP("vdd_lkg (svt20)",pwr_scale_table,2,0)*$AN108*'Power Scaling'!F$3+VLOOKUP("vdd_lkg (svt16)",pwr_scale_table,2,0)*$AO108*'Power Scaling'!F$4)*IF(P108="OFF",0.06,1),VLOOKUP($A108&"_"&U$3,MDB,5,0)*$C108*VLOOKUP("vdd_lkg (svt16)",pwr_scale_table,2,0)*IF(P108="OFF",0.06,1)),0) -> 0 | V108: =C108*IFERROR(IF($I108="SI",(AE108*IF(S108=0,0,1)+(AF108-AE108)*S108)*IF(R108>0,R108,Q108)/Q108*(VLOOKUP("vdd_int (ulvt20)",pwr_scale_table,2,0)*$AJ108*'Power Scaling'!I$7+VLOOKUP("vdd_int (ulvt16)",pwr_scale_table,2,0)*$AK108*'Power Scaling'!I$8+VLOOKUP("vdd_int (lvt20)",pwr_scale_table,2,0)*$AL108*'Power Scaling'!I$5+VLOOKUP("vdd_int (lvt16)",pwr_scale_table,2,0)*AM108*'Power Scaling'!I$6+VLOOKUP("vdd_int (svt20)",pwr_scale_table,2,0)*$AN108*'Power Scaling'!I$3+VLOOKUP("vdd_int (svt16)",pwr_scale_table,2,0)*$AO108*'Power Scaling'!I$4)*AQ108,IF(OR($I108="AO",$I108="LU"),VLOOKUP($A108&"_"&"vdd_dyn"&"_"&$R108&"",MDB,5,0)*VLOOKUP("vdd_int (svt20)",pwr_scale_table,2,0),IF(OR($I108="LUUA",$I108="LUUB"),VLOOKUP($A108&"_"&"vdd_dyn"&"_"&$R108&"",MDB,5,0)*$C108*$S108*VLOOKUP("vdd_int (svt20)",pwr_scale_table,2,0),VLOOKUP($A108&"_"&"vdd_dyn"&"_"&$R108&"_idle",MDB,5,0)*(1-$S108)+VLOOKUP($A108&"_"&"vdd_dyn"&"_"&$R108&"_read",MDB,5,0)*($S108/2)+VLOOKUP($A108&"_"&"vdd_dyn"&"_"&$R108&"_write",MDB,5,0)*($S108/2)*VLOOKUP("vdd_int (svt20)",pwr_scale_table,2,0)))),0) -> 0 | W108: 0 | X108: 0 | Y108: 0 | Z108: 0 | AA108: 0 | AB108: 12.88 | AC108: 0 | AD108: 1.91 | AE108: 0 | AF108: 0 | AG108: 0 | AH108: 0 | AI108: 0 | AJ108: 0 | AK108: 0 | AL108: 0 | AM108: 0 | AN108: 0 | AO108: 0 | AP108: 0 | AQ108: 0 | AR108: The Vx1 macro is a display data standard used on the DLPC8430. It is a receiver only and it's under development. Power is estimated at this time. | AS108: sd1000_1 | AT108: CB$41 | AU108: CC$41 | AV108: CD$41 | AW108: 1 | BD108: CB$41 | BE108: CD$41 | BF108: 0
A109: TODP16FFC18_C170915 | B109: _0 | C109: 1 | D109: 5 | E109: VDD_CORE | F109: N/A | G109: N/A | H109: N/A | I109: LU | J109: GP_Core_CTL | K109: ODP | L109: 10/30/2021 | M109: 6 IO | N109: Special | O109: 0 | P109: ON | Q109: 0 | R109: on | S109: 1 | T109: 0 | U109: =IFERROR(IF($I109="SI",AP109*$C109*(VLOOKUP("vdd_lkg (ulvt20)",pwr_scale_table,2,0)*$AJ109*'Power Scaling'!F$7+VLOOKUP("vdd_lkg (ulvt16)",pwr_scale_table,2,0)*$AK109*'Power Scaling'!F$8+VLOOKUP("vdd_lkg (lvt20)",pwr_scale_table,2,0)*$AL109*'Power Scaling'!F$5+VLOOKUP("vdd_lkg (lvt16)",pwr_scale_table,2,0)*AM109*'Power Scaling'!F$6+VLOOKUP("vdd_lkg (svt20)",pwr_scale_table,2,0)*$AN109*'Power Scaling'!F$3+VLOOKUP("vdd_lkg (svt16)",pwr_scale_table,2,0)*$AO109*'Power Scaling'!F$4)*IF(P109="OFF",0.06,1),VLOOKUP($A109&"_"&U$3,MDB,5,0)*$C109*VLOOKUP("vdd_lkg (svt16)",pwr_scale_table,2,0)*IF(P109="OFF",0.06,1)),0) -> 0 | V109: =C109*IFERROR(IF($I109="SI",(AE109*IF(S109=0,0,1)+(AF109-AE109)*S109)*IF(R109>0,R109,Q109)/Q109*(VLOOKUP("vdd_int (ulvt20)",pwr_scale_table,2,0)*$AJ109*'Power Scaling'!I$7+VLOOKUP("vdd_int (ulvt16)",pwr_scale_table,2,0)*$AK109*'Power Scaling'!I$8+VLOOKUP("vdd_int (lvt20)",pwr_scale_table,2,0)*$AL109*'Power Scaling'!I$5+VLOOKUP("vdd_int (lvt16)",pwr_scale_table,2,0)*AM109*'Power Scaling'!I$6+VLOOKUP("vdd_int (svt20)",pwr_scale_table,2,0)*$AN109*'Power Scaling'!I$3+VLOOKUP("vdd_int (svt16)",pwr_scale_table,2,0)*$AO109*'Power Scaling'!I$4)*AQ109,IF(OR($I109="AO",$I109="LU"),VLOOKUP($A109&"_"&"vdd_dyn"&"_"&$R109&"",MDB,5,0)*VLOOKUP("vdd_int (svt20)",pwr_scale_table,2,0),IF(OR($I109="LUUA",$I109="LUUB"),VLOOKUP($A109&"_"&"vdd_dyn"&"_"&$R109&"",MDB,5,0)*$C109*$S109*VLOOKUP("vdd_int (svt20)",pwr_scale_table,2,0),VLOOKUP($A109&"_"&"vdd_dyn"&"_"&$R109&"_idle",MDB,5,0)*(1-$S109)+VLOOKUP($A109&"_"&"vdd_dyn"&"_"&$R109&"_read",MDB,5,0)*($S109/2)+VLOOKUP($A109&"_"&"vdd_dyn"&"_"&$R109&"_write",MDB,5,0)*($S109/2)*VLOOKUP("vdd_int (svt20)",pwr_scale_table,2,0)))),0) -> 0 | W109: 0 | X109: 0 | Y109: 0 | Z109: 0 | AA109: 0 | AB109: 0 | AC109: 0 | AD109: 0 | AE109: 0 | AF109: 0 | AG109: 0 | AH109: 0 | AI109: 0 | AJ109: 0 | AK109: 0 | AL109: 0 | AM109: 0 | AN109: 0 | AO109: 0 | AP109: 0 | AQ109: 0 | AR109: The Vx1 macro is a display data standard used on the DLPC8430. It is a receiver only and it's under development. Power is estimated at this time. | AS109: TODP16FFC18_C170915_0
A110: PVDD18MODEDET | B110: _Main | C110: 8 | D110: 5 | E110: VDD_CORE | F110: N/A | G110: VDDSHV1P8 | H110: VDDSHV3P3 | I110: AO | J110: GP_Core_CTL | K110: LVCMOS SD | L110: 10/30/2021 | M110: 6 IO | N110: LVCMOS | O110: 0 | P110: ON | Q110: 0 | R110: on | S110: 1 | T110: 0 | U110: =IFERROR(IF($I110="SI",AP110*$C110*(VLOOKUP("vdd_lkg (ulvt20)",pwr_scale_table,2,0)*$AJ110*'Power Scaling'!F$7+VLOOKUP("vdd_lkg (ulvt16)",pwr_scale_table,2,0)*$AK110*'Power Scaling'!F$8+VLOOKUP("vdd_lkg (lvt20)",pwr_scale_table,2,0)*$AL110*'Power Scaling'!F$5+VLOOKUP("vdd_lkg (lvt16)",pwr_scale_table,2,0)*AM110*'Power Scaling'!F$6+VLOOKUP("vdd_lkg (svt20)",pwr_scale_table,2,0)*$AN110*'Power Scaling'!F$3+VLOOKUP("vdd_lkg (svt16)",pwr_scale_table,2,0)*$AO110*'Power Scaling'!F$4)*IF(P110="OFF",0.06,1),VLOOKUP($A110&"_"&U$3,MDB,5,0)*$C110*VLOOKUP("vdd_lkg (svt16)",pwr_scale_table,2,0)*IF(P110="OFF",0.06,1)),0) -> 0 | V110: =C110*IFERROR(IF($I110="SI",(AE110*IF(S110=0,0,1)+(AF110-AE110)*S110)*IF(R110>0,R110,Q110)/Q110*(VLOOKUP("vdd_int (ulvt20)",pwr_scale_table,2,0)*$AJ110*'Power Scaling'!I$7+VLOOKUP("vdd_int (ulvt16)",pwr_scale_table,2,0)*$AK110*'Power Scaling'!I$8+VLOOKUP("vdd_int (lvt20)",pwr_scale_table,2,0)*$AL110*'Power Scaling'!I$5+VLOOKUP("vdd_int (lvt16)",pwr_scale_table,2,0)*AM110*'Power Scaling'!I$6+VLOOKUP("vdd_int (svt20)",pwr_scale_table,2,0)*$AN110*'Power Scaling'!I$3+VLOOKUP("vdd_int (svt16)",pwr_scale_table,2,0)*$AO110*'Power Scaling'!I$4)*AQ110,IF(OR($I110="AO",$I110="LU"),VLOOKUP($A110&"_"&"vdd_dyn"&"_"&$R110&"",MDB,5,0)*VLOOKUP("vdd_int (svt20)",pwr_scale_table,2,0),IF(OR($I110="LUUA",$I110="LUUB"),VLOOKUP($A110&"_"&"vdd_dyn"&"_"&$R110&"",MDB,5,0)*$C110*$S110*VLOOKUP("vdd_int (svt20)",pwr_scale_table,2,0),VLOOKUP($A110&"_"&"vdd_dyn"&"_"&$R110&"_idle",MDB,5,0)*(1-$S110)+VLOOKUP($A110&"_"&"vdd_dyn"&"_"&$R110&"_read",MDB,5,0)*($S110/2)+VLOOKUP($A110&"_"&"vdd_dyn"&"_"&$R110&"_write",MDB,5,0)*($S110/2)*VLOOKUP("vdd_int (svt20)",pwr_scale_table,2,0)))),0) -> 0 | W110: 0 | X110: 0 | Y110: 0 | Z110: 0 | AA110: 0 | AB110: 0 | AC110: 0 | AD110: 0 | AE110: 0 | AF110: 0 | AG110: 0 | AH110: 0 | AI110: 0 | AJ110: 0 | AK110: 0 | AL110: 0 | AM110: 0 | AN110: 0 | AO110: 0 | AP110: 0 | AQ110: 0 | AR110: The Vx1 macro is a display data standard used on the DLPC8430. It is a receiver only and it's under development. Power is estimated at this time. | AS110: PVDD18MODEDET_Main
A111: n16_core_apd_esd | B111: _multiple | C111: 1 | D111: 5 | E111: VDD_CORE | F111: N/A | G111: N/A | H111: N/A | I111: AO | J111: GP_Core_CTL | K111: APD ESD | L111: 10/30/2021 | M111: 5 Analog | N111: Passives | O111: 0 | P111: ON | Q111: 0 | R111: on | S111: 1 | T111: 0 | U111: =IFERROR(IF($I111="SI",AP111*$C111*(VLOOKUP("vdd_lkg (ulvt20)",pwr_scale_table,2,0)*$AJ111*'Power Scaling'!F$7+VLOOKUP("vdd_lkg (ulvt16)",pwr_scale_table,2,0)*$AK111*'Power Scaling'!F$8+VLOOKUP("vdd_lkg (lvt20)",pwr_scale_table,2,0)*$AL111*'Power Scaling'!F$5+VLOOKUP("vdd_lkg (lvt16)",pwr_scale_table,2,0)*AM111*'Power Scaling'!F$6+VLOOKUP("vdd_lkg (svt20)",pwr_scale_table,2,0)*$AN111*'Power Scaling'!F$3+VLOOKUP("vdd_lkg (svt16)",pwr_scale_table,2,0)*$AO111*'Power Scaling'!F$4)*IF(P111="OFF",0.06,1),VLOOKUP($A111&"_"&U$3,MDB,5,0)*$C111*VLOOKUP("vdd_lkg (svt16)",pwr_scale_table,2,0)*IF(P111="OFF",0.06,1)),0) -> 0 | V111: =C111*IFERROR(IF($I111="SI",(AE111*IF(S111=0,0,1)+(AF111-AE111)*S111)*IF(R111>0,R111,Q111)/Q111*(VLOOKUP("vdd_int (ulvt20)",pwr_scale_table,2,0)*$AJ111*'Power Scaling'!I$7+VLOOKUP("vdd_int (ulvt16)",pwr_scale_table,2,0)*$AK111*'Power Scaling'!I$8+VLOOKUP("vdd_int (lvt20)",pwr_scale_table,2,0)*$AL111*'Power Scaling'!I$5+VLOOKUP("vdd_int (lvt16)",pwr_scale_table,2,0)*AM111*'Power Scaling'!I$6+VLOOKUP("vdd_int (svt20)",pwr_scale_table,2,0)*$AN111*'Power Scaling'!I$3+VLOOKUP("vdd_int (svt16)",pwr_scale_table,2,0)*$AO111*'Power Scaling'!I$4)*AQ111,IF(OR($I111="AO",$I111="LU"),VLOOKUP($A111&"_"&"vdd_dyn"&"_"&$R111&"",MDB,5,0)*VLOOKUP("vdd_int (svt20)",pwr_scale_table,2,0),IF(OR($I111="LUUA",$I111="LUUB"),VLOOKUP($A111&"_"&"vdd_dyn"&"_"&$R111&"",MDB,5,0)*$C111*$S111*VLOOKUP("vdd_int (svt20)",pwr_scale_table,2,0),VLOOKUP($A111&"_"&"vdd_dyn"&"_"&$R111&"_idle",MDB,5,0)*(1-$S111)+VLOOKUP($A111&"_"&"vdd_dyn"&"_"&$R111&"_read",MDB,5,0)*($S111/2)+VLOOKUP($A111&"_"&"vdd_dyn"&"_"&$R111&"_write",MDB,5,0)*($S111/2)*VLOOKUP("vdd_int (svt20)",pwr_scale_table,2,0)))),0) -> 0 | W111: 0 | X111: 0 | Y111: 0 | Z111: 0 | AA111: 0 | AB111: 0 | AC111: 0 | AD111: 0 | AE111: 0 | AF111: 0 | AG111: 0 | AH111: 0 | AI111: 0 | AJ111: 0 | AK111: 0 | AL111: 0 | AM111: 0 | AN111: 0 | AO111: 0 | AP111: 0 | AQ111: 0 | AR111: The Vx1 macro is a display data standard used on the DLPC8430. It is a receiver only and it's under development. Power is estimated at this time. | AS111: n16_core_apd_esd_multiple
A112: n16_core_sig_esd_secondary | B112: _multiple | C112: 26 | D112: 5 | E112: VDD_CORE | F112: N/A | G112: N/A | H112: N/A | I112: AO | J112: GP_Core_CTL | K112: SIG ESD | L112: 10/30/2021 | M112: 5 Analog | N112: Passives | O112: 0 | P112: ON | Q112: 0 | R112: on | S112: 1 | T112: 0 | U112: =IFERROR(IF($I112="SI",AP112*$C112*(VLOOKUP("vdd_lkg (ulvt20)",pwr_scale_table,2,0)*$AJ112*'Power Scaling'!F$7+VLOOKUP("vdd_lkg (ulvt16)",pwr_scale_table,2,0)*$AK112*'Power Scaling'!F$8+VLOOKUP("vdd_lkg (lvt20)",pwr_scale_table,2,0)*$AL112*'Power Scaling'!F$5+VLOOKUP("vdd_lkg (lvt16)",pwr_scale_table,2,0)*AM112*'Power Scaling'!F$6+VLOOKUP("vdd_lkg (svt20)",pwr_scale_table,2,0)*$AN112*'Power Scaling'!F$3+VLOOKUP("vdd_lkg (svt16)",pwr_scale_table,2,0)*$AO112*'Power Scaling'!F$4)*IF(P112="OFF",0.06,1),VLOOKUP($A112&"_"&U$3,MDB,5,0)*$C112*VLOOKUP("vdd_lkg (svt16)",pwr_scale_table,2,0)*IF(P112="OFF",0.06,1)),0) -> 0 | V112: =C112*IFERROR(IF($I112="SI",(AE112*IF(S112=0,0,1)+(AF112-AE112)*S112)*IF(R112>0,R112,Q112)/Q112*(VLOOKUP("vdd_int (ulvt20)",pwr_scale_table,2,0)*$AJ112*'Power Scaling'!I$7+VLOOKUP("vdd_int (ulvt16)",pwr_scale_table,2,0)*$AK112*'Power Scaling'!I$8+VLOOKUP("vdd_int (lvt20)",pwr_scale_table,2,0)*$AL112*'Power Scaling'!I$5+VLOOKUP("vdd_int (lvt16)",pwr_scale_table,2,0)*AM112*'Power Scaling'!I$6+VLOOKUP("vdd_int (svt20)",pwr_scale_table,2,0)*$AN112*'Power Scaling'!I$3+VLOOKUP("vdd_int (svt16)",pwr_scale_table,2,0)*$AO112*'Power Scaling'!I$4)*AQ112,IF(OR($I112="AO",$I112="LU"),VLOOKUP($A112&"_"&"vdd_dyn"&"_"&$R112&"",MDB,5,0)*VLOOKUP("vdd_int (svt20)",pwr_scale_table,2,0),IF(OR($I112="LUUA",$I112="LUUB"),VLOOKUP($A112&"_"&"vdd_dyn"&"_"&$R112&"",MDB,5,0)*$C112*$S112*VLOOKUP("vdd_int (svt20)",pwr_scale_table,2,0),VLOOKUP($A112&"_"&"vdd_dyn"&"_"&$R112&"_idle",MDB,5,0)*(1-$S112)+VLOOKUP($A112&"_"&"vdd_dyn"&"_"&$R112&"_read",MDB,5,0)*($S112/2)+VLOOKUP($A112&"_"&"vdd_dyn"&"_"&$R112&"_write",MDB,5,0)*($S112/2)*VLOOKUP("vdd_int (svt20)",pwr_scale_table,2,0)))),0) -> 0 | W112: 0 | X112: 0 | Y112: 0 | Z112: 0 | AA112: 0 | AB112: 0 | AC112: 0 | AD112: 0 | AE112: 0 | AF112: 0 | AG112: 0 | AH112: 0 | AI112: 0 | AJ112: 0 | AK112: 0 | AL112: 0 | AM112: 0 | AN112: 0 | AO112: 0 | AP112: 0 | AQ112: 0 | AR112: The Vx1 macro is a display data standard used on the DLPC8430. It is a receiver only and it's under development. Power is estimated at this time. | AS112: n16_core_sig_esd_secondary_multiple
A113: n16_core_vdd_clamp | B113: _multiple | C113: 13 | D113: 5 | E113: VDD_CORE | F113: N/A | G113: N/A | H113: N/A | I113: AO | J113: GP_Core_CTL | K113: 0.8V POWER ESD | L113: 10/30/2021 | M113: 5 Analog | N113: Passives | O113: 0 | P113: ON | Q113: 0 | R113: on | S113: 1 | T113: 0 | U113: =IFERROR(IF($I113="SI",AP113*$C113*(VLOOKUP("vdd_lkg (ulvt20)",pwr_scale_table,2,0)*$AJ113*'Power Scaling'!F$7+VLOOKUP("vdd_lkg (ulvt16)",pwr_scale_table,2,0)*$AK113*'Power Scaling'!F$8+VLOOKUP("vdd_lkg (lvt20)",pwr_scale_table,2,0)*$AL113*'Power Scaling'!F$5+VLOOKUP("vdd_lkg (lvt16)",pwr_scale_table,2,0)*AM113*'Power Scaling'!F$6+VLOOKUP("vdd_lkg (svt20)",pwr_scale_table,2,0)*$AN113*'Power Scaling'!F$3+VLOOKUP("vdd_lkg (svt16)",pwr_scale_table,2,0)*$AO113*'Power Scaling'!F$4)*IF(P113="OFF",0.06,1),VLOOKUP($A113&"_"&U$3,MDB,5,0)*$C113*VLOOKUP("vdd_lkg (svt16)",pwr_scale_table,2,0)*IF(P113="OFF",0.06,1)),0) -> 0 | V113: =C113*IFERROR(IF($I113="SI",(AE113*IF(S113=0,0,1)+(AF113-AE113)*S113)*IF(R113>0,R113,Q113)/Q113*(VLOOKUP("vdd_int (ulvt20)",pwr_scale_table,2,0)*$AJ113*'Power Scaling'!I$7+VLOOKUP("vdd_int (ulvt16)",pwr_scale_table,2,0)*$AK113*'Power Scaling'!I$8+VLOOKUP("vdd_int (lvt20)",pwr_scale_table,2,0)*$AL113*'Power Scaling'!I$5+VLOOKUP("vdd_int (lvt16)",pwr_scale_table,2,0)*AM113*'Power Scaling'!I$6+VLOOKUP("vdd_int (svt20)",pwr_scale_table,2,0)*$AN113*'Power Scaling'!I$3+VLOOKUP("vdd_int (svt16)",pwr_scale_table,2,0)*$AO113*'Power Scaling'!I$4)*AQ113,IF(OR($I113="AO",$I113="LU"),VLOOKUP($A113&"_"&"vdd_dyn"&"_"&$R113&"",MDB,5,0)*VLOOKUP("vdd_int (svt20)",pwr_scale_table,2,0),IF(OR($I113="LUUA",$I113="LUUB"),VLOOKUP($A113&"_"&"vdd_dyn"&"_"&$R113&"",MDB,5,0)*$C113*$S113*VLOOKUP("vdd_int (svt20)",pwr_scale_table,2,0),VLOOKUP($A113&"_"&"vdd_dyn"&"_"&$R113&"_idle",MDB,5,0)*(1-$S113)+VLOOKUP($A113&"_"&"vdd_dyn"&"_"&$R113&"_read",MDB,5,0)*($S113/2)+VLOOKUP($A113&"_"&"vdd_dyn"&"_"&$R113&"_write",MDB,5,0)*($S113/2)*VLOOKUP("vdd_int (svt20)",pwr_scale_table,2,0)))),0) -> 0 | W113: 0 | X113: 0 | Y113: 0 | Z113: 0 | AA113: 0 | AB113: 0 | AC113: 0 | AD113: 0 | AE113: 0 | AF113: 0 | AG113: 0 | AH113: 0 | AI113: 0 | AJ113: 0 | AK113: 0 | AL113: 0 | AM113: 0 | AN113: 0 | AO113: 0 | AP113: 0 | AQ113: 0 | AR113: The Vx1 macro is a display data standard used on the DLPC8430. It is a receiver only and it's under development. Power is estimated at this time. | AS113: n16_core_vdd_clamp_multiple
A114: n16_core_vdd3p3_clamp | B114: _multiple | C114: 1 | D114: 5 | E114: VDD_CORE | F114: N/A | G114: N/A | H114: N/A | I114: AO | J114: GP_Core_CTL | K114: 3.3V POWER ESD | L114: 10/30/2021 | M114: 5 Analog | N114: Passives | O114: 0 | P114: ON | Q114: 0 | R114: on | S114: 1 | T114: 0 | U114: =IFERROR(IF($I114="SI",AP114*$C114*(VLOOKUP("vdd_lkg (ulvt20)",pwr_scale_table,2,0)*$AJ114*'Power Scaling'!F$7+VLOOKUP("vdd_lkg (ulvt16)",pwr_scale_table,2,0)*$AK114*'Power Scaling'!F$8+VLOOKUP("vdd_lkg (lvt20)",pwr_scale_table,2,0)*$AL114*'Power Scaling'!F$5+VLOOKUP("vdd_lkg (lvt16)",pwr_scale_table,2,0)*AM114*'Power Scaling'!F$6+VLOOKUP("vdd_lkg (svt20)",pwr_scale_table,2,0)*$AN114*'Power Scaling'!F$3+VLOOKUP("vdd_lkg (svt16)",pwr_scale_table,2,0)*$AO114*'Power Scaling'!F$4)*IF(P114="OFF",0.06,1),VLOOKUP($A114&"_"&U$3,MDB,5,0)*$C114*VLOOKUP("vdd_lkg (svt16)",pwr_scale_table,2,0)*IF(P114="OFF",0.06,1)),0) -> 0 | V114: =C114*IFERROR(IF($I114="SI",(AE114*IF(S114=0,0,1)+(AF114-AE114)*S114)*IF(R114>0,R114,Q114)/Q114*(VLOOKUP("vdd_int (ulvt20)",pwr_scale_table,2,0)*$AJ114*'Power Scaling'!I$7+VLOOKUP("vdd_int (ulvt16)",pwr_scale_table,2,0)*$AK114*'Power Scaling'!I$8+VLOOKUP("vdd_int (lvt20)",pwr_scale_table,2,0)*$AL114*'Power Scaling'!I$5+VLOOKUP("vdd_int (lvt16)",pwr_scale_table,2,0)*AM114*'Power Scaling'!I$6+VLOOKUP("vdd_int (svt20)",pwr_scale_table,2,0)*$AN114*'Power Scaling'!I$3+VLOOKUP("vdd_int (svt16)",pwr_scale_table,2,0)*$AO114*'Power Scaling'!I$4)*AQ114,IF(OR($I114="AO",$I114="LU"),VLOOKUP($A114&"_"&"vdd_dyn"&"_"&$R114&"",MDB,5,0)*VLOOKUP("vdd_int (svt20)",pwr_scale_table,2,0),IF(OR($I114="LUUA",$I114="LUUB"),VLOOKUP($A114&"_"&"vdd_dyn"&"_"&$R114&"",MDB,5,0)*$C114*$S114*VLOOKUP("vdd_int (svt20)",pwr_scale_table,2,0),VLOOKUP($A114&"_"&"vdd_dyn"&"_"&$R114&"_idle",MDB,5,0)*(1-$S114)+VLOOKUP($A114&"_"&"vdd_dyn"&"_"&$R114&"_read",MDB,5,0)*($S114/2)+VLOOKUP($A114&"_"&"vdd_dyn"&"_"&$R114&"_write",MDB,5,0)*($S114/2)*VLOOKUP("vdd_int (svt20)",pwr_scale_table,2,0)))),0) -> 0 | W114: 0 | X114: 0 | Y114: 0 | Z114: 0 | AA114: 0 | AB114: 0 | AC114: 0 | AD114: 0 | AE114: 0 | AF114: 0 | AG114: 0 | AH114: 0 | AI114: 0 | AJ114: 0 | AK114: 0 | AL114: 0 | AM114: 0 | AN114: 0 | AO114: 0 | AP114: 0 | AQ114: 0 | AR114: The Vx1 macro is a display data standard used on the DLPC8430. It is a receiver only and it's under development. Power is estimated at this time. | AS114: n16_core_vdd3p3_clamp_multiple
A115: n16_core_vdda_clamp | B115: _multiple | C115: 25 | D115: 5 | E115: VDD_CORE | F115: N/A | G115: N/A | H115: N/A | I115: AO | J115: GP_Core_CTL | K115: 1.8V POWER ESD | L115: 10/30/2021 | M115: 5 Analog | N115: Passives | O115: 0 | P115: ON | Q115: 0 | R115: on | S115: 1 | T115: 0 | U115: =IFERROR(IF($I115="SI",AP115*$C115*(VLOOKUP("vdd_lkg (ulvt20)",pwr_scale_table,2,0)*$AJ115*'Power Scaling'!F$7+VLOOKUP("vdd_lkg (ulvt16)",pwr_scale_table,2,0)*$AK115*'Power Scaling'!F$8+VLOOKUP("vdd_lkg (lvt20)",pwr_scale_table,2,0)*$AL115*'Power Scaling'!F$5+VLOOKUP("vdd_lkg (lvt16)",pwr_scale_table,2,0)*AM115*'Power Scaling'!F$6+VLOOKUP("vdd_lkg (svt20)",pwr_scale_table,2,0)*$AN115*'Power Scaling'!F$3+VLOOKUP("vdd_lkg (svt16)",pwr_scale_table,2,0)*$AO115*'Power Scaling'!F$4)*IF(P115="OFF",0.06,1),VLOOKUP($A115&"_"&U$3,MDB,5,0)*$C115*VLOOKUP("vdd_lkg (svt16)",pwr_scale_table,2,0)*IF(P115="OFF",0.06,1)),0) -> 0 | V115: =C115*IFERROR(IF($I115="SI",(AE115*IF(S115=0,0,1)+(AF115-AE115)*S115)*IF(R115>0,R115,Q115)/Q115*(VLOOKUP("vdd_int (ulvt20)",pwr_scale_table,2,0)*$AJ115*'Power Scaling'!I$7+VLOOKUP("vdd_int (ulvt16)",pwr_scale_table,2,0)*$AK115*'Power Scaling'!I$8+VLOOKUP("vdd_int (lvt20)",pwr_scale_table,2,0)*$AL115*'Power Scaling'!I$5+VLOOKUP("vdd_int (lvt16)",pwr_scale_table,2,0)*AM115*'Power Scaling'!I$6+VLOOKUP("vdd_int (svt20)",pwr_scale_table,2,0)*$AN115*'Power Scaling'!I$3+VLOOKUP("vdd_int (svt16)",pwr_scale_table,2,0)*$AO115*'Power Scaling'!I$4)*AQ115,IF(OR($I115="AO",$I115="LU"),VLOOKUP($A115&"_"&"vdd_dyn"&"_"&$R115&"",MDB,5,0)*VLOOKUP("vdd_int (svt20)",pwr_scale_table,2,0),IF(OR($I115="LUUA",$I115="LUUB"),VLOOKUP($A115&"_"&"vdd_dyn"&"_"&$R115&"",MDB,5,0)*$C115*$S115*VLOOKUP("vdd_int (svt20)",pwr_scale_table,2,0),VLOOKUP($A115&"_"&"vdd_dyn"&"_"&$R115&"_idle",MDB,5,0)*(1-$S115)+VLOOKUP($A115&"_"&"vdd_dyn"&"_"&$R115&"_read",MDB,5,0)*($S115/2)+VLOOKUP($A115&"_"&"vdd_dyn"&"_"&$R115&"_write",MDB,5,0)*($S115/2)*VLOOKUP("vdd_int (svt20)",pwr_scale_table,2,0)))),0) -> 0 | W115: 0 | X115: 0 | Y115: 0 | Z115: 0 | AA115: 0 | AB115: 0 | AC115: 0 | AD115: 0 | AE115: 0 | AF115: 0 | AG115: 0 | AH115: 0 | AI115: 0 | AJ115: 0 | AK115: 0 | AL115: 0 | AM115: 0 | AN115: 0 | AO115: 0 | AP115: 0 | AQ115: 0 | AR115: The Vx1 macro is a display data standard used on the DLPC8430. It is a receiver only and it's under development. Power is estimated at this time. | AS115: n16_core_vdda_clamp_multiple
C116: 0 | O116: 0 | Q116: 0 | R116: on | S116: 1 | T116: 0 | U116: =IFERROR(IF($I116="SI",AP116*$C116*(VLOOKUP("vdd_lkg (ulvt20)",pwr_scale_table,2,0)*$AJ116*'Power Scaling'!F$7+VLOOKUP("vdd_lkg (ulvt16)",pwr_scale_table,2,0)*$AK116*'Power Scaling'!F$8+VLOOKUP("vdd_lkg (lvt20)",pwr_scale_table,2,0)*$AL116*'Power Scaling'!F$5+VLOOKUP("vdd_lkg (lvt16)",pwr_scale_table,2,0)*AM116*'Power Scaling'!F$6+VLOOKUP("vdd_lkg (svt20)",pwr_scale_table,2,0)*$AN116*'Power Scaling'!F$3+VLOOKUP("vdd_lkg (svt16)",pwr_scale_table,2,0)*$AO116*'Power Scaling'!F$4)*IF(P116="OFF",0.06,1),VLOOKUP($A116&"_"&U$3,MDB,5,0)*$C116*VLOOKUP("vdd_lkg (svt16)",pwr_scale_table,2,0)*IF(P116="OFF",0.06,1)),0) -> 0 | V116: =C116*IFERROR(IF($I116="SI",(AE116*IF(S116=0,0,1)+(AF116-AE116)*S116)*IF(R116>0,R116,Q116)/Q116*(VLOOKUP("vdd_int (ulvt20)",pwr_scale_table,2,0)*$AJ116*'Power Scaling'!I$7+VLOOKUP("vdd_int (ulvt16)",pwr_scale_table,2,0)*$AK116*'Power Scaling'!I$8+VLOOKUP("vdd_int (lvt20)",pwr_scale_table,2,0)*$AL116*'Power Scaling'!I$5+VLOOKUP("vdd_int (lvt16)",pwr_scale_table,2,0)*AM116*'Power Scaling'!I$6+VLOOKUP("vdd_int (svt20)",pwr_scale_table,2,0)*$AN116*'Power Scaling'!I$3+VLOOKUP("vdd_int (svt16)",pwr_scale_table,2,0)*$AO116*'Power Scaling'!I$4)*AQ116,IF(OR($I116="AO",$I116="LU"),VLOOKUP($A116&"_"&"vdd_dyn"&"_"&$R116&"",MDB,5,0)*VLOOKUP("vdd_int (svt20)",pwr_scale_table,2,0),IF(OR($I116="LUUA",$I116="LUUB"),VLOOKUP($A116&"_"&"vdd_dyn"&"_"&$R116&"",MDB,5,0)*$C116*$S116*VLOOKUP("vdd_int (svt20)",pwr_scale_table,2,0),VLOOKUP($A116&"_"&"vdd_dyn"&"_"&$R116&"_idle",MDB,5,0)*(1-$S116)+VLOOKUP($A116&"_"&"vdd_dyn"&"_"&$R116&"_read",MDB,5,0)*($S116/2)+VLOOKUP($A116&"_"&"vdd_dyn"&"_"&$R116&"_write",MDB,5,0)*($S116/2)*VLOOKUP("vdd_int (svt20)",pwr_scale_table,2,0)))),0) -> 0 | W116: 0 | X116: 0 | Y116: 0 | Z116: 0 | AA116: 0 | AB116: 0 | AC116: 0 | AD116: 0 | AE116: 0 | AF116: 0 | AG116: 0 | AH116: 0 | AI116: 0 | AJ116: 0 | AK116: 0 | AL116: 0 | AM116: 0 | AN116: 0 | AO116: 0 | AR116: The Vx1 macro is a display data standard used on the DLPC8430. It is a receiver only and it's under development. Power is estimated at this time.
